Workbook

Sheet Kosteneffectiviteitsdrempels (hidden)
I1: is
B3: geef stofnaam | F3: =IF('Invoer KE-tool per stof'!C6="JA",+'Invoer KE-tool per stof'!C7,'Invoer KE-tool per stof'!C5) -> 0
B4: komt stof voor in tabel? | F4: =IF(AND(ISNA(VLOOKUP(F3,B25:M45,1,)=TRUE),ISNA(VLOOKUP('Invoer KE-tool per stof'!C7,B25:M45,1,)=TRUE)),"nee","ja") -> nee
B5: JG-MKE (µg/l) | F5: =IF(ISBLANK('Invoer KE-tool per stof'!C9)=FALSE,+'Invoer KE-tool per stof'!C9,10000000000) -> 10000000000 | I5: realistische kosten voor BBT
B7: 1/JG-MKE | F7: =IF(F5<>" ",1/F5,0.000000001) -> 1e-10 | I7: realistische kosten voor BBT
B8: kosteneffectiviteitsdrempel BBT | F8: =IF(F7<0.01,200000*(F7^1.15),+'grafiek o.b.v. formules'!$O$3*LN(F7)+'grafiek o.b.v. formules'!R3) -> 6.32455532e-07
B9: kosteneffectiviteitsdrempel BBT+ | F9: =F8*10 -> 6.32455532e-06
I10: =COUNTIF(B25:B43,F3) -> 0 | K10: BBT | L10: BBT+
H11: bov | I11: =IF(F5<>" ",IF(VLOOKUP($F$3,$B$25:$M$45,10,)>F$8,"ja","nee"),"nee") ->  | K11: =IF(F5<>" ",VLOOKUP($F$3,$B$25:$M$45,10,),0) ->  | L11: =IF(F5<>" ",VLOOKUP($F$3,$B$25:$M$45,12,),0) ->  | M11: =IF(+L11>F9,"ja","nee") -> 
H12: ond | I12: =IF(F5<>" ",IF(VLOOKUP(F$3,B$25:M$45,9,)>VLOOKUP(F$3,B$25:M$45,6,),"ja","nee"),"nee") ->  | K12: =IF(F5<>" ",VLOOKUP($F$3,$B$25:$M$45,9,),0) ->  | L12: =IF(F5<>" ",VLOOKUP($F$3,$B$25:$M$45,11,),0) -> 
I13: =IF(F5<>" ",VLOOKUP(F3,B25:M45,7,),0) -> 
I15: In rede te verlangen kosten voor BBT
I16: =IF(F5<>" ",IF(+F4="ja",IF(AND(I$11="ja",I$12="nee"),F$8,IF(I$11="NEE",VLOOKUP(F$3,B25:M45,10,),F$8)),F8),0.000000001) -> 6.32455532e-07
I17: In rede te verlangen kosten voor BBT+
I18: =IF(F5<>" ",IF(F4="ja",IF(AND(I$11="ja",I$12="nee"),F$9,IF(I$11="NEE",IF(AND(L11>F9,L12<F9),F9,10*I16),F$9)),F9),0.000000001) -> 6.32455532e-06 | AX18: stof | AY18: MKE
AX19: HCH | AY19: 0.02
AX20: Hg | AY20: 7e-05
AX21: Cd | AY21: 0.08
AX22: PAK | AY22: 1
AX23: Pb | AY23: 1.2
A24: MKE | B24: stof | F24: lijn | G24: punt in grafiek | H24: formule | I24: bevindt kostenrange zich buiten lijn? | J24: ondergrens kosten BBT in praktijk | K24: bovengrens kosten BBT in praktijk | L24: ondergrens kosten BBT+ in praktijk | M24: bovengrens kosten BBT+ in praktijk | N24: realistische kosten voor BBT+ indien aanwezig | O24: Bovengrens BBT+ o.b.v. BBT | P24: bovengrens o.b.v. BBT+kosten in praktijk | Q24: ratio kosten BBT+/BBT (realistische kosten) | R24: ratio kosten BBT+/BBT (realistische kosten BBT/kosten lijn) | AX24: formaldehyde | AY24: 180
A25: 0.02 | B25: HCH | F25: 5000 | G25: 2500 | H25: =IF(AND(1/A25<1,1/A25>0.01),200000*(1/A25)^1.15,IF(AND(1/A25<5,1/A25>=0.01),700*LN(1/A25)+4000,0)) -> 0 | I25: nee | J25: 500 | K25: 7500 | L25: 25000 | M25: 75000 | N25: 50000 | O25: =IF(I25="nee",H25*10,10*G25) -> 0 | Q25: =+N25/G25 -> 20 | R25: =O25/H25 ->  | AX25: naftaleen | AY25: 2
A26: 0.07 | B26: Hg | F26: 5000 | G26: 250 | H26: 5000 | I26: nee | J26: 100 | K26: 97000 | L26: 20000 | M26: 388000 | N26: 50000 | O26: 50000 | Q26: =+N26/G26 -> 200 | R26: =O26/H26 -> 10 | AX26: Cu | AY26: 2.5
A27: 0.08 | B27: Cd | F27: 5000 | G27: 1700 | H27: 5000 | I27: ja | J27: 1134 | K27: 2269 | L27: 28350 | M27: 56729 | N27: 45000 | O27: 17000 | P27: 56725 | Q27: 26.47058824 | R27: 3.4 | AX27: Ni | AY27: 4
A28: 1 | B28: PAK | F28: 4000 | G28: 2000 | H28: 4000 | I28: ja | J28: 1134 | K28: 2269 | L28: 11340 | M28: 22690 | N28: 15000 | O28: 20000 | P28: 22690 | Q28: 7.5 | R28: 5 | AX28: Zn | AY28: 7.8
A29: 1.2 | B29: Pb | F29: 4000 | G29: 500 | H29: 3872 | I29: ja | J29: 300 | K29: 800 | L29: 4500 | M29: 18500 | N29: 10000 | O29: 5000 | P29: 18500 | Q29: 20 | R29: 1.291322314 | AX29: benzeen | AY29: 10
A30: 180 | B30: formaldehyde | F30: 3500 | G30: 2450 | H30: 3588 | I30: nee | J30: 50 | K30: 5000 | L30: 1000 | M30: 100000 | N30: 49000 | O30: 35880 | Q30: 20 | R30: 10 | AX30: TCE | AY30: 10
A31: 2 | B31: naftaleen | F31: 4000 | G31: 14000 | H31: 3514 | I31: nee | J31: 227 | K31: 14800 | L31: 1816 | M31: 74000 | N31: 74000 | O31: 35140 | Q31: 5.285714286 | R31: 10 | AX31: BTEX | AY31: 41.5
A32: 2.5 | B32: Cu | F32: 3500 | G32: 400 | H32: 3358 | I32: ja | J32: 225 | K32: 450 | L32: 400 | M32: 2500 | N32: 2600 | O32: 4000 | P32: 2500 | Q32: 6.5 | R32: 1.191185229 | AX32: Fenol | AY32: 100
A33: 4 | B33: Ni | F33: 3000 | G33: 400 | H33: 3029 | I33: ja | J33: 225 | K33: 450 | L33: 400 | M33: 2500 | N33: 2600 | O33: 4000 | P33: 2500 | Q33: 6.5 | R33: 1.320567844 | AX33: VOCl | AY33: 117
A34: 7.8 | B34: Zn | F34: 2500 | G34: 400 | H34: 2560 | I34: ja | J34: 225 | K34: 450 | L34: 400 | M34: 2500 | N34: 2600 | O34: 4000 | P34: 2500 | Q34: 6.5 | R34: 1.5625 | AX34: tot-P | AY34: 150
A35: 10 | B35: benzeen | F35: 2100 | G35: 20000 | H35: 2388 | I35: ja | J35: 17600 | K35: 24500 | O35: 200000 | R35: 83.7520938 | AX35: MBTE | AY35: 651
A36: 10 | B36: TCE | F36: 2100 | G36: 28800 | H36: 2388 | I36: ja | J36: 18800 | K36: 39900 | O36: 288000 | R36: 120.6030151 | AX36: tot-N | AY36: 2200
A37: 41.5 | B37: BTEX | F37: 1400 | G37: 500 | H37: 1392 | I37: nee | J37: 150 | K37: 1000 | N37: 4650 | O37: 13920 | Q37: 9.3 | R37: 10 | AX37: SO4 | AY37: 100000
A38: 100 | B38: Fenol | F38: 750 | G38: 776 | H38: 776 | I38: nee | J38: 2330 | K38: 4260 | N38: 3130 | O38: 7760 | Q38: 4.033505155 | R38: 10 | AX38: BZV
A39: 117 | B39: VOCl | F39: 800 | G39: 1500 | H39: 837 | I39: nee | J39: 180 | K39: 2300 | L39: 1680 | M39: 22700 | N39: 12190 | O39: 8370 | Q39: 8.126666667 | R39: 10 | AX39: CZV
A40: 150 | B40: tot-P | C40: P-tot | D40: totaal fosfaat | E40: P-totaal | F40: 570 | G40: 7 | H40: 629 | I40: ja | J40: 3 | K40: 20 | L40: 25 | M40: 70 | N40: 35 | O40: 70 | Q40: 5 | R40: 0.1112877583 | AX40: Stof X
A41: 651 | B41: MBTE | F41: 175 | G41: 4000 | H41: 124 | I41: ja | J41: 800 | K41: 8145 | L41: 1600 | M41: 16293 | N41: 7940 | O41: 40000 | P41: 16300 | Q41: 1.985 | R41: 322.5806452
A42: 2200 | B42: tot-N | C42: N-tot | D42: totaal stikstof | E42: P-totaal | F42: 45 | G42: 4 | H42: 29 | I42: ja | J42: 1 | K42: 6 | L42: 20 | M42: 50 | N42: 45 | O42: 40 | Q42: 11.25 | R42: 1.379310345
A43: 100000 | B43: SO4 | F43: 0.3 | H43: 0.36 | I43: nee | J43: 0.2 | K43: 2.1 | N43: 0.2 | O43: 3.6 | R43: 10
B44: BZV | J44: 0.5 | K44: 5
B45: CZV | J45: 0.1 | K45: 2
B46: Stof X

Sheet grafiek o.b.v. formules (hidden)
B2: 1/MKE | C2: kosten-BBT | D2: kosten-BBT+ | E2: =CONCATENATE("kosten-BBT ",Kosteneffectiviteitsdrempels!$F3) -> kosten-BBT 0 | F2: =CONCATENATE("kosten-BBT+ ",Kosteneffectiviteitsdrempels!$F3) -> kosten-BBT+ 0 | G2: praktijk kosten BBT | H2: praktijk kosten BBT+ | O2: constante A voor lijn | R2: constante B voor lijn | U2: =CORREL(AC60:AC70,Z60:Z70) -> 0.9299856732 | W2: kosten-BBT | Z2: oude lijn? | AB2: nee | AC2: nee | AW2: Complexere functies fitten
B3: 1e-08 | C3: =IF(B3<0.01,200000*(B3^1.15),+$O$3*LN(B3)+$R$3) -> 0.0001261914689 | D3: =10*+C3 -> 0.001261914689 | O3: 660 | R3: 3950 | W3: 0.0001261914689
B4: =2*B3 -> 2e-08 | C4: =IF(B4<0.01,200000*(B4^1.15),+$O$3*LN(B4)+$R$3) -> 0.000280036403 | D4: =10*+C4 -> 0.00280036403 | U4: =CORREL(X60:X70,Z60:Z70) -> 0.9299856732 | W4: 0.000280036403 | AW4: Wat nu als je een complexere functie hebt, zoals y=exp(a.x).sin(x) + b ? Hoe fit je deze curve met behulp van Excel?
B5: =5*B3 -> 5e-08 | C5: 0.0008032403203 | D5: 0.008032403203 | W5: 0.0008032403203
B6: =10*B3 -> 1e-07 | C6: 0.001782501876 | D6: 0.01782501876 | W6: 0.001782501876 | AW6: Ik heb hiervoor een methode bedacht die de volgende stappen omvat:
A7: 2 | B7: =B6*A7 -> 2e-07 | C7: 0.003955619332 | D7: 0.03955619332 | W7: 0.003955619332
A8: 5 | B8: =B7*A8 -> 1e-06 | C8: 0.02517850824 | D8: 0.2517850824 | W8: 0.02517850824 | AW8: Maak een tabel met x en y waarden
A9: 10 | B9: 1e-05 | C9: 0.355655882 | D9: 3.55655882 | W9: 0.355655882 | AW9: Voeg een kolom toe achter deze tabel met daarin de formule van jouw functie zoals je die in Excel moet invoegen, die verwijst naar je x-waarden en naar een paar cellen (met bereiknamen) die de constanten van de vergelijking bevatten die je wilt gaan schatten
A10: 2 | B10: 2e-05 | C10: 0.7892498185 | D10: 7.892498185 | W10: 0.7892498185 | AW10: Voeg een kolom toe die de som der kwadraten berekent
A11: 5 | B11: 0.0001 | C11: 5.023772863 | D11: 50.23772863 | W11: 5.023772863 | AW11: Gebruik Excel's Oplosser om de constanten te zoeken die de kleinste som der kwadraten vindt.
A12: 10 | B12: 0.001 | C12: 70.96267785 | D12: 709.6267785 | W12: 70.96267785
A13: 2 | B13: 0.002 | C13: 157.476042 | D13: 1574.76042 | W13: 157.476042
A14: 5 | B14: 0.01 | C14: 910.5876772 | D14: 9105.876772 | W14: 860.5876772
A15: 10 | B15: 0.1 | C15: 2430.293839 | D15: 24302.93839 | W15: 2380.293839
A16: 2 | B16: 0.2 | C16: 2887.770978 | D16: 28877.70978 | W16: 2837.770978
A17: 5 | B17: 1 | C17: 3950 | D17: 39500 | W17: 3900
A18: 10 | B18: 10 | C18: 5469.706161 | D18: 54697.06161 | W18: 5419.706161
A19: 2 | B19: 20 | C19: 5927.183301 | D19: 59271.83301 | W19: 5877.183301
A20: 5 | B20: 100 | C20: 6989.412323 | D20: 69894.12323 | W20: 6939.412323
A21: 10 | B21: 1000 | C21: 8509.118484 | D21: 85091.18484 | W21: 8459.118484
A22: 2 | B22: 2000 | C22: 8966.595623 | D22: 89665.95623 | W22: 8916.595623
A23: 5 | B23: 10000 | C23: 10028.82465 | D23: 100288.2465 | W23: 9978.824646 | AH23: 1/mke | AI23: =660*LN(+AH24)+3950 -> -1128.840672
A24: 10 | B24: 100000 | C24: 11548.53081 | D24: 115485.3081 | W24: 11498.53081 | AH24: 0.000455
B25: =IF(+Kosteneffectiviteitsdrempels!F5=" ",0.000000001,Kosteneffectiviteitsdrempels!F7) -> 1e-10 | E25: =+Kosteneffectiviteitsdrempels!I16 -> 6.32455532e-07 | F25: =+Kosteneffectiviteitsdrempels!I18 -> 6.32455532e-06 | G25: =IF(Kosteneffectiviteitsdrempels!F5<>" ",VLOOKUP(Kosteneffectiviteitsdrempels!$F3,Kosteneffectiviteitsdrempels!$B25:$M45,9,),0) ->  | H25: =IF(Kosteneffectiviteitsdrempels!F5<>" ",VLOOKUP(Kosteneffectiviteitsdrempels!$F3,Kosteneffectiviteitsdrempels!$B25:$M45,11,),0) -> 
B26: =+B25 -> 1e-10 | G26: =IF(Kosteneffectiviteitsdrempels!F5<>" ",VLOOKUP(Kosteneffectiviteitsdrempels!$F3,Kosteneffectiviteitsdrempels!$B25:$M45,10,),0) ->  | H26: =IF(Kosteneffectiviteitsdrempels!F5<>" ",VLOOKUP(Kosteneffectiviteitsdrempels!$F3,Kosteneffectiviteitsdrempels!$B25:$M45,12,),0) -> 
AN28: Correlatie | AP28: =CORREL(AK49:AK52,AL49:AL52) -> 0.9601046673
A33: 1/MKE | B33: MKE | C33: stof | D33: lijn | E33: punt in grafiek | F33: formule | G33: bevindt kostenrange zich buiten lijn? | H33: ondergrens kosten BBT in praktijk | I33: bovengrens kosten BBT in praktijk | J33: ondergrens kosten BBT+ in praktijk | K33: bovengrens kosten BBT+ in praktijk | T33: 1/MKE | U33: gem kosten | V33: ondergrens kosten BBT in praktijk | W33: bovengrens kosten BBT in praktijk | Y33: 1/MKE | Z33: kosten-BBT | AA33: onder-grens kosten BBT in praktijk | AB33: boven-grens kosten BBT in praktijk | AC33: gemiddelde kosten BBT in praktijk | AH33: 1/MKE | AI33: gemiddelde kosten voor BBT+ in praktijk | AJ33: ondergrens BBT= | AK33: bovengrens kosten BBT+ in praktijk | AL33: kosten-BBT | AN33: kosten BBT o.b.v. 1 lijn
A34: =1/B34 -> 50 | B34: 0.02 | C34: HCH | D34: 5000 | E34: 2500 | F34: =IF(AND(1/B34<1,1/B34>0.01),200000*(1/B34)^1.15,IF(AND(1/B34<5,1/B34>=0.01),700*LN(1/B34)+4000,0)) -> 0 | G34: nee | H34: 500 | I34: 7500 | J34: 25000 | K34: 75000 | Y34: 1e-08 | Z34: =IF(Y34<0.01,200000*(Y34^1.15),+$O$3*LN(Y34)+$R$3) -> 0.0001261914689 | AH34: 1e-05 | AL34: =IF($AH34<0.01,200000*($AH34^1.15),+$O$3*LN($AH34)+$R$3)*10 -> 3.55655882 | AN34: =+$O$3*LN($AH34)+$R$3 -> -3648.530807
A35: =1/B35 -> 14.28571429 | B35: 0.07 | C35: Hg | D35: 5000 | E35: 250 | F35: 5000 | G35: nee | H35: 100 | I35: 97000 | J35: 20000 | K35: 388000 | Y35: 2e-08 | Z35: =IF(Y35<0.01,200000*(Y35^1.15),+$O$3*LN(Y35)+$R$3) -> 0.000280036403 | AH35: 0.0004545454545 | AI35: =AVERAGE(AK35,AL35) -> 168.2893515 | AJ35: 20 | AK35: 50 | AL35: =IF(AH35<0.01,200000*(AH35^1.15),+$O$3*LN(AH35)+$R$3)*10 -> 286.5787029
A36: 12.5 | B36: 0.08 | C36: Cd | D36: 5000 | E36: 1700 | F36: 5000 | G36: ja | H36: 1134 | I36: 2269 | J36: 28350 | K36: 56729 | Y36: 5e-08 | Z36: 0.0008032403203 | AH36: 0.00153609831 | AI36: =AVERAGE(AK36,AL36) -> 8727.775292 | AJ36: 1600 | AK36: 16293 | AL36: 1162.550584
A37: 1 | B37: 1 | C37: PAK | D37: 4000 | E37: 2000 | F37: 4000 | G37: ja | H37: 1134 | I37: 2269 | J37: 11340 | K37: 22690 | Y37: 1e-07 | Z37: 0.001782501876 | AH37: 0.006666666667 | AI37: 3179.090599 | AJ37: 25 | AK37: 70 | AL37: 6288.181199
A38: 0.8333333333 | B38: 1.2 | C38: Pb | D38: 4000 | E38: 500 | F38: 3872 | G38: ja | H38: 300 | I38: 800 | J38: 4500 | K38: 18500 | Y38: 2e-07 | Z38: 0.003955619332 | AH38: 0.008547008547 | AI38: 15533.94781 | AJ38: 1680 | AK38: 22700 | AL38: 8367.895628
A39: 0.5555555556 | B39: 1.8 | C39: formaldehyde | D39: 3500 | E39: 2450 | F39: 3588 | G39: nee | H39: 50 | I39: 5000 | J39: 1000 | K39: 100000 | Y39: 1e-06 | Z39: 0.02517850824 | AH39: 0.01 | AL39: 9105.876772
A40: 0.5 | B40: 2 | C40: naftaleen | D40: 4000 | E40: 14000 | F40: 3514 | G40: nee | H40: 227 | I40: 14800 | J40: 1816 | K40: 74000 | T40: 1e-05 | U40: =AVERAGE(W40,V40) -> 1.15 | V40: 0.2 | W40: 2.1 | X40: =AVERAGE(V40,W40) -> 1.15 | Y40: 1e-05 | Z40: 0.355655882 | AA40: 0.2 | AB40: 2.1 | AC40: =AVERAGE(AA40,AB40) -> 1.15 | AH40: 0.02409638554 | AL40: 14910.42338
A41: 0.4 | B41: 2.5 | C41: Cu | D41: 3500 | E41: 400 | F41: 3358 | G41: ja | H41: 225 | I41: 450 | J41: 400 | K41: 2500 | Y41: 2e-05 | Z41: 0.7892498185 | AH41: 0.1 | AL41: 24302.93839
T42: 0.0004545454545 | U42: =AVERAGE(W42,V42) -> 3.5 | V42: 1 | W42: 6 | X42: =AVERAGE(V42,W42) -> 3.5 | Y42: 5e-05 | Z42: 2.263838808 | AA42: 1 | AB42: 6 | AC42: =AVERAGE(AA42,AB42) -> 3.5 | AH42: 0.1 | AL42: 24302.93839
A43: 0.25 | B43: 4 | C43: Ni | D43: 3000 | E43: 400 | F43: 3029 | G43: ja | H43: 225 | I43: 450 | J43: 400 | K43: 2500 | Y43: 0.0001 | Z43: 5.023772863 | AH43: 0.1282051282 | AI43: =AVERAGE(AK43,AL43) -> 14221.39168 | AJ43: 400 | AK43: 2500 | AL43: 25942.78336
A44: 0.1282051282 | B44: 7.8 | C44: Zn | D44: 2500 | E44: 400 | F44: 2560 | G44: ja | H44: 225 | I44: 450 | J44: 400 | K44: 2500 | Y44: 0.001 | Z44: 70.96267785 | AH44: 0.25 | AI44: 16425.22861 | AJ44: 400 | AK44: 2500 | AL44: 30350.45722
T45: 0.00153609831 | U45: =AVERAGE(W45,V45) -> 4472.5 | V45: 800 | W45: 8145 | X45: =AVERAGE(V45,W45) -> 4472.5 | Y45: 0.0015 | Z45: 113.1188402 | AA45: 800 | AB45: 8145 | AC45: =AVERAGE(AA45,AB45) -> 4472.5 | AH45: 0.4 | AI45: 17976.24058 | AJ45: 400 | AK45: 2500 | AL45: 33452.48117
A46: 0.1 | B46: 10 | C46: benzeen | D46: 2100 | E46: 20000 | F46: 2388 | G46: ja | H46: 17600 | I46: 24500 | Y46: 0.002 | Z46: 157.476042 | AH46: 0.5 | AI46: 54462.6143 | AJ46: 1816 | AK46: 74000 | AL46: 34925.22861
T47: 0.006666666667 | U47: =AVERAGE(W47,V47) -> 11.5 | V47: 3 | W47: 20 | X47: =AVERAGE(V47,W47) -> 11.5 | Y47: 0.0067 | Z47: 632.4351781 | AA47: 3 | AB47: 20 | AC47: =AVERAGE(AA47,AB47) -> 11.5 | AH47: 0.5555555556 | AI47: 67810.30401 | AJ47: 1000 | AK47: 100000 | AL47: 35620.60801
T48: 0.008547008547 | U48: 1240 | V48: 180 | W48: 2300 | X48: 1240 | Y48: 0.0085 | Z48: 831.4990555 | AA48: 180 | AB48: 2300 | AC48: 1240 | AH48: 0.8333333333 | AI48: 28398.33886 | AJ48: 4500 | AK48: 18500 | AL48: 38296.67773 | AN48: verschil (punt en lijn) | AQ48: 1/MKE | AR48: KE(€/kg-verw) volgens lijn | AS48: gemiddelde kosten voor BBT+ in de praktijk | AT48: verschil (punt en lijn)
A49: 0.1 | B49: 10 | C49: TCE | D49: 2100 | E49: 28800 | F49: 2388 | G49: ja | H49: 18800 | I49: 39900 | T49: 0.01 | U49: 3295 | V49: 2330 | W49: 4260 | X49: 3295 | Y49: 0.01 | Z49: 910.5876772 | AA49: 2330 | AB49: 4260 | AC49: 3295 | AH49: 1 | AI49: 31095 | AJ49: 11340 | AK49: 22690 | AL49: =IF(AH49<0.01,200000*(AH49^1.15),IF(AC$2="ja",IF(AH49>5,5000,+$O$3*LN(AH49)+$R$3),+$O$3*LN(AH49)+$R$3))*10 -> 39500 | AN49: =(AI49-AL49)^2 -> 70644025 | AQ49: 1 | AR49: =+AL49 -> 39500 | AS49: =+AI49 -> 31095 | AT49: =(AR49-AS49)^2 -> 70644025
T50: 0.02409638554 | U50: 575 | V50: 150 | W50: 1000 | X50: 575 | Y50: 0.0241 | Z50: 1491.141331 | AA50: 150 | AB50: 1000 | AC50: 575 | AH50: 12.5 | AI50: 56449.40453 | AJ50: 28350 | AK50: 56729 | AL50: =IF(AH50<0.01,200000*(AH50^1.15),IF(AC$2="ja",IF(AH50>5,5000,+$O$3*LN(AH50)+$R$3),+$O$3*LN(AH50)+$R$3))*10 -> 56169.80905 | AN50: =(AI50-AL50)^2 -> 78173.62896 | AQ50: 12.5 | AR50: =+AL50 -> 56169.80905 | AS50: =+AI50 -> 56449.40453 | AT50: =(AR50-AS50)^2 -> 78173.62896
A51: 0.02409638554 | B51: 41.5 | C51: BTEX | D51: 1400 | E51: 500 | F51: 1392 | G51: nee | H51: 150 | I51: 1000 | T51: 0.1 | U51: 21050 | V51: 17600 | W51: 24500 | X51: 21050 | Y51: 0.1 | Z51: 2430.293839 | AA51: 17600 | AB51: 24500 | AC51: 21050 | AH51: =1/0.00007 -> 14285.71429 | AI51: 245321.1505 | AJ51: 20000 | AK51: 388000 | AL51: 102642.3011 | AN51: 2.035725408e+10 | AQ51: =1/0.00007 -> 14285.71429 | AR51: 102642.3011 | AS51: 245321.1505 | AT51: 2.035725408e+10
T52: 0.1 | U52: 29350 | V52: 18800 | W52: 39900 | X52: 29350 | Y52: 0.1 | Z52: 2430.293839 | AA52: 18800 | AB52: 39900 | AC52: 29350 | AH52: 50 | AI52: 70159.67592 | AJ52: 25000 | AK52: 75000 | AL52: 65319.35184 | AN52: 23428737.22 | AQ52: 50 | AR52: 65319.35184 | AS52: 70159.67592 | AT52: 23428737.22
T53: 0.1282051282 | U53: 337.5 | V53: 225 | W53: 450 | X53: 337.5 | Y53: 0.1282 | Z53: 2594.251935 | AA53: 225 | AB53: 450 | AC53: 337.5 | AL53: =10*Z53 -> 25942.51935 | AN53: =(SUM(AN49:AN52))^0.5 -> 143008.4089
A54: 0.01 | B54: 100 | C54: Fenol | D54: 750 | E54: 776 | F54: 776 | G54: nee | H54: 2330 | I54: 4260 | Y54: 0.2 | Z54: 2887.770978 | AL54: 28877.70978 | AT54: =(AT49+AT50+AT51+AT52)^0.5 -> 143008.4089
T55: 0.25 | U55: =AVERAGE(W55,V55) -> 337.5 | V55: 225 | W55: 450 | X55: =AVERAGE(V55,W55) -> 337.5 | Y55: 0.25 | Z55: 3035.045722 | AA55: 225 | AB55: 450 | AC55: =AVERAGE(AA55,AB55) -> 337.5 | AL55: 30350.45722
T56: 0.4 | U56: 337.5 | V56: 225 | W56: 450 | X56: 337.5 | Y56: 0.4 | Z56: 3345.248117 | AA56: 225 | AB56: 450 | AC56: 337.5 | AL56: 33452.48117
T57: 0.5 | U57: 7513.5 | V57: 227 | W57: 14800 | X57: 7513.5 | Y57: 0.5 | Z57: 3492.522861 | AA57: 227 | AB57: 14800 | AC57: 7513.5 | AL57: 34925.22861
T58: 0.5555555556 | U58: 2525 | V58: 50 | W58: 5000 | X58: 2525 | Y58: 0.5556 | Z58: 3562.113599 | AA58: 50 | AB58: 5000 | AC58: 2525 | AL58: 35621.13599
T59: 0.8333333333 | U59: 550 | V59: 300 | W59: 800 | X59: 550 | Y59: 0.8333 | Z59: 3829.641372 | AA59: 300 | AB59: 800 | AC59: 550 | AE59: verschil (punt en lijn) | AL59: 38296.41372
A60: 0.008547008547 | B60: 117 | C60: VOCl | D60: 800 | E60: 1500 | F60: 837 | G60: nee | H60: 180 | I60: 2300 | J60: 1680 | K60: 22700 | T60: 1 | U60: 1701.5 | V60: 1134 | W60: 2269 | X60: 1701.5 | Y60: 1 | Z60: =IF(Y60<0.01,200000*(Y60^1.15),IF(AC$2="ja",IF(Y60>5,5000,+$O$3*LN(Y60)+$R$3),+$O$3*LN(Y60)+$R$3)) -> 3950 | AA60: 1134 | AB60: 2269 | AC60: 1701.5 | AE60: =(Z60-AC60)^2 -> 5055752.25 | AL60: 39500
A61: 0.006666666667 | B61: 150 | C61: tot-P | D61: 570 | E61: 7 | F61: 629 | G61: ja | H61: 3 | I61: 20 | J61: 25 | K61: 70 | Y61: 10 | Z61: =IF(Y61<0.01,200000*(Y61^1.15),IF(AC$2="ja",IF(Y61>5,5000,+$O$3*LN(Y61)+$R$3),+$O$3*LN(Y61)+$R$3)) -> 5469.706161 | AL61: 54697.06161
T62: 12.5 | U62: =AVERAGE(W62,V62) -> 1701.5 | V62: 1134 | W62: 2269 | X62: =AVERAGE(V62,W62) -> 1701.5 | Y62: 12.5 | Z62: 5616.980905 | AA62: 1134 | AB62: 2269 | AC62: =AVERAGE(AA62,AB62) -> 1701.5 | AE62: =(Z62-AC62)^2 -> 15330990.72 | AL62: 56169.80905
A63: 0.00153609831 | B63: 651 | C63: MBTE | D63: 175 | E63: 4000 | F63: 124 | G63: ja | H63: 800 | I63: 8145 | J63: 1600 | K63: 16293 | Y63: 20 | Z63: 5927.183301 | AL63: 59271.83301
T64: 50 | U64: =AVERAGE(W64,V64) -> 4000 | V64: 500 | W64: 7500 | X64: =AVERAGE(V64,W64) -> 4000 | Y64: 50 | Z64: 6531.935184 | AA64: 500 | AB64: 7500 | AC64: =AVERAGE(AA64,AB64) -> 4000 | AE64: =(Z64-AC64)^2 -> 6410695.774 | AL64: 65319.35184
A65: 0.0004545454545 | B65: 2200 | C65: tot-N | D65: 45 | E65: 4 | F65: 29 | G65: ja | H65: 1 | I65: 6 | J65: 20 | K65: 50 | Y65: 100 | Z65: 6989.412323 | AL65: 69894.12323
A66: 1e-05 | B66: 100000 | C66: SO4 | D66: 0.3 | F66: 0.36 | G66: nee | H66: 0.2 | I66: 2.1 | Y66: 1000 | Z66: 8509.118484 | AL66: 85091.18484
C67: BZV | H67: 0.5 | I67: 5 | Y67: 2000 | Z67: 8966.595623 | AL67: 89665.95623
C68: CZV | H68: 0.1 | I68: 2 | Y68: 10000 | Z68: 10028.82465 | AL68: 100288.2465
T69: 14.28571429 | U69: =AVERAGE(W69,V69) -> 48550 | V69: 100 | W69: 97000 | X69: =AVERAGE(V69,W69) -> 48550 | Y69: 14286 | Z69: 10264.24331 | AA69: 100 | AB69: 97000 | AC69: =AVERAGE(AA69,AB69) -> 48550 | AE69: =(Z69-AC69)^2 -> 1465799165
Y70: 100000 | Z70: 11548.53081
T72: 1 | U72: =AVERAGE(W72,V72) -> 1701.5 | V72: 1134 | W72: 2269
T73: 12.5 | U73: =AVERAGE(W73,V73) -> 1701.5 | V73: 1134 | W73: 2269 | AD73: gem | AE73: =(SUM(AE60:AE69))^0.5 -> 38634.13781
V76: 0.5 | W76: 5
V77: 0.1 | W77: 2
Y82: 1/MKE | Z82: KE (€/kg-verw) volgens lijn | AC82: gemiddelde KE (€/kg-verw) in praktijk | AE82: di2
Y83: 1 | Z83: =+Z60 -> 3950 | AA83: 1134 | AB83: 2269 | AC83: 1701.5 | AE83: =(AC83-Z83)^2 -> 5055752.25
Y84: 10 | Z84: =+Z61 -> 5469.706161
Y85: 12.5 | Z85: 5616.980905 | AA85: 1134 | AB85: 2269 | AC85: 1701.5 | AE85: =(AC85-Z85)^2 -> 15330990.72
Y86: 20 | Z86: 5927.183301
Y87: 50 | Z87: 6531.935184 | AA87: 500 | AB87: 7500 | AC87: 4000 | AE87: =(AC87-Z87)^2 -> 6410695.774
Y88: 100 | Z88: 6989.412323
Y89: 1000 | Z89: 8509.118484
Y90: 2000 | Z90: 8966.595623
Y91: 10000 | Z91: 10028.82465
Y92: 14286 | Z92: 10264.24331 | AA92: 100 | AB92: 97000 | AC92: 48550 | AE92: =(AC92-Z92)^2 -> 1465799165
Y93: 100000 | Z93: 11548.53081
AE96: =(AE92+AE87+AE85+AE83)^0.5 -> 38634.13781

Sheet TOELICHTING
I2: TOOL VOOR DE BEREKENING VAN KOSTENEFFCETIVITEIT VAN MAATREGELEN VOOR DE BEPERKING VAN WATEREMISSIES
D4: WERKWIJZE | G4: Ga voor de bepaling van de kosteneffectiviteit KE eerst naar tabblad "Invoer KE-tool per stof", ga DAARNA naar tabblad "beschrijving lozing" en daarna naar tabblad "resultaten immissietoets"voor de
G5: beoordeling van de lozing o.b.v. de immissietoets. DEZE VOLGORDE is cruciaal. Daarna kan in tabblad "beoordeling maatregel" een oordeel worden verkregen over de REDELIJKHEID van maatregelen.
D7: WAAROM DEZE TOOL? | G7: De tool behoort bij het rapport "kosteneffectiviteit van maatregelen voor de beperking van wateremissies", dat is gemaakt in opdracht van het Ministerie van Infrastructuur en Waterstaat.
D10: WAT DOET DEZE TOOL? | G10: Met de tool kan de kosteneffectiviteit (KE), de maximaal in rede te verlangen kosten van een maatregel per kg-verwijderd (voor BBT en BBT+), afhankelijk van de waterbezwaarlijkheid van
G11: de te verwijderen stof, worden berekend (GA HIERVOOR NAAR TABBLAD "Invoer KE-tool per stof")
G13: Indien meerdere stoffen moeten worden teruggehouden op grond van de immissietoets, kunnen de kosten van een maatregel worden verdeeld over meerdere stoffen.
G14: Hiervoor moet eerst de kosteneffectiviteit per stof (KE) worden bepaald (zie tabblad "Invoer KE-tool per stof")
G15: LET OP! Kosten van maatregelen mogen alleen worden verdeeld over stoffen waarvoor daadwerkelijk maatregelen op grond van de immissietoets vereist zijn!
G16: In dat geval berekent de tool hoe deze verdeling plaatsvindt en hoe de kosteneffectiviteit per stof uitvalt (GA HIERVOOR NAAR TABBLAD "Beoordeling maatregel")
G17: Om de kosteneffectiviteit te kunnen berekenen is ook inzicht nodig in de vracht die moet worden verwijderd door maatregelen (Ga hiervoor naar TABBLAD "resultaten immissietoets")
D19: Tabblad Invoer KE-tool per stof | G19: In dit tabblad kan op basis van de waterkwaliteitsnorm van een stof de kosteneffectiviteit KE per stof voor BBT- en BBT+-maatregelen worden berekend. Een waarde voor de
G20: waterkwaliteitsnorm is nodig als invoer om KE te bepalen. Voor sommige stoffen vallen de kosten van maatregelen in de praktijk lager uit dan op grond van de afgeleide relatie tussen
G21: waterbezwaarlijkheid en de in de praktijk gevonden kosten van maatregelen wordt berekend. Als zowel de kosten voor BBT als de kosten voor BBT+ in de praktijk lager uitvallen dan de
G22: voorspelde kosten o.b.v. waterbezwaarlijkheid dan wordt voor BBT+ een waarde van 10* kosten voor BBT, gebaseerd op praktijkkosten, aangehouden. Voor nadere uitleg zie tabblad
G23: "beslis-schema per stof". In deze tool kan alleen INVOER alleen worden ingevoerd in de blauwe cellen:
D25: Tabblad beslis-schema per stof | G25: In dit tabblad wordt wordt uitgelegd hoe wordt gekomen tot de gevonden waarde voor KE voor BBT en BBT+: op basis van de blauwe (BBT) of rode lijn (BBT+) of op basis van
G26: afwijkende kosten gevonden in de praktijk.
D28: Tabblad resultaten immissietoets | G28: In het tabblad "resultaten immissietoets" worden alle resultaten van de immissietoets voor geloosde stoffen aanwezig in het effluent gegeven, als de effluentconcenttratie wordt ingevoerd.
G29: Hiervoor moet de verdunningsfactor FL ter hoogte van de rand van de mengzone, de verdunningsfactor bij het drinkwter-innamepunt en de verdunningsfactor op MAC-mengzone worden ingevoerd.
G30: Deze verdunningsfactoren kunnen worden afgeleid uit de resultaten van de webapplicatie van de immissietoets. Hiervoor volstaat slechts één berekening voor (1 stof) in het geloosde effluent.
G31: (zie voor afleiding mengfactoren Tabblad "UITLEG bepaling mengfactoren"). Het tabblad "resultaten immissietoets" geeft inzicht in welke stoffen verder moeten worden gereduceerd door
G32: het nemen van aanvullende maatregelen. Ook de benodigde reductiepercentages worden gegeven, evenals welke criteria van de immissietoets niet voldoen. Hiermee wordt ook inzicht in de te
G33: verwijderen vracht gegeven. Deze is nodig voor de berekening van KE.
D35: Tabblad beoordeling maatregel | G35: In dit tabblad wordt een oordeel gegeven of kosten in de beoordeling van maatregel mogen worden betrokken of niet en waarom. Tevens wordt in geval sprake is van meerdere stoffen
G36: die moeten worden verwijderd door maatregelen rekening gehouden met de verdeling van kosten per stof. Vervolgens wordt KE berekend. Een maatregel is kosteneffectief als voor
G37: één van de stoffen die moet worden verwijderd op grond van de immissietoets de kosten lager uitvallen dan KE voor de stof en de totale kosten van een maatregel lager uitvallen
G38: dan de maximaal in rede te verlangen kosten per jaar: ∑ Xi*KE-stof i, met Xi de te verwijderen vracht van stof-i om te voldoen aan de immissietoets.
D40: Toepassingsgebied | G40: De tool kan worden toegepast voor lozingen die worden geregeld via een vergunning. In sommige gevallen kan de tool in geval van een meldingen ook worden toegepast voor lozingen die zijn
G41: geregeld conform 'algemene regels'. Het gaat dan om situaties waarvan op grond van de melding aanvullend maatwerk nodig is op grond van de immissietoets. Bij melding gaat het veelal
G42: om lozing van nieuwe stoffen of een aangepaste lozing. Om deze reden is aanvullende beoordeling met behulp van immissietoets (veelal) noodzakelijk. Indien de immissietoets tot aanvullende
G43: maatregelen leidt om de emissie te beperken, kunnen kosten voor deze maatregelen alleen bij beoordeling van de redelijkheid van maatregelen worden betrokken als het niet voldoen aan de
G44: immissietoets wordt veroorzaakt door alleen de significantietoets.
G45: Voor vergunde lozingen kan ook aanscherping van een norm, de lozing van (nieuwe) opkomende stoffen of de aanscherpig van een waterkwaliteitsnorm voor bestaande lozingen aanleiding zijn
G46: om kosten maatregelen te betrekken bij de beoordeling van de redelijkheid van maatregelen (zie navolgende schema).

Sheet Invoer KE-tool per stof
D2: VOOR NIEUWE BEREKENING KE: ALVORENS NIEUWE GEGEVENS IN TE VOEREN DRUK OP START!
G4: =IF(OR(OR(ISBLANK(C5)=TRUE,ISBLANK(C6)=TRUE),IF(C6="ja",ISBLANK(C7)=TRUE,ISBLANK(C6)=TRUE))," ",IF(Kosteneffectiviteitsdrempels!F4="nee","Er zijn géén praktijkkosten voor BBT en BBT+ voor deze stof voorhanden!"," ")) -> 
B5: Geef Stofnaam
B6: Betreft het een metaal ? | F6: ja
B7: =IF(C6="ja"," Geef element notatie"," ") ->  | F7: nee | G7: =IF(OR(ISBLANK(C5)=TRUE,ISBLANK(C9)=TRUE)," ",IF(Kosteneffectiviteitsdrempels!F4="nee","De in rede te verlangen kosten voor BBT worden gegeven door blauwe lijn en kosten voor BBT+ door rode lijn!",IF(AND(Kosteneffectiviteitsdrempels!L12<Kosteneffectiviteitsdrempels!F9,Kosteneffectiviteitsdrempels!L11>Kosteneffectiviteitsdrempels!F9,Kosteneffectiviteitsdrempels!I16<Kosteneffectiviteitsdrempels!F8),"Maximale praktijk-kosten voor BBT vallen lager uit dan Blauwe lijn, maar rode lijn ligt binnen bandbreedte van praktijk-kosten voor BBT+ !",IF(Kosteneffectiviteitsdrempels!I16<Kosteneffectiviteitsdrempels!F8,"De in rede te verlangen kosten voor BBT vallen lager uit dan blauwe lijn en voor de kosten voor BBT+ wordt 10* de kosten voor BBT aangehouden!","voor de in rede te verlangen kosten voor BBT+ wordt 10* de kosten voor BBT aangehouden!")))) -> 
B8: =IF(ISNA(F9)=TRUE," Geef Cas-nummer van de stof",IF(F9<>C5," Geef Cas-nummer van de stof"," ")) -> Geef Cas-nummer van de stof | E8: =IF(AND(ISNA(E9)=FALSE,E9<>0),"voorstel"," ") -> 
B9: Geef MKE of MKN [ug/l] | D9: =IF(OR(ISBLANK(E9)=TRUE,ISNA(E9)=TRUE)," ","<==") ->  | E9: =VLOOKUP(IF(C6="ja",C7,C5),Kosteneffectiviteitsdrempels!AX19:AY40,2,FALSE) ->  | F9: =VLOOKUP('Invoer KE-tool per stof'!C5,'ZZS-lijst'!C2:C1464,1,FALSE) ->  | G9: =IF(E9=" ",1,2) -> 
B10: maximaal ín rede te verlangen kosten voor BBT (€/kg-verw.) : | C10: =IF(OR(ISBLANK(C5)=TRUE,ISBLANK(C9)=TRUE)," ",+Kosteneffectiviteitsdrempels!I16) ->  | F10: =ISNA(F9) -> TRUE
B11: maximaal ín rede te verlangen kosten voor BBT+: (€/kg-verw.) : | C11: =IF(OR(ISBLANK(C5)=TRUE,ISBLANK(C9)=TRUE)," ",+Kosteneffectiviteitsdrempels!I18) -> 
M13: =IF(F10=FALSE,"Deze stof wordt aangemerkt als ZZS",+'ZZS-checker'!A2) -> 
M17: =IF(OR('ZZS-checker'!B2>0,F10=FALSE),"Let op!, voor deze stof geldt een minimalisatieverplichting!"," ") -> 

Sheet beslis-schema per stof
A2: Stof: | B2: =IF(ISBLANK(+'Invoer KE-tool per stof'!C5)=TRUE," ",+'Invoer KE-tool per stof'!C5) -> 
D4: KOSTEN VOOR BBT | L4: Zijn er voor de te verwijderen stof voldoende praktijkgegevens voor kosten van BBT- maatregelen voorhanden of zijn kosten af te leiden uit BREF-documenten?
P5: nee
AA7: ©
M9: =IF(Kosteneffectiviteitsdrempels!F4="ja","ja"," ") -> 
N10: =IF(Kosteneffectiviteitsdrempels!F4="ja",Z14," ") -> 
K11: Vallen de kosten o.b.v. de blauwe lijn in de grafiek significant1) hoger uit dan de in de praktijk gevonden kosten voor BBT? | Z11: <
Q12: =IF(AND(Kosteneffectiviteitsdrempels!I11="ja",Kosteneffectiviteitsdrempels!I12="nee",Kosteneffectiviteitsdrempels!F4="ja"),"nee","ja") ->  | S12: Ga voor kosten van BBT uit van blauwe lijn in grafiek!
Z14: =+AA7 -> ©
M16: =IF(Kosteneffectiviteitsdrempels!F4="nee"," ",IF(Kosteneffectiviteitsdrempels!I11="nee","ja"," ")) -> 
Z17: ,
N18: =IF(+Kosteneffectiviteitsdrempels!I11="nee",+'beslis-schema per stof'!Z14," ") -> 
D19: Mits adequaat onderbouwd kan voor BBT-kosten uit worden uitgegaan van beschikbare praktijk-info of kosten afgeleid uit BREF's. | K19: Wijken de kosten voor BBT+ significant 2) af van de kosten o.b.v. de rode lijn?
J20: ja | Q20: =IF(AND(Kosteneffectiviteitsdrempels!I11="nee",Kosteneffectiviteitsdrempels!M11<>"nee"),"nee",IF(AND(Kosteneffectiviteitsdrempels!I11="nee",Kosteneffectiviteitsdrempels!M11="nee")," ","nee")) -> 
W28: =IF(AND(Kosteneffectiviteitsdrempels!I11="nee",Kosteneffectiviteitsdrempels!M11<>"nee"),+'beslis-schema per stof'!Z14," ") -> 
K29: De 'ín rede te verlangen' kosten voor BBT+ bedragen 10*kosten voor BBT (€/kg-verw.) | V29: Ga voor kosten voor BBT+ uit van kosten gegeven door rode lijn
D30: KOSTEN VOOR BBT+
N34: ^ | W34: =IF(AND(Q20="nee",M16<>"ja"),+N34," ") -> 
L37: Gemiddelde Ratio F: kosten BBT+/kosten BBT = 10
V42: kosten BBT (€/kg=verw.) | AB42: =+'Invoer KE-tool per stof'!C10 -> 
V44: kosten BBT+ (€/kg-verw.) | AB44: =+'Invoer KE-tool per stof'!C11 -> 
V47: =IF('Invoer KE-tool per stof'!M13="Deze stof wordt aangemerkt als ZZS","Het betreft een ZZS-stof waarvoor een minimalisatieverplichting geldt"," ") -> 
L50: 1) Kosten wijken significant af als de kosten o.b.v. blauwe lijn buiten de bandbreedte vallen van kostenrange
L51: gevonden voor BBT.
L52: 2) Kosten wijken significant af als de kosten o.b.v. rode lijn buiten de bandbreedte vallen van kostenrange voor
L53: gevonden voor BBT+.

Sheet beschrijving lozing
B1: BESCHRIJVING VAN DE LOZING
B4: Gaat het om een bestaande of nieuwe lozing? | L4: =IF(R25=1,"Ga naar tabblad 'resultaten immissietoets' en voer immissietoets voor alle geloosde stoffen uit en beoordeel kosten van maatregelen (indien nodig) in tabblad 'beoordeling maatregel' !"," ") ->  | O4: bestaand
O5: nieuw
B7: =IF(I4="bestaand","Hoe is de lozing gereguleerd?","Hoe wordt de lozing gereguleerd?") -> Hoe wordt de lozing gereguleerd?
O8: algemene regels
O9: vergunning
O12: vergunning
B13: Is sprake van een directe of indirecte lozing? | O13: directe lozing
O14: indirecte lozing
B16: =IF(I7="vergunning","Is BBT voor de activiteit vastgelegd in een BREF document?"," ") ->  | O16: ja | P16: =IF(AND(I7="vergunning",I16="nee"),"Verken maatregelen o.b.v. KE-methodiek in tabblad 'beordeling maatregel', hiervoor is invullen van immissietoets nodig!"," ") -> 
B17: =IF(I$7="algemene regels","Werkwijze bij meldingen:"," ") ->  | O17: nee
B19: =IF(I4="bestaand",IF(+I7="algemene regels","Is op grond van melding aanvullend maatwerk nodig op grond van immissietoets?",IF(I4="nieuw","Voldoet de lozing aan BBT?"," ")),IF(I7="algemene regels","Is op grond van melding aanvullend maatwerk nodig op grond van immissietoets?",IF(AND(I7="vergunning",I16="ja",+I4="nieuw"),"Voldoet de lozing aan BBT?"," "))) -> 
N20: =IF(AND(I19="ja",I7="algemene regels"),CONCATENATE("Indien niet kan worden voldaan aan immissietoets kunnen kosten van maatregelen alleen bij de beoordeling worden betrokken als alleen de significantietoets de oorzaak is"," van het niet voldoen aan immissietoets; in alle andere gevallen spelen kosten géén rol bij de beoordelijk van de redelijkheid van maatregelen")," ") -> 
B22: =IF(ISBLANK(I16)=TRUE," ",IF(I7="vergunning",IF(+I19="ja","Voer immissietoets uit in tabblad 'resultaten immissietoets",IF(I19="nee","Aanvullende maatregelen zijn noodzakelijk","Ga naar tabblad 'resultaten immissietoets' en voer immissietoets uit")),IF(I19="nee"," ","Ga naar tabblad 'resultaten immissietoets' en voer immissietoets uit"))) -> 
B25: =IF(AND($I22>0,$I$7= "algemene regels",I$19="nee"),"Stofnaam",IF(I22>0,IF(B22="Aanvullende maatregelen zijn noodzakelijk","Ga naar tabblad 'resultaten immissietoets' en voer immissietoets uit en bepaal kosteneffectiviteit (KE) van maatregelen","Ga naar tabblad 'resultaten immissietoets' en voer immissietoets uit"),IF(AND(I7="vergunning",I16="ja",I19="nee"),"Ga naar tabblad 'resultaten immissietoets' en voer immissietoets uit en bepaal kosteneffectiviteit (KE) van maatregelen in tabblad 'beoordeling maatregel'"," "))) ->  | I25: =IF(AND($I22>0,$I$7= "algemene regels"),"Lozingsconcentratie [ug/l]"," ") ->  | M25: =IF(AND($I22>0,$I$7= "algemene regels"),"Voorgeschreven concentratie [ug/l] algemene regels"," ") ->  | P25: =IF(AND($I22>0,$I$7= "algemene regels"),"Benodigde reductie [%]"," ") ->  | R25: =IF(I19="nee",SUM(R27:R77),0) -> 0
A27: 1 | P27: =IF(ISBLANK(B27)=FALSE,1-M27/I27," ") ->  | R27: =IF(AND(ISBLANK(B27)=FALSE,ISBLANK(M27)=FALSE,A27=I$22,I$7="algemene regels"),1,0) -> 0
A28: 2 | P28: =IF(ISBLANK(B28)=FALSE,1-M28/I28," ") ->  | R28: 0
A29: 3 | R29: 0
A30: 4 | R30: 0
A31: 5 | R31: 0
A32: 6 | R32: 0
A33: 7 | R33: 0
A34: 8 | R34: 0
A35: 9 | R35: 0
A36: 10 | R36: 0
A37: 10 | R37: 0
A38: 11 | R38: 0
A39: 12
A40: 13
A41: 14
A42: 15
A43: 16
A44: 17
A45: 18
A46: 19
A47: 20
A48: 21
A49: 1
A50: 2
A51: 3
A52: 4
A53: 5
A54: 6
A55: 7
A56: 8
A57: 9 | P57: =IF(ISBLANK(B57)=FALSE,1-M57/I57," ") ->  | R57: =IF(AND(ISBLANK(B57)=FALSE,ISBLANK(M57)=FALSE,A57=I$22,I$7="algemene regels"),1,0) -> 0
A58: 10 | R58: 0
A59: 32 | R59: 0
A60: 33 | R60: 0
A61: 34 | R61: 0
A62: 35 | R62: 0
A63: 36 | R63: 0
A64: 37 | R64: 0
A65: 38 | R65: 0
A66: 39 | R66: 0
A67: 40 | R67: 0
A68: 41 | R68: 0
A69: 42 | R69: 0
A70: 43 | R70: 0
A71: 44 | R71: 0
A72: 45 | R72: 0
A73: 46 | R73: 0
A74: 47 | R74: 0
A75: 48 | R75: 0
A76: 49 | R76: 0
A77: 50 | R77: 0

Sheet resultaten immissietoets
A1: RESULTATENBLAD IMMISSIETOETS O.B.V. VERDUNNINGSFACTOREN UIT WEBAPPLICATIE IMMISSIETOETS
AA2: 90-percentiel lage afvoer
A3: Naam bedrijf/lozer: | AA3: gemiddelde afvoer
W4: Wilt u de invloed van hechting aan zwevend stof meenemen bij beoordeling? (dit kan bij lozing van metalen en stoffen die aan zwevend stof hechten van belang zijn!) | AF4: nee | AG4: nee | AO4: =IF(BD25>=1,+AZ9," ") -> 
AF6: ja
AF7: nee
A8: Vindt de lozing plaats op zee? | W8: Wilt u in geval van metalen corrigeren voor natuurlijke achtergrondconc. ? | AG8: nee
A9: =IF(C8="nee","Vindt de lozing plaats op haven?"," ") ->  | AZ9: Vanuit drinkwater problematiek is lozing niet mogelijk. Vanwege een te hoge achtergrondconcentratie wordt de signaleringsparameter van 1 ug/l ter hoogte van het innamepunt overschreden. Geadviseerd wordt om met BG contact op te nemen om RIVM te raadplegen over de afleiding van een indicatieve richtwaarde voor drinkwater voor de betreffende stof
W10: =IF(AG4="nee"," ","Geef zwevend stof gehalte in ontvangende oppervlaktewater [ug/l]: ") -> 
A11: dimensies watersysteem:
A12: =IF(C8="ja"," ","breedte (m)") -> breedte (m)
A13: diepte (m)
A14: =IF(C8="ja"," ","afvoer (m3/s) 90-percentiel lage afvoer:") -> afvoer (m3/s) 90-percentiel lage afvoer: | AH14: ja
A15: gemiddelde afvoer (m3/s) ter hoogte van monitoringspunt | N15: ng/l | T15: BIJ NIEUWE BEOORDELING: LET OP | AH15: nee
A16: lozingsdebiet (m3/s) | N16: ug/l | T16: OUDE INVOERDATA VERWIJDEREN! | AF16: Beoordeling o.b.v. gemiddelde afvoer
A17: Type lozing | N17: mg/l | T17: bestaand
A18: Is er benedenstrooms sprake van beschermde gebieden (drinkwater, zwemwater, natura 2000, schelpdierwater of overgangswater) ? | L18: 1 | N18: g/l | O18: ja | T18: nieuw
O19: nee | T19: Beoordeling o.b.v. maatgevende 90-percentiel lage afvoer
A20: =IF(H18="ja","geef verdunningsfactor ter hoogte van drinkwaterinnamepunt"," ") -> 
AO21: =COUNTIF(AO28:AO84,">0") -> 0
A22: Verdunnings-factor | B22: ja | H22: =CONCATENATE("X-L ",ROUND(MIN((+H12*10),1000),0)," [m]") -> X-L 0 [m] | AO22: =IF(AL26=1,"Let op !: door ontbreken van drinkwaternorm kan berekende benodigde reductie (in rood), o.b.v. sign-waarde van 1 ug/l of Ca, worden overschat!"," ") ->  | AQ22: =IF(+$C9="ja","Let op lozing vindt plaats op haven: effecten voor hoofdwatersysteem vallen doorgaans lager uit!"," ") ->  | BR22: =IF('beschrijving lozing'!I13="indirecte lozing","beoordeling van biologische zuivering als maatregel"," ") ->  | BV22: ondergrens voor verwijderings-rendement voor BBT [%]
B23: nee | H23: =CONCATENATE("X-mac ",CEILING(MIN((+H12*0.25),25),1)," [m]") -> X-mac 0 [m] | AZ23: =J22*(N28-J28)+J28 -> 0
A24: berekende mengfactor (volledige menging) op monitoringspunt | J24: =IF(ISBLANK(H15)=FALSE,(H15+H16)/H16," ") ->  | BE24: =MAX(BE28:BE84) -> 0
A25: Invoer | H25: invoer | N25: resultaten immissietoets (mengzone) | AB25: resultaat beschermde gebieden | AF25: beoordeling op waterlichaamniveau | AK25: overall oordeel | AO25: Consequentie | AS25: reductie lozing | AY25: normtoets | BD25: =COUNTIF(BD28:BD83,">=1") -> 0 | BE25: drinkwater | BV25: 1
A26: Geloosde stof | B26: ZZS (ja/nee?) | C26: =IF(AG4="ja","Kp (alleen van belang bij aan zw-stof adsor-berende stoffen)"," ") ->  | D26: F-verdunning op afst. L | E26: F-verdunning op afst. Xmac | F26: F-volledig mon-punt | G26: =IF('beschrijving lozing'!I13="indirecte lozing","biologische afbraak in rwzi [%]"," ") ->  | H26: =IF(OR(ISBLANK('beschrijving lozing'!I13)=TRUE,'beschrijving lozing'!I13="directe lozing"),"Effluent-concentratie [ug/l]","Concentratie na biologische zuivering [ug/l]") -> Effluent-concentratie [ug/l] | I26: Natuur-lijke Cachter-grond [ug/l] | J26: Cachter-grond [ug/l] | K26: eenheid waarin MKN is vastgesteld | L26: Waarde MKN **) | N26: norm voor norm-toets [ug/l] ***) | O26: meet-nauw-keurig-heid *) | Q26: MN | R26: meet-nauw-keurig-heid [ug/l]*) | T26: MAC [ug/l] | U26: MAC [ug/l] | V26: =CONCATENATE("C-Xmac > MAC?") -> C-Xmac > MAC? | W26: DCL (rand meng-zone) [ug/l] | X26: DCL/MKN [%] | Y26: DCL/MKN [%] | Z26: CL [ug/l] | AA26: Resultaat van immissietoets | AB26: geef achter-grondcon-centratie ter hoogte van drinkwater-inamepunt [ug/l] | AC26: =IF(H18="ja","Concen-tratie ter hoogte van beschermde gebied [ug/l]"," ") ->  | AD26: =IF(H18="ja","drink-water-norm [ug/l]"," ") ->  | AE26: oordeel beschermde gebieden | AF26: C-moni-torings-punt [ug/l] | AG26: C-mon > MKN? | AH26: ∆C-mon > meet-nauw-keurig-heid? | AI26: Resul-taat van toetsing aan prin-cipe van geen achter-uitgang (KRW) | AK26: overall oordeel | AL26: =IF(ISNA(VLOOKUP(1,AL28:AL84,1,0)=TRUE),0,1) -> 0 | AO26: beno-digde reductie o.b.v. immissie-toets [%] | AP26: Oorzaak niet voldoen immissietoets | AQ26: Advies | AR26: Relatieve bijdrage van de lozing aan concentratieverhoging bij het innamepunt of de rand van mengzone in geval van overschrijding- of ontbreken van normen | AS26: resultaat sign.toets | AT26: resultaat normtoets | AU26: resultaat krw toets | AV26: KRW | AW26: resultaat drinkwatertoets | AY26: Reductiefactor R | AZ26: reductie Cloz | BA26: Cloz-nieuw | BB26: red% Cloz o.b.v. norm-toets | BC26: red% norm-toets | BE26: reductie | BF26: norm | BG26: red Cloz drink-water | BH26: overschrijding norm | BK26: correctie adsorptie zw-stof | BO26: drinkwatertoets overschreden? | BQ26: =IF('beschrijving lozing'!I13="indirecte lozing","Clozing als lozing via rwzi gaat [ug/l]"," ") ->  | BR26: berekend rendement rwzi a.g.v. adsorptie aan slib | BS26: biologische afbraak in zuivering [%] | BT26: overall rendement [%] | BU26: influent-concentratie voor maatregel [ug/l] | BV26: In 'rede te verlangen' kosten per stof voor BBT per jaar [€/j] | BX26: In 'rede te verlangen' kosten per stof voor BBT+ per jaar [€/j] | BZ26: KE [€/kg-verw.] | CB26: totale in rede te verlangen kosten voor BBT o.b.v. alle stoffen [€/j] | CD26: totale in rede te verlangen kosten voor BBT o.b.v. ZZS [€/j] | CF26: totale in rede te verlangen kosten voor BBT o.b.v. PFAS [€/j] | CH26: totale in rede te verlangen kosten voor BBT+ o.b.v. alle stoffen [€/j] | CJ26: totale in rede te verlangen kosten voor BBT+ o.b.v. ZZS [€/j] | CL26: totale in rede te verlangen kosten voor BBT+ o.b.v. PFAS [€/j]
A27: zwevend stof | C27: 0 | D27: =J22 -> 0 | E27: =J23 -> 0 | F27: =(H$15+H16)/H$16 ->  | H27: 20000 | J27: =+$AG$10 -> 0 | V27: =IF(AND(+H27<>" ",ISBLANK(T27)<>TRUE),IF(+J27+(H27-J27)/E27>U27,"JA","NEE")," ") ->  | W27: =IF(+H27<>" ",(H27-J27)/D27," ") ->  | Y27: =IF(+H27<>" ",IF(AND(+H27>0,L27>0),W27/L27," ")," ") ->  | Z27: =IF(H27<>" ",+J27+W27,J27) ->  | AA27: =IF(ISBLANK(A27)<>TRUE,IF(AND(H27>0,L27>0),IF(IF(H$35="nieuw",AND(Z27<N27,+X27<=0.1),X27<=0.1),"VOLDOET","VOLDOET NIET!")," ")," ") ->  | AF27: =IF(ISBLANK(A27)<>TRUE,(BQ27-J27)/F27," ")+J27 ->  | AG27: =IF(+ISBLANK($D27)<>TRUE,IF(AND(+$J27>0,$O27>0),IF(+AF27>M27,"JA","NEE")," ")," ") ->  | AH27: =IF(+ISBLANK($D27)<>TRUE,IF(AND(+$J27>0,$N27>0),IF(+AF27-J27>O27,"JA","NEE")," ")," ") ->  | AI27: =IF(ISBLANK(A27)<>TRUE,IF(AND(H27>0,M27>0),IF(AND(AG27="NEE",J27<M27),"VOLDOET",IF(AND(+J27>=M27,(AF27-J27)<=O27),"VOLDOET","VOLDOET NIET!"))," ")," ") ->  | AM27: 0 | AR27: =IF(OR(BO27="ja",AO27="n.t.b"),IF(AND(ISBLANK(L27)=TRUE,ISBLANK(AD27)=TRUE,BO27="ja"),CONCATENATE("delta C-innamepunt: ",ROUND((AC27-AB27)/AB27*100,4)," %","; delta C-L-: ",ROUND(W27/J27*100,4)," %"),IF(ISBLANK(L27)=TRUE,IF(ISBLANK(J27)=TRUE,CONCATENATE("delta C-L: ",ROUND(W27,4)," ug/l"),CONCATENATE("delta C-L: ",ROUND(+W27/J27*100,4)," %")),IF(ISBLANK(AD27)=TRUE,CONCATENATE("delta C-innamepunt: ",ROUND((AC27-AB27)/AB27*100,4),"%"))))," ") ->  | BQ27: =IF(AND(ISBLANK(A27)=FALSE,A27<>" "),IF('beschrijving lozing'!I$13="indirecte lozing",+J27,+'resultaten immissietoets'!H27-J27/J22)," ") -> 
D28: =+D27 -> 0 | E28: =+E27 -> 0 | F28: =+F27 ->  | M28: =IF(AG$8="ja",IF(K28="ng/L",L28+I28*1000,IF(K28="mg/L",L28+I28/1000,IF(K28="g/L",L28+I28/1000000,L28+I28))),L28) -> 0 | N28: =IF(K28="ng/l",0.001*+M28,IF(K28="ug/l",M28,IF(K28="mg/l",1000*M28,1000000*M28))) -> 0 | O28: =IFERROR(IF(ISBLANK(K28)=FALSE, IF(AND($D28<>"",ISBLANK(N28)<>TRUE), IF(ISNUMBER(SEARCH(".",N28))=TRUE, 10^-(LEN(N28)-SEARCH(".",N28)), IF(ISNUMBER(SEARCH(",",N28))=TRUE, 10^-(LEN(N28)-SEARCH(",",N28)), 1)), " "), " ")/(IF(K28="ng/l",1000,IF(K28="mg/l",0.001,IF(K28="g/L",0.000001,1))))," ") ->  | P28: =IF(AND(ROUNDDOWN($N28/1000,2)-ROUNDDOWN($N28/100000,3)>0,N28>1000),1000,IF(AND(ROUNDDOWN($N28/10000,2)-ROUNDDOWN($N28/10000,3),N28>100),100,IF(AND(ROUNDDOWN($N28/1000,2)-ROUNDDOWN($N28/1000>0,3),N28>10),10,IF(AND(ROUNDDOWN($N28/100,2)-ROUNDDOWN($N28/100>0,3),N28>1),1,0.1)))) -> 0.1 | Q28: =IF(ISBLANK(#REF!)=FALSE,IF(K28="ng/l",0.001,IF(K28="ug/l",1,IF(K28="mg/l",1000,1000000)))*IF(M28/10<1,0.1,IF(M28/100<1,1,IF(M28/1000<1,1,1)))," ") -> 100000 | R28: =IF(AND(ISBLANK(#REF!)=FALSE,ISBLANK(L28)=FALSE),MIN(Q28,O28)*IF(ISNUMBER(S28)=TRUE,S28,1)," ") ->  | U28: =IF(T28>0,T28+I28," ") ->  | V28: =IF(AND(+H28<>" ",ISBLANK(T28)<>TRUE),IF(+J28+(H28-J28)/E28*IF(+X$41="ja",1/(1+C28*(AG$30+W$46*D28/E28)*0.000001),1)>U28,"JA","NEE")," ") ->  | W28: =IF(ISBLANK(H28)=FALSE,IF(AND(+H28>0,L28>0),(H28-J28)/D28," "),0)*IF(+AG$4="ja",1/(1+C28*Z$27/1000*0.000001),1) -> 0 | X28: =IF(AND(L28>0,H28>0),+W28/N28," ") ->  | Z28: =IF(ISBLANK(H28)=FALSE,IF(H28>0,+J28+W28," ")," ") ->  | AA28: =IF(ISBLANK(A28)<>TRUE,IF(AND(H28>0,L28>0),IF(OR(AND(Z28<=N28,+X28<=0.1,V28<>"JA"),H28<=N28),"VOLDOET",IF(AND(J28>=N28,X28<=0.1,AF28-J28<=O28,V28<>"JA"),"VOLDOET","VOLDOET NIET!"))," ")) -> FALSE | AC28: =IF(ISBLANK(A28)=FALSE,(H28-AB28)/+H$20,0+I28)*IF(AG$4="JA",1/(1+(AG$10+X$27)*C28*0.000001),1)+AB28 -> 0 | AE28: =IF(H$18="ja",IF(ISBLANK(AD28)=TRUE,IF((AC28)>1,IF(AC28>AB28,"voldoet niet","voldoet"),"voldoet"),IF(AND(AC28>AD28,H28>AB28),"voldoet niet","voldoet")),"voldoet") -> voldoet | AF28: =IF(ISBLANK(A28)<>TRUE,IF(AND(H28>0),(BQ28-J28)/F28*IF(AG$4="ja",1/(1+C28*(AG$10+X$27)*0.000001),1)+J28," ")," ") ->  | AG28: =IF(AND(+ISBLANK(#REF!)=FALSE,ISBLANK(L28)=FALSE),IF(+AF28>N28,"JA","NEE")," ") ->  | AH28: =IF(+ISBLANK(A28)<>TRUE,IF($N28>0,IF(+AF28-J28>R28,"JA","NEE")," ")," ") ->  | AI28: =IF(ISBLANK(A28)<>TRUE,IF(AND(H28>0,N28>0),IF(AND(AG28="NEE",J28<N28),"VOLDOET",IF(AND(+J28>=N28,(AF28-J28)<=R28),"VOLDOET","VOLDOET NIET!"))," ")," ") ->  | AK28: =IF(AND(ISBLANK(H28)=FALSE,ISBLANK(L28)=FALSE),IF(ISBLANK(A28)=FALSE,IF(IF(H$18="ja",OR(AND(ISBLANK(AD28)=TRUE,AC28>1),AA28=" "),AA28=" "),IF(OR(AE28="VOLDOET NIET!",AA28="VOLDOET NIET!"),"VOLDOET NIET!",IF(AND(AC28>AB28,ISBLANK(AD28)=TRUE),"VOLDOET NIET?","VOLDOET")),IF(ISBLANK(A28)=FALSE,IF(J28<L28,IF(OR(AA28="voldoet niet!",AI28="voldoet niet!",AE28="VOLDOET NIET"),"VOLDOET NIET!","VOLDOET"),IF(AND(AA28="VOLDOET",AI28="VOLDOET"),"VOLDOET","VOLDOET NIET!"))))," "),"VOLDOET NIET?") -> VOLDOET NIET? | AL28: =IF(AND(AO28>0,AK28="VOLDOET NIET?",ISBLANK(L28)=FALSE),1,0) -> 0 | AM28: =IF(AND(AO28>0,ISBLANK(A28)=FALSE),1,+AM27) -> 0 | AN28: =+A28 -> 0 | AO28: =IF(AND(ISBLANK(AD28)=TRUE,ISBLANK(L28)=TRUE),"n.t.b.",IF(AK28="VOLDOET",0,IF(AND(ISBLANK(H28)=FALSE,ISBLANK(L28)=FALSE),IF(AND(AK28="VOLDOET NIET?",ISBLANK(L28)=TRUE),"n.t.b.",IF(H$18="ja",IF(AND(ISBLANK(AD28)=TRUE,AB28>=1,AC28>1,AE28="voldoet niet!"),"n.t.b",MIN(1,MAX(AS28,AT28,AU28,AW28,BE28,BG28,BM28))),MIN(1,MAX(AS28,AT28,AU28,AW28))))," "))) -> n.t.b. | AP28: =CONCATENATE(IF(AK28="VOLDOET"," ",IF(AND(ISBLANK(H28)=FALSE,ISBLANK(L28)=FALSE),CONCATENATE(IF(AND(ISBLANK(L28)=FALSE,X28>0.1),"sign.-toets; ",""),IF(AND(J28<N28,Z28>N28),"normtoets; ",""),IF(AND(J28>=N28,AF28-J28>R28),"KRW-toets; ",""),IF(AND(J28<N28,AF28>N28),"KRW-toets; ",IF(H$18="ja",IF(AND(ISBLANK(AD28)=FALSE,AC28>AD28),"drinkwatertoets",IF(AND(AC28>1,ISBLANK(AD28)=TRUE,AC28>AB28),"drinkwatertoets","")),"")),IF(ISBLANK(L28)=TRUE," ;sign.- en normtoets??",""))," ")),IF(V28="ja","MAC-toets"," ")) ->  | AQ28: =IF(OR(AE28="voldoet niet",AK28="VOLDOET niet?"),IF(AND(H$18="ja",OR(ISBLANK(L28)=TRUE,ISBLANK(AD28)=TRUE)),CONCATENATE("Raadpleeg RIVM (via BG) voor (noodzaak) afleiding ",IF(AND(ISBLANK(L28)=TRUE,AA28<>"VOLDOET")," i-MKN"," "),IF(AND(ISBLANK(AD28)=TRUE,AE28<>"VOLDOET"),IF(AND(ISBLANK(L28)=TRUE,AA28<>"VOLDOET")," en i-DW","i-DW")," "))," ")," ") ->  | AR28: =IF(OR(BO28="ja",AO28="n.t.b"),IF(AND(ISBLANK(L28)=TRUE,ISBLANK(AD28)=TRUE,BO28="ja"),CONCATENATE("delta C-innamepunt: ",ROUND((AC28-AB28)/AB28*100,4)," %","; delta C-L-: ",IF(J28>0,ROUND(W28/J28*100,4),ROUND(W28,4)),IF(J28>0,"%"," ug/l")),IF(ISBLANK(L28)=TRUE,IF(OR(ISBLANK(J28)=TRUE,J28=0),CONCATENATE("delta C-L: ",ROUND(W28,4)," ug/l"),CONCATENATE("delta C-L: ",ROUND(+W28/J28*100,4)," %")),IF(ISBLANK(AD28)=TRUE,CONCATENATE("delta C-innamepunt: ",ROUND((AC28-AB28)/AB28*100,4),"%"))))," ") ->  | AS28: =IF(AND(ISBLANK(A28)=FALSE,ISBLANK(L28)=FALSE),IF(OR(X28<0.1,+H28<=N28),0,IF(J28>=N28,MAX(IF(AF28-N28>R28,1-(J28+J$24*R28/H28),0),IF(X28>0.1,1-0.1/X28,1)),1-0.1/X28))*(H28-J28)/H28,0) -> 0 | AT28: =IF(AND(ISBLANK(A28)=FALSE,ISBLANK(L28)=FALSE),IF(AA28="VOLDOET NIET!",IF(+J28>N28,+BC28,AZ28),0),0) -> 0 | AU28: =IF(AI28<>"VOLDOET",1-((1-AV28)*H28+AV28*J28)/H28,0) ->  | AV28: =IF(AI28<>"VOLDOET",MAX(IF(J28>=N28,1-R28/(AF28-J28),IF(AF28<=J28+R28,0,IF(J28<N28,1-(N28-J28)/(AF28-J28)))),0),0) ->  | AW28: =IF(AND(ISBLANK(A28)=FALSE,ISBLANK(L28)=FALSE),IF(+H$18="ja",IF(ISBLANK(AD28)=TRUE,IF(AC28>1,+BG28,0),IF(ISBLANK(AD28)=TRUE,IF(AND(AC28>AB28,H28>=AB28),1-AB28/H28,0),IF(AB28<AD28,1-((AD28-AB28)*H$20+AB28)/H28,+BM28))),0),0) -> 0 | AY28: =IF(AND(ISBLANK(#REF!)=FALSE,ISBLANK(L28)=FALSE),IF(AND(Z28>N28,J28<N28),(+Z28-+N28)/N28,0)," ") ->  | AZ28: =IF(AND(ISBLANK(A28)=FALSE,ISBLANK(L28)=FALSE),IF(+Z28>N28,IF(J28>=N28,IF(J28+J$24*R28>=H28,0,1-(J28+J$24*R28/H28)),1-(J28+(N28-J28)*J$22/BK28)/(H28)),0),0) -> 0 | BA28: =IF(AND(ISBLANK(A28)=FALSE,ISBLANK(L28)=FALSE),IF(J28<N28,(1-+AZ28)*(H28),MAX(J28,(1-AZ28)*H28))," ") ->  | BC28: =IF(AND(ISBLANK(#REF!)=FALSE,ISBLANK(L28)=FALSE),IF(AF28>=N28,IF(AND(J28>=N28,AF28-J28<=R28),0,1-BA28/+H28),0)," ") ->  | BD28: =IF(AND(ISBLANK(#REF!)=FALSE,ISBLANK(L28)=FALSE),IF(AND(BE28>1,ISBLANK(AD28)=TRUE,AO28=1),1,0)," ") ->  | BE28: =IF(AND(ISBLANK(#REF!)=FALSE,ISBLANK(L28)=FALSE),IF(H$18="ja",1-IF(AND(H$18="ja",AC28>IF(ISBLANK(AD28)=TRUE,1,AD28)),1-+BG28,1),0),0) -> 0 | BF28: =IF(AND(ISBLANK(A36)=FALSE,ISBLANK(L28)=FALSE),IF(ISBLANK(+AD28)=TRUE,1,AD28)," ") ->  | BG28: =IF($H$18="ja",IF(AND(ISBLANK(AD28)=TRUE,AB28>1),1-AB28/H28,IF(ISBLANK(AD28)=TRUE,IF(AC28>1,1-(H$20*1+AB28)/H28,0),IF(ISBLANK(AD28)=FALSE,IF(AC28>AD28,1-(H$20*AD28+AB28)/H28,0),1-(AB28+H$20*AD28)/H28))),0) -> 0 | BH28: =IF(H$18="ja",IF(AND(ISBLANK(#REF!)=FALSE,ISBLANK(L28)=FALSE),IF(AD28>AC28,0,(AC28-IF(ISBLANK(AD28)=TRUE,1,AD28))/IF(ISBLANK(AD28)=TRUE,1,AD28)-1)," "),0) -> 0 | BK28: =IF(AND(ISBLANK(#REF!)=FALSE,ISBLANK(L28)=FALSE),1/(1+C28*Z$27/1000*0.000001)," ") ->  | BM28: =IF(H$18="ja",IF(AND(AB28<1,ISBLANK(AD28)=TRUE),1-((1-AB28)*H$20+AB28)/H28,MIN(1-AB28/H28,1-AD28/AC28)),0) -> 0 | BO28: =IF(BG28>0,"ja","nee") -> nee | BQ28: =IF(AND(ISBLANK(A28)=FALSE,A28<>" "),IF('beschrijving lozing'!I$13="indirecte lozing",1/(1+'resultaten immissietoets'!C28*60*0.000001)*(1-BS28),1)*+'resultaten immissietoets'!H28," ") ->  | BR28: =IF(ISBLANK(A28)=FALSE,(1-1/(1+C28*60*0.000001))," ") ->  | BS28: =IF(ISBLANK(A28)=FALSE,+G28," ") ->  | BT28: =IF(ISBLANK(A28)=FALSE,(1-(1-BS28)*(1-BR28))," ") ->  | BU28: =IF(ISBLANK(A28)=FALSE,(1-BT28)*H28," ") ->  | BV28: =MAX(IF(ISBLANK($H28)=FALSE,IF('beschrijving lozing'!I$13="indirecte lozing",+$H$16*8760*3600*$H28/1000000*$BZ28*(BV$25-G28-BR28),+$H$16*8760*3600*$H28/1000000*$BZ28*(BV$25))),0) -> 0 | BX28: =IF(ISBLANK(A28)=FALSE,IF(ISBLANK($H28)=TRUE,0,+$H$16*8760*3600*$H28/1000000*$BZ28*10*AO28)*IF('beschrijving lozing'!I$13="indirecte lozing",(1-'resultaten immissietoets'!BT28),1),0) -> 0 | BZ28: =IF(ISBLANK(H28)=TRUE,0,IF(AND(ISBLANK(A28)=FALSE,A28<>" "),IF(OR(A28="Zink",A28="Zn",A28="Nikkel",A28="Ni",A28="Koper",A28="Cu"),450,IF(OR(A28="P-tot",A28="Tot-P",A28="totaal-P",A28="P-totaal"),20,IF(OR(A28="N-tot",A28="tot-N",A28="totaal-N",A28="N-totaal",A28="totaal-stikstof",A28="stikstof-totaal"),6,IF(1/N28<0.01,200000*(1/N28)^1.15,660*LN(1/N28)+3950)))),0)) -> 0 | CB28: =SUBTOTAL(9,(BV28:BV84)) -> 0 | CC28: =IF(+B28="ja",+BV28,0) -> 0 | CD28: =SUBTOTAL(9,(CC28:CC84)) -> 0 | CE28: =IF(OR($A28="PFOS",$A28="PFOA",$A28="GENX",$A28="overige PFAS",$A28="6:2 FTS"),+BV28,0) -> 0 | CF28: =SUBTOTAL(9,(CE28:CE84)) -> 0 | CH28: =SUBTOTAL(9,BX27:BX84) -> 0 | CI28: =IF(B28="ja",BX28,0) -> 0 | CJ28: =SUBTOTAL(9,CI28:CI84) -> 0 | CK28: =IF(OR($A28="PFOS",$A28="PFOA",$A28="GENX",$A28="overige PFAS",$A28="6:2 FTS"),+BX28,0) -> 0 | CL28: =SUBTOTAL(9,CK28:CK84) -> 0 | CN28: =IF(AND($AO28>0,$AK28="VOLDOET NIET?",ISBLANK($L28)=TRUE),1,0) -> 1
D29: =+D28 -> 0 | E29: =+E28 -> 0 | M29: =IF(AG$8="ja",IF(K29="ng/L",L29+I29*1000,IF(K29="mg/L",L29+I29/1000,IF(K29="g/L",L29+I29/1000000,L29+I29))),L29) -> 0 | N29: =IF(K29="ng/l",0.001*+M29,IF(K29="ug/l",M29,IF(K29="mg/l",1000*M29,1000000*M29))) -> 0 | O29: =IFERROR(IF(ISBLANK(K29)=FALSE, IF(AND($D29<>"",ISBLANK(N29)<>TRUE), IF(ISNUMBER(SEARCH(".",N29))=TRUE, 10^-(LEN(N29)-SEARCH(".",N29)), IF(ISNUMBER(SEARCH(",",N29))=TRUE, 10^-(LEN(N29)-SEARCH(",",N29)), 1)), " "), " ")/(IF(K29="ng/l",1000,IF(K29="mg/l",0.001,IF(K29="g/L",0.000001,1))))," ") ->  | P29: 0.1 | Q29: =IF(ISBLANK(A28)=FALSE,IF(K29="ng/l",0.001,IF(K29="ug/l",1,IF(K29="mg/l",1000,1000000)))*IF(M29/10<1,0.1,IF(M29/100<1,1,IF(M29/1000<1,1,1)))," ") ->  | R29: =IF(AND(ISBLANK(A28)=FALSE,ISBLANK(L29)=FALSE),MIN(Q29,O29)*IF(ISNUMBER(S29)=TRUE,S29,1)," ") ->  | U29: =IF(T29>0,T29+I29," ") ->  | V29: =IF(AND(+H29<>" ",ISBLANK(T29)<>TRUE),IF(+J29+(H29-J29)/E29*IF(+X$41="ja",1/(1+C29*(AG$30+W$46*D29/E29)*0.000001),1)>U29,"JA","NEE")," ") ->  | W29: =IF(ISBLANK(H29)=FALSE,IF(AND(+H29>0,L29>0),(H29-J29)/D29," "),0)*IF(+AG$4="ja",1/(1+C29*Z$27/1000*0.000001),1) -> 0 | Z29: =IF(ISBLANK(H29)=FALSE,IF(H29>0,+J29+W29," ")," ") ->  | AA29: =IF(ISBLANK(A29)<>TRUE,IF(AND(H29>0,L29>0),IF(OR(AND(Z29<=N29,+X29<=0.1,V29<>"JA"),H29<=N29),"VOLDOET",IF(AND(J29>=N29,X29<=0.1,AF29-J29<=O29,V29<>"JA"),"VOLDOET","VOLDOET NIET!"))," ")) -> FALSE | AC29: 0 | AE29: =IF(H$18="ja",IF(ISBLANK(AD29)=TRUE,IF((AC29)>1,IF(AC29>AB29,"voldoet niet","voldoet"),"voldoet"),IF(AND(AC29>AD29,H29>AB29),"voldoet niet","voldoet")),"voldoet") -> voldoet | AG29: =IF(AND(+ISBLANK(A29)=FALSE,ISBLANK(L29)=FALSE),IF(+AF29>N29,"JA","NEE")," ") ->  | AH29: =IF(+ISBLANK(A29)<>TRUE,IF($N29>0,IF(+AF29-J29>R29,"JA","NEE")," ")," ") ->  | AI29: =IF(ISBLANK(A29)<>TRUE,IF(AND(H29>0,N29>0),IF(AND(AG29="NEE",J29<N29),"VOLDOET",IF(AND(+J29>=N29,(AF29-J29)<=R29),"VOLDOET","VOLDOET NIET!"))," ")," ") ->  | AK29: =IF(AND(ISBLANK(H29)=FALSE,ISBLANK(L29)=FALSE),IF(ISBLANK(A29)=FALSE,IF(IF(H$18="ja",OR(AND(ISBLANK(AD29)=TRUE,AC29>1),AA29=" "),AA29=" "),IF(OR(AE29="VOLDOET NIET!",AA29="VOLDOET NIET!"),"VOLDOET NIET!",IF(AND(AC29>AB29,ISBLANK(AD29)=TRUE),"VOLDOET NIET?","VOLDOET")),IF(ISBLANK(A29)=FALSE,IF(J29<L29,IF(OR(AA29="voldoet niet!",AI29="voldoet niet!",AE29="VOLDOET NIET"),"VOLDOET NIET!","VOLDOET"),IF(AND(AA29="VOLDOET",AI29="VOLDOET"),"VOLDOET","VOLDOET NIET!"))))," "),"VOLDOET NIET?") -> VOLDOET NIET? | AL29: =IF(AND(AO29>0,AK29="VOLDOET NIET?",ISBLANK(L29)=FALSE),1,0) -> 0 | AM29: =IF(AND(AO29>0,ISBLANK(A29)=FALSE),+AM28+1,+AM28) -> 0 | AN29: =+A29 -> 0 | AO29: n.t.b. | AP29: =CONCATENATE(IF(AK29="VOLDOET"," ",IF(AND(ISBLANK(H29)=FALSE,ISBLANK(L29)=FALSE),CONCATENATE(IF(AND(ISBLANK(L29)=FALSE,X29>0.1),"sign.-toets; ",""),IF(AND(J29<N29,Z29>N29),"normtoets; ",""),IF(AND(J29>=N29,AF29-J29>R29),"KRW-toets; ",""),IF(AND(J29<N29,AF29>N29),"KRW-toets; ",IF(H$18="ja",IF(AND(ISBLANK(AD29)=FALSE,AC29>AD29),"drinkwatertoets",IF(AND(AC29>1,ISBLANK(AD29)=TRUE,AC29>AB29),"drinkwatertoets","")),"")),IF(ISBLANK(L29)=TRUE," ;sign.- en normtoets??",""))," ")),IF(V29="ja","MAC-toets"," ")) ->  | AR29: =IF(OR(BO29="ja",AO29="n.t.b"),IF(AND(ISBLANK(L29)=TRUE,ISBLANK(AD29)=TRUE,BO29="ja"),CONCATENATE("delta C-innamepunt: ",ROUND((AC29-AB29)/AB29*100,4)," %","; delta C-L: ",IF(J29>0,ROUND(W29/J29*100,4),ROUND(W29,4)),IF(J29>0,"%"," ug/l")),IF(ISBLANK(L29)=TRUE,IF(OR(ISBLANK(J29)=TRUE,J29=0),CONCATENATE("delta C-L: ",ROUND(W29,4)," ug/l"),CONCATENATE("delta C-L: ",ROUND(+W29/J29*100,4)," %")),IF(ISBLANK(AD29)=TRUE,CONCATENATE("delta C-innamepunt: ",ROUND((AC29-AB29)/AB29*100,4),"%")," ")))," ") ->  | AS29: 0 | AT29: =IF(AND(ISBLANK(A29)=FALSE,ISBLANK(L29)=FALSE),IF(AA29="VOLDOET NIET!",IF(+J29>N29,+BC29,AZ29),0),0) -> 0 | AU29: =IF(AI29<>"VOLDOET",1-((1-AV29)*H29+AV29*J29)/H29,0) ->  | AV29: =IF(AI29<>"VOLDOET",MAX(IF(J29>=N29,1-R29/(AF29-J29),IF(AF29<=J29+R29,0,IF(J29<N29,1-(N29-J29)/(AF29-J29)))),0),0) ->  | AW29: 0 | AY29: =IF(AND(ISBLANK(A28)=FALSE,ISBLANK(L29)=FALSE),IF(AND(Z29>N29,J29<N29),(+Z29-+N29)/N29,0),0) -> 0 | AZ29: =IF(AND(ISBLANK(A29)=FALSE,ISBLANK(L29)=FALSE),IF(+Z29>N29,IF(J29>=N29,IF(J29+J$24*R29>=H29,0,1-(J29+J$24*R29/H29)),1-(J29+(N29-J29)*J$22/BK29)/(H29)),0),0) -> 0 | BC29: =IF(AND(ISBLANK(A28)=FALSE,ISBLANK(L29)=FALSE),IF(J29>N29,0,1-(N29-J29)/(Z29-J29)),0) -> 0 | BD29: =IF(AND(ISBLANK(A28)=FALSE,ISBLANK(L29)=FALSE),IF(AND(BE29>1,ISBLANK(AD29)=TRUE),1,0),0) -> 0 | BE29: =IF(AND(ISBLANK(#REF!)=FALSE,ISBLANK(L29)=FALSE),IF(H$18="ja",1-IF(AND(H$18="ja",AC29>IF(ISBLANK(AD29)=TRUE,1,AD29)),1-+BG29,1),0),0) -> 0 | BF29: =IF(AND(ISBLANK(A28)=FALSE,ISBLANK(L29)=FALSE),IF(ISBLANK(+AD29)=TRUE,1,AD29)," ") ->  | BG29: =IF($H$18="ja",IF(AND(ISBLANK(AD29)=TRUE,AB29>1),1-AB29/H29,IF(ISBLANK(AD29)=TRUE,IF(AC29>1,1-(H$20*1+AB29)/H29,0),IF(ISBLANK(AD29)=FALSE,IF(AC29>AD29,1-(H$20*AD29+AB29)/H29,0),1-(AB29+H$20*AD29)/H29))),0) -> 0 | BH29: =IF(H$18="ja",IF(AND(ISBLANK(A28)=FALSE,ISBLANK(L29)=FALSE),IF(AD29>AC29,0,(AC29-IF(ISBLANK(AD29)=TRUE,1,AD29))/IF(ISBLANK(AD29)=TRUE,1,AD29)-1)," "),0) -> 0 | BK29: =IF(AND(ISBLANK(#REF!)=FALSE,ISBLANK(L29)=FALSE),1/(1+C29*Z$27/1000*0.000001)," ") ->  | BM29: 0 | BO29: nee | BQ29: =IF(AND(ISBLANK(A29)=FALSE,A29<>" "),IF('beschrijving lozing'!I$13="indirecte lozing",1/(1+'resultaten immissietoets'!C29*60*0.000001)*(1-BS29),1)*+'resultaten immissietoets'!H29," ") ->  | BR29: =IF(ISBLANK(A29)=FALSE,(1-1/(1+C29*60*0.000001))," ") ->  | BS29: =IF(ISBLANK(A29)=FALSE,+G29," ") ->  | BT29: =IF(ISBLANK(A29)=FALSE,(1-(1-BS29)*(1-BR29))," ") ->  | BU29: =IF(ISBLANK(A29)=FALSE,(1-BT29)*H29," ") ->  | BV29: =MAX(IF(ISBLANK($H29)=FALSE,IF('beschrijving lozing'!I$13="indirecte lozing",+$H$16*8760*3600*$H29/1000000*$BZ29*(BV$25-G29-BR29),+$H$16*8760*3600*$H29/1000000*$BZ29*(BV$25))),0) -> 0 | BX29: =IF(ISBLANK(A29)=FALSE,IF(ISBLANK($H29)=TRUE,0,+$H$16*8760*3600*$H29/1000000*$BZ29*10*AO29)*IF('beschrijving lozing'!I$13="indirecte lozing",(1-'resultaten immissietoets'!BT29),1),0) -> 0 | BZ29: =IF(ISBLANK(H29)=TRUE,0,IF(AND(ISBLANK(A29)=FALSE,A29<>" "),IF(OR(A29="Zink",A29="Zn",A29="Nikkel",A29="Ni",A29="Koper",A29="Cu"),450,IF(OR(A29="P-tot",A29="Tot-P",A29="totaal-P",A29="P-totaal"),20,IF(OR(A29="N-tot",A29="tot-N",A29="totaal-N",A29="N-totaal",A29="totaal-stikstof",A29="stikstof-totaal"),6,IF(1/N29<0.01,200000*(1/N29)^1.15,660*LN(1/N29)+3950)))),0)) -> 0 | CC29: =IF(+B29="ja",+BV29,0) -> 0 | CE29: =IF(OR($A29="PFOS",$A29="PFOA",$A29="GENX",$A29="overige PFAS",$A29="6:2 FTS"),+BV29,0) -> 0 | CI29: =IF(B29="ja",BX29,0) -> 0 | CK29: =IF(OR($A29="PFOS",$A29="PFOA",$A29="GENX",$A29="overige PFAS",$A29="6:2 FTS"),+BX29,0) -> 0 | CN29: =IF(AND($AO29>0,$AK29="VOLDOET NIET?",ISBLANK($L29)=TRUE),1,0) -> 1
D30: 0 | E30: 0 | M30: 0 | N30: 0 | O30: =IFERROR(IF(ISBLANK(K30)=FALSE, IF(AND($D30<>"",ISBLANK(N30)<>TRUE), IF(ISNUMBER(SEARCH(".",N30))=TRUE, 10^-(LEN(N30)-SEARCH(".",N30)), IF(ISNUMBER(SEARCH(",",N30))=TRUE, 10^-(LEN(N30)-SEARCH(",",N30)), 1)), " "), " ")/(IF(K30="ng/l",1000,IF(K30="mg/l",0.001,IF(K30="g/L",0.000001,1))))," ") ->  | P30: =IF(AND(ROUNDDOWN($N30/1000,2)-ROUNDDOWN($N30/100000,3)>0,N30>1000),1000,IF(AND(ROUNDDOWN($N30/10000,2)-ROUNDDOWN($N30/10000,3),N30>100),100,IF(AND(ROUNDDOWN($N30/1000,2)-ROUNDDOWN($N30/1000>0,3),N30>10),10,IF(AND(ROUNDDOWN($N30/100,2)-ROUNDDOWN($N30/100>0,3),N30>1),1,0.1)))) -> 0.1 | Q30: =IF(ISBLANK(A30)=FALSE,IF(K30="ng/l",0.001,IF(K30="ug/l",1,IF(K30="mg/l",1000,1000000)))*IF(M30/10<1,0.1,IF(M30/100<1,1,IF(M30/1000<1,1,1)))," ") ->  | R30: =IF(AND(ISBLANK(A30)=FALSE,ISBLANK(L30)=FALSE),MIN(Q30,O30)*IF(ISNUMBER(S30)=TRUE,S30,1)," ") ->  | V30: =IF(AND(+H30<>" ",ISBLANK(T30)<>TRUE),IF(+J30+(H30-J30)/E30*IF(+X$41="ja",1/(1+C30*(AG$30+W$46*D30/E30)*0.000001),1)>U30,"JA","NEE")," ") ->  | W30: 0 | Z30: =IF(ISBLANK(H30)=FALSE,IF(H30>0,+J30+W30," ")," ") ->  | AA30: FALSE | AC30: 0 | AE30: voldoet | AG30: =IF(AND(+ISBLANK(A30)=FALSE,ISBLANK(L30)=FALSE),IF(+AF30>N30,"JA","NEE")," ") ->  | AH30: =IF(+ISBLANK(A30)<>TRUE,IF($N30>0,IF(+AF30-J30>R30,"JA","NEE")," ")," ") ->  | AI30: =IF(ISBLANK(A30)<>TRUE,IF(AND(H30>0,N30>0),IF(AND(AG30="NEE",J30<N30),"VOLDOET",IF(AND(+J30>=N30,(AF30-J30)<=R30),"VOLDOET","VOLDOET NIET!"))," ")," ") ->  | AK30: VOLDOET NIET? | AL30: =IF(AND(AO30>0,AK30="VOLDOET NIET?",ISBLANK(L30)=FALSE),1,0) -> 0 | AM30: =IF(AND(AO30>0,ISBLANK(A30)=FALSE),+AM29+1,+AM29) -> 0 | AN30: 0 | AO30: n.t.b. | AP30: =CONCATENATE(IF(AK30="VOLDOET"," ",IF(AND(ISBLANK(H30)=FALSE,ISBLANK(L30)=FALSE),CONCATENATE(IF(AND(ISBLANK(L30)=FALSE,X30>0.1),"sign.-toets; ",""),IF(AND(J30<N30,Z30>N30),"normtoets; ",""),IF(AND(J30>=N30,AF30-J30>R30),"KRW-toets; ",""),IF(AND(J30<N30,AF30>N30),"KRW-toets; ",IF(H$18="ja",IF(AND(ISBLANK(AD30)=FALSE,AC30>AD30),"drinkwatertoets",IF(AND(AC30>1,ISBLANK(AD30)=TRUE,AC30>AB30),"drinkwatertoets","")),"")),IF(ISBLANK(L30)=TRUE," ;sign.- en normtoets??",""))," ")),IF(V30="ja","MAC-toets"," ")) ->  | AR30: =IF(OR(BO30="ja",AO30="n.t.b"),IF(AND(ISBLANK(L30)=TRUE,ISBLANK(AD30)=TRUE,BO30="ja"),CONCATENATE("delta C-innamepunt: ",ROUND((AC30-AB30)/AB30*100,4)," %","; delta C-L: ",IF(J30>0,ROUND(W30/J30*100,4),ROUND(W30,4)),IF(J30>0,"%"," ug/l")),IF(ISBLANK(L30)=TRUE,IF(OR(ISBLANK(J30)=TRUE,J30=0),CONCATENATE("delta C-L: ",ROUND(W30,4)," ug/l"),CONCATENATE("delta C-L: ",ROUND(+W30/J30*100,4)," %")),IF(ISBLANK(AD30)=TRUE,CONCATENATE("delta C-innamepunt: ",ROUND((AC30-AB30)/AB30*100,4),"%")," ")))," ") ->  | AS30: =IF(AND(ISBLANK(A30)=FALSE,ISBLANK(L30)=FALSE),IF(OR(X30<0.1,+H30<=N30),0,IF(J30>=N30,MAX(IF(AF30-N30>R30,1-(J30+J$24*R30/H30),0),IF(X30>0.1,1-0.1/X30,1)),1-0.1/X30))*(H30-J30)/H30,0) -> 0 | AT30: 0 | AU30: =IF(AI30<>"VOLDOET",1-((1-AV30)*H30+AV30*J30)/H30,0) ->  | AV30: =IF(AI30<>"VOLDOET",MAX(IF(J30>=N30,1-R30/(AF30-J30),IF(AF30<=J30+R30,0,IF(J30<N30,1-(N30-J30)/(AF30-J30)))),0),0) ->  | AW30: =IF(AND(ISBLANK(A30)=FALSE,ISBLANK(L30)=FALSE),IF(+H$18="ja",IF(ISBLANK(AD30)=TRUE,IF(AC30>1,+BG30,0),IF(ISBLANK(AD30)=TRUE,IF(AND(AC30>AB30,H30>=AB30),1-AB30/H30,0),IF(AB30<AD30,1-((AD30-AB30)*H$20+AB30)/H30,+BM30))),0),0) -> 0 | AY30: =IF(AND(ISBLANK(A30)=FALSE,ISBLANK(L30)=FALSE),IF(AND(Z30>N30,J30<N30),(+Z30-+N30)/N30,0),0) -> 0 | AZ30: =IF(AND(ISBLANK(A30)=FALSE,ISBLANK(L30)=FALSE),IF(+Z30>N30,IF(J30>=N30,IF(J30+J$24*R30>=H30,0,1-(J30+J$24*R30/H30)),1-(J30+(N30-J30)*J$22/BK30)/(H30)),0),0) -> 0 | BC30: =IF(AND(ISBLANK(A30)=FALSE,ISBLANK(L30)=FALSE),IF(AF30>=N30,IF(AND(J30>N30,AF30-J30<=R30),0,1-BA30/+H30),0)," ") ->  | BD30: =IF(AND(ISBLANK(A30)=FALSE,ISBLANK(L30)=FALSE),IF(AND(BE30>1,ISBLANK(AD30)=TRUE,AO30=1),1,0),0) -> 0 | BE30: =IF(AND(ISBLANK(#REF!)=FALSE,ISBLANK(L30)=FALSE),IF(H$18="ja",1-IF(AND(H$18="ja",AC30>IF(ISBLANK(AD30)=TRUE,1,AD30)),1-+BG30,1),0),0) -> 0 | BF30: =IF(AND(ISBLANK(A30)=FALSE,ISBLANK(L30)=FALSE),IF(ISBLANK(+AD30)=TRUE,1,AD30)," ") ->  | BG30: =IF($H$18="ja",MAX(IF(AND(ISBLANK(AD30)=TRUE,AB30>1),1-AB30/H30,IF(ISBLANK(AD30)=TRUE,IF(AC30>1,1-(H$20*1+AB30)/H30,0),IF(ISBLANK(AD30)=FALSE,IF(AC30>AD30,1-(H$20*AD30+AB30)/H30,0),1-(AB30+H$20*AD30)/H30))),BM30),0) -> 0 | BH30: =IF(H$18="ja",IF(AND(ISBLANK(A30)=FALSE,ISBLANK(L30)=FALSE),IF(AD30>AC30,0,(AC30-IF(ISBLANK(AD30)=TRUE,1,AD30))/IF(ISBLANK(AD30)=TRUE,1,AD30)-1)," "),0) -> 0 | BK30: =IF(AND(ISBLANK(#REF!)=FALSE,ISBLANK(L30)=FALSE),1/(1+C30*Z$27/1000*0.000001)," ") ->  | BM30: 0 | BO30: nee | BQ30: =IF(AND(ISBLANK(A30)=FALSE,A30<>" "),IF('beschrijving lozing'!I$13="indirecte lozing",1/(1+'resultaten immissietoets'!C30*60*0.000001)*(1-BS30),1)*+'resultaten immissietoets'!H30," ") ->  | BV30: =MAX(IF(ISBLANK($H30)=FALSE,IF('beschrijving lozing'!I$13="indirecte lozing",+$H$16*8760*3600*$H30/1000000*$BZ30*(BV$25-G30-BR30),+$H$16*8760*3600*$H30/1000000*$BZ30*(BV$25))),0) -> 0 | BX30: =IF(ISBLANK(A30)=FALSE,IF(ISBLANK($H30)=TRUE,0,+$H$16*8760*3600*$H30/1000000*$BZ30*10*AO30)*IF('beschrijving lozing'!I$13="indirecte lozing",(1-'resultaten immissietoets'!BT30),1),0) -> 0 | BZ30: 0 | CC30: 0 | CE30: 0 | CI30: =IF(B30="ja",BX30,0) -> 0 | CK30: 0 | CN30: =IF(AND($AO30>0,$AK30="VOLDOET NIET?",ISBLANK($L30)=TRUE),1,0) -> 1
D31: 0 | E31: 0 | M31: 0 | N31: 0 | P31: 0.1 | V31: =IF(AND(+H31<>" ",ISBLANK(T31)<>TRUE),IF(+J31+(H31-J31)/E31*IF(+X$41="ja",1/(1+C31*(AG$30+W$46*D31/E31)*0.000001),1)>U31,"JA","NEE")," ") ->  | W31: 0 | Z31: =IF(ISBLANK(H31)=FALSE,IF(H31>0,+J31+W31," ")," ") ->  | AA31: FALSE | AC31: 0 | AE31: voldoet | AH31: =IF(+ISBLANK(A31)<>TRUE,IF($N31>0,IF(+AF31-J31>R31,"JA","NEE")," ")," ") ->  | AI31: =IF(ISBLANK(A31)<>TRUE,IF(AND(H31>0,N31>0),IF(AND(AG31="NEE",J31<N31),"VOLDOET",IF(AND(+J31>=N31,(AF31-J31)<=R31),"VOLDOET","VOLDOET NIET!"))," ")," ") ->  | AK31: VOLDOET NIET? | AL31: 0 | AM31: =IF(AND(AO31>0,ISBLANK(A31)=FALSE),+AM30+1,+AM30) -> 0 | AN31: 0 | AO31: n.t.b. | AQ31: =IF(OR(AE31="voldoet niet",AK31="VOLDOET niet?"),IF(AND(H$18="ja",OR(ISBLANK(L31)=TRUE,ISBLANK(AD31)=TRUE)),CONCATENATE("Raadpleeg RIVM (via BG) voor (noodzaak) afleiding ",IF(AND(ISBLANK(L31)=TRUE,AA31<>"VOLDOET")," i-MKN"," "),IF(AND(ISBLANK(AD31)=TRUE,AE31<>"VOLDOET"),IF(AND(ISBLANK(L31)=TRUE,AA31<>"VOLDOET")," en i-DW","i-DW")," "))," ")," ") ->  | AR31: =IF(OR(BO31="ja",AO31="n.t.b"),IF(AND(ISBLANK(L31)=TRUE,ISBLANK(AD31)=TRUE,BO31="ja"),CONCATENATE("delta C-innamepunt: ",ROUND((AC31-AB31)/AB31*100,4)," %","; delta C-L: ",IF(J31>0,ROUND(W31/J31*100,4),ROUND(W31,4)),IF(J31>0,"%"," ug/l")),IF(ISBLANK(L31)=TRUE,IF(OR(ISBLANK(J31)=TRUE,J31=0),CONCATENATE("delta C-L: ",ROUND(W31,4)," ug/l"),CONCATENATE("delta C-L: ",ROUND(+W31/J31*100,4)," %")),IF(ISBLANK(AD31)=TRUE,CONCATENATE("delta C-innamepunt: ",ROUND((AC31-AB31)/AB31*100,4),"%")," ")))," ") ->  | AS31: =IF(AND(ISBLANK(A31)=FALSE,ISBLANK(L31)=FALSE),IF(OR(X31<0.1,+H31<=N31),0,IF(J31>=N31,MAX(IF(AF31-N31>R31,1-(J31+J$24*R31/H31),0),IF(X31>0.1,1-0.1/X31,1)),1-0.1/X31))*(H31-J31)/H31,0) -> 0 | AT31: =IF(AND(ISBLANK(A31)=FALSE,ISBLANK(L31)=FALSE),IF(AA31="VOLDOET NIET!",IF(+J31>N31,+BC31,AZ31),0),0) -> 0 | AU31: =IF(AI31<>"VOLDOET",1-((1-AV31)*H31+AV31*J31)/H31,0) ->  | AV31: =IF(AI31<>"VOLDOET",MAX(IF(J31>=N31,1-R31/(AF31-J31),IF(AF31<=J31+R31,0,IF(J31<N31,1-(N31-J31)/(AF31-J31)))),0),0) ->  | AW31: =IF(AND(ISBLANK(A31)=FALSE,ISBLANK(L31)=FALSE),IF(+H$18="ja",IF(ISBLANK(AD31)=TRUE,IF(AC31>1,+BG31,0),IF(ISBLANK(AD31)=TRUE,IF(AND(AC31>AB31,H31>=AB31),1-AB31/H31,0),IF(AB31<AD31,1-((AD31-AB31)*H$20+AB31)/H31,+BM31))),0),0) -> 0 | AY31: =IF(AND(ISBLANK(A31)=FALSE,ISBLANK(L31)=FALSE),IF(AND(Z31>N31,J31<N31),(+Z31-+N31)/N31,0),0) -> 0 | AZ31: =IF(AND(ISBLANK(A31)=FALSE,ISBLANK(L31)=FALSE),IF(+Z31>N31,IF(J31>=N31,IF(J31+J$24*R31>=H31,0,1-(J31+J$24*R31/H31)),1-(J31+(N31-J31)*J$22/BK31)/(H31)),0),0) -> 0 | BA31: =IF(AND(ISBLANK(A31)=FALSE,ISBLANK(L31)=FALSE),IF(J31<N31,(1-+AZ31)*(H31),MAX(J31,(1-AZ31)*H31))," ") ->  | BC31: =IF(AND(ISBLANK(A31)=FALSE,ISBLANK(L31)=FALSE),IF(AF31>=N31,IF(AND(J31>N31,AF31-J31<=R31),0,1-BA31/+H31),0)," ") ->  | BD31: =IF(AND(ISBLANK(A31)=FALSE,ISBLANK(L31)=FALSE),IF(AND(BE31>1,ISBLANK(AD31)=TRUE,AO31=1),1,0),0) -> 0 | BE31: =IF(AND(ISBLANK(#REF!)=FALSE,ISBLANK(L31)=FALSE),IF(H$18="ja",1-IF(AND(H$18="ja",AC31>IF(ISBLANK(AD31)=TRUE,1,AD31)),1-+BG31,1),0),0) -> 0 | BG31: =IF($H$18="ja",IF(AND(ISBLANK(AD31)=TRUE,AB31>1),1-AB31/H31,IF(ISBLANK(AD31)=TRUE,IF(AC31>1,1-(H$20*1+AB31)/H31,0),IF(ISBLANK(AD31)=FALSE,IF(AC31>AD31,1-(H$20*AD31+AB31)/H31,0),1-(AB31+H$20*AD31)/H31))),0) -> 0 | BH31: 0 | BK31: =IF(AND(ISBLANK(#REF!)=FALSE,ISBLANK(L31)=FALSE),1/(1+C31*Z$27/1000*0.000001)," ") ->  | BM31: 0 | BO31: nee | BQ31: =IF(AND(ISBLANK(A31)=FALSE,A31<>" "),IF('beschrijving lozing'!I$13="indirecte lozing",1/(1+'resultaten immissietoets'!C31*60*0.000001)*(1-BS31),1)*+'resultaten immissietoets'!H31," ") ->  | BV31: =MAX(IF(ISBLANK($H31)=FALSE,IF('beschrijving lozing'!I$13="indirecte lozing",+$H$16*8760*3600*$H31/1000000*$BZ31*(BV$25-G31-BR31),+$H$16*8760*3600*$H31/1000000*$BZ31*(BV$25))),0) -> 0 | BX31: =IF(ISBLANK(A31)=FALSE,IF(ISBLANK($H31)=TRUE,0,+$H$16*8760*3600*$H31/1000000*$BZ31*10*AO31)*IF('beschrijving lozing'!I$13="indirecte lozing",(1-'resultaten immissietoets'!BT31),1),0) -> 0 | BZ31: 0 | CC31: 0 | CE31: 0 | CI31: 0 | CK31: 0 | CN31: 1
D32: 0 | E32: 0 | M32: 0 | N32: 0 | P32: 0.1 | Q32: =IF(ISBLANK(A32)=FALSE,IF(K32="ng/l",0.001,IF(K32="ug/l",1,IF(K32="mg/l",1000,1000000)))*IF(M32/10<1,0.1,IF(M32/100<1,1,IF(M32/1000<1,1,1)))," ") ->  | V32: =IF(AND(+H32<>" ",ISBLANK(T32)<>TRUE),IF(+J32+(H32-J32)/E32*IF(+X$41="ja",1/(1+C32*(AG$30+W$46*D32/E32)*0.000001),1)>U32,"JA","NEE")," ") ->  | W32: 0 | Z32: =IF(ISBLANK(H32)=FALSE,IF(H32>0,+J32+W32," ")," ") ->  | AA32: FALSE | AC32: 0 | AE32: voldoet | AH32: =IF(+ISBLANK(A32)<>TRUE,IF($N32>0,IF(+AF32-J32>R32,"JA","NEE")," ")," ") ->  | AI32: =IF(ISBLANK(A32)<>TRUE,IF(AND(H32>0,N32>0),IF(AND(AG32="NEE",J32<N32),"VOLDOET",IF(AND(+J32>=N32,(AF32-J32)<=R32),"VOLDOET","VOLDOET NIET!"))," ")," ") ->  | AK32: VOLDOET NIET? | AL32: 0 | AM32: =IF(AO32<>"n.t.b.",IF(AND(AO32>0,ISBLANK(A32)=FALSE),+AM31+1,+AM31),AM31) -> 0 | AN32: 0 | AO32: =IF(AND(ISBLANK(AD32)=TRUE,ISBLANK(L32)=TRUE),"n.t.b.",IF(AK32="VOLDOET",0,IF(AND(ISBLANK(H32)=FALSE,ISBLANK(L32)=FALSE),IF(AND(AK32="VOLDOET NIET?",ISBLANK(L32)=TRUE),"n.t.b.",IF(H$18="ja",IF(AND(ISBLANK(AD32)=TRUE,AB32>=1,AC32>1,AE32="voldoet niet!"),"n.t.b",MIN(1,MAX(AS32,AT32,AU32,AW32,BE32,BG32,BM32))),MIN(1,MAX(AS32,AT32,AU32,AW32))))," "))) -> n.t.b. | AQ32: =IF(OR(AE32="voldoet niet",AK32="VOLDOET niet?"),IF(AND(H$18="ja",OR(ISBLANK(L32)=TRUE,ISBLANK(AD32)=TRUE)),CONCATENATE("Raadpleeg RIVM (via BG) voor (noodzaak) afleiding ",IF(AND(ISBLANK(L32)=TRUE,AA32<>"VOLDOET")," i-MKN"," "),IF(AND(ISBLANK(AD32)=TRUE,AE32<>"VOLDOET"),IF(AND(ISBLANK(L32)=TRUE,AA32<>"VOLDOET")," en i-DW","i-DW")," "))," ")," ") ->  | AR32: =IF(OR(BO32="ja",AO32="n.t.b"),IF(AND(ISBLANK(L32)=TRUE,ISBLANK(AD32)=TRUE,BO32="ja"),CONCATENATE("delta C-innamepunt: ",ROUND((AC32-AB32)/AB32*100,4)," %","; delta C-L: ",IF(J32>0,ROUND(W32/J32*100,4),ROUND(W32,4)),IF(J32>0,"%"," ug/l")),IF(ISBLANK(L32)=TRUE,IF(OR(ISBLANK(J32)=TRUE,J32=0),CONCATENATE("delta C-L: ",ROUND(W32,4)," ug/l"),CONCATENATE("delta C-L: ",ROUND(+W32/J32*100,4)," %")),IF(ISBLANK(AD32)=TRUE,CONCATENATE("delta C-innamepunt: ",ROUND((AC32-AB32)/AB32*100,4),"%")," ")))," ") ->  | AS32: =IF(AND(ISBLANK(A32)=FALSE,ISBLANK(L32)=FALSE),IF(OR(X32<0.1,+H32<=N32),0,IF(J32>=N32,MAX(IF(AF32-N32>R32,1-(J32+J$24*R32/H32),0),IF(X32>0.1,1-0.1/X32,1)),1-0.1/X32))*(H32-J32)/H32,0) -> 0 | AT32: =IF(AND(ISBLANK(A32)=FALSE,ISBLANK(L32)=FALSE),IF(AA32="VOLDOET NIET!",IF(+J32>N32,+BC32,AZ32),0),0) -> 0 | AU32: =IF(AI32<>"VOLDOET",1-((1-AV32)*H32+AV32*J32)/H32,0) ->  | AV32: =IF(AI32<>"VOLDOET",MAX(IF(J32>=N32,1-R32/(AF32-J32),IF(AF32<=J32+R32,0,IF(J32<N32,1-(N32-J32)/(AF32-J32)))),0),0) ->  | AW32: 0 | AY32: =IF(AND(ISBLANK(A32)=FALSE,ISBLANK(L32)=FALSE),IF(AND(Z32>N32,J32<N32),(+Z32-+N32)/N32,0),0) -> 0 | AZ32: =IF(AND(ISBLANK(A32)=FALSE,ISBLANK(L32)=FALSE),IF(+Z32>N32,IF(J32>=N32,IF(J32+J$24*R32>=H32,0,1-(J32+J$24*R32/H32)),1-(J32+(N32-J32)*J$22/BK32)/(H32)),0),0) -> 0 | BA32: =IF(AND(ISBLANK(A32)=FALSE,ISBLANK(L32)=FALSE),IF(J32<N32,(1-+AZ32)*(H32),MAX(J32,(1-AZ32)*H32))," ") ->  | BC32: =IF(AND(ISBLANK(A32)=FALSE,ISBLANK(L32)=FALSE),IF(AF32>=N32,IF(AND(J32>N32,AF32-J32<=R32),0,1-BA32/+H32),0)," ") ->  | BD32: =IF(AND(ISBLANK(A32)=FALSE,ISBLANK(L32)=FALSE),IF(AND(BE32>1,ISBLANK(AD32)=TRUE,AO32=1),1,0),0) -> 0 | BE32: =IF(AND(ISBLANK(#REF!)=FALSE,ISBLANK(L32)=FALSE),IF(H$18="ja",1-IF(AND(H$18="ja",AC32>IF(ISBLANK(AD32)=TRUE,1,AD32)),1-+BG32,1),0),0) -> 0 | BG32: 0 | BH32: 0 | BK32: =IF(AND(ISBLANK(#REF!)=FALSE,ISBLANK(L32)=FALSE),1/(1+C32*Z$27/1000*0.000001)," ") ->  | BM32: 0 | BO32: nee | BQ32: =IF(AND(ISBLANK(A32)=FALSE,A32<>" "),IF('beschrijving lozing'!I$13="indirecte lozing",1/(1+'resultaten immissietoets'!C32*60*0.000001)*(1-BS32),1)*+'resultaten immissietoets'!H32," ") ->  | BV32: =MAX(IF(ISBLANK($H32)=FALSE,IF('beschrijving lozing'!I$13="indirecte lozing",+$H$16*8760*3600*$H32/1000000*$BZ32*(BV$25-G32-BR32),+$H$16*8760*3600*$H32/1000000*$BZ32*(BV$25))),0) -> 0 | BX32: =IF(ISBLANK(A32)=FALSE,IF(ISBLANK($H32)=TRUE,0,+$H$16*8760*3600*$H32/1000000*$BZ32*10*AO32)*IF('beschrijving lozing'!I$13="indirecte lozing",(1-'resultaten immissietoets'!BT32),1),0) -> 0 | BZ32: 0 | CC32: 0 | CE32: 0 | CI32: 0 | CK32: 0 | CN32: 1
D33: 0 | E33: 0 | M33: 0 | N33: 0 | P33: 0.1 | Q33: =IF(ISBLANK(A33)=FALSE,IF(K33="ng/l",0.001,IF(K33="ug/l",1,IF(K33="mg/l",1000,1000000)))*IF(M33/10<1,0.1,IF(M33/100<1,1,IF(M33/1000<1,1,1)))," ") ->  | V33: =IF(AND(+H33<>" ",ISBLANK(T33)<>TRUE),IF(+J33+(H33-J33)/E33*IF(+X$41="ja",1/(1+C33*(AG$30+W$46*D33/E33)*0.000001),1)>U33,"JA","NEE")," ") ->  | W33: 0 | Z33: =IF(ISBLANK(H33)=FALSE,IF(H33>0,+J33+W33," ")," ") ->  | AA33: FALSE | AC33: 0 | AE33: voldoet | AK33: VOLDOET NIET? | AL33: 0 | AM33: =IF(AO33<>"n.t.b.",IF(AND(AO33>0,ISBLANK(A33)=FALSE),+AM32+1,+AM32),AM32) -> 0 | AN33: 0 | AO33: =IF(AND(ISBLANK(AD33)=TRUE,ISBLANK(L33)=TRUE),"n.t.b.",IF(AK33="VOLDOET",0,IF(AND(ISBLANK(H33)=FALSE,ISBLANK(L33)=FALSE),IF(AND(AK33="VOLDOET NIET?",ISBLANK(L33)=TRUE),"n.t.b.",IF(H$18="ja",IF(AND(ISBLANK(AD33)=TRUE,AB33>=1,AC33>1,AE33="voldoet niet!"),"n.t.b",MIN(1,MAX(AS33,AT33,AU33,AW33,BE33,BG33,BM33))),MIN(1,MAX(AS33,AT33,AU33,AW33))))," "))) -> n.t.b. | AS33: =IF(AND(ISBLANK(A33)=FALSE,ISBLANK(L33)=FALSE),IF(OR(X33<0.1,+H33<=N33),0,IF(J33>=N33,MAX(IF(AF33-N33>R33,1-(J33+J$24*R33/H33),0),IF(X33>0.1,1-0.1/X33,1)),1-0.1/X33))*(H33-J33)/H33,0) -> 0 | AT33: 0 | AW33: 0 | AY33: 0 | AZ33: 0 | BC33: =IF(AND(ISBLANK(A33)=FALSE,ISBLANK(L33)=FALSE),IF(AF33>=N33,IF(AND(J33>N33,AF33-J33<=R33),0,1-BA33/+H33),0)," ") ->  | BD33: =IF(AND(ISBLANK(A33)=FALSE,ISBLANK(L33)=FALSE),IF(AND(BE33>1,ISBLANK(AD33)=TRUE,AO33=1),1,0),0) -> 0 | BE33: =IF(AND(ISBLANK(#REF!)=FALSE,ISBLANK(L33)=FALSE),IF(H$18="ja",1-IF(AND(H$18="ja",AC33>IF(ISBLANK(AD33)=TRUE,1,AD33)),1-+BG33,1),0),0) -> 0 | BG33: 0 | BH33: 0 | BK33: =IF(AND(ISBLANK(#REF!)=FALSE,ISBLANK(L33)=FALSE),1/(1+C33*Z$27/1000*0.000001)," ") ->  | BM33: 0 | BO33: nee | BQ33: =IF(AND(ISBLANK(A33)=FALSE,A33<>" "),IF('beschrijving lozing'!I$13="indirecte lozing",1/(1+'resultaten immissietoets'!C33*60*0.000001)*(1-BS33),1)*+'resultaten immissietoets'!H33," ") ->  | BV33: =MAX(IF(ISBLANK($H33)=FALSE,IF('beschrijving lozing'!I$13="indirecte lozing",+$H$16*8760*3600*$H33/1000000*$BZ33*(BV$25-G33-BR33),+$H$16*8760*3600*$H33/1000000*$BZ33*(BV$25))),0) -> 0 | BX33: =IF(ISBLANK(A33)=FALSE,IF(ISBLANK($H33)=TRUE,0,+$H$16*8760*3600*$H33/1000000*$BZ33*10*AO33)*IF('beschrijving lozing'!I$13="indirecte lozing",(1-'resultaten immissietoets'!BT33),1),0) -> 0 | BZ33: 0 | CC33: 0 | CE33: 0 | CI33: 0 | CK33: 0 | CN33: 1
D34: 0 | E34: 0 | M34: 0 | N34: 0 | P34: =IF(AND(ROUNDDOWN($N34/1000,2)-ROUNDDOWN($N34/100000,3)>0,N34>1000),1000,IF(AND(ROUNDDOWN($N34/10000,2)-ROUNDDOWN($N34/10000,3),N34>100),100,IF(AND(ROUNDDOWN($N34/1000,2)-ROUNDDOWN($N34/1000>0,3),N34>10),10,IF(AND(ROUNDDOWN($N34/100,2)-ROUNDDOWN($N34/100>0,3),N34>1),1,0.1)))) -> 0.1 | Q34: =IF(ISBLANK(A34)=FALSE,IF(K34="ng/l",0.001,IF(K34="ug/l",1,IF(K34="mg/l",1000,1000000)))*IF(M34/10<1,0.1,IF(M34/100<1,1,IF(M34/1000<1,1,1)))," ") ->  | R34: =IF(AND(ISBLANK(A34)=FALSE,ISBLANK(L34)=FALSE),MIN(Q34,O34)*IF(ISNUMBER(S34)=TRUE,S34,1)," ") ->  | W34: 0 | Y34: =IF(+H34<>" ",IF(AND(+H34>0,L34>0),W34/L34," ")," ") ->  | Z34: =IF(ISBLANK(H34)=FALSE,IF(H34>0,+J34+W34," ")," ") ->  | AA34: FALSE | AC34: 0 | AE34: =IF(H$18="ja",IF(ISBLANK(AD34)=TRUE,IF((AC34)>1,IF(AC34>AB34,"voldoet niet","voldoet"),"voldoet"),IF(AND(AC34>AD34,H34>AB34),"voldoet niet","voldoet")),"voldoet") -> voldoet | AG34: =IF(AND(+ISBLANK(A34)=FALSE,ISBLANK(L34)=FALSE),IF(+AF34>N34,"JA","NEE")," ") ->  | AH34: =IF(+ISBLANK(A34)<>TRUE,IF($N34>0,IF(+AF34-J34>R34,"JA","NEE")," ")," ") ->  | AI34: =IF(ISBLANK(A34)<>TRUE,IF(AND(H34>0,N34>0),IF(AND(AG34="NEE",J34<N34),"VOLDOET",IF(AND(+J34>=N34,(AF34-J34)<=R34),"VOLDOET","VOLDOET NIET!"))," ")," ") ->  | AK34: VOLDOET NIET? | AL34: 0 | AM34: =IF(AO34<>"n.t.b.",IF(AND(AO34>0,ISBLANK(A34)=FALSE),+AM33+1,+AM33),AM33) -> 0 | AN34: 0 | AO34: =IF(AND(ISBLANK(AD34)=TRUE,ISBLANK(L34)=TRUE),"n.t.b.",IF(AK34="VOLDOET",0,IF(AND(ISBLANK(H34)=FALSE,ISBLANK(L34)=FALSE),IF(AND(AK34="VOLDOET NIET?",ISBLANK(L34)=TRUE),"n.t.b.",IF(H$18="ja",IF(AND(ISBLANK(AD34)=TRUE,AB34>=1,AC34>1,AE34="voldoet niet!"),"n.t.b",MIN(1,MAX(AS34,AT34,AU34,AW34,BE34,BG34,BM34))),MIN(1,MAX(AS34,AT34,AU34,AW34))))," "))) -> n.t.b. | AQ34: =IF(OR(AE34="voldoet niet",AK34="VOLDOET niet?"),IF(AND(H$18="ja",OR(ISBLANK(L34)=TRUE,ISBLANK(AD34)=TRUE)),CONCATENATE("Raadpleeg RIVM (via BG) voor (noodzaak) afleiding ",IF(AND(ISBLANK(L34)=TRUE,AA34<>"VOLDOET")," i-MKN"," "),IF(AND(ISBLANK(AD34)=TRUE,AE34<>"VOLDOET"),IF(AND(ISBLANK(L34)=TRUE,AA34<>"VOLDOET")," en i-DW","i-DW")," "))," ")," ") ->  | AS34: 0 | AT34: 0 | AW34: 0 | AY34: =IF(AND(ISBLANK(A34)=FALSE,ISBLANK(L34)=FALSE),IF(AND(Z34>N34,J34<N34),(+Z34-+N34)/N34,0),0) -> 0 | AZ34: 0 | BC34: =IF(AND(ISBLANK(A34)=FALSE,ISBLANK(L34)=FALSE),IF(AF34>=N34,IF(AND(J34>N34,AF34-J34<=R34),0,1-BA34/+H34),0)," ") ->  | BD34: =IF(AND(ISBLANK(A34)=FALSE,ISBLANK(L34)=FALSE),IF(AND(BE34>1,ISBLANK(AD34)=TRUE,AO34=1),1,0),0) -> 0 | BE34: =IF(AND(ISBLANK(#REF!)=FALSE,ISBLANK(L34)=FALSE),IF(H$18="ja",1-IF(AND(H$18="ja",AC34>IF(ISBLANK(AD34)=TRUE,1,AD34)),1-+BG34,1),0),0) -> 0 | BF34: =IF(AND(ISBLANK(A34)=FALSE,ISBLANK(L34)=FALSE),IF(ISBLANK(+AD34)=TRUE,1,AD34)," ") ->  | BG34: 0 | BH34: =IF(H$18="ja",IF(AND(ISBLANK(A34)=FALSE,ISBLANK(L34)=FALSE),IF(AD34>AC34,0,(AC34-IF(ISBLANK(AD34)=TRUE,1,AD34))/IF(ISBLANK(AD34)=TRUE,1,AD34)-1)," "),0) -> 0 | BK34: =IF(AND(ISBLANK(#REF!)=FALSE,ISBLANK(L34)=FALSE),1/(1+C34*Z$27/1000*0.000001)," ") ->  | BM34: 0 | BO34: nee | BQ34: =IF(AND(ISBLANK(A34)=FALSE,A34<>" "),IF('beschrijving lozing'!I$13="indirecte lozing",1/(1+'resultaten immissietoets'!C34*60*0.000001)*(1-BS34),1)*+'resultaten immissietoets'!H34," ") ->  | BV34: =MAX(IF(ISBLANK($H34)=FALSE,IF('beschrijving lozing'!I$13="indirecte lozing",+$H$16*8760*3600*$H34/1000000*$BZ34*(BV$25-G34-BR34),+$H$16*8760*3600*$H34/1000000*$BZ34*(BV$25))),0) -> 0 | BX34: =IF(ISBLANK(A34)=FALSE,IF(ISBLANK($H34)=TRUE,0,+$H$16*8760*3600*$H34/1000000*$BZ34*10*AO34)*IF('beschrijving lozing'!I$13="indirecte lozing",(1-'resultaten immissietoets'!BT34),1),0) -> 0 | BZ34: 0 | CC34: 0 | CE34: 0 | CI34: 0 | CK34: 0 | CN34: 1
D35: =+D34 -> 0 | E35: 0 | M35: 0 | N35: 0 | P35: 0.1 | W35: 0 | AA35: FALSE | AC35: 0 | AE35: voldoet | AK35: VOLDOET NIET? | AL35: 0 | AM35: =IF(AO35<>"n.t.b.",IF(AND(AO35>0,ISBLANK(A35)=FALSE),+AM34+1,+AM34),AM34) -> 0 | AN35: 0 | AO35: n.t.b. | AS35: 0 | AT35: 0 | AW35: 0 | AY35: 0 | AZ35: 0 | BD35: 0 | BE35: =IF(AND(ISBLANK(#REF!)=FALSE,ISBLANK(L35)=FALSE),IF(H$18="ja",1-IF(AND(H$18="ja",AC35>IF(ISBLANK(AD35)=TRUE,1,AD35)),1-+BG35,1),0),0) -> 0 | BG35: 0 | BH35: 0 | BK35: =IF(AND(ISBLANK(#REF!)=FALSE,ISBLANK(L35)=FALSE),1/(1+C35*Z$27/1000*0.000001)," ") ->  | BM35: 0 | BO35: nee | BQ35: =IF(AND(ISBLANK(A35)=FALSE,A35<>" "),IF('beschrijving lozing'!I$13="indirecte lozing",1/(1+'resultaten immissietoets'!C35*60*0.000001)*(1-BS35),1)*+'resultaten immissietoets'!H35," ") ->  | BV35: =MAX(IF(ISBLANK($H35)=FALSE,IF('beschrijving lozing'!I$13="indirecte lozing",+$H$16*8760*3600*$H35/1000000*$BZ35*(BV$25-G35-BR35),+$H$16*8760*3600*$H35/1000000*$BZ35*(BV$25))),0) -> 0 | BX35: =IF(ISBLANK(A35)=FALSE,IF(ISBLANK($H35)=TRUE,0,+$H$16*8760*3600*$H35/1000000*$BZ35*10*AO35)*IF('beschrijving lozing'!I$13="indirecte lozing",(1-'resultaten immissietoets'!BT35),1),0) -> 0 | BZ35: 0 | CC35: 0 | CE35: 0 | CI35: 0 | CK35: 0 | CN35: 1
D36: =+D35 -> 0 | E36: 0 | M36: 0 | N36: 0 | P36: 0.1 | W36: 0 | AA36: FALSE | AC36: 0 | AE36: voldoet | AK36: VOLDOET NIET? | AL36: 0 | AM36: =IF(AO36<>"n.t.b.",IF(AND(AO36>0,ISBLANK(A36)=FALSE),+AM35+1,+AM35),AM35) -> 0 | AN36: 0 | AO36: n.t.b. | AS36: 0 | AT36: 0 | AW36: 0 | AY36: 0 | AZ36: 0 | BD36: 0 | BE36: =IF(AND(ISBLANK(#REF!)=FALSE,ISBLANK(L36)=FALSE),IF(H$18="ja",1-IF(AND(H$18="ja",AC36>IF(ISBLANK(AD36)=TRUE,1,AD36)),1-+BG36,1),0),0) -> 0 | BG36: 0 | BH36: 0 | BK36: =IF(AND(ISBLANK(#REF!)=FALSE,ISBLANK(L36)=FALSE),1/(1+C36*Z$27/1000*0.000001)," ") ->  | BM36: 0 | BO36: nee | BQ36: =IF(AND(ISBLANK(A36)=FALSE,A36<>" "),IF('beschrijving lozing'!I$13="indirecte lozing",1/(1+'resultaten immissietoets'!C36*60*0.000001)*(1-G36),1)*+'resultaten immissietoets'!H36," ") ->  | BV36: =MAX(IF(ISBLANK($H36)=FALSE,IF('beschrijving lozing'!I$13="indirecte lozing",+$H$16*8760*3600*$H36/1000000*$BZ36*(BV$25-G36-BR36),+$H$16*8760*3600*$H36/1000000*$BZ36*(BV$25))),0) -> 0 | BX36: =IF(ISBLANK(A36)=FALSE,IF(ISBLANK($H36)=TRUE,0,+$H$16*8760*3600*$H36/1000000*$BZ36*10*AO36)*IF('beschrijving lozing'!I$13="indirecte lozing",(1-'resultaten immissietoets'!BT36),1),0) -> 0 | BZ36: 0 | CC36: 0 | CE36: 0 | CI36: 0 | CK36: 0 | CN36: 1
D37: =+D36 -> 0 | E37: 0 | M37: 0 | N37: 0 | P37: 0.1 | W37: 0 | AA37: FALSE | AC37: 0 | AE37: voldoet | AK37: VOLDOET NIET? | AL37: 0 | AM37: =IF(AO37<>"n.t.b.",IF(AND(AO37>0,ISBLANK(A37)=FALSE),+AM36+1,+AM36),AM36) -> 0 | AN37: 0 | AO37: n.t.b. | AS37: 0 | AT37: 0 | AW37: 0 | AY37: 0 | AZ37: 0 | BD37: 0 | BE37: =IF(AND(ISBLANK(#REF!)=FALSE,ISBLANK(L37)=FALSE),IF(H$18="ja",1-IF(AND(H$18="ja",AC37>IF(ISBLANK(AD37)=TRUE,1,AD37)),1-+BG37,1),0),0) -> 0 | BG37: 0 | BH37: 0 | BK37: =IF(AND(ISBLANK(#REF!)=FALSE,ISBLANK(L37)=FALSE),1/(1+C37*Z$27/1000*0.000001)," ") ->  | BM37: 0 | BO37: nee | BQ37: =IF(AND(ISBLANK(A37)=FALSE,A37<>" "),IF('beschrijving lozing'!I$13="indirecte lozing",1/(1+'resultaten immissietoets'!C37*60*0.000001)*(1-G37),1)*+'resultaten immissietoets'!H37," ") ->  | BV37: =MAX(IF(ISBLANK($H37)=FALSE,IF('beschrijving lozing'!I$13="indirecte lozing",+$H$16*8760*3600*$H37/1000000*$BZ37*(BV$25-G37-BR37),+$H$16*8760*3600*$H37/1000000*$BZ37*(BV$25))),0) -> 0 | BX37: =IF(ISBLANK(A37)=FALSE,IF(ISBLANK($H37)=TRUE,0,+$H$16*8760*3600*$H37/1000000*$BZ37*10*AO37)*IF('beschrijving lozing'!I$13="indirecte lozing",(1-'resultaten immissietoets'!BT37),1),0) -> 0 | BZ37: 0 | CC37: 0 | CE37: 0 | CI37: 0 | CK37: 0 | CN37: 1
D38: =+D37 -> 0 | E38: 0 | M38: 0 | N38: 0 | P38: 0.1 | W38: 0 | AA38: FALSE | AC38: 0 | AE38: voldoet | AK38: VOLDOET NIET? | AL38: 0 | AM38: 0 | AN38: 0 | AO38: n.t.b. | AS38: 0 | AT38: 0 | AW38: 0 | AY38: 0 | AZ38: 0 | BA38: =IF(AND(ISBLANK(A38)=FALSE,ISBLANK(L38)=FALSE),IF(J38<N38,(1-+AZ38)*(H38),MAX(J38,(1-AZ38)*H38))," ") ->  | BD38: 0 | BE38: =IF(AND(ISBLANK(#REF!)=FALSE,ISBLANK(L38)=FALSE),IF(H$18="ja",1-IF(AND(H$18="ja",AC38>IF(ISBLANK(AD38)=TRUE,1,AD38)),1-+BG38,1),0),0) -> 0 | BG38: 0 | BH38: 0 | BK38: =IF(AND(ISBLANK(#REF!)=FALSE,ISBLANK(L38)=FALSE),1/(1+C38*Z$27/1000*0.000001)," ") ->  | BM38: 0 | BO38: nee | BQ38: =IF(AND(ISBLANK(A38)=FALSE,A38<>" "),IF('beschrijving lozing'!I$13="indirecte lozing",1/(1+'resultaten immissietoets'!C38*60*0.000001)*(1-G38),1)*+'resultaten immissietoets'!H38," ") ->  | BV38: =MAX(IF(ISBLANK($H38)=FALSE,IF('beschrijving lozing'!I$13="indirecte lozing",+$H$16*8760*3600*$H38/1000000*$BZ38*(BV$25-G38-BR38),+$H$16*8760*3600*$H38/1000000*$BZ38*(BV$25))),0) -> 0 | BX38: =IF(ISBLANK(A38)=FALSE,IF(ISBLANK($H38)=TRUE,0,+$H$16*8760*3600*$H38/1000000*$BZ38*10*AO38)*IF('beschrijving lozing'!I$13="indirecte lozing",(1-'resultaten immissietoets'!BT38),1),0) -> 0 | BZ38: 0 | CC38: 0 | CE38: 0 | CI38: 0 | CK38: 0 | CN38: 1
D39: =+D38 -> 0 | E39: 0 | M39: 0 | N39: 0 | P39: 0.1 | W39: 0 | AA39: FALSE | AC39: 0 | AE39: voldoet | AK39: VOLDOET NIET? | AL39: 0 | AM39: 0 | AN39: 0 | AO39: n.t.b. | AS39: 0 | AT39: 0 | AW39: 0 | AY39: 0 | AZ39: 0 | BA39: =IF(AND(ISBLANK(A39)=FALSE,ISBLANK(L39)=FALSE),IF(J39<N39,(1-+AZ39)*(H39),MAX(J39,(1-AZ39)*H39))," ") ->  | BD39: 0 | BE39: =IF(AND(ISBLANK(#REF!)=FALSE,ISBLANK(L39)=FALSE),IF(H$18="ja",1-IF(AND(H$18="ja",AC39>IF(ISBLANK(AD39)=TRUE,1,AD39)),1-+BG39,1),0),0) -> 0 | BG39: 0 | BH39: 0 | BK39: =IF(AND(ISBLANK(#REF!)=FALSE,ISBLANK(L39)=FALSE),1/(1+C39*Z$27/1000*0.000001)," ") ->  | BM39: 0 | BO39: nee | BQ39: =IF(AND(ISBLANK(A39)=FALSE,A39<>" "),IF('beschrijving lozing'!I$13="indirecte lozing",1/(1+'resultaten immissietoets'!C39*60*0.000001)*(1-G39),1)*+'resultaten immissietoets'!H39," ") ->  | BU39: =IF(ISBLANK(A39)=FALSE,(1-BT39)*H39," ") ->  | BV39: =MAX(IF(ISBLANK($H39)=FALSE,IF('beschrijving lozing'!I$13="indirecte lozing",+$H$16*8760*3600*$H39/1000000*$BZ39*(BV$25-G39-BR39),+$H$16*8760*3600*$H39/1000000*$BZ39*(BV$25))),0) -> 0 | BX39: =IF(ISBLANK(A39)=FALSE,IF(ISBLANK($H39)=TRUE,0,+$H$16*8760*3600*$H39/1000000*$BZ39*10*AO39)*IF('beschrijving lozing'!I$13="indirecte lozing",(1-'resultaten immissietoets'!BT39),1),0) -> 0 | BZ39: 0 | CC39: 0 | CE39: 0 | CI39: 0 | CK39: 0 | CN39: 1
D40: =+D39 -> 0 | E40: 0 | M40: 0 | N40: 0 | P40: 0.1 | W40: 0 | AA40: FALSE | AC40: 0 | AE40: voldoet | AK40: VOLDOET NIET? | AL40: 0 | AM40: 0 | AN40: 0 | AO40: n.t.b. | AS40: 0 | AT40: 0 | AW40: 0 | AY40: 0 | AZ40: 0 | BD40: 0 | BE40: =IF(AND(ISBLANK(#REF!)=FALSE,ISBLANK(L40)=FALSE),IF(H$18="ja",1-IF(AND(H$18="ja",AC40>IF(ISBLANK(AD40)=TRUE,1,AD40)),1-+BG40,1),0),0) -> 0 | BG40: 0 | BH40: 0 | BK40: =IF(AND(ISBLANK(#REF!)=FALSE,ISBLANK(L40)=FALSE),1/(1+C40*Z$27/1000*0.000001)," ") ->  | BM40: 0 | BO40: nee | BQ40: =IF(AND(ISBLANK(A40)=FALSE,A40<>" "),IF('beschrijving lozing'!I$13="indirecte lozing",1/(1+'resultaten immissietoets'!C40*60*0.000001)*(1-G40),1)*+'resultaten immissietoets'!H40," ") ->  | BV40: =MAX(IF(ISBLANK($H40)=FALSE,IF('beschrijving lozing'!I$13="indirecte lozing",+$H$16*8760*3600*$H40/1000000*$BZ40*(BV$25-G40-BR40),+$H$16*8760*3600*$H40/1000000*$BZ40*(BV$25))),0) -> 0 | BX40: =IF(ISBLANK(A40)=FALSE,IF(ISBLANK($H40)=TRUE,0,+$H$16*8760*3600*$H40/1000000*$BZ40*10*AO40)*IF('beschrijving lozing'!I$13="indirecte lozing",(1-'resultaten immissietoets'!BT40),1),0) -> 0 | BZ40: 0 | CC40: 0 | CE40: 0 | CI40: 0 | CK40: 0 | CN40: 1
D41: =+D40 -> 0 | E41: 0 | M41: 0 | N41: 0 | P41: 0.1 | W41: 0 | AA41: FALSE | AC41: 0 | AE41: voldoet | AK41: VOLDOET NIET? | AL41: 0 | AM41: 0 | AN41: 0 | AO41: n.t.b. | AS41: 0 | AT41: 0 | AW41: 0 | AY41: 0 | AZ41: 0 | BD41: 0 | BE41: =IF(AND(ISBLANK(#REF!)=FALSE,ISBLANK(L41)=FALSE),IF(H$18="ja",1-IF(AND(H$18="ja",AC41>IF(ISBLANK(AD41)=TRUE,1,AD41)),1-+BG41,1),0),0) -> 0 | BG41: 0 | BH41: 0 | BK41: =IF(AND(ISBLANK(#REF!)=FALSE,ISBLANK(L41)=FALSE),1/(1+C41*Z$27/1000*0.000001)," ") ->  | BM41: 0 | BO41: nee | BQ41: =IF(AND(ISBLANK(A41)=FALSE,A41<>" "),IF('beschrijving lozing'!I$13="indirecte lozing",1/(1+'resultaten immissietoets'!C41*60*0.000001)*(1-G41),1)*+'resultaten immissietoets'!H41," ") ->  | BV41: =MAX(IF(ISBLANK($H41)=FALSE,IF('beschrijving lozing'!I$13="indirecte lozing",+$H$16*8760*3600*$H41/1000000*$BZ41*(BV$25-G41-BR41),+$H$16*8760*3600*$H41/1000000*$BZ41*(BV$25))),0) -> 0 | BX41: =IF(ISBLANK(A41)=FALSE,IF(ISBLANK($H41)=TRUE,0,+$H$16*8760*3600*$H41/1000000*$BZ41*10*AO41)*IF('beschrijving lozing'!I$13="indirecte lozing",(1-'resultaten immissietoets'!BT41),1),0) -> 0 | BZ41: 0 | CC41: 0 | CE41: 0 | CI41: 0 | CK41: 0 | CN41: 1
D42: =+D41 -> 0 | E42: 0 | M42: 0 | N42: 0 | P42: 0.1 | W42: 0 | AA42: FALSE | AC42: 0 | AE42: voldoet | AK42: VOLDOET NIET? | AL42: 0 | AM42: 0 | AN42: 0 | AO42: n.t.b. | AS42: 0 | AT42: 0 | AW42: 0 | AY42: 0 | AZ42: 0 | BD42: 0 | BE42: =IF(AND(ISBLANK(#REF!)=FALSE,ISBLANK(L42)=FALSE),IF(H$18="ja",1-IF(AND(H$18="ja",AC42>IF(ISBLANK(AD42)=TRUE,1,AD42)),1-+BG42,1),0),0) -> 0 | BG42: 0 | BH42: 0 | BK42: =IF(AND(ISBLANK(#REF!)=FALSE,ISBLANK(L42)=FALSE),1/(1+C42*Z$27/1000*0.000001)," ") ->  | BM42: 0 | BO42: nee | BQ42: =IF(AND(ISBLANK(A42)=FALSE,A42<>" "),IF('beschrijving lozing'!I$13="indirecte lozing",1/(1+'resultaten immissietoets'!C42*60*0.000001)*(1-G42),1)*+'resultaten immissietoets'!H42," ") ->  | BV42: =MAX(IF(ISBLANK($H42)=FALSE,IF('beschrijving lozing'!I$13="indirecte lozing",+$H$16*8760*3600*$H42/1000000*$BZ42*(BV$25-G42-BR42),+$H$16*8760*3600*$H42/1000000*$BZ42*(BV$25))),0) -> 0 | BX42: =IF(ISBLANK(A42)=FALSE,IF(ISBLANK($H42)=TRUE,0,+$H$16*8760*3600*$H42/1000000*$BZ42*10*AO42)*IF('beschrijving lozing'!I$13="indirecte lozing",(1-'resultaten immissietoets'!BT42),1),0) -> 0 | BZ42: 0 | CC42: 0 | CE42: 0 | CI42: 0 | CK42: 0 | CN42: 1
D43: =+D42 -> 0 | E43: 0 | M43: 0 | N43: 0 | P43: 0.1 | W43: 0 | AA43: FALSE | AC43: 0 | AE43: voldoet | AK43: VOLDOET NIET? | AL43: 0 | AM43: 0 | AN43: 0 | AO43: n.t.b. | AS43: 0 | AT43: 0 | AW43: 0 | AY43: 0 | AZ43: 0 | BD43: 0 | BE43: =IF(AND(ISBLANK(#REF!)=FALSE,ISBLANK(L43)=FALSE),IF(H$18="ja",1-IF(AND(H$18="ja",AC43>IF(ISBLANK(AD43)=TRUE,1,AD43)),1-+BG43,1),0),0) -> 0 | BG43: 0 | BH43: 0 | BK43: =IF(AND(ISBLANK(#REF!)=FALSE,ISBLANK(L43)=FALSE),1/(1+C43*Z$27/1000*0.000001)," ") ->  | BM43: 0 | BO43: nee | BQ43: =IF(AND(ISBLANK(A43)=FALSE,A43<>" "),IF('beschrijving lozing'!I$13="indirecte lozing",1/(1+'resultaten immissietoets'!C43*60*0.000001)*(1-G43),1)*+'resultaten immissietoets'!H43," ") ->  | BV43: =MAX(IF(ISBLANK($H43)=FALSE,IF('beschrijving lozing'!I$13="indirecte lozing",+$H$16*8760*3600*$H43/1000000*$BZ43*(BV$25-G43-BR43),+$H$16*8760*3600*$H43/1000000*$BZ43*(BV$25))),0) -> 0 | BX43: =IF(ISBLANK(A43)=FALSE,IF(ISBLANK($H43)=TRUE,0,+$H$16*8760*3600*$H43/1000000*$BZ43*10*AO43)*IF('beschrijving lozing'!I$13="indirecte lozing",(1-'resultaten immissietoets'!BT43),1),0) -> 0 | BZ43: 0 | CC43: 0 | CE43: 0 | CI43: 0 | CK43: 0 | CN43: 1
D44: =+D43 -> 0 | E44: 0 | M44: 0 | N44: 0 | P44: 0.1 | W44: 0 | AA44: FALSE | AC44: 0 | AE44: voldoet | AK44: VOLDOET NIET? | AL44: 0 | AM44: 0 | AN44: 0 | AO44: n.t.b. | AS44: 0 | AT44: 0 | AW44: 0 | AY44: 0 | AZ44: 0 | BD44: 0 | BE44: =IF(AND(ISBLANK(#REF!)=FALSE,ISBLANK(L44)=FALSE),IF(H$18="ja",1-IF(AND(H$18="ja",AC44>IF(ISBLANK(AD44)=TRUE,1,AD44)),1-+BG44,1),0),0) -> 0 | BG44: 0 | BH44: 0 | BK44: =IF(AND(ISBLANK(#REF!)=FALSE,ISBLANK(L44)=FALSE),1/(1+C44*Z$27/1000*0.000001)," ") ->  | BM44: 0 | BO44: nee | BQ44: =IF(AND(ISBLANK(A44)=FALSE,A44<>" "),IF('beschrijving lozing'!I$13="indirecte lozing",1/(1+'resultaten immissietoets'!C44*60*0.000001)*(1-G44),1)*+'resultaten immissietoets'!H44," ") ->  | BV44: =MAX(IF(ISBLANK($H44)=FALSE,IF('beschrijving lozing'!I$13="indirecte lozing",+$H$16*8760*3600*$H44/1000000*$BZ44*(BV$25-G44-BR44),+$H$16*8760*3600*$H44/1000000*$BZ44*(BV$25))),0) -> 0 | BX44: =IF(ISBLANK(A44)=FALSE,IF(ISBLANK($H44)=TRUE,0,+$H$16*8760*3600*$H44/1000000*$BZ44*10*AO44)*IF('beschrijving lozing'!I$13="indirecte lozing",(1-'resultaten immissietoets'!BT44),1),0) -> 0 | BZ44: 0 | CC44: 0 | CE44: 0 | CI44: 0 | CK44: 0 | CN44: 1
D45: =+D44 -> 0 | E45: 0 | M45: 0 | N45: 0 | P45: 0.1 | W45: 0 | AA45: FALSE | AC45: 0 | AE45: voldoet | AK45: VOLDOET NIET? | AL45: 0 | AM45: 0 | AN45: 0 | AO45: n.t.b. | AS45: 0 | AT45: 0 | AW45: 0 | AY45: 0 | AZ45: 0 | BD45: 0 | BE45: =IF(AND(ISBLANK(#REF!)=FALSE,ISBLANK(L45)=FALSE),IF(H$18="ja",1-IF(AND(H$18="ja",AC45>IF(ISBLANK(AD45)=TRUE,1,AD45)),1-+BG45,1),0),0) -> 0 | BG45: 0 | BH45: 0 | BK45: =IF(AND(ISBLANK(#REF!)=FALSE,ISBLANK(L45)=FALSE),1/(1+C45*Z$27/1000*0.000001)," ") ->  | BM45: 0 | BO45: nee | BQ45: =IF(AND(ISBLANK(A45)=FALSE,A45<>" "),IF('beschrijving lozing'!I$13="indirecte lozing",1/(1+'resultaten immissietoets'!C45*60*0.000001)*(1-G45),1)*+'resultaten immissietoets'!H45," ") ->  | BV45: =MAX(IF(ISBLANK($H45)=FALSE,IF('beschrijving lozing'!I$13="indirecte lozing",+$H$16*8760*3600*$H45/1000000*$BZ45*(BV$25-G45-BR45),+$H$16*8760*3600*$H45/1000000*$BZ45*(BV$25))),0) -> 0 | BX45: =IF(ISBLANK(A45)=FALSE,IF(ISBLANK($H45)=TRUE,0,+$H$16*8760*3600*$H45/1000000*$BZ45*10*AO45)*IF('beschrijving lozing'!I$13="indirecte lozing",(1-'resultaten immissietoets'!BT45),1),0) -> 0 | BZ45: 0 | CC45: 0 | CE45: 0 | CI45: 0 | CK45: 0 | CN45: 1
D46: =+D45 -> 0 | E46: 0 | M46: 0 | N46: 0 | P46: 0.1 | W46: 0 | AA46: FALSE | AC46: 0 | AE46: voldoet | AK46: VOLDOET NIET? | AL46: 0 | AM46: 0 | AN46: 0 | AO46: n.t.b. | AS46: 0 | AT46: 0 | AW46: 0 | AY46: 0 | AZ46: 0 | BD46: 0 | BE46: =IF(AND(ISBLANK(#REF!)=FALSE,ISBLANK(L46)=FALSE),IF(H$18="ja",1-IF(AND(H$18="ja",AC46>IF(ISBLANK(AD46)=TRUE,1,AD46)),1-+BG46,1),0),0) -> 0 | BG46: 0 | BH46: =MAX(IF(H$18="ja",IF(AND(ISBLANK(A46)=FALSE,ISBLANK(L46)=FALSE),IF(AD46>AC46,0,(AC46-IF(ISBLANK(AD46)=TRUE,1,AD46))/IF(ISBLANK(AD46)=TRUE,1,AD46)-1)," "),0),0) -> 0 | BK46: =IF(AND(ISBLANK(#REF!)=FALSE,ISBLANK(L46)=FALSE),1/(1+C46*Z$27/1000*0.000001)," ") ->  | BM46: =IF(H$18="ja",IF(AND(AB46<1,ISBLANK(AD46)=TRUE),1-((1-AB46)*H$20+AB46)/H46,MIN(1-AB46/H46,1-AD46/AC46)),0) -> 0 | BO46: =IF(BG46>0,"ja","nee") -> nee | BQ46: =IF(AND(ISBLANK(A46)=FALSE,A46<>" "),IF('beschrijving lozing'!I$13="indirecte lozing",1/(1+'resultaten immissietoets'!C46*60*0.000001)*(1-G46),1)*+'resultaten immissietoets'!H46," ") ->  | BV46: =MAX(IF(ISBLANK($H46)=FALSE,IF('beschrijving lozing'!I$13="indirecte lozing",+$H$16*8760*3600*$H46/1000000*$BZ46*(BV$25-G46-BR46),+$H$16*8760*3600*$H46/1000000*$BZ46*(BV$25))),0) -> 0 | BX46: =IF(ISBLANK(A46)=FALSE,IF(ISBLANK($H46)=TRUE,0,+$H$16*8760*3600*$H46/1000000*$BZ46*10*AO46)*IF('beschrijving lozing'!I$13="indirecte lozing",(1-'resultaten immissietoets'!BT46),1),0) -> 0 | BZ46: 0 | CC46: 0 | CE46: 0 | CI46: 0 | CK46: 0 | CN46: 1
D47: =+D46 -> 0 | E47: 0 | M47: 0 | N47: 0 | P47: 0.1 | W47: 0 | AA47: FALSE | AC47: 0 | AE47: voldoet | AK47: VOLDOET NIET? | AL47: 0 | AM47: 0 | AN47: 0 | AO47: n.t.b. | AS47: 0 | AT47: 0 | AW47: 0 | AY47: 0 | AZ47: 0 | BD47: 0 | BE47: =IF(AND(ISBLANK(#REF!)=FALSE,ISBLANK(L47)=FALSE),IF(H$18="ja",1-IF(AND(H$18="ja",AC47>IF(ISBLANK(AD47)=TRUE,1,AD47)),1-+BG47,1),0),0) -> 0 | BG47: 0 | BH47: 0 | BK47: =IF(AND(ISBLANK(#REF!)=FALSE,ISBLANK(L47)=FALSE),1/(1+C47*Z$27/1000*0.000001)," ") ->  | BM47: =IF(H$18="ja",IF(AND(AB47<1,ISBLANK(AD47)=TRUE),1-((1-AB47)*H$20+AB47)/H47,MIN(1-AB47/H47,1-AD47/AC47)),0) -> 0 | BO47: =IF(BG47>0,"ja","nee") -> nee | BQ47: =IF(AND(ISBLANK(A47)=FALSE,A47<>" "),IF('beschrijving lozing'!I$13="indirecte lozing",1/(1+'resultaten immissietoets'!C47*60*0.000001)*(1-G47),1)*+'resultaten immissietoets'!H47," ") ->  | BV47: =MAX(IF(ISBLANK($H47)=FALSE,IF('beschrijving lozing'!I$13="indirecte lozing",+$H$16*8760*3600*$H47/1000000*$BZ47*(BV$25-G47-BR47),+$H$16*8760*3600*$H47/1000000*$BZ47*(BV$25))),0) -> 0 | BX47: =IF(ISBLANK(A47)=FALSE,IF(ISBLANK($H47)=TRUE,0,+$H$16*8760*3600*$H47/1000000*$BZ47*10*AO47)*IF('beschrijving lozing'!I$13="indirecte lozing",(1-'resultaten immissietoets'!BT47),1),0) -> 0 | BZ47: 0 | CC47: 0 | CE47: 0 | CI47: 0 | CK47: 0 | CN47: 1
D48: =+D47 -> 0 | E48: 0 | M48: 0 | N48: 0 | P48: 0.1 | W48: 0 | AA48: FALSE | AC48: 0 | AE48: voldoet | AK48: VOLDOET NIET? | AL48: 0 | AM48: 0 | AN48: 0 | AO48: n.t.b. | AS48: 0 | AT48: 0 | AW48: 0 | AY48: 0 | AZ48: 0 | BD48: 0 | BE48: =IF(AND(ISBLANK(#REF!)=FALSE,ISBLANK(L48)=FALSE),IF(H$18="ja",1-IF(AND(H$18="ja",AC48>IF(ISBLANK(AD48)=TRUE,1,AD48)),1-+BG48,1),0),0) -> 0 | BG48: 0 | BH48: 0 | BK48: =IF(AND(ISBLANK(#REF!)=FALSE,ISBLANK(L48)=FALSE),1/(1+C48*Z$27/1000*0.000001)," ") ->  | BM48: 0 | BO48: nee | BQ48: =IF(AND(ISBLANK(A48)=FALSE,A48<>" "),IF('beschrijving lozing'!I$13="indirecte lozing",1/(1+'resultaten immissietoets'!C48*60*0.000001)*(1-G48),1)*+'resultaten immissietoets'!H48," ") ->  | BV48: =MAX(IF(ISBLANK($H48)=FALSE,IF('beschrijving lozing'!I$13="indirecte lozing",+$H$16*8760*3600*$H48/1000000*$BZ48*(BV$25-G48-BR48),+$H$16*8760*3600*$H48/1000000*$BZ48*(BV$25))),0) -> 0 | BX48: =IF(ISBLANK(A48)=FALSE,IF(ISBLANK($H48)=TRUE,0,+$H$16*8760*3600*$H48/1000000*$BZ48*10*AO48)*IF('beschrijving lozing'!I$13="indirecte lozing",(1-'resultaten immissietoets'!BT48),1),0) -> 0 | BZ48: 0 | CC48: 0 | CE48: 0 | CI48: 0 | CK48: 0 | CN48: 1
D49: =+D48 -> 0 | E49: 0 | M49: 0 | N49: 0 | P49: 0.1 | W49: 0 | AA49: FALSE | AC49: 0 | AE49: voldoet | AK49: VOLDOET NIET? | AL49: 0 | AM49: 0 | AN49: 0 | AO49: n.t.b. | AS49: 0 | AT49: 0 | AW49: 0 | AY49: 0 | AZ49: 0 | BD49: 0 | BE49: =IF(AND(ISBLANK(#REF!)=FALSE,ISBLANK(L49)=FALSE),IF(H$18="ja",1-IF(AND(H$18="ja",AC49>IF(ISBLANK(AD49)=TRUE,1,AD49)),1-+BG49,1),0),0) -> 0 | BG49: 0 | BH49: 0 | BK49: =IF(AND(ISBLANK(#REF!)=FALSE,ISBLANK(L49)=FALSE),1/(1+C49*Z$27/1000*0.000001)," ") ->  | BM49: 0 | BO49: nee | BQ49: =IF(AND(ISBLANK(A49)=FALSE,A49<>" "),IF('beschrijving lozing'!I$13="indirecte lozing",1/(1+'resultaten immissietoets'!C49*60*0.000001)*(1-G49),1)*+'resultaten immissietoets'!H49," ") ->  | BV49: =MAX(IF(ISBLANK($H49)=FALSE,IF('beschrijving lozing'!I$13="indirecte lozing",+$H$16*8760*3600*$H49/1000000*$BZ49*(BV$25-G49-BR49),+$H$16*8760*3600*$H49/1000000*$BZ49*(BV$25))),0) -> 0 | BX49: =IF(ISBLANK(A49)=FALSE,IF(ISBLANK($H49)=TRUE,0,+$H$16*8760*3600*$H49/1000000*$BZ49*10*AO49)*IF('beschrijving lozing'!I$13="indirecte lozing",(1-'resultaten immissietoets'!BT49),1),0) -> 0 | BZ49: 0 | CC49: 0 | CE49: 0 | CI49: 0 | CK49: 0 | CN49: 1
D50: =+D49 -> 0 | E50: 0 | M50: 0 | N50: 0 | P50: 0.1 | W50: 0 | AA50: FALSE | AC50: 0 | AE50: voldoet | AK50: VOLDOET NIET? | AL50: 0 | AM50: 0 | AN50: 0 | AO50: n.t.b. | AS50: 0 | AT50: 0 | AW50: 0 | AY50: 0 | AZ50: 0 | BD50: 0 | BE50: =IF(AND(ISBLANK(#REF!)=FALSE,ISBLANK(L50)=FALSE),IF(H$18="ja",1-IF(AND(H$18="ja",AC50>IF(ISBLANK(AD50)=TRUE,1,AD50)),1-+BG50,1),0),0) -> 0 | BG50: 0 | BH50: 0 | BK50: =IF(AND(ISBLANK(#REF!)=FALSE,ISBLANK(L50)=FALSE),1/(1+C50*Z$27/1000*0.000001)," ") ->  | BM50: 0 | BO50: nee | BQ50: =IF(AND(ISBLANK(A50)=FALSE,A50<>" "),IF('beschrijving lozing'!I$13="indirecte lozing",1/(1+'resultaten immissietoets'!C50*60*0.000001)*(1-G50),1)*+'resultaten immissietoets'!H50," ") ->  | BV50: =MAX(IF(ISBLANK($H50)=FALSE,IF('beschrijving lozing'!I$13="indirecte lozing",+$H$16*8760*3600*$H50/1000000*$BZ50*(BV$25-G50-BR50),+$H$16*8760*3600*$H50/1000000*$BZ50*(BV$25))),0) -> 0 | BX50: =IF(ISBLANK(A50)=FALSE,IF(ISBLANK($H50)=TRUE,0,+$H$16*8760*3600*$H50/1000000*$BZ50*10*AO50)*IF('beschrijving lozing'!I$13="indirecte lozing",(1-'resultaten immissietoets'!BT50),1),0) -> 0 | BZ50: 0 | CC50: 0 | CE50: 0 | CI50: 0 | CK50: 0 | CN50: 1
D51: =+D50 -> 0 | E51: 0 | M51: 0 | N51: 0 | P51: 0.1 | W51: 0 | AA51: FALSE | AC51: 0 | AE51: voldoet | AK51: VOLDOET NIET? | AL51: 0 | AM51: 0 | AN51: 0 | AO51: n.t.b. | AS51: 0 | AT51: 0 | AW51: 0 | AY51: 0 | AZ51: 0 | BD51: 0 | BE51: =IF(AND(ISBLANK(#REF!)=FALSE,ISBLANK(L51)=FALSE),IF(H$18="ja",1-IF(AND(H$18="ja",AC51>IF(ISBLANK(AD51)=TRUE,1,AD51)),1-+BG51,1),0),0) -> 0 | BG51: 0 | BH51: 0 | BK51: =IF(AND(ISBLANK(#REF!)=FALSE,ISBLANK(L51)=FALSE),1/(1+C51*Z$27/1000*0.000001)," ") ->  | BM51: 0 | BO51: nee | BQ51: =IF(AND(ISBLANK(A51)=FALSE,A51<>" "),IF('beschrijving lozing'!I$13="indirecte lozing",1/(1+'resultaten immissietoets'!C51*60*0.000001)*(1-G51),1)*+'resultaten immissietoets'!H51," ") ->  | BV51: =MAX(IF(ISBLANK($H51)=FALSE,IF('beschrijving lozing'!I$13="indirecte lozing",+$H$16*8760*3600*$H51/1000000*$BZ51*(BV$25-G51-BR51),+$H$16*8760*3600*$H51/1000000*$BZ51*(BV$25))),0) -> 0 | BX51: =IF(ISBLANK(A51)=FALSE,IF(ISBLANK($H51)=TRUE,0,+$H$16*8760*3600*$H51/1000000*$BZ51*10*AO51)*IF('beschrijving lozing'!I$13="indirecte lozing",(1-'resultaten immissietoets'!BT51),1),0) -> 0 | BZ51: 0 | CC51: 0 | CE51: 0 | CI51: 0 | CK51: 0 | CN51: 1
D52: =+D51 -> 0 | E52: 0 | M52: 0 | N52: 0 | P52: 0.1 | W52: 0 | AA52: FALSE | AC52: 0 | AE52: voldoet | AK52: VOLDOET NIET? | AL52: 0 | AM52: 0 | AN52: 0 | AO52: n.t.b. | AS52: 0 | AT52: 0 | AW52: 0 | AY52: 0 | AZ52: 0 | BD52: 0 | BE52: =IF(AND(ISBLANK(#REF!)=FALSE,ISBLANK(L52)=FALSE),IF(H$18="ja",1-IF(AND(H$18="ja",AC52>IF(ISBLANK(AD52)=TRUE,1,AD52)),1-+BG52,1),0),0) -> 0 | BG52: 0 | BH52: 0 | BK52: =IF(AND(ISBLANK(#REF!)=FALSE,ISBLANK(L52)=FALSE),1/(1+C52*Z$27/1000*0.000001)," ") ->  | BM52: 0 | BO52: nee | BQ52: =IF(AND(ISBLANK(A52)=FALSE,A52<>" "),IF('beschrijving lozing'!I$13="indirecte lozing",1/(1+'resultaten immissietoets'!C52*60*0.000001)*(1-G52),1)*+'resultaten immissietoets'!H52," ") ->  | BV52: =MAX(IF(ISBLANK($H52)=FALSE,IF('beschrijving lozing'!I$13="indirecte lozing",+$H$16*8760*3600*$H52/1000000*$BZ52*(BV$25-G52-BR52),+$H$16*8760*3600*$H52/1000000*$BZ52*(BV$25))),0) -> 0 | BX52: =IF(ISBLANK(A52)=FALSE,IF(ISBLANK($H52)=TRUE,0,+$H$16*8760*3600*$H52/1000000*$BZ52*10*AO52)*IF('beschrijving lozing'!I$13="indirecte lozing",(1-'resultaten immissietoets'!BT52),1),0) -> 0 | BZ52: 0 | CC52: 0 | CE52: 0 | CI52: 0 | CK52: 0 | CN52: 1
D53: =+D52 -> 0 | E53: 0 | M53: 0 | N53: 0 | P53: 0.1 | W53: 0 | AA53: FALSE | AC53: 0 | AE53: voldoet | AK53: VOLDOET NIET? | AL53: 0 | AM53: 0 | AN53: 0 | AO53: n.t.b. | AS53: 0 | AT53: 0 | AW53: 0 | AY53: 0 | AZ53: 0 | BD53: 0 | BE53: =IF(AND(ISBLANK(#REF!)=FALSE,ISBLANK(L53)=FALSE),IF(H$18="ja",1-IF(AND(H$18="ja",AC53>IF(ISBLANK(AD53)=TRUE,1,AD53)),1-+BG53,1),0),0) -> 0 | BG53: 0 | BH53: 0 | BK53: =IF(AND(ISBLANK(#REF!)=FALSE,ISBLANK(L53)=FALSE),1/(1+C53*Z$27/1000*0.000001)," ") ->  | BM53: 0 | BO53: nee | BQ53: =IF(AND(ISBLANK(A53)=FALSE,A53<>" "),IF('beschrijving lozing'!I$13="indirecte lozing",1/(1+'resultaten immissietoets'!C53*60*0.000001)*(1-G53),1)*+'resultaten immissietoets'!H53," ") ->  | BV53: =MAX(IF(ISBLANK($H53)=FALSE,IF('beschrijving lozing'!I$13="indirecte lozing",+$H$16*8760*3600*$H53/1000000*$BZ53*(BV$25-G53-BR53),+$H$16*8760*3600*$H53/1000000*$BZ53*(BV$25))),0) -> 0 | BX53: =IF(ISBLANK(A53)=FALSE,IF(ISBLANK($H53)=TRUE,0,+$H$16*8760*3600*$H53/1000000*$BZ53*10*AO53)*IF('beschrijving lozing'!I$13="indirecte lozing",(1-'resultaten immissietoets'!BT53),1),0) -> 0 | BZ53: 0 | CC53: 0 | CE53: 0 | CI53: 0 | CK53: 0 | CN53: 1
D54: =+D53 -> 0 | E54: 0 | M54: 0 | N54: 0 | P54: 0.1 | W54: 0 | AA54: FALSE | AC54: 0 | AE54: voldoet | AK54: VOLDOET NIET? | AL54: 0 | AM54: 0 | AN54: 0 | AO54: n.t.b. | AS54: 0 | AT54: 0 | AW54: 0 | AY54: 0 | AZ54: 0 | BD54: 0 | BE54: =IF(AND(ISBLANK(#REF!)=FALSE,ISBLANK(L54)=FALSE),IF(H$18="ja",1-IF(AND(H$18="ja",AC54>IF(ISBLANK(AD54)=TRUE,1,AD54)),1-+BG54,1),0),0) -> 0 | BG54: 0 | BH54: 0 | BK54: =IF(AND(ISBLANK(#REF!)=FALSE,ISBLANK(L54)=FALSE),1/(1+C54*Z$27/1000*0.000001)," ") ->  | BM54: 0 | BO54: nee | BQ54: =IF(AND(ISBLANK(A54)=FALSE,A54<>" "),IF('beschrijving lozing'!I$13="indirecte lozing",1/(1+'resultaten immissietoets'!C54*60*0.000001)*(1-G54),1)*+'resultaten immissietoets'!H54," ") ->  | BV54: =MAX(IF(ISBLANK($H54)=FALSE,IF('beschrijving lozing'!I$13="indirecte lozing",+$H$16*8760*3600*$H54/1000000*$BZ54*(BV$25-G54-BR54),+$H$16*8760*3600*$H54/1000000*$BZ54*(BV$25))),0) -> 0 | BX54: =IF(ISBLANK(A54)=FALSE,IF(ISBLANK($H54)=TRUE,0,+$H$16*8760*3600*$H54/1000000*$BZ54*10*AO54)*IF('beschrijving lozing'!I$13="indirecte lozing",(1-'resultaten immissietoets'!BT54),1),0) -> 0 | BZ54: 0 | CC54: 0 | CE54: 0 | CI54: 0 | CK54: 0 | CN54: 1
D55: =+D54 -> 0 | E55: 0 | M55: 0 | N55: 0 | P55: 0.1 | W55: 0 | AA55: FALSE | AC55: 0 | AE55: voldoet | AK55: VOLDOET NIET? | AL55: 0 | AM55: 0 | AN55: 0 | AO55: n.t.b. | AS55: 0 | AT55: 0 | AW55: 0 | AY55: 0 | AZ55: 0 | BD55: 0 | BE55: =IF(AND(ISBLANK(#REF!)=FALSE,ISBLANK(L55)=FALSE),IF(H$18="ja",1-IF(AND(H$18="ja",AC55>IF(ISBLANK(AD55)=TRUE,1,AD55)),1-+BG55,1),0),0) -> 0 | BG55: 0 | BH55: 0 | BK55: =IF(AND(ISBLANK(#REF!)=FALSE,ISBLANK(L55)=FALSE),1/(1+C55*Z$27/1000*0.000001)," ") ->  | BM55: 0 | BO55: nee | BQ55: =IF(AND(ISBLANK(A55)=FALSE,A55<>" "),IF('beschrijving lozing'!I$13="indirecte lozing",1/(1+'resultaten immissietoets'!C55*60*0.000001)*(1-G55),1)*+'resultaten immissietoets'!H55," ") ->  | BV55: =MAX(IF(ISBLANK($H55)=FALSE,IF('beschrijving lozing'!I$13="indirecte lozing",+$H$16*8760*3600*$H55/1000000*$BZ55*(BV$25-G55-BR55),+$H$16*8760*3600*$H55/1000000*$BZ55*(BV$25))),0) -> 0 | BX55: =IF(ISBLANK(A55)=FALSE,IF(ISBLANK($H55)=TRUE,0,+$H$16*8760*3600*$H55/1000000*$BZ55*10*AO55)*IF('beschrijving lozing'!I$13="indirecte lozing",(1-'resultaten immissietoets'!BT55),1),0) -> 0 | BZ55: 0 | CC55: 0 | CE55: 0 | CI55: 0 | CK55: 0 | CN55: 1
D56: =+D55 -> 0 | E56: 0 | M56: 0 | N56: 0 | P56: 0.1 | W56: 0 | AA56: FALSE | AC56: 0 | AE56: voldoet | AK56: VOLDOET NIET? | AL56: 0 | AM56: 0 | AN56: 0 | AO56: n.t.b. | AS56: 0 | AT56: 0 | AW56: 0 | AY56: 0 | AZ56: 0 | BD56: 0 | BE56: =IF(AND(ISBLANK(#REF!)=FALSE,ISBLANK(L56)=FALSE),IF(H$18="ja",1-IF(AND(H$18="ja",AC56>IF(ISBLANK(AD56)=TRUE,1,AD56)),1-+BG56,1),0),0) -> 0 | BG56: 0 | BH56: 0 | BK56: =IF(AND(ISBLANK(#REF!)=FALSE,ISBLANK(L56)=FALSE),1/(1+C56*Z$27/1000*0.000001)," ") ->  | BM56: 0 | BO56: nee | BQ56: =IF(AND(ISBLANK(A56)=FALSE,A56<>" "),IF('beschrijving lozing'!I$13="indirecte lozing",1/(1+'resultaten immissietoets'!C56*60*0.000001)*(1-G56),1)*+'resultaten immissietoets'!H56," ") ->  | BV56: =MAX(IF(ISBLANK($H56)=FALSE,IF('beschrijving lozing'!I$13="indirecte lozing",+$H$16*8760*3600*$H56/1000000*$BZ56*(BV$25-G56-BR56),+$H$16*8760*3600*$H56/1000000*$BZ56*(BV$25))),0) -> 0 | BX56: =IF(ISBLANK(A56)=FALSE,IF(ISBLANK($H56)=TRUE,0,+$H$16*8760*3600*$H56/1000000*$BZ56*10*AO56)*IF('beschrijving lozing'!I$13="indirecte lozing",(1-'resultaten immissietoets'!BT56),1),0) -> 0 | BZ56: 0 | CC56: 0 | CE56: 0 | CI56: 0 | CK56: 0 | CN56: 1
D57: =+D56 -> 0 | E57: 0 | M57: 0 | N57: 0 | P57: 0.1 | W57: 0 | AA57: FALSE | AC57: 0 | AE57: voldoet | AK57: VOLDOET NIET? | AL57: 0 | AM57: 0 | AN57: 0 | AO57: n.t.b. | AS57: 0 | AT57: 0 | AW57: 0 | AY57: 0 | AZ57: 0 | BD57: 0 | BE57: =IF(AND(ISBLANK(#REF!)=FALSE,ISBLANK(L57)=FALSE),IF(H$18="ja",1-IF(AND(H$18="ja",AC57>IF(ISBLANK(AD57)=TRUE,1,AD57)),1-+BG57,1),0),0) -> 0 | BG57: 0 | BH57: 0 | BK57: =IF(AND(ISBLANK(#REF!)=FALSE,ISBLANK(L57)=FALSE),1/(1+C57*Z$27/1000*0.000001)," ") ->  | BM57: 0 | BO57: nee | BQ57: =IF(AND(ISBLANK(A57)=FALSE,A57<>" "),IF('beschrijving lozing'!I$13="indirecte lozing",1/(1+'resultaten immissietoets'!C57*60*0.000001)*(1-G57),1)*+'resultaten immissietoets'!H57," ") ->  | BV57: =MAX(IF(ISBLANK($H57)=FALSE,IF('beschrijving lozing'!I$13="indirecte lozing",+$H$16*8760*3600*$H57/1000000*$BZ57*(BV$25-G57-BR57),+$H$16*8760*3600*$H57/1000000*$BZ57*(BV$25))),0) -> 0 | BX57: =IF(ISBLANK(A57)=FALSE,IF(ISBLANK($H57)=TRUE,0,+$H$16*8760*3600*$H57/1000000*$BZ57*10*AO57)*IF('beschrijving lozing'!I$13="indirecte lozing",(1-'resultaten immissietoets'!BT57),1),0) -> 0 | BZ57: 0 | CC57: 0 | CE57: 0 | CI57: 0 | CK57: 0 | CN57: 1
D58: =+D57 -> 0 | E58: 0 | M58: 0 | N58: 0 | P58: 0.1 | W58: 0 | AA58: FALSE | AC58: 0 | AE58: voldoet | AK58: VOLDOET NIET? | AL58: 0 | AM58: 0 | AN58: 0 | AO58: n.t.b. | AS58: 0 | AT58: 0 | AW58: 0 | AY58: 0 | AZ58: 0 | BD58: 0 | BE58: =IF(AND(ISBLANK(#REF!)=FALSE,ISBLANK(L58)=FALSE),IF(H$18="ja",1-IF(AND(H$18="ja",AC58>IF(ISBLANK(AD58)=TRUE,1,AD58)),1-+BG58,1),0),0) -> 0 | BF58: =IF(AND(ISBLANK(A58)=FALSE,ISBLANK(L58)=FALSE),IF(ISBLANK(+AD58)=TRUE,1,AD58)," ") ->  | BG58: 0 | BH58: 0 | BK58: =IF(AND(ISBLANK(#REF!)=FALSE,ISBLANK(L58)=FALSE),1/(1+C58*Z$27/1000*0.000001)," ") ->  | BM58: 0 | BO58: nee | BQ58: =IF(AND(ISBLANK(A58)=FALSE,A58<>" "),IF('beschrijving lozing'!I$13="indirecte lozing",1/(1+'resultaten immissietoets'!C58*60*0.000001)*(1-G58),1)*+'resultaten immissietoets'!H58," ") ->  | BV58: =MAX(IF(ISBLANK($H58)=FALSE,IF('beschrijving lozing'!I$13="indirecte lozing",+$H$16*8760*3600*$H58/1000000*$BZ58*(BV$25-G58-BR58),+$H$16*8760*3600*$H58/1000000*$BZ58*(BV$25))),0) -> 0 | BX58: =IF(ISBLANK(A58)=FALSE,IF(ISBLANK($H58)=TRUE,0,+$H$16*8760*3600*$H58/1000000*$BZ58*10*AO58)*IF('beschrijving lozing'!I$13="indirecte lozing",(1-'resultaten immissietoets'!BT58),1),0) -> 0 | BZ58: 0 | CC58: 0 | CE58: 0 | CI58: 0 | CK58: 0 | CN58: 1
D59: =+D58 -> 0 | E59: 0 | M59: 0 | N59: 0 | P59: 0.1 | W59: 0 | AA59: FALSE | AC59: 0 | AE59: voldoet | AK59: VOLDOET NIET? | AL59: 0 | AM59: 0 | AN59: 0 | AO59: n.t.b. | AS59: 0 | AT59: 0 | AW59: 0 | AY59: 0 | AZ59: 0 | BD59: =IF(AND(ISBLANK(A59)=FALSE,ISBLANK(L59)=FALSE),IF(AND(BE59>1,ISBLANK(AD59)=TRUE,AO59=1),1,0),0) -> 0 | BE59: =IF(AND(ISBLANK(#REF!)=FALSE,ISBLANK(L59)=FALSE),IF(H$18="ja",1-IF(AND(H$18="ja",AC59>IF(ISBLANK(AD59)=TRUE,1,AD59)),1-+BG59,1),0),0) -> 0 | BG59: 0 | BH59: 0 | BK59: =IF(AND(ISBLANK(#REF!)=FALSE,ISBLANK(L59)=FALSE),1/(1+C59*Z$27/1000*0.000001)," ") ->  | BM59: 0 | BO59: nee | BQ59: =IF(AND(ISBLANK(A59)=FALSE,A59<>" "),IF('beschrijving lozing'!I$13="indirecte lozing",1/(1+'resultaten immissietoets'!C59*60*0.000001)*(1-G59),1)*+'resultaten immissietoets'!H59," ") ->  | BV59: =MAX(IF(ISBLANK($H59)=FALSE,IF('beschrijving lozing'!I$13="indirecte lozing",+$H$16*8760*3600*$H59/1000000*$BZ59*(BV$25-G59-BR59),+$H$16*8760*3600*$H59/1000000*$BZ59*(BV$25))),0) -> 0 | BX59: =IF(ISBLANK(A59)=FALSE,IF(ISBLANK($H59)=TRUE,0,+$H$16*8760*3600*$H59/1000000*$BZ59*10*AO59)*IF('beschrijving lozing'!I$13="indirecte lozing",(1-'resultaten immissietoets'!BT59),1),0) -> 0 | BZ59: 0 | CC59: 0 | CE59: 0 | CI59: 0 | CK59: 0 | CN59: 1
D60: =+D59 -> 0 | E60: 0 | M60: 0 | N60: 0 | P60: 0.1 | W60: 0 | AA60: FALSE | AC60: =IF(ISBLANK(A60)=FALSE,(H60-AB60)/+H$20,0+I60)*IF(AG$4="JA",1/(1+(AG$10+X$27)*C60*0.000001),1)+AB60 -> 0 | AE60: voldoet | AF60: =IF(ISBLANK(A60)<>TRUE,IF(AND(H60>0),(BQ60-J60)/F60*IF(AG$4="ja",1/(1+C60*(AG$10+X$27)*0.000001),1)+J60," ")," ") ->  | AK60: VOLDOET NIET? | AL60: 0 | AM60: 0 | AN60: 0 | AO60: n.t.b. | AS60: 0 | AT60: 0 | AW60: 0 | AY60: 0 | AZ60: 0 | BC60: =IF(AND(ISBLANK(A60)=FALSE,ISBLANK(L60)=FALSE),IF(AF60>=N60,IF(AND(J60>N60,AF60-J60<=R60),0,1-BA60/+H60),0)," ") ->  | BD60: 0 | BE60: =IF(AND(ISBLANK(#REF!)=FALSE,ISBLANK(L60)=FALSE),IF(H$18="ja",1-IF(AND(H$18="ja",AC60>IF(ISBLANK(AD60)=TRUE,1,AD60)),1-+BG60,1),0),0) -> 0 | BG60: 0 | BH60: 0 | BK60: =IF(AND(ISBLANK(#REF!)=FALSE,ISBLANK(L60)=FALSE),1/(1+C60*Z$27/1000*0.000001)," ") ->  | BM60: 0 | BO60: nee | BQ60: =IF(AND(ISBLANK(A60)=FALSE,A60<>" "),IF('beschrijving lozing'!I$13="indirecte lozing",1/(1+'resultaten immissietoets'!C60*60*0.000001)*(1-G60),1)*+'resultaten immissietoets'!H60," ") ->  | BV60: =MAX(IF(ISBLANK($H60)=FALSE,IF('beschrijving lozing'!I$13="indirecte lozing",+$H$16*8760*3600*$H60/1000000*$BZ60*(BV$25-G60-BR60),+$H$16*8760*3600*$H60/1000000*$BZ60*(BV$25))),0) -> 0 | BX60: =IF(ISBLANK(A60)=FALSE,IF(ISBLANK($H60)=TRUE,0,+$H$16*8760*3600*$H60/1000000*$BZ60*10*AO60)*IF('beschrijving lozing'!I$13="indirecte lozing",(1-'resultaten immissietoets'!BT60),1),0) -> 0 | BZ60: 0 | CC60: 0 | CE60: 0 | CI60: 0 | CK60: 0 | CN60: 1
D61: 0 | E61: 0 | M61: 0 | N61: 0 | P61: 0.1 | W61: 0 | AA61: FALSE | AC61: 0 | AE61: voldoet | AK61: VOLDOET NIET? | AL61: 0 | AM61: 0 | AN61: 0 | AO61: n.t.b. | AS61: 0 | AT61: 0 | AW61: 0 | AY61: 0 | AZ61: 0 | BD61: 0 | BE61: =IF(AND(ISBLANK(#REF!)=FALSE,ISBLANK(L61)=FALSE),IF(H$18="ja",1-IF(AND(H$18="ja",AC61>IF(ISBLANK(AD61)=TRUE,1,AD61)),1-+BG61,1),0),0) -> 0 | BG61: 0 | BH61: 0 | BK61: =IF(AND(ISBLANK(#REF!)=FALSE,ISBLANK(L61)=FALSE),1/(1+C61*Z$27/1000*0.000001)," ") ->  | BM61: 0 | BO61: nee | BQ61: =IF(AND(ISBLANK(A61)=FALSE,A61<>" "),IF('beschrijving lozing'!I$13="indirecte lozing",1/(1+'resultaten immissietoets'!C61*60*0.000001)*(1-G61),1)*+'resultaten immissietoets'!H61," ") ->  | BV61: =MAX(IF(ISBLANK($H61)=FALSE,IF('beschrijving lozing'!I$13="indirecte lozing",+$H$16*8760*3600*$H61/1000000*$BZ61*(BV$25-G61-BR61),+$H$16*8760*3600*$H61/1000000*$BZ61*(BV$25))),0) -> 0 | BX61: =IF(ISBLANK(A61)=FALSE,IF(ISBLANK($H61)=TRUE,0,+$H$16*8760*3600*$H61/1000000*$BZ61*10*AO61)*IF('beschrijving lozing'!I$13="indirecte lozing",(1-'resultaten immissietoets'!BT61),1),0) -> 0 | BZ61: 0 | CC61: 0 | CE61: 0 | CI61: 0 | CK61: 0 | CN61: 1
D62: =+D61 -> 0 | E62: 0 | M62: 0 | N62: 0 | P62: 0.1 | U62: =IF(T62>0,T62+I62," ") ->  | W62: 0 | AA62: FALSE | AC62: 0 | AE62: voldoet | AK62: VOLDOET NIET? | AL62: 0 | AM62: 0 | AN62: 0 | AO62: n.t.b. | AS62: 0 | AT62: 0 | AW62: 0 | AY62: 0 | AZ62: 0 | BD62: 0 | BE62: =IF(AND(ISBLANK(#REF!)=FALSE,ISBLANK(L62)=FALSE),IF(H$18="ja",1-IF(AND(H$18="ja",AC62>IF(ISBLANK(AD62)=TRUE,1,AD62)),1-+BG62,1),0),0) -> 0 | BG62: 0 | BH62: 0 | BK62: =IF(AND(ISBLANK(#REF!)=FALSE,ISBLANK(L62)=FALSE),1/(1+C62*Z$27/1000*0.000001)," ") ->  | BM62: 0 | BO62: nee | BQ62: =IF(AND(ISBLANK(A62)=FALSE,A62<>" "),IF('beschrijving lozing'!I$13="indirecte lozing",1/(1+'resultaten immissietoets'!C62*60*0.000001)*(1-G62),1)*+'resultaten immissietoets'!H62," ") ->  | BV62: =MAX(IF(ISBLANK($H62)=FALSE,IF('beschrijving lozing'!I$13="indirecte lozing",+$H$16*8760*3600*$H62/1000000*$BZ62*(BV$25-G62-BR62),+$H$16*8760*3600*$H62/1000000*$BZ62*(BV$25))),0) -> 0 | BX62: =IF(ISBLANK(A62)=FALSE,IF(ISBLANK($H62)=TRUE,0,+$H$16*8760*3600*$H62/1000000*$BZ62*10*AO62)*IF('beschrijving lozing'!I$13="indirecte lozing",(1-'resultaten immissietoets'!BT62),1),0) -> 0 | BZ62: 0 | CC62: 0 | CE62: 0 | CI62: 0 | CK62: 0 | CN62: 1
D63: =+D62 -> 0 | E63: 0 | M63: 0 | N63: 0 | P63: 0.1 | V63: =IF(AND(+H63<>" ",ISBLANK(T63)<>TRUE),IF(+J63+(H63-J63)/E63*IF(+X$41="ja",1/(1+C63*(AG$30+W$46*D63/E63)*0.000001),1)>U63,"JA","NEE")," ") ->  | W63: 0 | AA63: FALSE | AC63: 0 | AE63: voldoet | AK63: VOLDOET NIET? | AL63: 0 | AM63: 0 | AN63: 0 | AO63: n.t.b. | AS63: 0 | AT63: 0 | AW63: 0 | AY63: 0 | AZ63: 0 | BD63: 0 | BE63: =IF(AND(ISBLANK(#REF!)=FALSE,ISBLANK(L63)=FALSE),IF(H$18="ja",1-IF(AND(H$18="ja",AC63>IF(ISBLANK(AD63)=TRUE,1,AD63)),1-+BG63,1),0),0) -> 0 | BG63: 0 | BH63: 0 | BK63: =IF(AND(ISBLANK(#REF!)=FALSE,ISBLANK(L63)=FALSE),1/(1+C63*Z$27/1000*0.000001)," ") ->  | BM63: 0 | BO63: nee | BQ63: =IF(AND(ISBLANK(A63)=FALSE,A63<>" "),IF('beschrijving lozing'!I$13="indirecte lozing",1/(1+'resultaten immissietoets'!C63*60*0.000001)*(1-G63),1)*+'resultaten immissietoets'!H63," ") ->  | BV63: =MAX(IF(ISBLANK($H63)=FALSE,IF('beschrijving lozing'!I$13="indirecte lozing",+$H$16*8760*3600*$H63/1000000*$BZ63*(BV$25-G63-BR63),+$H$16*8760*3600*$H63/1000000*$BZ63*(BV$25))),0) -> 0 | BX63: =IF(ISBLANK(A63)=FALSE,IF(ISBLANK($H63)=TRUE,0,+$H$16*8760*3600*$H63/1000000*$BZ63*10*AO63)*IF('beschrijving lozing'!I$13="indirecte lozing",(1-'resultaten immissietoets'!BT63),1),0) -> 0 | BZ63: 0 | CC63: 0 | CE63: 0 | CI63: 0 | CK63: 0 | CN63: 1
D64: =+D63 -> 0 | E64: 0 | M64: 0 | N64: 0 | P64: 0.1 | W64: 0 | AA64: FALSE | AC64: 0 | AE64: voldoet | AK64: VOLDOET NIET? | AL64: 0 | AM64: 0 | AN64: 0 | AO64: n.t.b. | AS64: 0 | AT64: 0 | AW64: 0 | AY64: 0 | AZ64: 0 | BD64: 0 | BE64: =IF(AND(ISBLANK(#REF!)=FALSE,ISBLANK(L64)=FALSE),IF(H$18="ja",1-IF(AND(H$18="ja",AC64>IF(ISBLANK(AD64)=TRUE,1,AD64)),1-+BG64,1),0),0) -> 0 | BG64: 0 | BH64: 0 | BK64: =IF(AND(ISBLANK(#REF!)=FALSE,ISBLANK(L64)=FALSE),1/(1+C64*Z$27/1000*0.000001)," ") ->  | BM64: 0 | BO64: nee | BQ64: =IF(AND(ISBLANK(A64)=FALSE,A64<>" "),IF('beschrijving lozing'!I$13="indirecte lozing",1/(1+'resultaten immissietoets'!C64*60*0.000001)*(1-G64),1)*+'resultaten immissietoets'!H64," ") ->  | BV64: =MAX(IF(ISBLANK($H64)=FALSE,IF('beschrijving lozing'!I$13="indirecte lozing",+$H$16*8760*3600*$H64/1000000*$BZ64*(BV$25-G64-BR64),+$H$16*8760*3600*$H64/1000000*$BZ64*(BV$25))),0) -> 0 | BX64: =IF(ISBLANK(A64)=FALSE,IF(ISBLANK($H64)=TRUE,0,+$H$16*8760*3600*$H64/1000000*$BZ64*10*AO64)*IF('beschrijving lozing'!I$13="indirecte lozing",(1-'resultaten immissietoets'!BT64),1),0) -> 0 | BZ64: 0 | CC64: 0 | CE64: 0 | CI64: 0 | CK64: 0 | CN64: 1
D65: =+D64 -> 0 | E65: 0 | M65: 0 | N65: 0 | P65: 0.1 | W65: 0 | AA65: FALSE | AC65: 0 | AE65: voldoet | AK65: VOLDOET NIET? | AL65: 0 | AM65: 0 | AN65: 0 | AO65: n.t.b. | AS65: 0 | AT65: 0 | AW65: 0 | AY65: 0 | AZ65: 0 | BD65: 0 | BE65: =IF(AND(ISBLANK(#REF!)=FALSE,ISBLANK(L65)=FALSE),IF(H$18="ja",1-IF(AND(H$18="ja",AC65>IF(ISBLANK(AD65)=TRUE,1,AD65)),1-+BG65,1),0),0) -> 0 | BG65: 0 | BH65: 0 | BK65: =IF(AND(ISBLANK(#REF!)=FALSE,ISBLANK(L65)=FALSE),1/(1+C65*Z$27/1000*0.000001)," ") ->  | BM65: 0 | BO65: nee | BQ65: =IF(AND(ISBLANK(A65)=FALSE,A65<>" "),IF('beschrijving lozing'!I$13="indirecte lozing",1/(1+'resultaten immissietoets'!C65*60*0.000001)*(1-G65),1)*+'resultaten immissietoets'!H65," ") ->  | BV65: =MAX(IF(ISBLANK($H65)=FALSE,IF('beschrijving lozing'!I$13="indirecte lozing",+$H$16*8760*3600*$H65/1000000*$BZ65*(BV$25-G65-BR65),+$H$16*8760*3600*$H65/1000000*$BZ65*(BV$25))),0) -> 0 | BX65: =IF(ISBLANK(A65)=FALSE,IF(ISBLANK($H65)=TRUE,0,+$H$16*8760*3600*$H65/1000000*$BZ65*10*AO65)*IF('beschrijving lozing'!I$13="indirecte lozing",(1-'resultaten immissietoets'!BT65),1),0) -> 0 | BZ65: 0 | CC65: 0 | CE65: 0 | CI65: 0 | CK65: 0 | CN65: 1
D66: =+D65 -> 0 | E66: 0 | M66: 0 | N66: 0 | P66: 0.1 | W66: 0 | AA66: FALSE | AC66: 0 | AE66: voldoet | AK66: VOLDOET NIET? | AL66: 0 | AM66: 0 | AN66: 0 | AO66: n.t.b. | AS66: 0 | AT66: 0 | AW66: 0 | AY66: 0 | AZ66: 0 | BD66: 0 | BE66: =IF(AND(ISBLANK(#REF!)=FALSE,ISBLANK(L66)=FALSE),IF(H$18="ja",1-IF(AND(H$18="ja",AC66>IF(ISBLANK(AD66)=TRUE,1,AD66)),1-+BG66,1),0),0) -> 0 | BG66: 0 | BH66: 0 | BK66: =IF(AND(ISBLANK(#REF!)=FALSE,ISBLANK(L66)=FALSE),1/(1+C66*Z$27/1000*0.000001)," ") ->  | BM66: 0 | BO66: nee | BQ66: =IF(AND(ISBLANK(A66)=FALSE,A66<>" "),IF('beschrijving lozing'!I$13="indirecte lozing",1/(1+'resultaten immissietoets'!C66*60*0.000001)*(1-G66),1)*+'resultaten immissietoets'!H66," ") ->  | BV66: =MAX(IF(ISBLANK($H66)=FALSE,IF('beschrijving lozing'!I$13="indirecte lozing",+$H$16*8760*3600*$H66/1000000*$BZ66*(BV$25-G66-BR66),+$H$16*8760*3600*$H66/1000000*$BZ66*(BV$25))),0) -> 0 | BX66: =IF(ISBLANK(A66)=FALSE,IF(ISBLANK($H66)=TRUE,0,+$H$16*8760*3600*$H66/1000000*$BZ66*10*AO66)*IF('beschrijving lozing'!I$13="indirecte lozing",(1-'resultaten immissietoets'!BT66),1),0) -> 0 | BZ66: 0 | CC66: 0 | CE66: 0 | CI66: 0 | CK66: 0 | CN66: 1
D67: =+D66 -> 0 | E67: 0 | M67: 0 | N67: 0 | P67: 0.1 | W67: 0 | AA67: FALSE | AC67: 0 | AE67: voldoet | AK67: VOLDOET NIET? | AL67: 0 | AM67: 0 | AN67: 0 | AO67: n.t.b. | AS67: 0 | AT67: 0 | AW67: 0 | AY67: 0 | AZ67: 0 | BD67: 0 | BE67: =IF(AND(ISBLANK(#REF!)=FALSE,ISBLANK(L67)=FALSE),IF(H$18="ja",1-IF(AND(H$18="ja",AC67>IF(ISBLANK(AD67)=TRUE,1,AD67)),1-+BG67,1),0),0) -> 0 | BG67: 0 | BH67: 0 | BK67: =IF(AND(ISBLANK(#REF!)=FALSE,ISBLANK(L67)=FALSE),1/(1+C67*Z$27/1000*0.000001)," ") ->  | BM67: 0 | BO67: nee | BQ67: =IF(AND(ISBLANK(A67)=FALSE,A67<>" "),IF('beschrijving lozing'!I$13="indirecte lozing",1/(1+'resultaten immissietoets'!C67*60*0.000001)*(1-G67),1)*+'resultaten immissietoets'!H67," ") ->  | BV67: =MAX(IF(ISBLANK($H67)=FALSE,IF('beschrijving lozing'!I$13="indirecte lozing",+$H$16*8760*3600*$H67/1000000*$BZ67*(BV$25-G67-BR67),+$H$16*8760*3600*$H67/1000000*$BZ67*(BV$25))),0) -> 0 | BX67: =IF(ISBLANK(A67)=FALSE,IF(ISBLANK($H67)=TRUE,0,+$H$16*8760*3600*$H67/1000000*$BZ67*10*AO67)*IF('beschrijving lozing'!I$13="indirecte lozing",(1-'resultaten immissietoets'!BT67),1),0) -> 0 | BZ67: 0 | CC67: 0 | CE67: 0 | CI67: 0 | CK67: 0 | CN67: 1
D68: =+D67 -> 0 | E68: 0 | M68: 0 | N68: 0 | P68: 0.1 | W68: 0 | AA68: FALSE | AC68: 0 | AE68: voldoet | AK68: VOLDOET NIET? | AL68: 0 | AM68: 0 | AN68: 0 | AO68: n.t.b. | AS68: 0 | AT68: 0 | AW68: 0 | AY68: 0 | AZ68: 0 | BD68: 0 | BE68: =IF(AND(ISBLANK(#REF!)=FALSE,ISBLANK(L68)=FALSE),IF(H$18="ja",1-IF(AND(H$18="ja",AC68>IF(ISBLANK(AD68)=TRUE,1,AD68)),1-+BG68,1),0),0) -> 0 | BG68: 0 | BH68: 0 | BK68: =IF(AND(ISBLANK(#REF!)=FALSE,ISBLANK(L68)=FALSE),1/(1+C68*Z$27/1000*0.000001)," ") ->  | BM68: 0 | BO68: nee | BQ68: =IF(AND(ISBLANK(A68)=FALSE,A68<>" "),IF('beschrijving lozing'!I$13="indirecte lozing",1/(1+'resultaten immissietoets'!C68*60*0.000001)*(1-G68),1)*+'resultaten immissietoets'!H68," ") ->  | BV68: =MAX(IF(ISBLANK($H68)=FALSE,IF('beschrijving lozing'!I$13="indirecte lozing",+$H$16*8760*3600*$H68/1000000*$BZ68*(BV$25-G68-BR68),+$H$16*8760*3600*$H68/1000000*$BZ68*(BV$25))),0) -> 0 | BX68: =IF(ISBLANK(A68)=FALSE,IF(ISBLANK($H68)=TRUE,0,+$H$16*8760*3600*$H68/1000000*$BZ68*10*AO68)*IF('beschrijving lozing'!I$13="indirecte lozing",(1-'resultaten immissietoets'!BT68),1),0) -> 0 | BZ68: 0 | CC68: 0 | CE68: 0 | CI68: 0 | CK68: 0 | CN68: 1
D69: =+D68 -> 0 | E69: 0 | M69: 0 | N69: 0 | P69: 0.1 | W69: 0 | AA69: FALSE | AC69: 0 | AE69: voldoet | AK69: VOLDOET NIET? | AL69: 0 | AM69: 0 | AN69: 0 | AO69: n.t.b. | AQ69: =IF(OR(AE69="voldoet niet",AK69="VOLDOET niet?"),IF(OR(H$18="ja",OR(ISBLANK(L69)=TRUE,ISBLANK(AD69)=TRUE)),CONCATENATE("Raadpleeg RIVM (via BG) voor (noodzaak) afleiding ",IF(AND(ISBLANK(L69)=TRUE,AA69<>"VOLDOET")," i-MKN"," "),IF(AND(ISBLANK(AD69)=TRUE,AE69<>"VOLDOET"),IF(AND(ISBLANK(L69)=TRUE,AA69<>"VOLDOET")," en i-DW","i-DW")," "))," ")," ") -> Raadpleeg RIVM (via BG) voor (noodzaak) afleiding i-MKN | AR69: =IF(OR(BO69="ja",AO69="n.t.b"),IF(AND(ISBLANK(L69)=TRUE,ISBLANK(AD69)=TRUE,BO69="ja"),CONCATENATE("delta C-innamepunt: ",ROUND((AC69-AB69)/AB69*100,4)," %","; delta C-L-: ",IF(J69>0,ROUND(W69/J69*100,4),ROUND(W69,4)),IF(J69>0,"%"," ug/l")),IF(ISBLANK(L69)=TRUE,IF(OR(ISBLANK(J69)=TRUE,J69=0),CONCATENATE("delta C-L: ",ROUND(W69,4)," ug/l"),CONCATENATE("delta C-L: ",ROUND(+W69/J69*100,4)," %")),IF(ISBLANK(AD69)=TRUE,CONCATENATE("delta C-innamepunt: ",ROUND((AC69-AB69)/AB69*100,4),"%"))))," ") ->  | AS69: 0 | AT69: 0 | AW69: 0 | AY69: 0 | AZ69: 0 | BA69: =IF(AND(ISBLANK(A69)=FALSE,ISBLANK(L69)=FALSE),IF(J69<N69,(1-+AZ69)*(H69),(1-AZ69)*H69)," ") ->  | BD69: 0 | BE69: =IF(AND(ISBLANK(#REF!)=FALSE,ISBLANK(L69)=FALSE),IF(H$18="ja",1-IF(AND(H$18="ja",AC69>IF(ISBLANK(AD69)=TRUE,1,AD69)),1-+BG69,1),0),0) -> 0 | BG69: 0 | BH69: 0 | BK69: =IF(AND(ISBLANK(#REF!)=FALSE,ISBLANK(L69)=FALSE),1/(1+C69*Z$27/1000*0.000001)," ") ->  | BM69: 0 | BO69: nee | BQ69: =IF(AND(ISBLANK(A69)=FALSE,A69<>" "),IF('beschrijving lozing'!I$13="indirecte lozing",1/(1+'resultaten immissietoets'!C69*60*0.000001)*(1-G69),1)*+'resultaten immissietoets'!H69," ") ->  | BV69: =MAX(IF(ISBLANK($H69)=FALSE,IF('beschrijving lozing'!I$13="indirecte lozing",+$H$16*8760*3600*$H69/1000000*$BZ69*(BV$25-G69-BR69),+$H$16*8760*3600*$H69/1000000*$BZ69*(BV$25))),0) -> 0 | BX69: =IF(ISBLANK(A69)=FALSE,IF(ISBLANK($H69)=TRUE,0,+$H$16*8760*3600*$H69/1000000*$BZ69*10*AO69)*IF('beschrijving lozing'!I$13="indirecte lozing",(1-'resultaten immissietoets'!BT69),1),0) -> 0 | BZ69: 0 | CC69: 0 | CE69: 0 | CI69: 0 | CK69: 0 | CN69: 1
D70: =+D69 -> 0 | E70: 0 | M70: 0 | N70: 0 | P70: 0.1 | W70: 0 | AA70: FALSE | AC70: 0 | AE70: voldoet | AK70: VOLDOET NIET? | AL70: 0 | AM70: 0 | AN70: 0 | AO70: n.t.b. | AQ70: Raadpleeg RIVM (via BG) voor (noodzaak) afleiding i-MKN | AS70: 0 | AT70: 0 | AW70: 0 | AY70: 0 | AZ70: 0 | BD70: 0 | BE70: =IF(AND(ISBLANK(#REF!)=FALSE,ISBLANK(L70)=FALSE),IF(H$18="ja",1-IF(AND(H$18="ja",AC70>IF(ISBLANK(AD70)=TRUE,1,AD70)),1-+BG70,1),0),0) -> 0 | BG70: 0 | BH70: 0 | BK70: =IF(AND(ISBLANK(#REF!)=FALSE,ISBLANK(L70)=FALSE),1/(1+C70*Z$27/1000*0.000001)," ") ->  | BM70: 0 | BO70: nee | BQ70: =IF(AND(ISBLANK(A70)=FALSE,A70<>" "),IF('beschrijving lozing'!I$13="indirecte lozing",1/(1+'resultaten immissietoets'!C70*60*0.000001)*(1-G70),1)*+'resultaten immissietoets'!H70," ") ->  | BV70: =MAX(IF(ISBLANK($H70)=FALSE,IF('beschrijving lozing'!I$13="indirecte lozing",+$H$16*8760*3600*$H70/1000000*$BZ70*(BV$25-G70-BR70),+$H$16*8760*3600*$H70/1000000*$BZ70*(BV$25))),0) -> 0 | BX70: =IF(ISBLANK(A70)=FALSE,IF(ISBLANK($H70)=TRUE,0,+$H$16*8760*3600*$H70/1000000*$BZ70*10*AO70)*IF('beschrijving lozing'!I$13="indirecte lozing",(1-'resultaten immissietoets'!BT70),1),0) -> 0 | BZ70: 0 | CC70: 0 | CE70: 0 | CI70: 0 | CK70: 0 | CN70: 1
D71: =+D70 -> 0 | E71: 0 | M71: 0 | N71: 0 | P71: 0.1 | W71: 0 | AA71: FALSE | AC71: 0 | AE71: voldoet | AK71: VOLDOET NIET? | AL71: 0 | AM71: 0 | AN71: 0 | AO71: n.t.b. | AQ71: Raadpleeg RIVM (via BG) voor (noodzaak) afleiding i-MKN | AS71: 0 | AT71: 0 | AW71: 0 | AY71: 0 | AZ71: 0 | BD71: 0 | BE71: =IF(AND(ISBLANK(#REF!)=FALSE,ISBLANK(L71)=FALSE),IF(H$18="ja",1-IF(AND(H$18="ja",AC71>IF(ISBLANK(AD71)=TRUE,1,AD71)),1-+BG71,1),0),0) -> 0 | BG71: 0 | BH71: 0 | BK71: =IF(AND(ISBLANK(#REF!)=FALSE,ISBLANK(L71)=FALSE),1/(1+C71*Z$27/1000*0.000001)," ") ->  | BM71: 0 | BO71: nee | BQ71: =IF(AND(ISBLANK(A71)=FALSE,A71<>" "),IF('beschrijving lozing'!I$13="indirecte lozing",1/(1+'resultaten immissietoets'!C71*60*0.000001)*(1-G71),1)*+'resultaten immissietoets'!H71," ") ->  | BV71: =MAX(IF(ISBLANK($H71)=FALSE,IF('beschrijving lozing'!I$13="indirecte lozing",+$H$16*8760*3600*$H71/1000000*$BZ71*(BV$25-G71-BR71),+$H$16*8760*3600*$H71/1000000*$BZ71*(BV$25))),0) -> 0 | BX71: =IF(ISBLANK(A71)=FALSE,IF(ISBLANK($H71)=TRUE,0,+$H$16*8760*3600*$H71/1000000*$BZ71*10*AO71)*IF('beschrijving lozing'!I$13="indirecte lozing",(1-'resultaten immissietoets'!BT71),1),0) -> 0 | BZ71: 0 | CC71: 0 | CE71: 0 | CI71: 0 | CK71: 0 | CN71: 1
D72: =+D71 -> 0 | E72: 0 | M72: 0 | N72: 0 | P72: 0.1 | W72: 0 | AA72: FALSE | AC72: 0 | AE72: voldoet | AK72: VOLDOET NIET? | AL72: 0 | AM72: 0 | AN72: 0 | AO72: n.t.b. | AQ72: Raadpleeg RIVM (via BG) voor (noodzaak) afleiding i-MKN | AS72: 0 | AT72: 0 | AW72: 0 | AY72: 0 | AZ72: 0 | BD72: 0 | BE72: =IF(AND(ISBLANK(#REF!)=FALSE,ISBLANK(L72)=FALSE),IF(H$18="ja",1-IF(AND(H$18="ja",AC72>IF(ISBLANK(AD72)=TRUE,1,AD72)),1-+BG72,1),0),0) -> 0 | BG72: 0 | BH72: 0 | BK72: =IF(AND(ISBLANK(#REF!)=FALSE,ISBLANK(L72)=FALSE),1/(1+C72*Z$27/1000*0.000001)," ") ->  | BM72: 0 | BO72: nee | BQ72: =IF(AND(ISBLANK(A72)=FALSE,A72<>" "),IF('beschrijving lozing'!I$13="indirecte lozing",1/(1+'resultaten immissietoets'!C72*60*0.000001)*(1-G72),1)*+'resultaten immissietoets'!H72," ") ->  | BV72: =MAX(IF(ISBLANK($H72)=FALSE,IF('beschrijving lozing'!I$13="indirecte lozing",+$H$16*8760*3600*$H72/1000000*$BZ72*(BV$25-G72-BR72),+$H$16*8760*3600*$H72/1000000*$BZ72*(BV$25))),0) -> 0 | BX72: =IF(ISBLANK(A72)=FALSE,IF(ISBLANK($H72)=TRUE,0,+$H$16*8760*3600*$H72/1000000*$BZ72*10*AO72)*IF('beschrijving lozing'!I$13="indirecte lozing",(1-'resultaten immissietoets'!BT72),1),0) -> 0 | BZ72: 0 | CC72: 0 | CE72: 0 | CI72: 0 | CK72: 0 | CN72: 1
D73: =+D72 -> 0 | E73: 0 | M73: 0 | N73: 0 | P73: 0.1 | W73: 0 | AA73: FALSE | AC73: 0 | AE73: voldoet | AK73: VOLDOET NIET? | AL73: 0 | AM73: 0 | AN73: 0 | AO73: n.t.b. | AQ73: Raadpleeg RIVM (via BG) voor (noodzaak) afleiding i-MKN | AS73: 0 | AT73: 0 | AW73: 0 | AY73: 0 | AZ73: 0 | BD73: 0 | BE73: =IF(AND(ISBLANK(#REF!)=FALSE,ISBLANK(L73)=FALSE),IF(H$18="ja",1-IF(AND(H$18="ja",AC73>IF(ISBLANK(AD73)=TRUE,1,AD73)),1-+BG73,1),0),0) -> 0 | BG73: 0 | BH73: 0 | BK73: =IF(AND(ISBLANK(#REF!)=FALSE,ISBLANK(L73)=FALSE),1/(1+C73*Z$27/1000*0.000001)," ") ->  | BM73: 0 | BO73: nee | BQ73: =IF(AND(ISBLANK(A73)=FALSE,A73<>" "),IF('beschrijving lozing'!I$13="indirecte lozing",1/(1+'resultaten immissietoets'!C73*60*0.000001)*(1-G73),1)*+'resultaten immissietoets'!H73," ") ->  | BV73: =MAX(IF(ISBLANK($H73)=FALSE,IF('beschrijving lozing'!I$13="indirecte lozing",+$H$16*8760*3600*$H73/1000000*$BZ73*(BV$25-G73-BR73),+$H$16*8760*3600*$H73/1000000*$BZ73*(BV$25))),0) -> 0 | BX73: =IF(ISBLANK(A73)=FALSE,IF(ISBLANK($H73)=TRUE,0,+$H$16*8760*3600*$H73/1000000*$BZ73*10*AO73)*IF('beschrijving lozing'!I$13="indirecte lozing",(1-'resultaten immissietoets'!BT73),1),0) -> 0 | BZ73: 0 | CC73: 0 | CE73: 0 | CI73: 0 | CK73: 0 | CN73: 1
D74: =+D73 -> 0 | E74: 0 | M74: 0 | N74: 0 | P74: 0.1 | W74: 0 | AA74: FALSE | AC74: 0 | AE74: voldoet | AK74: VOLDOET NIET? | AL74: 0 | AM74: 0 | AN74: 0 | AO74: n.t.b. | AQ74: Raadpleeg RIVM (via BG) voor (noodzaak) afleiding i-MKN | AS74: 0 | AT74: 0 | AW74: 0 | AY74: 0 | AZ74: 0 | BD74: 0 | BE74: =IF(AND(ISBLANK(#REF!)=FALSE,ISBLANK(L74)=FALSE),IF(H$18="ja",1-IF(AND(H$18="ja",AC74>IF(ISBLANK(AD74)=TRUE,1,AD74)),1-+BG74,1),0),0) -> 0 | BG74: 0 | BH74: 0 | BK74: =IF(AND(ISBLANK(#REF!)=FALSE,ISBLANK(L74)=FALSE),1/(1+C74*Z$27/1000*0.000001)," ") ->  | BM74: 0 | BO74: nee | BQ74: =IF(AND(ISBLANK(A74)=FALSE,A74<>" "),IF('beschrijving lozing'!I$13="indirecte lozing",1/(1+'resultaten immissietoets'!C74*60*0.000001)*(1-G74),1)*+'resultaten immissietoets'!H74," ") ->  | BV74: =MAX(IF(ISBLANK($H74)=FALSE,IF('beschrijving lozing'!I$13="indirecte lozing",+$H$16*8760*3600*$H74/1000000*$BZ74*(BV$25-G74-BR74),+$H$16*8760*3600*$H74/1000000*$BZ74*(BV$25))),0) -> 0 | BX74: =IF(ISBLANK(A74)=FALSE,IF(ISBLANK($H74)=TRUE,0,+$H$16*8760*3600*$H74/1000000*$BZ74*10*AO74)*IF('beschrijving lozing'!I$13="indirecte lozing",(1-'resultaten immissietoets'!BT74),1),0) -> 0 | BZ74: 0 | CC74: 0 | CE74: 0 | CI74: 0 | CK74: 0 | CN74: 1
D75: =+D74 -> 0 | E75: 0 | M75: 0 | N75: 0 | P75: 0.1 | W75: 0 | AA75: FALSE | AC75: 0 | AE75: voldoet | AK75: VOLDOET NIET? | AL75: 0 | AM75: 0 | AN75: 0 | AO75: n.t.b. | AQ75: Raadpleeg RIVM (via BG) voor (noodzaak) afleiding i-MKN | AS75: 0 | AT75: 0 | AW75: 0 | AY75: 0 | AZ75: 0 | BD75: 0 | BE75: =IF(AND(ISBLANK(#REF!)=FALSE,ISBLANK(L75)=FALSE),IF(H$18="ja",1-IF(AND(H$18="ja",AC75>IF(ISBLANK(AD75)=TRUE,1,AD75)),1-+BG75,1),0),0) -> 0 | BG75: 0 | BH75: 0 | BK75: =IF(AND(ISBLANK(#REF!)=FALSE,ISBLANK(L75)=FALSE),1/(1+C75*Z$27/1000*0.000001)," ") ->  | BM75: 0 | BO75: nee | BQ75: =IF(AND(ISBLANK(A75)=FALSE,A75<>" "),IF('beschrijving lozing'!I$13="indirecte lozing",1/(1+'resultaten immissietoets'!C75*60*0.000001)*(1-G75),1)*+'resultaten immissietoets'!H75," ") ->  | BV75: =MAX(IF(ISBLANK($H75)=FALSE,IF('beschrijving lozing'!I$13="indirecte lozing",+$H$16*8760*3600*$H75/1000000*$BZ75*(BV$25-G75-BR75),+$H$16*8760*3600*$H75/1000000*$BZ75*(BV$25))),0) -> 0 | BX75: =IF(ISBLANK(A75)=FALSE,IF(ISBLANK($H75)=TRUE,0,+$H$16*8760*3600*$H75/1000000*$BZ75*10*AO75)*IF('beschrijving lozing'!I$13="indirecte lozing",(1-'resultaten immissietoets'!BT75),1),0) -> 0 | BZ75: 0 | CC75: 0 | CE75: 0 | CI75: 0 | CK75: 0 | CN75: 1
D76: =+D75 -> 0 | E76: 0 | M76: 0 | N76: 0 | P76: 0.1 | W76: 0 | AA76: FALSE | AC76: 0 | AE76: voldoet | AK76: VOLDOET NIET? | AL76: 0 | AM76: 0 | AN76: 0 | AO76: n.t.b. | AQ76: Raadpleeg RIVM (via BG) voor (noodzaak) afleiding i-MKN | AS76: 0 | AT76: 0 | AW76: 0 | AY76: 0 | AZ76: 0 | BD76: 0 | BE76: =IF(AND(ISBLANK(#REF!)=FALSE,ISBLANK(L76)=FALSE),IF(H$18="ja",1-IF(AND(H$18="ja",AC76>IF(ISBLANK(AD76)=TRUE,1,AD76)),1-+BG76,1),0),0) -> 0 | BG76: 0 | BH76: 0 | BK76: =IF(AND(ISBLANK(#REF!)=FALSE,ISBLANK(L76)=FALSE),1/(1+C76*Z$27/1000*0.000001)," ") ->  | BM76: 0 | BO76: nee | BQ76: =IF(AND(ISBLANK(A76)=FALSE,A76<>" "),IF('beschrijving lozing'!I$13="indirecte lozing",1/(1+'resultaten immissietoets'!C76*60*0.000001)*(1-G76),1)*+'resultaten immissietoets'!H76," ") ->  | BV76: =MAX(IF(ISBLANK($H76)=FALSE,IF('beschrijving lozing'!I$13="indirecte lozing",+$H$16*8760*3600*$H76/1000000*$BZ76*(BV$25-G76-BR76),+$H$16*8760*3600*$H76/1000000*$BZ76*(BV$25))),0) -> 0 | BX76: =IF(ISBLANK(A76)=FALSE,IF(ISBLANK($H76)=TRUE,0,+$H$16*8760*3600*$H76/1000000*$BZ76*10*AO76)*IF('beschrijving lozing'!I$13="indirecte lozing",(1-'resultaten immissietoets'!BT76),1),0) -> 0 | BZ76: 0 | CC76: 0 | CE76: 0 | CI76: 0 | CK76: 0 | CN76: 1
D77: =+D76 -> 0 | E77: 0 | M77: 0 | N77: 0 | P77: 0.1 | W77: 0 | AA77: FALSE | AC77: 0 | AE77: voldoet | AK77: VOLDOET NIET? | AL77: 0 | AM77: 0 | AN77: 0 | AO77: n.t.b. | AQ77: Raadpleeg RIVM (via BG) voor (noodzaak) afleiding i-MKN | AS77: 0 | AT77: 0 | AW77: 0 | AY77: 0 | AZ77: 0 | BD77: 0 | BE77: =IF(AND(ISBLANK(#REF!)=FALSE,ISBLANK(L77)=FALSE),IF(H$18="ja",1-IF(AND(H$18="ja",AC77>IF(ISBLANK(AD77)=TRUE,1,AD77)),1-+BG77,1),0),0) -> 0 | BG77: 0 | BH77: 0 | BK77: =IF(AND(ISBLANK(#REF!)=FALSE,ISBLANK(L77)=FALSE),1/(1+C77*Z$27/1000*0.000001)," ") ->  | BM77: 0 | BO77: nee | BQ77: =IF(AND(ISBLANK(A77)=FALSE,A77<>" "),IF('beschrijving lozing'!I$13="indirecte lozing",1/(1+'resultaten immissietoets'!C77*60*0.000001)*(1-G77),1)*+'resultaten immissietoets'!H77," ") ->  | BV77: =MAX(IF(ISBLANK($H77)=FALSE,IF('beschrijving lozing'!I$13="indirecte lozing",+$H$16*8760*3600*$H77/1000000*$BZ77*(BV$25-G77-BR77),+$H$16*8760*3600*$H77/1000000*$BZ77*(BV$25))),0) -> 0 | BX77: =IF(ISBLANK(A77)=FALSE,IF(ISBLANK($H77)=TRUE,0,+$H$16*8760*3600*$H77/1000000*$BZ77*10*AO77)*IF('beschrijving lozing'!I$13="indirecte lozing",(1-'resultaten immissietoets'!BT77),1),0) -> 0 | BZ77: 0 | CC77: 0 | CE77: 0 | CI77: 0 | CK77: 0 | CN77: 1
D78: =+D77 -> 0 | E78: 0 | M78: 0 | N78: 0 | P78: 0.1 | W78: 0 | AA78: FALSE | AC78: 0 | AE78: voldoet | AK78: VOLDOET NIET? | AL78: 0 | AM78: 0 | AN78: 0 | AO78: n.t.b. | AQ78: Raadpleeg RIVM (via BG) voor (noodzaak) afleiding i-MKN | AS78: 0 | AT78: 0 | AW78: 0 | AY78: 0 | AZ78: 0 | BD78: 0 | BE78: =IF(AND(ISBLANK(#REF!)=FALSE,ISBLANK(L78)=FALSE),IF(H$18="ja",1-IF(AND(H$18="ja",AC78>IF(ISBLANK(AD78)=TRUE,1,AD78)),1-+BG78,1),0),0) -> 0 | BG78: 0 | BH78: 0 | BK78: =IF(AND(ISBLANK(#REF!)=FALSE,ISBLANK(L78)=FALSE),1/(1+C78*Z$27/1000*0.000001)," ") ->  | BM78: 0 | BO78: nee | BQ78: =IF(AND(ISBLANK(A78)=FALSE,A78<>" "),IF('beschrijving lozing'!I$13="indirecte lozing",1/(1+'resultaten immissietoets'!C78*60*0.000001)*(1-G78),1)*+'resultaten immissietoets'!H78," ") ->  | BV78: =MAX(IF(ISBLANK($H78)=FALSE,IF('beschrijving lozing'!I$13="indirecte lozing",+$H$16*8760*3600*$H78/1000000*$BZ78*(BV$25-G78-BR78),+$H$16*8760*3600*$H78/1000000*$BZ78*(BV$25))),0) -> 0 | BX78: =IF(ISBLANK(A78)=FALSE,IF(ISBLANK($H78)=TRUE,0,+$H$16*8760*3600*$H78/1000000*$BZ78*10*AO78)*IF('beschrijving lozing'!I$13="indirecte lozing",(1-'resultaten immissietoets'!BT78),1),0) -> 0 | BZ78: 0 | CC78: 0 | CE78: 0 | CI78: 0 | CK78: 0 | CN78: 1
D79: =+D78 -> 0 | E79: 0 | M79: 0 | N79: 0 | P79: 0.1 | W79: 0 | AA79: FALSE | AC79: 0 | AE79: voldoet | AK79: VOLDOET NIET? | AL79: 0 | AM79: 0 | AN79: 0 | AO79: n.t.b. | AQ79: Raadpleeg RIVM (via BG) voor (noodzaak) afleiding i-MKN | AS79: 0 | AT79: 0 | AW79: 0 | AY79: 0 | AZ79: 0 | BD79: 0 | BE79: =IF(AND(ISBLANK(#REF!)=FALSE,ISBLANK(L79)=FALSE),IF(H$18="ja",1-IF(AND(H$18="ja",AC79>IF(ISBLANK(AD79)=TRUE,1,AD79)),1-+BG79,1),0),0) -> 0 | BG79: 0 | BH79: 0 | BK79: =IF(AND(ISBLANK(#REF!)=FALSE,ISBLANK(L79)=FALSE),1/(1+C79*Z$27/1000*0.000001)," ") ->  | BM79: 0 | BO79: nee | BQ79: =IF(AND(ISBLANK(A79)=FALSE,A79<>" "),IF('beschrijving lozing'!I$13="indirecte lozing",1/(1+'resultaten immissietoets'!C79*60*0.000001)*(1-G79),1)*+'resultaten immissietoets'!H79," ") ->  | BV79: =MAX(IF(ISBLANK($H79)=FALSE,IF('beschrijving lozing'!I$13="indirecte lozing",+$H$16*8760*3600*$H79/1000000*$BZ79*(BV$25-G79-BR79),+$H$16*8760*3600*$H79/1000000*$BZ79*(BV$25))),0) -> 0 | BX79: =IF(ISBLANK(A79)=FALSE,IF(ISBLANK($H79)=TRUE,0,+$H$16*8760*3600*$H79/1000000*$BZ79*10*AO79)*IF('beschrijving lozing'!I$13="indirecte lozing",(1-'resultaten immissietoets'!BT79),1),0) -> 0 | BZ79: 0 | CC79: 0 | CE79: 0 | CI79: 0 | CK79: 0 | CN79: 1
D80: =+D79 -> 0 | E80: 0 | M80: 0 | N80: 0 | P80: 0.1 | W80: 0 | AA80: FALSE | AC80: 0 | AE80: voldoet | AK80: VOLDOET NIET? | AL80: 0 | AM80: 0 | AN80: 0 | AO80: n.t.b. | AQ80: Raadpleeg RIVM (via BG) voor (noodzaak) afleiding i-MKN | AS80: 0 | AT80: 0 | AW80: 0 | AY80: 0 | AZ80: 0 | BD80: 0 | BE80: =IF(AND(ISBLANK(#REF!)=FALSE,ISBLANK(L80)=FALSE),IF(H$18="ja",1-IF(AND(H$18="ja",AC80>IF(ISBLANK(AD80)=TRUE,1,AD80)),1-+BG80,1),0),0) -> 0 | BG80: 0 | BH80: 0 | BK80: =IF(AND(ISBLANK(#REF!)=FALSE,ISBLANK(L80)=FALSE),1/(1+C80*Z$27/1000*0.000001)," ") ->  | BM80: 0 | BO80: nee | BQ80: =IF(AND(ISBLANK(A80)=FALSE,A80<>" "),IF('beschrijving lozing'!I$13="indirecte lozing",1/(1+'resultaten immissietoets'!C80*60*0.000001)*(1-G80),1)*+'resultaten immissietoets'!H80," ") ->  | BV80: =MAX(IF(ISBLANK($H80)=FALSE,IF('beschrijving lozing'!I$13="indirecte lozing",+$H$16*8760*3600*$H80/1000000*$BZ80*(BV$25-G80-BR80),+$H$16*8760*3600*$H80/1000000*$BZ80*(BV$25))),0) -> 0 | BX80: =IF(ISBLANK(A80)=FALSE,IF(ISBLANK($H80)=TRUE,0,+$H$16*8760*3600*$H80/1000000*$BZ80*10*AO80)*IF('beschrijving lozing'!I$13="indirecte lozing",(1-'resultaten immissietoets'!BT80),1),0) -> 0 | BZ80: 0 | CC80: 0 | CE80: 0 | CI80: 0 | CK80: 0 | CN80: 1
D81: =+D80 -> 0 | E81: 0 | M81: 0 | N81: 0 | P81: 0.1 | W81: 0 | AA81: FALSE | AC81: 0 | AE81: voldoet | AK81: VOLDOET NIET? | AL81: 0 | AM81: 0 | AN81: 0 | AO81: n.t.b. | AQ81: Raadpleeg RIVM (via BG) voor (noodzaak) afleiding i-MKN | AS81: 0 | AT81: 0 | AW81: 0 | AY81: 0 | AZ81: 0 | BD81: 0 | BE81: =IF(AND(ISBLANK(#REF!)=FALSE,ISBLANK(L81)=FALSE),IF(H$18="ja",1-IF(AND(H$18="ja",AC81>IF(ISBLANK(AD81)=TRUE,1,AD81)),1-+BG81,1),0),0) -> 0 | BG81: 0 | BH81: 0 | BK81: =IF(AND(ISBLANK(#REF!)=FALSE,ISBLANK(L81)=FALSE),1/(1+C81*Z$27/1000*0.000001)," ") ->  | BM81: 0 | BO81: nee | BQ81: =IF(AND(ISBLANK(A81)=FALSE,A81<>" "),IF('beschrijving lozing'!I$13="indirecte lozing",1/(1+'resultaten immissietoets'!C81*60*0.000001)*(1-G81),1)*+'resultaten immissietoets'!H81," ") ->  | BV81: =MAX(IF(ISBLANK($H81)=FALSE,IF('beschrijving lozing'!I$13="indirecte lozing",+$H$16*8760*3600*$H81/1000000*$BZ81*(BV$25-G81-BR81),+$H$16*8760*3600*$H81/1000000*$BZ81*(BV$25))),0) -> 0 | BX81: =IF(ISBLANK(A81)=FALSE,IF(ISBLANK($H81)=TRUE,0,+$H$16*8760*3600*$H81/1000000*$BZ81*10*AO81)*IF('beschrijving lozing'!I$13="indirecte lozing",(1-'resultaten immissietoets'!BT81),1),0) -> 0 | BZ81: 0 | CC81: 0 | CE81: 0 | CI81: 0 | CK81: 0 | CN81: 1
D82: =+D81 -> 0 | E82: 0 | M82: 0 | N82: 0 | P82: 0.1 | W82: 0 | AA82: FALSE | AC82: 0 | AE82: voldoet | AK82: VOLDOET NIET? | AL82: 0 | AM82: 0 | AN82: 0 | AO82: n.t.b. | AQ82: Raadpleeg RIVM (via BG) voor (noodzaak) afleiding i-MKN | AS82: 0 | AT82: 0 | AW82: 0 | AY82: 0 | AZ82: 0 | BD82: 0 | BE82: =IF(AND(ISBLANK(#REF!)=FALSE,ISBLANK(L82)=FALSE),IF(H$18="ja",1-IF(AND(H$18="ja",AC82>IF(ISBLANK(AD82)=TRUE,1,AD82)),1-+BG82,1),0),0) -> 0 | BG82: 0 | BH82: 0 | BK82: =IF(AND(ISBLANK(#REF!)=FALSE,ISBLANK(L82)=FALSE),1/(1+C82*Z$27/1000*0.000001)," ") ->  | BM82: 0 | BO82: nee | BQ82: =IF(AND(ISBLANK(A82)=FALSE,A82<>" "),IF('beschrijving lozing'!I$13="indirecte lozing",1/(1+'resultaten immissietoets'!C82*60*0.000001)*(1-G82),1)*+'resultaten immissietoets'!H82," ") ->  | BV82: =MAX(IF(ISBLANK($H82)=FALSE,IF('beschrijving lozing'!I$13="indirecte lozing",+$H$16*8760*3600*$H82/1000000*$BZ82*(BV$25-G82-BR82),+$H$16*8760*3600*$H82/1000000*$BZ82*(BV$25))),0) -> 0 | BX82: =IF(ISBLANK(A82)=FALSE,IF(ISBLANK($H82)=TRUE,0,+$H$16*8760*3600*$H82/1000000*$BZ82*10*AO82)*IF('beschrijving lozing'!I$13="indirecte lozing",(1-'resultaten immissietoets'!BT82),1),0) -> 0 | BZ82: 0 | CC82: 0 | CE82: 0 | CI82: 0 | CK82: 0 | CN82: 1
D83: =+D82 -> 0 | E83: 0 | M83: 0 | N83: 0 | P83: 0.1 | W83: 0 | AA83: FALSE | AC83: 0 | AE83: voldoet | AK83: VOLDOET NIET? | AL83: 0 | AM83: 0 | AN83: 0 | AO83: n.t.b. | AQ83: Raadpleeg RIVM (via BG) voor (noodzaak) afleiding i-MKN | AS83: 0 | AT83: 0 | AW83: 0 | AY83: 0 | AZ83: 0 | BD83: 0 | BE83: =IF(AND(ISBLANK(#REF!)=FALSE,ISBLANK(L83)=FALSE),IF(H$18="ja",1-IF(AND(H$18="ja",AC83>IF(ISBLANK(AD83)=TRUE,1,AD83)),1-+BG83,1),0),0) -> 0 | BG83: 0 | BH83: 0 | BK83: =IF(AND(ISBLANK(#REF!)=FALSE,ISBLANK(L83)=FALSE),1/(1+C83*Z$27/1000*0.000001)," ") ->  | BM83: 0 | BO83: nee | BQ83: =IF(AND(ISBLANK(A83)=FALSE,A83<>" "),IF('beschrijving lozing'!I$13="indirecte lozing",1/(1+'resultaten immissietoets'!C83*60*0.000001)*(1-G83),1)*+'resultaten immissietoets'!H83," ") ->  | BV83: =MAX(IF(ISBLANK($H83)=FALSE,IF('beschrijving lozing'!I$13="indirecte lozing",+$H$16*8760*3600*$H83/1000000*$BZ83*(BV$25-G83-BR83),+$H$16*8760*3600*$H83/1000000*$BZ83*(BV$25))),0) -> 0 | BX83: =IF(ISBLANK(A83)=FALSE,IF(ISBLANK($H83)=TRUE,0,+$H$16*8760*3600*$H83/1000000*$BZ83*10*AO83)*IF('beschrijving lozing'!I$13="indirecte lozing",(1-'resultaten immissietoets'!BT83),1),0) -> 0 | BZ83: 0 | CC83: 0 | CE83: 0 | CI83: 0 | CK83: 0 | CN83: 1
D84: =+D83 -> 0 | E84: 0 | M84: 0 | N84: 0 | P84: 0.1 | W84: 0 | AA84: FALSE | AC84: 0 | AE84: voldoet | AK84: VOLDOET NIET? | AL84: 0 | AM84: 0 | AN84: 0 | AO84: n.t.b. | AQ84: Raadpleeg RIVM (via BG) voor (noodzaak) afleiding i-MKN | AS84: 0 | AT84: 0 | AW84: 0 | AY84: 0 | AZ84: 0 | BD84: 0 | BE84: =IF(AND(ISBLANK(#REF!)=FALSE,ISBLANK(L84)=FALSE),IF(H$18="ja",1-IF(AND(H$18="ja",AC84>IF(ISBLANK(AD84)=TRUE,1,AD84)),1-+BG84,1),0),0) -> 0 | BG84: 0 | BH84: 0 | BK84: =IF(AND(ISBLANK(#REF!)=FALSE,ISBLANK(L84)=FALSE),1/(1+C84*Z$27/1000*0.000001)," ") ->  | BM84: 0 | BO84: nee | BQ84: =IF(AND(ISBLANK(A84)=FALSE,A84<>" "),IF('beschrijving lozing'!I$13="indirecte lozing",1/(1+'resultaten immissietoets'!C84*60*0.000001)*(1-G84),1)*+'resultaten immissietoets'!H84," ") ->  | BV84: =MAX(IF(ISBLANK($H84)=FALSE,IF('beschrijving lozing'!I$13="indirecte lozing",+$H$16*8760*3600*$H84/1000000*$BZ84*(BV$25-G84-BR84),+$H$16*8760*3600*$H84/1000000*$BZ84*(BV$25))),0) -> 0 | BX84: =IF(ISBLANK(A84)=FALSE,IF(ISBLANK($H84)=TRUE,0,+$H$16*8760*3600*$H84/1000000*$BZ84*10*AO84)*IF('beschrijving lozing'!I$13="indirecte lozing",(1-'resultaten immissietoets'!BT84),1),0) -> 0 | BZ84: 0 | CC84: 0 | CE84: 0 | CI84: 0 | CK84: 0 | CN84: 1
D85: =IF(ISBLANK(A85)=TRUE," ",IF($AH$25="nee",$M$40,(G85+H$34)/(H$33+H$34)*J$40)) ->  | E85: =IF(ISBLANK(A85)=TRUE," ",IF($AH$25="nee",$M$41,(G85+H$34)/(H$33+H$34)*J$41)) ->  | F85: =IF(ISBLANK(A85)=TRUE," ",IF(AF$25="ja",(H$34+G85)/H$34,(H$34+#REF!)/H$34)) ->  | H85: gemiddelde lozing | AK85: VOLDOET NIET? | AP85: =CONCATENATE(IF(X85>0.1,"sign.-toets; ",""),IF(AND(J85<N85,Z85>N85),"normtoets; ",""),IF(AND(J85>N85,AF85-J85>O85),"KRW-toets; ",""),IF(AND(J85<N85,AF85>N85),"KRW-toets; ",IF(AND(AC85>AD85,H$18="ja"),IF(ISBLANK(AD85)=FALSE,"drinkwatertoets",IF(AC85>1,"drinkwatertoets",""))))) -> ONWAAR | AS85: =IF(AND(ISBLANK(A85)=FALSE,ISBLANK(L85)=FALSE),IF(X85<0.1,0,IF(J85>=N85,IF(AF85-N85>R85,1-(J85+J$24*R85/H85),0),IF(X85>0.1,1-0.1/X85,0)))*(H85-J85)/H85,0) -> 0 | AT85: =IF(AND(ISBLANK(A85)=FALSE,ISBLANK(L85)=FALSE),IF(+J85>N85,+BC85,0)," ") ->  | AU85: =IF(AND(ISBLANK(C85)=FALSE,ISBLANK(L85)=FALSE),IF(AND(AF85>N85,+J85<N85),1-O85/(AF85-J85),0)*(H85-J85)/H85," ") ->  | AW85: =IF(AND(ISBLANK(A85)=FALSE,ISBLANK(L85)=FALSE),IF(+H$18="ja",IF(ISBLANK(AD85)=TRUE,IF(AC85>1,+BG85,0),IF(AND(AC85>AD85,H85>AB85),1-AB85/H85,0)),0),0) -> 0 | AY85: =IF(AND(ISBLANK(A85)=FALSE,ISBLANK(L85)=FALSE),IF(AND(Z85>N85,J85<N85),(+Z85-+N85)/N85,0)," ") ->  | AZ85: =IF(AND(ISBLANK(A85)=FALSE,ISBLANK(L85)=FALSE),IF(+Z85>N85,IF(J85>N85,1-(AF85-J85-O85)/(AF85-J85),(J85+(N85-J85)*J$22/BK85)/(H85)),0)," ") ->  | BA85: =IF(AND(ISBLANK(A85)=FALSE,ISBLANK(L85)=FALSE),IF(J85<N85,+AZ85*(H85),AZ85*(H85-J85)+J85)," ") ->  | BC85: =IF(AND(ISBLANK(A85)=FALSE,ISBLANK(L85)=FALSE),IF(AF85>N85,IF(AND(J85>N85,AF85-J85<=R85),0,1-BA85/+H85),0)," ") ->  | BD85: =IF(AND(ISBLANK(A85)=FALSE,ISBLANK(L85)=FALSE),IF(AND(BE85>1,ISBLANK(AD85)=TRUE,AO85=1),1,0)," ") ->  | BE85: =IF(AND(ISBLANK(A85)=FALSE,ISBLANK(L85)=FALSE),1-IF(AC85>IF(ISBLANK(AD85)=TRUE,1,AD85),(1-AB85)/(AC85-AB85),1)," ") ->  | BG85: =1-((1-BE85)*H85+BE85*J85)/H85 ->  | BH85: =IF(AND(ISBLANK(A85)=FALSE,ISBLANK(L85)=FALSE),IF(AD85>AC85,0,(AC85-IF(ISBLANK(AD85)=TRUE,1,AD85))/IF(ISBLANK(AD85)=TRUE,1,AD85)-1)," ") ->  | BK85: =IF(AND(ISBLANK(A85)=FALSE,ISBLANK(L85)=FALSE),1/(1+C85*Z$27*0.000001)," ") -> 
F86: =IF(ISBLANK(A86)=TRUE," ",IF(AF$25="ja",(H$34+G86)/H$34,(H$34+#REF!)/H$34)) ->  | M86: =IF(AG$8="ja",L86+I86,L86) -> 0 | N86: =+M86 -> 0 | O86: =IF(AND($D86<>"",ISBLANK(L86)<>TRUE),IF(ROUNDDOWN($N86,4)-ROUNDDOWN($N86,3)>0,0.0001,IF(ROUNDDOWN($N86,3)-ROUNDDOWN($N86,2)>0,0.001,IF(ROUNDDOWN($N86,2)-ROUNDDOWN($N86,1)>0,0.01,IF(ROUNDDOWN($N86,1)-ROUNDDOWN(L86,0)>0,0.1,1)))),"") ->  | V86: =IF(AND(+H86<>" ",ISBLANK(T86)<>TRUE),IF(+J86+(H86-J86)/E86*IF(+X$41="ja",1/(1+C86*(AG$30+W$46*D86/E86)*0.000001),1)>U86,"JA","NEE")," ") ->  | W86: =IF(+H86<>" ",IF(AND(+H86>0,L86>0),(H86-J86)/D86," ")," ")*IF(+X$41="ja",1/(1+C86*(AG$30+W$46)*0.000001),1) ->  | X86: =IF(AND(L86>0,H86>0),+W86/M86," ") ->  | Y86: =IF(+H86<>" ",IF(AND(+H86>0,L86>0),W86/L86," ")," ") ->  | Z86: =IF(H86<>" ",IF(AND(H86>0,L86>0),+J86+W86," ")," ") ->  | AA86: =IF(ISBLANK(A86)<>TRUE,IF(AND(H86>0,L86>0),IF(IF(H$35="nieuw",AND(Z86<N86,+X86<=0.1),X86<=0.1),"VOLDOET","VOLDOET NIET!")," ")," ") ->  | AC86: =IF(ISBLANK(A86)=FALSE,(H86-J86)/+H$38+J86," ") ->  | AF86: =IF(ISBLANK(A86)<>TRUE,IF(AND(H86>0,L86>0),(H86-J86)/F86," ")," ")*IF(X$41="ja",1/(1+C86*(AG$30+W$46)*0.000001),1)+J86 ->  | AG86: =IF(+ISBLANK($D86)<>TRUE,IF(AND(+$J86>0,$O86>0),IF(+AF86>M86,"JA","NEE")," ")," ") ->  | AH86: =IF(+ISBLANK($D86)<>TRUE,IF(AND(+$J86>0,$N86>0),IF(+AF86-J86>O86,"JA","NEE")," ")," ") ->  | AI86: =IF(ISBLANK(A86)<>TRUE,IF(AND(H86>0,M86>0),IF(AND(AG86="NEE",J86<M86),"VOLDOET",IF(AND(+J86>=M86,(AF86-J86)<=O86),"VOLDOET","VOLDOET NIET!"))," ")," ") ->  | AK86: VOLDOET NIET? | AS86: 0 | AW86: 0 | AZ86: =IF(AND(ISBLANK(A86)=FALSE,ISBLANK(L86)=FALSE),IF(+Z86>N86,IF(J86>N86,1-(AF86-J86-O86)/(AF86-J86),(J86+(N86-J86)*J$22/BK86)/(H86)),0)," ") ->  | BD86: =IF(AND(ISBLANK(A86)=FALSE,ISBLANK(L86)=FALSE),IF(AND(BE86>1,ISBLANK(AD86)=TRUE,AO86=1),1,0)," ") ->  | BE86: =IF(AND(ISBLANK(A86)=FALSE,ISBLANK(L86)=FALSE),1-IF(AC86>IF(ISBLANK(AD86)=TRUE,1,AD86),(1-AB86)/(AC86-AB86),1)," ") ->  | BG86: =1-((1-BE86)*H86+BE86*J86)/H86 -> 
F87: =IF(ISBLANK(A87)=TRUE," ",IF(AF$25="ja",(H$34+G87)/H$34,(H$34+#REF!)/H$34)) ->  | M87: 0 | N87: 0 | V87: =IF(AND(+H87<>" ",ISBLANK(T87)<>TRUE),IF(+J87+(H87-J87)/E87*IF(+X$41="ja",1/(1+C87*(AG$30+W$46*D87/E87)*0.000001),1)>U87,"JA","NEE")," ") ->  | W87: =IF(+H87<>" ",IF(AND(+H87>0,L87>0),(H87-J87)/D87," ")," ")*IF(+X$41="ja",1/(1+C87*(AG$30+W$46)*0.000001),1) ->  | AA87: =IF(ISBLANK(A87)<>TRUE,IF(AND(H87>0,L87>0),IF(IF(H$35="nieuw",AND(Z87<N87,+X87<=0.1),X87<=0.1),"VOLDOET","VOLDOET NIET!")," ")," ") ->  | AF87: =IF(ISBLANK(A87)<>TRUE,IF(AND(H87>0,L87>0),(H87-J87)/F87," ")," ")*IF(X$41="ja",1/(1+C87*(AG$30+W$46)*0.000001),1)+J87 ->  | AK87: VOLDOET NIET? | AS87: 0 | AW87: 0 | AZ87: =IF(AND(ISBLANK(A87)=FALSE,ISBLANK(L87)=FALSE),IF(+Z87>N87,IF(J87>N87,1-(AF87-J87-O87)/(AF87-J87),(J87+(N87-J87)*J$22/BK87)/(H87)),0)," ") ->  | BD87: =IF(AND(ISBLANK(A87)=FALSE,ISBLANK(L87)=FALSE),IF(AND(BE87>1,ISBLANK(AD87)=TRUE,AO87=1),1,0)," ") ->  | BE87: =IF(AND(ISBLANK(A87)=FALSE,ISBLANK(L87)=FALSE),1-IF(AC87>IF(ISBLANK(AD87)=TRUE,1,AD87),(1-AB87)/(AC87-AB87),1)," ") ->  | BG87: =1-((1-BE87)*H87+BE87*J87)/H87 -> 
F88: =IF(ISBLANK(A88)=TRUE," ",IF(AF$25="ja",(H$34+G88)/H$34,(H$34+#REF!)/H$34)) ->  | M88: 0 | N88: 0 | V88: =IF(AND(+H88<>" ",ISBLANK(T88)<>TRUE),IF(+J88+(H88-J88)/E88*IF(+X$41="ja",1/(1+C88*(AG$30+W$46*D88/E88)*0.000001),1)>U88,"JA","NEE")," ") ->  | W88: =IF(+H88<>" ",IF(AND(+H88>0,L88>0),(H88-J88)/D88," ")," ")*IF(+X$41="ja",1/(1+C88*(AG$30+W$46)*0.000001),1) ->  | AA88: =IF(ISBLANK(A88)<>TRUE,IF(AND(H88>0,L88>0),IF(IF(H$35="nieuw",AND(Z88<N88,+X88<=0.1),X88<=0.1),"VOLDOET","VOLDOET NIET!")," ")," ") ->  | AF88: =IF(ISBLANK(A88)<>TRUE,IF(AND(H88>0,L88>0),(H88-J88)/F88," ")," ")*IF(X$41="ja",1/(1+C88*(AG$30+W$46)*0.000001),1)+J88 ->  | AK88: VOLDOET NIET? | AS88: 0 | AW88: 0 | AZ88: =IF(AND(ISBLANK(A88)=FALSE,ISBLANK(L88)=FALSE),IF(+Z88>N88,IF(J88>N88,1-(AF88-J88-O88)/(AF88-J88),(J88+(N88-J88)*J$22/BK88)/(H88)),0)," ") ->  | BD88: =IF(AND(ISBLANK(A88)=FALSE,ISBLANK(L88)=FALSE),IF(AND(BE88>1,ISBLANK(AD88)=TRUE,AO88=1),1,0)," ") ->  | BE88: =IF(AND(ISBLANK(A88)=FALSE,ISBLANK(L88)=FALSE),1-IF(AC88>IF(ISBLANK(AD88)=TRUE,1,AD88),(1-AB88)/(AC88-AB88),1)," ") ->  | BG88: =1-((1-BE88)*H88+BE88*J88)/H88 -> 
F89: =IF(ISBLANK(A89)=TRUE," ",IF(AF$25="ja",(H$34+G89)/H$34,(H$34+#REF!)/H$34)) ->  | M89: 0 | N89: 0 | V89: =IF(AND(+H89<>" ",ISBLANK(T89)<>TRUE),IF(+J89+(H89-J89)/E89*IF(+X$41="ja",1/(1+C89*(AG$30+W$46*D89/E89)*0.000001),1)>U89,"JA","NEE")," ") ->  | W89: =IF(+H89<>" ",IF(AND(+H89>0,L89>0),(H89-J89)/D89," ")," ")*IF(+X$41="ja",1/(1+C89*(AG$30+W$46)*0.000001),1) ->  | AA89: =IF(ISBLANK(A89)<>TRUE,IF(AND(H89>0,L89>0),IF(IF(H$35="nieuw",AND(Z89<N89,+X89<=0.1),X89<=0.1),"VOLDOET","VOLDOET NIET!")," ")," ") ->  | AF89: =IF(ISBLANK(A89)<>TRUE,IF(AND(H89>0,L89>0),(H89-J89)/F89," ")," ")*IF(X$41="ja",1/(1+C89*(AG$30+W$46)*0.000001),1)+J89 ->  | AK89: VOLDOET NIET? | AS89: 0 | AW89: 0 | AZ89: =IF(AND(ISBLANK(A89)=FALSE,ISBLANK(L89)=FALSE),IF(+Z89>N89,IF(J89>N89,1-(AF89-J89-O89)/(AF89-J89),(J89+(N89-J89)*J$22/BK89)/(H89)),0)," ") ->  | BD89: =IF(AND(ISBLANK(A89)=FALSE,ISBLANK(L89)=FALSE),IF(AND(BE89>1,ISBLANK(AD89)=TRUE,AO89=1),1,0)," ") ->  | BE89: =IF(AND(ISBLANK(A89)=FALSE,ISBLANK(L89)=FALSE),1-IF(AC89>IF(ISBLANK(AD89)=TRUE,1,AD89),(1-AB89)/(AC89-AB89),1)," ") ->  | BG89: =1-((1-BE89)*H89+BE89*J89)/H89 -> 
F90: =IF(ISBLANK(A90)=TRUE," ",IF(AF$25="ja",(H$34+G90)/H$34,(H$34+#REF!)/H$34)) ->  | M90: 0 | N90: 0 | V90: =IF(AND(+H90<>" ",ISBLANK(T90)<>TRUE),IF(+J90+(H90-J90)/E90*IF(+X$41="ja",1/(1+C90*(AG$30+W$46*D90/E90)*0.000001),1)>U90,"JA","NEE")," ") ->  | W90: =IF(+H90<>" ",IF(AND(+H90>0,L90>0),(H90-J90)/D90," ")," ")*IF(+X$41="ja",1/(1+C90*(AG$30+W$46)*0.000001),1) ->  | AA90: =IF(ISBLANK(A90)<>TRUE,IF(AND(H90>0,L90>0),IF(IF(H$35="nieuw",AND(Z90<N90,+X90<=0.1),X90<=0.1),"VOLDOET","VOLDOET NIET!")," ")," ") ->  | AF90: =IF(ISBLANK(A90)<>TRUE,IF(AND(H90>0,L90>0),(H90-J90)/F90," ")," ")*IF(X$41="ja",1/(1+C90*(AG$30+W$46)*0.000001),1)+J90 ->  | AK90: VOLDOET NIET? | AS90: 0 | AW90: 0
AS91: =IF(AND(ISBLANK(A91)=FALSE,ISBLANK(L91)=FALSE),IF(X91<0.1,0,IF(J91>=N91,IF(AF91-N91>R91,1-(J91+J$24*R91/H91),0),IF(X91>0.1,1-0.1/X91,0)))*(H91-J91)/H91,0) -> 0 | AW91: =IF(AND(ISBLANK(A91)=FALSE,ISBLANK(L91)=FALSE),IF(+H$18="ja",IF(ISBLANK(AD91)=TRUE,IF(AC91>1,+BG91,0),IF(AND(AC91>AD91,H91>AB91),1-AB91/H91,0)),0),0) -> 0
A92: *) meetnauwkeurigheid is waarde van de laatste decimaal waarin de norm in uitgedrukt. Bijvoorbeeld als de norm een waarde heeft van 0.01 ug/l dan is de meetnauwkeurigheid 0.01. Als de norm een waarde heeft van 0.7 dan is de meetnauwkeurigheid 0.1. | AO92: =COUNTIF(AO28:AO84,">0") -> 0
A94: **) norm gebruik bij normtoets en beoordeling geen achteruitgang
A95: ***) bij biologie ondersteunende stiffen zoals N-tot, P-totaal, Temperatuur etc. gelden meerdere kwaliteitsklassen: slecht; ontoereikend, matig en goed. Bij beoordeling van een bestaande activiteit wordt de bovengrens van de huidige klassegrens als norm aangehouden.
A96: Bij nieuwe activiteiten de waarde die hoort bij het GEP.

Sheet beoordeling maatregel
B2: BEOORDELING KOSTENEFFECTIVITEIT VAN MAATREGELEN BIJ LOZING VAN ÉÉN OF MEERDERE STOFFEN
B5: Lozing: bestaand of nieuw? | N5: =IF(ISBLANK('beschrijving lozing'!I4)=FALSE,+'beschrijving lozing'!I4," ") ->  | S5: ja | AH5: bestaand
S6: nee | AA6: =IF('beschrijving lozing'!I19="nee","BBT",IF('resultaten immissietoets'!AO21>0,"BBT+"," ")) ->  | AH6: nieuw
B7: Is BBT voor de activiteit vastgelegd in een BREF-document? | N7: =IF(ISBLANK(+'beschrijving lozing'!I16)=TRUE," ",+'beschrijving lozing'!I16) ->  | S7: =IF(AND(N7="ja",N5="nieuw"),"Wordt voldaan aan BBT?"," ") ->  | AA7: =IF(ISBLANK('beschrijving lozing'!I19)=FALSE,IF(+'beschrijving lozing'!I4="nieuw",+'beschrijving lozing'!I19,"ja"),"onbekend") -> onbekend
B9: =CONCATENATE("Voldoet de ",IF(N5="bestaand","huidige ","voorgenomen "),"lozing aan immissietoets?") -> Voldoet de voorgenomen lozing aan immissietoets? | N9: =IF(ISBLANK('resultaten immissietoets'!A28)=TRUE," ",IF('resultaten immissietoets'!AO21>0,"nee","ja")) ->  | S9: =IF(ISBLANK($N9)=TRUE," ",IF($N9="nee",IF(OR(ISBLANK($N22)=TRUE,$N22="nee"),"aanvullende maatregelen zijn noodzakelijk!"," "),IF('beschrijving lozing'!$I16="nee","Ga na of genomen maatregelen qua kosten overeenkomen met de in rede te verlangen BBT-inspanning (KE)","Aanvullende maatregelen zijn op grond van immissietoets NIET noodzakelijk "))) -> Aanvullende maatregelen zijn op grond van immissietoets NIET noodzakelijk | Z9: =IF(N5<>" ",IF(AND(N7="ja",AA7="nee"),IF(N9="ja","verken BBT-maatregelen voor de lozing o.b.v. KE met onderstaande methodiek",IF(ISBLANK(N22)=FALSE,"Verken BBT+-maatregelen voor de lozing o.b.v. KE met onderstaande methodiek","Verken BBT-maatrgelen voor de lozing o.b.v. KE met onderstaande methodiek")),IF(ISBLANK(N9)=TRUE," ",IF(AND(N$5="bestaand",N$7="ja")," ",IF(+N$5="bestaand",IF(N9="ja","Verken BBT-maatregelen voor de lozing o.b.v. KE met onderstaande methodiek",IF(ISBLANK(N22)=FALSE,"Verken BBT+-maatregelen voor de lozing o.b.v. KE met onderstaande methodiek","Verken BBT-maatregelen voor de lozing o.b.v. KE met onderstaande methodiek")),IF(N5="nieuw",IF(AND(N7="nee",N9="ja"),"Verken BBT-maatregelen voor de lozing o.b.v. KE met onderstaande methodiek",IF(AND(N7="ja",N9="ja"),"maatregelen moeten voldoen aan BBT conform BREF",IF(N9="nee","Verken BBT+-maatregelen voor de lozing o.b.v. KE met onderstaande methodiek"," "))))))))," ") -> 
B14: =CONCATENATE("BEOORDELING ",IF(N9="nee","BBT+",+AA6)," MAATREGELEN") -> BEOORDELING MAATREGELEN
B17: =IF(N9=" "," ",IF(AND(N7="ja",AA7="ja",N9="ja"),IF('beschrijving lozing'!I19="nee","maatregel",IF(AND(AA7="ja",N7="ja",N9="ja",N27>0),"maatregel nodig","maatregel niet nodig")),IF(AND(N7="ja",AA7="ja",N9="nee"),"aanvullende BBT+-maatregel",IF(AND(N7="ja",AA7="nee",N9="ja"),"aanvullende BBT-maatregel",IF(AND(N7="ja",AA7="nee",N9="nee"),"aanvullende BBT/BBT+-maatregel",IF(AND(N7="nee",N9="ja"),"Voorgenomen maatregel",IF(AND(N7="nee",N9="nee"),"aanvullende BBT+-maatregel",IF(N9="nee","aanvullende BBT+-maatregel ","aanvullende BBT-maatregel ")))))))) ->  | M17: verdunningsfactoren: | U17: Totale jaarlijkse kosten maatregel [€/j] | Z17: =CONCATENATE(IF(B17="maatregel niet nodig","Maatregel is niet nodig!",CONCATENATE(IF(AND(AF18>=1,AE25>=U18),CONCATENATE(IF(AND(N25="ja",AE25>U18),"Totale kosten van maatregel < maximaal toelaatbare kosten; ","KE-stof < KE-max-stof; "),IF(N5="nieuw",IF(U18>0.75*AE25," en komen overeen met gangbare kosten voor"," voor")," "),IF(N5="nieuw",IF(+N9="nee"," BBT+-maatregelen"," BBT-maatregelen")," "),IF(AND(AF20>=1,+N22="nee"),CONCATENATE(" maar, ",+B17," voldoet nog niet aan immissietoets ")," ")),CONCATENATE("Voorgestelde ",+B17,IF(AE25<U18,IF(AA24="nee"," is niet- kosteneffectief"," : totale kosten zijn groter dan in rede te verlangen kosten!"),CONCATENATE("kosten zijn lager dan in rede te verlangen kosten ")))),IF(AND(N22="ja",AF18>1,S27="ja"),", maar verken verdergaande maatregelen om invulling te geven aan minimalisatieverplichting voor ZZS-stof(fen) in lozing!"," "))),IF(OR(AND(N5="nieuw",BC28=0,BD29=BC28),AND(AH24="nee",N5="bestaand",OR(BC28=0,BC28<>BD28))),IF(N5="nieuw",IF(+N$22="ja"," ","..........MAAR kosten spelen in beginsel in deze situatie GÉÉN ROL bij de beoordeling van maatregelen")," ")," ")) -> KE-stof < KE-max-stof; | AG17: =IF(N9="nee",CONCATENATE(IF(N22="ja","Er wordt voldaan immissietoets: ","Er wordt niet voldaan aan immissietoets; "),IF(Y28>=1,IF(N5="nieuw",IF(N22="ja",CONCATENATE(IF(AND('beschrijving lozing'!I7="algemene regels",V$28=1),"Neem aanvullende maatregelen om te voldoen aan algemene regels",IF('beschrijving lozing'!I7="algemene regels","Kosten mogen worden betrokken bij de beoordeling van de redelijkheid van maatregelen",IF(N22="ja",IF(T28>=1,"Ga na of verdere minimalisatie van de emissie van ZZS stof(en) mogelijk is binnen de in rede te verlangen kosten ",+AI17),"voor de voorgestelde BBT+-maatregelen spelen kosten in deze situatie in beginsel geen rol !")))),CONCATENATE(IF(BC28=1,IF(U18>AE25,"Alleen de siginificantie-toets wordt overschreden: Ga in overleg met BG of kosten mogen worden betrokken bij de beoordeling van de redelijkheid van maatregelen",IF(N$22="nee",IF(T28>=1,"Neem verdergaande maatregelen om te voldoen aan minimalistatieverplichting voor ZZS","Neem verdergaande maatregelen ")," ")),"Kosten voor BBT+-maatregelen spelen in deze situatie in beginsel geen rol !"),IF(AND(N22="nee",BC28<>1),": NEEM VERDERGAANDE AANVULLENDE MAATREGELEN!"," "))),IF(U18>AE25,IF(AH24="ja",CONCATENATE(IF(BC28=1,"Alleen de significantietoets wordt overschreden: "," "),IF(N22="nee",CONCATENATE(IF(AH24="ja","Aanscherping norm: "," "),"Redelijkheid van kosten kan worden betrokken bij de beoordeling van maatregelen"),"optimaliseer naar kosten: zijn maatregelen beschikbaar tegen lagere kosten die toch voldoen aan immisssietoets?")),IF(AND(AE25<U18,Z28=1,N22="ja"),"optimaliseer naar kosten: zijn maatregelen beschikbaar tegen lagere kosten die toch voldoen aan immisssietoets?",IF(AND(BC28<>BD28,N$22="nee")," neem VERDERGAANDE aanvullende maatregelen ",IF(AND(AA6<>"BBT",BC$28=BD$28,BC$28>0),"Alleen de significantietoets wordt overschreden; Redelijkheid van kosten kan worden betrokken bij de beoordeling van maatregelen",IF(AH28>0,"Neem VERDERGAANDE aanvullende maatregelen"," "))))),IF(N$22="nee","Verken verdergaande BBT+-maatregelen!"," "))),IF(IF(N5="nieuw",BC28>=1,U18>AE25),IF(OR(AH24="ja",BH29=0),IF(AE$25>$U18,"Aanscherping van norm: Redelijkheid van kosten kan worden betrokken bij de beoordeling van maatregelen","Neem VERDERGAANDE aanvullende maatregelen"),IF(N$22="nee","Neem VERDERGAANDE aanvullende maatregelen",IF(AE25>U18,"Redelijkheid van kosten kan worden betrokken bij de beoordeling van maatregelen"," "))),IF(+N5="nieuw",CONCATENATE("Het betreft een nieuwe lozing waarbij kosten voor BBT+-maatregelen in deze situatie in beginsel geen rol spelen !",IF(N22="nee"," Neem VERDERGAANDE aanvullende maatregelen!"," ")),IF(N$22="nee","Neem VERDERGAANDE aanvullende maatregelen!"," "))))),IF(OR(N7="nee",AA7="nee"),IF(U18<=AE25,"BBT-maatregel is kosteneffectief","BBT-maatregel is niet kosteneffectief")," ")) ->  | AI17: =IF(N22="ja",IF(U18<AE25,IF(S25>=1,"Verken verdergaande maatregelen om aan minimalisatieverplichting te voldoen"," "),"Verken of tegen lagere kosten ook kan worden voldaan aan immissietoets"),"Neem verdergaande maatregelen") -> Verken of tegen lagere kosten ook kan worden voldaan aan immissietoets
AF18: =COUNTIF(AF30:AF50,"ja") -> 1 | AI18: =IF(U18<=AE25,"; de maatregel is kosteneffectief!",IF(+N5="bestaand","; de maatregel is niet kosteneffectief"," ")) -> ; de maatregel is kosteneffectief!
B19: Lozingsdebiet [m3/s] | D19: Q-afvoer [m3/s] | L19: F25 | M19: FL | N19: Fmon | Q19: Fdrinkwater
B20: =IF(ISBLANK(+'resultaten immissietoets'!H16)=TRUE," ",+'resultaten immissietoets'!H16*IF('beschrijving lozing'!I$13="indirecte lozing",'resultaten immissietoets'!L$18,1)) ->  | L20: =IF(ISBLANK(+'resultaten immissietoets'!J23)=FALSE,+'resultaten immissietoets'!J23," ") ->  | M20: =IF(ISBLANK(+'resultaten immissietoets'!J22)=FALSE,+'resultaten immissietoets'!J22," ") ->  | N20: =+'resultaten immissietoets'!J24 ->  | Q20: =IF(ISBLANK(+'resultaten immissietoets'!H20)=FALSE,+'resultaten immissietoets'!H20," ") ->  | AF20: =COUNTIF(O30:O49,"ja") -> 20
B22: Voldoet de lozing na maatregelen aan immissietoets? | N22: =IF(ISBLANK(B30)=FALSE,IF(ISNA(AB28)=TRUE,"ja","nee")," ") -> ja | U22: =+'resultaten immissietoets'!AG4 -> nee
B24: =IF(N9="nee","Omschrijving lozing:",IF(N7="nee","Beoordeel genomen maatregelen o.b.v. KE in onderstaande tabel"," ")) ->  | U24: =IF($U22="ja","Geef zwevend stof gehalte van oppervlaktewater [mg/l"," ") ->  | AA24: % stroom behandeld | AC24: verwijderde vracht [kg/j] | AE24: toelaatbare kosten [€/j] | AG24: =IF(AND(N5="bestaand",U18>AE25),IF(N27=1,"Is er sprake van aanscherping van de norm?",IF(N27>1,"Is de maatregel nodig door aanscherping van een van de waterkwaliteitsnormen?"," "))," ") ->  | BA24: drinkwater-innamepunt beneden-strooms?
B25: =IF(OR(N9="nee",N9=" "),"Is sprake van lozing van meerdere stoffen die niet voldoen aan immissietoets?",IF(AND(+AA7="ja",N7="ja",N9="ja"),"Worden ZZS geloosd? ","Is sprake van lozing van meerdere stoffen?")) -> Is sprake van lozing van meerdere stoffen die niet voldoen aan immissietoets? | S25: =COUNTIF(S30:S70,"ja") -> 0 | U25: =+'resultaten immissietoets'!Z$27 ->  | AC25: =IF(ISBLANK(B30)=TRUE," ",+AC74) -> 0 | AE25: =IF(ISBLANK(B30)=TRUE," ",+BY74) -> 0 | AG25: =IF(AE25<U18,"Totale jaarlijkse kosten vallen hoger uit dan maximaal 'in rede te verlangen kosten' gebaseerd op waterbezwaarlijkheid van de lozing!"," ") ->  | AH25: ja | AI25: in rede te verlangen' kosten BBT+ voor alle stoffen [€/j] | AJ25: in rede te verlangen' kosten BBT+ voor ZZS [€/j] | AK25: in rede te verlangen' kosten BBT+ voor PFAS [€/j] | AV25: =SUM(AV30:AV71) -> 13 | BA25: =+'resultaten immissietoets'!H18 -> 0
N26: =+O26 -> 1 | O26: =IF(N25="ja",N27,1) -> 1 | AG26: nee | AH26: nee | BA26: =IF(G$18="ja",H30+((1-AA30/100)*Y30-H30)/Q20,1) -> 1
B27: =IF(AND(N$9="nee",N$25="ja"),"Hoeveel stoffen van de lozing voldoen NIET aan immissietoets?",IF(OR(N7="nee",'beschrijving lozing'!I16="nee"),IF(AND(N9<>" ",N9<>"nee"),"Hoeveel stoffen worden geloosd?"," ")," ")) ->  | Q27: =IF(AV$25>0,"Vul CAS-nr. in !"," ") -> Vul CAS-nr. in ! | S27: =IF(S25>0,VLOOKUP("ja",S30:S50,1,FALSE),0) -> 0 | AC27: kostentoe-deling o.b.v. vracht | AE27: nee | AG27: =CONCATENATE(IF(AA6="BBT",IF(OR(AND('beschrijving lozing'!I7="algemene regels",'beschrijving lozing'!I19="nee"),AND('beschrijving lozing'!I7="vergunning",'beschrijving lozing'!I19="nee")),IF('beoordeling maatregel'!N22="nee","Verken verdergaande BBT+-maatregelen, inclusief 'in rede te verlangen' kosten voor BBT+;"," "))," "),IF(U18>AE25,IF(AK27=0,"Maar maatregel is wel kosteneffectief voor verwijdering van individuele stoffen: optimaliseer naar schaal en kosten of type maatregel!","maatregel is niet kosteneffectief voor de verwijdering van individuele stoffen"),IF(AK27=1,"maatregel is niet kosteneffectief voor de verwijdering van individuele componenten"," "))) ->  | AH27: nee | AI27: =+BY74 -> 0 | AJ27: =+BZ74 -> 0 | AK27: =+CA74 -> 0 | AZ27: =IF(G$18="ja",((1-AA31/100)*Y31-D31)/'resultaten immissietoets'!J$24*IF(U$22="ja",1/(1+U$25*0.000001*10^G31),1),1) -> 1 | BA27: =IF(G$18="ja",H31+((1-AA31/100)*Y31-D31)/Q$20*IF(U$22="ja",1/(1+U$25*0.000001*10^G31),1),1) -> 1 | BH27: =IF(BH29>0,CONCATENATE("",VLOOKUP(1,BH30:BI31,2,FALSE),"; ",IF(BH29>1,VLOOKUP(2,BG30:BI31,3,FALSE)," "),IF(BH29>2,VLOOKUP(3,BG30:BI32,3,FALSE)," "))," ") -> 
B28: =IF(OR(N$26>0,N25="ja"),CONCATENATE(IF(N25="nee","Naam van stoffen die NIET voldoet aan immissietoets ","Namen van stoffen die NIET voldoen aan immissietoets"),IF('beschrijving lozing'!I$7="algemene regels","of waarvan de lozing niet voldoet aan algemene regels"," "))," ") -> Namen van stoffen die NIET voldoen aan immissietoets | C28: ∆CL/ MKE [%] | D28: Ca [ug/l] | E28: CL [ug/l] | F28: Cmon [ug/l] | G28: =IF(U22="ja","log Kd"," ") ->  | H28: Ca inname-punt [ug/l] | I28: meet-nauw-keurig-heid | J28: drink-water-norm [ug/l] | L28: te verwij-deren vracht om aan immissie-toets te voldoen [kg/jr] | M28: =IF(VLOOKUP("nee",M30:M50,1,FALSE)="nee",1,0) ->  | N28: =IF(N9="ja"," ",CONCATENATE("Benodigde reductie [%] om aan immissie-toets ",IF('beschrijving lozing'!I7="algemene regels","of algemene regels"," ")," te voldoen")) -> Benodigde reductie [%] om aan immissie-toets te voldoen | P28: =IF(OR(AND(N7="nee",N9="ja"),'beschrijving lozing'!I19="nee",AND(AA7="ja",N7="ja",N9="ja")),"Verwijde-ringsrende-ment per stof van genomen maatregel(en) [%]"," ") ->  | Q28: Voer Cas-nummer van de stof of aanduiding "ZZS" in, indien het zeker een ZZS betreft! | R28: =IF(ISNA(VLOOKUP("ja",R30:R50,1,FALSE)=FALSE),1,0) -> 1 | S28: Gaat het om een ZZS stof? | T28: =SUM(T30:T71) -> 0 | U28: =IF(N26>0,CONCATENATE("Geef maximale kosten (KE) per stof voor",IF(+N9="ja"," BBT "," BBT+ ")," [euro/kg-verw]")," ") -> Geef maximale kosten (KE) per stof voor BBT+ [euro/kg-verw] | V28: =IF(ISNA(VLOOKUP("nee",V30:V70,1,FALSE))=FALSE,1,0) -> 1 | W28: =IF(N26>0,"MKE [ug/l]"," ") -> MKE [ug/l] | Y28: =IF(N26>0,"Influent-concen-tratie voor maat-regel [ug/l]"," ") -> Influent-concen-tratie voor maat-regel [ug/l] | Z28: =IF(ISNA(VLOOKUP(1,Z30:Z70,1,FALSE))=FALSE,VLOOKUP(1,Z30:Z70,1,FALSE),0) -> 0 | AA28: =IF(N26>0,CONCATENATE("Geef ver-wijde-rings-rende-ment van beoogde maatregel [%]",IF(AA25<1," voor deelstroom"," "))," ") -> Geef ver-wijde-rings-rende-ment van beoogde maatregel [%] voor deelstroom | AB28: =VLOOKUP("nee",AB30:AB70,1,FALSE) ->  | AC28: =IF(N26>0,"verwij-derde vracht [kg/j]"," ") -> verwij-derde vracht [kg/j] | AE28: =IF(N26>1,"KE-stof bij verwijdering meerdere stoffen","KE-stof bij verwijdering van een enkele stof ") -> KE-stof bij verwijdering van een enkele stof | AH28: =SUM(AH30:AH70) -> 0 | AK28: maatregel | AL28: noodzakelijke aanvullende reductie [%] na maatregel | AU28: pot ZZS checker | AV28: check niet ingevul-de velden | AW28: =COUNTIF(AW30:AW70,"1") -> 0 | AX28: Resultaten immissietoets na maatregel BEPERKINGEN? | BC28: =COUNTIF(BC30:BC70,"ja") -> 0 | BD28: =COUNTIF(BD30:BD70,"1") -> 0 | BH28: KE>KE-max en sign.toets niet alleen oorzaak | BK28: nodige rendement o.b.v. immissie-toets | BY28: in rede te verlangen' kosten BBT+ per stof [€/j] | BZ28: in rede te verlangen' kosten BBT + voor ZZS [€/j] | CA28: in rede te verlangen' kosten BBT + voor PFAS [€/j]
AK29: kosteneffectief? | AM29: correctiefactor ads | AO29: kosten-X | AP29: KE | AQ29: conc/norm | AR29: tot kosten | AT29: tot kosten-2 | AX29: singn. | AY29: CL | AZ29: KRW | BA29: drinkwater | BC29: significantietoets alleen oorzaak? | BF29: toets moet voldoen | BG29: nr | BH29: =COUNTIF(BH30:BH70,"1") -> 0 | BI29: stof | BK29: =IF(ISNA(VLOOKUP(B29,'resultaten immissietoets'!A$28:AO$84,39,FALSE))=FALSE,VLOOKUP(B29,'resultaten immissietoets'!A$28:AO$84,39,FALSE),0) -> 0
A30: 1 | B30: =IF(A30<=N$27,VLOOKUP(1,'resultaten immissietoets'!AM$28:AN$84,2,FALSE)," ") ->  | C30: =VLOOKUP(+$B30,'resultaten immissietoets'!$A$27:$AA$84,24,FALSE) ->  | D30: =IF(ISBLANK($B30)=FALSE,VLOOKUP(+$B30,'resultaten immissietoets'!$A$27:$AA$84,10,FALSE)," ") ->  | E30: =VLOOKUP(+$B30,'resultaten immissietoets'!$A$27:$AA$84,26,FALSE) ->  | F30: =IF(ISBLANK($B30)=FALSE,VLOOKUP(+$B30,'resultaten immissietoets'!$A$27:$AI$84,35,FALSE)," ") ->  | G30: =LOG(IF(ISNUMBER(VLOOKUP(+$B30,'resultaten immissietoets'!$A$27:$AE$84,2,FALSE))=TRUE,VLOOKUP(+$B30,'resultaten immissietoets'!$A$27:$AE$84,2,FALSE),1)) -> 0 | H30: =IF(ISBLANK(B30)=FALSE,VLOOKUP(+$B30,'resultaten immissietoets'!$A$27:$AE$84,31,FALSE)," ") ->  | I30: =VLOOKUP(+$B30,'resultaten immissietoets'!$A$27:$AE$84,15,FALSE) ->  | J30: =IF(ISBLANK($B30)=FALSE,IF(K30>0,K30," ")," ") ->  | K30: =IF(ISBLANK($B30)=FALSE,VLOOKUP(+$B30,'resultaten immissietoets'!$A$27:$AI$84,30,FALSE)," ") ->  | L30: =IF(AND(ISBLANK(B30)=FALSE,B30<>" "),N30*Y30*'resultaten immissietoets'!H$16*8760*3600/1000000,0) -> 0 | M30: =IF(((1-AA30*AA$25)*Y30-D30)/+M$20/W30*+AM30<=0.1,"ja","nee") ->  | N30: =IF(B30<>" ",IF(N$9="nee",IF(ISBLANK($B30)=FALSE,IF(AND('beschrijving lozing'!I$7="algemene regels",+'beschrijving lozing'!I$19="nee",ISNA(VLOOKUP(+$B30,'beschrijving lozing'!B$27:Q$78,15,FALSE))=FALSE),MAX(VLOOKUP(+B30,'beschrijving lozing'!B$27:Q$78,15,FALSE),VLOOKUP(+$B30,'resultaten immissietoets'!$A$27:$AO$84,41,FALSE)),VLOOKUP(+$B30,'resultaten immissietoets'!$A$27:$AO$84,41,FALSE))," "),+P30)," ") ->  | O30: =IF(AA30/100<N30,"ja","nee") -> ja | R30: =IF(AE30>U30,IF(M30="ja","ja","nee"),"nee") -> nee | S30: =IF(Q30="ZZS","ja",IF('ZZS-checker'!B30=1,"ja","nee")) -> nee | T30: =IF(AND(S30="ja",AA30<N30),1,0) -> 0 | U30: =IF(AND(ISBLANK(B30)=FALSE,B30<>" "),IF(OR(B30="Zink",B30="Zn",B30="Nikkel",B30="Ni",B30="Koper",B30="Cu"),450,IF(OR(B30="P-tot",B30="Tot-P",B30="totaal-P",B30="P-totaal"),20,IF(OR(B30="N-tot",B30="tot-N",B30="totaal-N",B30="N-totaal",B30="totaal-stikstof",B30="stikstof-totaal"),6,IF(1/W30<0.01,200000*(1/W30)^1.15,660*LN(1/W30)+3950))))*IF(N$9="nee",10,1),0) -> 0 | V30: =IF(ISBLANK($B30)=FALSE,IF($AA30/100>=N30,"ja","nee")," ") -> nee | W30: =IF(ISBLANK($B30)=FALSE,IF(ISNA(VLOOKUP(+$B30,'resultaten immissietoets'!$A$27:$AO$84,14,FALSE))=FALSE,VLOOKUP(+$B30,'resultaten immissietoets'!$A$27:$AO$84,14,FALSE)," ")," ") ->  | X30: 0.01 | Y30: =IF(AND(ISBLANK($B30)=FALSE,$B30<>" "),VLOOKUP(+$B30,'resultaten immissietoets'!$A$27:$BU$84,73,FALSE)," ") ->  | Z30: =IF(AND(AA30>N30,AE30>U30),1,0) -> 0 | AB30: =IF(ISBLANK($B30)=FALSE,IF($AA30>=$BK30,"ja","nee")," ") -> ja | AC30: =IF(B30<>" ",IF(ISBLANK($B30)=FALSE,IF(AND(N$5="nieuw",N$7="nee",N$9="ja"),P30,AA30*AA$25)*Y30/1000000*B$20*8760*3600,0)," ") ->  | AD30: =IF(AND(ISBLANK(B30)=FALSE,B30<>" "),IF(AE$27="nee",IF(AC30>0,AC30*U30,0),AC30/W30),0) -> 0 | AE30: =IF(AND(ISBLANK(B30)=FALSE,B30<>" "),IF(ISBLANK(N$25)=FALSE,IF(AE$27="ja",+AD30/AD$71*U$18/AC30,U$18*AD30/AD$71/AC30)," "),0) -> 0 | AF30: =IF(AND(AE30<=U30,A30<=N$26),"ja","nee") -> ja | AG30: =IF(ISBLANK(B30)=FALSE,IF(S30="ja",CONCATENATE(IF(AND(N$22="nee",AA30*AA$25<BK30),"Er wordt NIET voldaan aan immissietoets-; "," "),IF(U$18<AE$25,"Het gaat om een ZZS-stof, verken verdergaande maatregelen om invulling te geven aan minimalisatieverplichting!"," ")),CONCATENATE(IF(AU30="ja","het gaat om een potentiële ZZS-stof; "," "),IF(AND(N$22="nee",AA30*AA$25<BK30),"Er wordt NIET voldaan aan immissietoets; "," "),IF(AND(S30="nee",N$22="ja")," ",IF(N$22="ja",IF(AW30=0," ","verken verdergaande maatregelen om lozing te beperken")," "))))," ") ->  | AH30: =IF(OR(AX30="ja",AY30="ja",AZ30="ja",BA30="ja"),1,0) -> 0 | AI30: =IF(AA30*AA$25<BK30,IF(AND(ISBLANK(B30)=FALSE,B30<>" "),IF(BC30="ja","alleen sign-toets voldoet niet",CONCATENATE(IF(AX30="ja","sign-toets; "," "),IF(AY30="ja","normtoets; "," "),IF(AZ30="ja","KRW-toets; "," "),IF(BA30="ja","drinkwatertoets"," "),IF(AND(AX30="nee",AY30="nee",AZ30="nee",BA30="nee")," ",IF(BD30>1," voldoen niet"," voldoet niet"))))," ")," ") ->  | AK30: =IF(AND(ISBLANK(B30)=FALSE,B30<>" "),IF(AE30<U30,"ja","nee")," ") ->  | AL30: =IF(B30<> " ",IF(AA30*AA$25>=N30,0,(N30-AA$25*AA30))," ") ->  | AM30: =IF(AND(ISBLANK(B30)=FALSE,B30<>" "),VLOOKUP(+$B30,'resultaten immissietoets'!$A$27:$BK$84,63,FALSE)," ") ->  | AO30: =IF(ISBLANK(B30)=FALSE,AC30/W30/(AC30/W30+IF(+N27>1,AC31/W31,0))*U$18," ") ->  | AP30: =AO30/AC30 ->  | AQ30: =IF(OR(N$27>=1,N25="nee"),AC30/W30,0) -> 0 | AR30: =AC30*AE30+AC31*AE31 ->  | AT30: =AP30*AC30+AP31*AC31 ->  | AU30: =IF('pot-ZZS-checker'!B15>0,"ja","nee") -> nee | AV30: =IF(AND(ISBLANK(B30)=FALSE,ISBLANK(Q30)=TRUE),1,0) -> 1 | AW30: =IF(OR(AX30="ja",AY30="ja",AZ30="ja",BA30="ja"),1,0) -> 0 | AX30: =IF(AND(ISBLANK(B30)=FALSE,B30<>" "),IF(+M30="ja","nee","ja")," ") ->  | AY30: =IF(AND(ISBLANK(B30)=FALSE,B30<>" "),IF(D30<W30,IF(+D30+IF(U$22="ja",1/(1+U$25*0.000001*10^G30),1)*((1-AA30*AA$25)*Y30-D30)/+M$20<=W30,"nee","ja"),"nee")," ") ->  | AZ30: =IF(AND(ISBLANK(B30)=FALSE,B30<>" "),IF(D30<W30,IF(D30+((1-AA30/100)*Y30-D30)/'resultaten immissietoets'!J$24*IF(U$22="ja",1/(1+U$25*0.000001*10^G30),1)<W30,"nee","ja"),IF(((1-AA30)*Y30-D30)/'resultaten immissietoets'!J$24*IF(U$22="ja",1/(1+U$25*0.000001*10^G30),1)<=I30,"nee","ja"))," ") ->  | BA30: =IF(ISBLANK(B30)=FALSE,IF(BA$25="ja",IF(J30=" ",IF(D30+((1-AA30/100)*Y30-D30)/Q$20*IF(U$22="ja",1/(1+U$25*0.000001*10^G30),1)<=1,"nee","ja"),IF(D30+((1-AA30/100)*Y30-D30)/Q$20*IF(U$22="ja",1/(1+U$25*0.000001*10^G30),1)<='resultaten immissietoets'!AD28,"nee","ja")),"nee")," ") -> nee | BC30: =IF(ISBLANK(B30)=FALSE,IF(AND(AX30="ja",AY30="nee",AZ30="nee",BA30="nee"),"ja","nee")," ") -> nee | BD30: =COUNTIF(AX30:BA30,"ja") -> 0 | BF30: =IF(AND(+BD30=AW30,BD30=0),0,1) -> 0 | BG30: =IF(+BH30=1,1,0) -> 0 | BH30: =IF(+AE$25<U$18,IF(AND(BC30="nee",BD30=1),1,0),IF(BC30="ja",1,0)) -> 0 | BI30: =+B30 ->  | BK30: =IF(ISNA(VLOOKUP(B30,'resultaten immissietoets'!A$28:AO$84,41,FALSE))=FALSE,VLOOKUP(B30,'resultaten immissietoets'!A$28:AO$84,41,FALSE),0) -> 0 | BY30: =IF(B30<>" ",U30*L30,0) -> 0 | BZ30: =IF(AND(B30<>" ",OR(+'beoordeling maatregel'!Q30="ZZS",S30="ja")),U30*L30,0) -> 0 | CA30: =IF(AND(B30<>" ",OR(B30="PFOS",B30="PFOA",B30="GENX",B30="overige PFAS",B30="6:2 FTS")),+'beoordeling maatregel'!L30*'beoordeling maatregel'!U30,0) -> 0
A31: 2 | B31: =IF(A31<=N$27,VLOOKUP(2,'resultaten immissietoets'!AM$28:AN$84,2,FALSE)," ") ->  | C31: =VLOOKUP(+$B31,'resultaten immissietoets'!$A$27:$AA$84,24,FALSE) ->  | D31: =IF(ISBLANK($B31)=FALSE,VLOOKUP(+$B31,'resultaten immissietoets'!$A$27:$AA$84,10,FALSE)," ") ->  | E31: =VLOOKUP(+$B31,'resultaten immissietoets'!$A$27:$AA$84,26,FALSE) ->  | F31: =IF(ISBLANK($B31)=FALSE,VLOOKUP(+$B31,'resultaten immissietoets'!$A$27:$AI$84,35,FALSE)," ") ->  | G31: =LOG(IF(ISNUMBER(VLOOKUP(+$B31,'resultaten immissietoets'!$A$27:$AE$84,2,FALSE))=TRUE,VLOOKUP(+$B31,'resultaten immissietoets'!$A$27:$AE$84,2,FALSE),1)) -> 0 | H31: =IF(ISBLANK(B31)=FALSE,VLOOKUP(+$B31,'resultaten immissietoets'!$A$27:$AE$84,31,FALSE)," ") ->  | I31: =VLOOKUP(+$B31,'resultaten immissietoets'!$A$27:$AE$84,15,FALSE) ->  | J31: =IF(ISBLANK($B31)=FALSE,IF(K31>0,K31," ")," ") ->  | K31: =IF(ISBLANK($B31)=FALSE,VLOOKUP(+$B31,'resultaten immissietoets'!$A$27:$AI$84,29,FALSE)," ") ->  | L31: =IF(AND(ISBLANK(B31)=FALSE,B31<>" "),N31*Y31*'resultaten immissietoets'!H$16*8760*3600/1000000,0) -> 0 | M31: =IF(((1-AA31*AA$25)*Y31-D31)/+M$20/W31*+AM31<=0.1,"ja","nee") ->  | N31: =IF(B31<>" ",IF(N$9="nee",IF(ISBLANK($B31)=FALSE,IF(AND('beschrijving lozing'!I$7="algemene regels",+'beschrijving lozing'!I$19="nee",ISNA(VLOOKUP(+$B31,'beschrijving lozing'!B$27:Q$78,15,FALSE))=FALSE),MAX(VLOOKUP(+B31,'beschrijving lozing'!B$27:Q$78,15,FALSE),VLOOKUP(+$B31,'resultaten immissietoets'!$A$27:$AO$84,41,FALSE)),VLOOKUP(+$B31,'resultaten immissietoets'!$A$27:$AO$84,41,FALSE))," "),+P31)," ") ->  | O31: =IF(AA31/100<N31,"ja","nee") -> ja | R31: =IF(AE31>U31,IF(M31="ja","ja","nee"),"nee") -> nee | S31: =IF(Q31="ZZS","ja",IF('ZZS-checker'!B31=1,"ja","nee")) -> nee | T31: =IF(AND(S31="ja",AA31<N31),1,0) -> 0 | U31: 0 | V31: =IF(ISBLANK($B31)=FALSE,IF($AA31/100>=N31,"ja","nee")," ") -> nee | W31: =IF(ISBLANK($B31)=FALSE,IF(ISNA(VLOOKUP(+$B31,'resultaten immissietoets'!$A$27:$AO$84,14,FALSE))=FALSE,VLOOKUP(+$B31,'resultaten immissietoets'!$A$27:$AO$84,14,FALSE)," ")," ") ->  | X31: 0.1 | Y31: =IF(AND(ISBLANK($B31)=FALSE,$B31<>" "),VLOOKUP(+$B31,'resultaten immissietoets'!$A$27:$BU$84,73,FALSE)," ") ->  | Z31: =IF(AND(AA31>N31,AE31>U31),1,0) -> 0 | AB31: =IF(ISBLANK(B31)=FALSE,IF(AA31>=BK31,"ja","nee")," ") -> ja | AC31: =IF(B31<>" ",IF(ISBLANK($B31)=FALSE,IF(AND(N$5="nieuw",N$7="nee",N$9="ja"),P31,AA31*AA$25)*Y31/1000000*B$20*8760*3600,0)," ") ->  | AD31: 0 | AE31: =IF(AND(ISBLANK(B31)=FALSE,B31<>" "),IF(ISBLANK(N$25)=FALSE,IF(AE$27="ja",+AD31/AD$71*U$18/AC31,U$18*AD31/AD$71/AC31)," "),0) -> 0 | AF31: =IF(ISBLANK(C31)=FALSE,IF(O31="ja",IF(AE$27="ja",Y31/AD$71*U$18,AQ31/AQ$72*U$18),U$18/AD31)," ") ->  | AG31: =IF(ISBLANK(B31)=FALSE,IF(S31="ja",CONCATENATE(IF(AND(N$22="nee",AA31*AA$25<BK31),"Er wordt NIET voldaan aan immissietoets-; "," "),IF(U$18<AE$25,"Het gaat om een ZZS-stof, verken verdergaande maatregelen om invulling te geven aan minimalisatieverplichting!"," ")),CONCATENATE(IF(AU31="ja","het gaat om een potentiële ZZS-stof; "," "),IF(AND(N$22="nee",AA31*AA$25<BK31),"Er wordt NIET voldaan aan immissietoets; "," "),IF(AND(S31="nee",N$22="ja")," ",IF(N$22="ja",IF(AW31=0," ","verken verdergaande maatregelen om lozing te beperken")," "))))," ") ->  | AH31: 0 | AI31: =IF(AA31*AA$25<BK31,IF(AND(ISBLANK(B31)=FALSE,B31<>" "),IF(BC31="ja","alleen sign-toets voldoet niet",CONCATENATE(IF(AX31="ja","sign-toets; "," "),IF(AY31="ja","normtoets; "," "),IF(AZ31="ja","KRW-toets; "," "),IF(BA31="ja","drinkwatertoets"," "),IF(AND(AX31="nee",AY31="nee",AZ31="nee",BA31="nee")," ",IF(BD31>1," voldoen niet"," voldoet niet"))))," ")," ") ->  | AL31: =IF(B31<> " ",IF(AA31*AA$25>=N31,0,(N31-AA$25*AA31))," ") ->  | AM31: =IF(AND(ISBLANK(B31)=FALSE,B31<>" "),VLOOKUP(+$B31,'resultaten immissietoets'!$A$27:$BK$84,63,FALSE)," ") ->  | AN31: 1 | AO31: =AC31/W31/(AC31/W31+AC30/W30)*U$18 ->  | AP31: =AO31/AC31 ->  | AQ31: =IF(N$27>=2,AC31/W31,0) -> 0 | AU31: =IF('pot-ZZS-checker'!B16>0,"ja","nee") -> nee | AV31: 1 | AW31: 0 | AY31: =IF(AND(ISBLANK(B31)=FALSE,B31<>" "),IF(D31<W31,IF(+D31+IF(U$22="ja",1/(1+U$25*0.000001*10^G31),1)*((1-AA31*AA$25)*Y31-D31)/+M$20<=W31,"nee","ja"),"nee")," ") ->  | AZ31: =IF(AND(ISBLANK(B31)=FALSE,B31<>" "),IF(D31<W31,IF(D31+((1-AA31/100)*Y31-D31)/'resultaten immissietoets'!J$24*IF(U$22="ja",1/(1+U$25*0.000001*10^G31),1)<W31,"nee","ja"),IF(((1-AA31)*Y31-D31)/'resultaten immissietoets'!J$24*IF(U$22="ja",1/(1+U$25*0.000001*10^G31),1)<=I31,"nee","ja"))," ") ->  | BA31: =IF(ISBLANK(B31)=FALSE,IF(BA$25="ja",IF(J31=" ",IF(D31+((1-AA31/100)*Y31-D31)/Q$20*IF(U$22="ja",1/(1+U$25*0.000001*10^G31),1)<=1,"nee","ja"),IF(D31+((1-AA31/100)*Y31-D31)/Q$20*IF(U$22="ja",1/(1+U$25*0.000001*10^G31),1)<='resultaten immissietoets'!AD29,"nee","ja")),"nee")," ") -> nee | BC31: nee | BD31: 0 | BF31: =IF(AND(+BD31=AW31,BD31=0),0,1) -> 0 | BG31: =IF(AND(BH29>BG30,BH31=1),BG30+1,0) -> 0 | BH31: 0 | BK31: =IF(ISNA(VLOOKUP(B31,'resultaten immissietoets'!A$28:AO$84,41,FALSE))=FALSE,VLOOKUP(B31,'resultaten immissietoets'!A$28:AO$84,41,FALSE),0) -> 0 | BY31: 0 | BZ31: =IF(AND(B31<>" ",OR(+'beoordeling maatregel'!Q31="ZZS",S31="ja")),U31*L31,0) -> 0 | CA31: =IF(AND(B31<>" ",OR(B31="PFOS",B31="PFOA",B31="GENX",B31="overige PFAS",B31="6:2 FTS")),+'beoordeling maatregel'!L31*'beoordeling maatregel'!U31,0) -> 0
A32: 3 | B32: =IF(A32<=N$27,VLOOKUP(3,'resultaten immissietoets'!AM$28:AN$84,2,FALSE)," ") ->  | C32: =VLOOKUP(+$B32,'resultaten immissietoets'!$A$27:$AA$84,24,FALSE) ->  | D32: =IF(ISBLANK($B32)=FALSE,VLOOKUP(+$B32,'resultaten immissietoets'!$A$27:$AA$84,10,FALSE)," ") ->  | E32: =VLOOKUP(+$B32,'resultaten immissietoets'!$A$27:$AA$84,26,FALSE) ->  | F32: =IF(ISBLANK($B32)=FALSE,VLOOKUP(+$B32,'resultaten immissietoets'!$A$27:$AI$84,35,FALSE)," ") ->  | G32: =LOG(IF(ISNUMBER(VLOOKUP(+$B32,'resultaten immissietoets'!$A$27:$AE$84,2,FALSE))=TRUE,VLOOKUP(+$B32,'resultaten immissietoets'!$A$27:$AE$84,2,FALSE),1)) -> 0 | H32: =IF(ISBLANK(B32)=FALSE,VLOOKUP(+$B32,'resultaten immissietoets'!$A$27:$AE$84,31,FALSE)," ") ->  | I32: =VLOOKUP(+$B32,'resultaten immissietoets'!$A$27:$AE$84,15,FALSE) ->  | K32: =IF(ISBLANK($B32)=FALSE,VLOOKUP(+$B32,'resultaten immissietoets'!$A$27:$AI$84,29,FALSE)," ") ->  | L32: =IF(AND(ISBLANK(B32)=FALSE,B32<>" "),N32*Y32*'resultaten immissietoets'!H$16*8760*3600/1000000,0) -> 0 | N32: =IF(B32<>" ",IF(N$9="nee",IF(ISBLANK($B32)=FALSE,IF(AND('beschrijving lozing'!I$7="algemene regels",+'beschrijving lozing'!I$19="nee",ISNA(VLOOKUP(+$B32,'beschrijving lozing'!B$27:Q$78,15,FALSE))=FALSE),MAX(VLOOKUP(+B32,'beschrijving lozing'!B$27:Q$78,15,FALSE),VLOOKUP(+$B32,'resultaten immissietoets'!$A$27:$AO$84,41,FALSE)),VLOOKUP(+$B32,'resultaten immissietoets'!$A$27:$AO$84,41,FALSE))," "),+P32)," ") ->  | O32: =IF(AA32/100<N32,"ja","nee") -> ja | R32: nee | S32: =IF(Q32="ZZS","ja",IF('ZZS-checker'!B32=1,"ja","nee")) -> nee | T32: =IF(AND(S32="ja",AA32<N32),1,0) -> 0 | U32: 0 | V32: =IF(ISBLANK($B32)=FALSE,IF($AA32/100>=N32,"ja","nee")," ") -> nee | W32: =IF(ISBLANK($B32)=FALSE,IF(ISNA(VLOOKUP(+$B32,'resultaten immissietoets'!$A$27:$AO$84,14,FALSE))=FALSE,VLOOKUP(+$B32,'resultaten immissietoets'!$A$27:$AO$84,14,FALSE)," ")," ") ->  | Y32: =IF(AND(ISBLANK($B32)=FALSE,$B32<>" "),VLOOKUP(+$B32,'resultaten immissietoets'!$A$27:$BU$84,73,FALSE)," ") ->  | Z32: =IF(AND(AA32>N32,AE32>U32),1,0) -> 0 | AB32: ja | AD32: 0 | AE32: 0 | AF32: =IF(ISBLANK(C32)=FALSE,IF(O27="ja",IF(AF$27="ja",Z32/AE$71*V$18,AR32/AR$72*V$18),V$18/AD32)," ") ->  | AH32: 0 | AM32: =IF(AND(ISBLANK(B32)=FALSE,B32<>" "),VLOOKUP(+$B32,'resultaten immissietoets'!$A$27:$BK$84,63,FALSE)," ") ->  | AN32: 2 | AQ32: =IF(N$27>=3,AC32/W32,0) -> 0 | AU32: =IF('pot-ZZS-checker'!B17>0,"ja","nee") -> nee | AV32: 1 | AW32: 0 | AZ32: =IF(AND(ISBLANK(B32)=FALSE,B32<>" "),IF(D32<W32,IF(D32+((1-AA32/100)*Y32-D32)/'resultaten immissietoets'!J$24*IF(U$22="ja",1/(1+U$25*0.000001*10^G32),1)<W32,"nee","ja"),IF(((1-AA32)*Y32-D32)/'resultaten immissietoets'!J$24*IF(U$22="ja",1/(1+U$25*0.000001*10^G32),1)<=I32,"nee","ja"))," ") ->  | BA32: =IF(ISBLANK(B32)=FALSE,IF(BA$25="ja",IF(J32=" ",IF(D32+((1-AA32/100)*Y32-D32)/Q$20*IF(U$22="ja",1/(1+U$25*0.000001*10^G32),1)<=1,"nee","ja"),IF(D32+((1-AA32/100)*Y32-D32)/Q$20*IF(U$22="ja",1/(1+U$25*0.000001*10^G32),1)<='resultaten immissietoets'!AD30,"nee","ja")),"nee")," ") -> nee | BC32: nee | BD32: 0 | BF32: 0 | BH32: 0 | BK32: =IF(ISNA(VLOOKUP(B32,'resultaten immissietoets'!A$28:AO$84,41,FALSE))=FALSE,VLOOKUP(B32,'resultaten immissietoets'!A$28:AO$84,41,FALSE),0) -> 0 | BY32: 0 | BZ32: =IF(AND(B32<>" ",OR(+'beoordeling maatregel'!Q32="ZZS",S32="ja")),U32*L32,0) -> 0 | CA32: =IF(AND(B32<>" ",OR(B32="PFOS",B32="PFOA",B32="GENX",B32="overige PFAS",B32="6:2 FTS")),+'beoordeling maatregel'!L32*'beoordeling maatregel'!U32,0) -> 0
A33: 4 | B33: =IF(A33<=N$27,VLOOKUP(A32+1,'resultaten immissietoets'!AM$28:AN$84,2,FALSE)," ") ->  | C33: =VLOOKUP(+$B33,'resultaten immissietoets'!$A$27:$AA$84,24,FALSE) ->  | D33: =IF(ISBLANK($B33)=FALSE,VLOOKUP(+$B33,'resultaten immissietoets'!$A$27:$AA$84,10,FALSE)," ") ->  | E33: =VLOOKUP(+$B33,'resultaten immissietoets'!$A$27:$AA$84,26,FALSE) ->  | F33: =IF(ISBLANK($B33)=FALSE,VLOOKUP(+$B33,'resultaten immissietoets'!$A$27:$AI$84,35,FALSE)," ") ->  | G33: =LOG(IF(ISNUMBER(VLOOKUP(+$B33,'resultaten immissietoets'!$A$27:$AE$84,2,FALSE))=TRUE,VLOOKUP(+$B33,'resultaten immissietoets'!$A$27:$AE$84,2,FALSE),1)) -> 0 | H33: =IF(ISBLANK(B33)=FALSE,VLOOKUP(+$B33,'resultaten immissietoets'!$A$27:$AE$84,31,FALSE)," ") ->  | I33: =VLOOKUP(+$B33,'resultaten immissietoets'!$A$27:$AE$84,15,FALSE) ->  | K33: =IF(ISBLANK($B33)=FALSE,VLOOKUP(+$B33,'resultaten immissietoets'!$A$27:$AI$84,29,FALSE)," ") ->  | L33: =IF(AND(ISBLANK(B33)=FALSE,B33<>" "),N33*Y33*'resultaten immissietoets'!H$16*8760*3600/1000000,0) -> 0 | N33: =IF(B33<>" ",IF(N$9="nee",IF(ISBLANK($B33)=FALSE,IF(AND('beschrijving lozing'!I$7="algemene regels",+'beschrijving lozing'!I$19="nee",ISNA(VLOOKUP(+$B33,'beschrijving lozing'!B$27:Q$78,15,FALSE))=FALSE),MAX(VLOOKUP(+B33,'beschrijving lozing'!B$27:Q$78,15,FALSE),VLOOKUP(+$B33,'resultaten immissietoets'!$A$27:$AO$84,41,FALSE)),VLOOKUP(+$B33,'resultaten immissietoets'!$A$27:$AO$84,41,FALSE))," "),+P33)," ") ->  | O33: ja | R33: nee | S33: =IF(Q33="ZZS","ja",IF('ZZS-checker'!B33=1,"ja","nee")) -> nee | T33: 0 | U33: 0 | V33: nee | W33: =IF(ISBLANK($B33)=FALSE,IF(ISNA(VLOOKUP(+$B33,'resultaten immissietoets'!$A$27:$AO$84,14,FALSE))=FALSE,VLOOKUP(+$B33,'resultaten immissietoets'!$A$27:$AO$84,14,FALSE)," ")," ") ->  | Y33: =IF(AND(ISBLANK($B33)=FALSE,$B33<>" "),VLOOKUP(+$B33,'resultaten immissietoets'!$A$27:$BU$84,73,FALSE)," ") ->  | Z33: 0 | AB33: ja | AD33: 0 | AE33: 0 | AH33: 0 | AM33: =IF(AND(ISBLANK(B33)=FALSE,B33<>" "),VLOOKUP(+$B33,'resultaten immissietoets'!$A$27:$BK$84,63,FALSE)," ") ->  | AN33: 3 | AQ33: =IF(N$27>=4,AC33/W33,0) -> 0 | AU33: =IF('pot-ZZS-checker'!B18>0,"ja","nee") -> nee | AV33: 1 | AW33: 0 | AZ33: =IF(AND(ISBLANK(B33)=FALSE,B33<>" "),IF(D33<W33,IF(D33+((1-AA33/100)*Y33-D33)/'resultaten immissietoets'!J$24*IF(U$22="ja",1/(1+U$25*0.000001*10^G33),1)<W33,"nee","ja"),IF(((1-AA33)*Y33-D33)/'resultaten immissietoets'!J$24*IF(U$22="ja",1/(1+U$25*0.000001*10^G33),1)<=I33,"nee","ja"))," ") ->  | BA33: =IF(ISBLANK(B33)=FALSE,IF(BA$25="ja",IF(J33=" ",IF(D33+((1-AA33/100)*Y33-D33)/Q$20*IF(U$22="ja",1/(1+U$25*0.000001*10^G33),1)<=1,"nee","ja"),IF(D33+((1-AA33/100)*Y33-D33)/Q$20*IF(U$22="ja",1/(1+U$25*0.000001*10^G33),1)<='resultaten immissietoets'!AD31,"nee","ja")),"nee")," ") -> nee | BC33: nee | BD33: 0 | BF33: 0 | BH33: 0 | BK33: =IF(ISNA(VLOOKUP(B33,'resultaten immissietoets'!A$28:AO$84,41,FALSE))=FALSE,VLOOKUP(B33,'resultaten immissietoets'!A$28:AO$84,41,FALSE),0) -> 0 | BY33: 0 | BZ33: =IF(AND(B33<>" ",OR(+'beoordeling maatregel'!Q33="ZZS",S33="ja")),U33*L33,0) -> 0 | CA33: =IF(AND(B33<>" ",OR(B33="PFOS",B33="PFOA",B33="GENX",B33="overige PFAS",B33="6:2 FTS")),+'beoordeling maatregel'!L33*'beoordeling maatregel'!U33,0) -> 0
A34: 5 | B34: =IF(A34<=N$27,VLOOKUP(A33+1,'resultaten immissietoets'!AM$28:AN$84,2,FALSE)," ") ->  | C34: =VLOOKUP(+$B34,'resultaten immissietoets'!$A$27:$AA$84,24,FALSE) ->  | D34: =IF(ISBLANK($B34)=FALSE,VLOOKUP(+$B34,'resultaten immissietoets'!$A$27:$AA$84,10,FALSE)," ") ->  | E34: =VLOOKUP(+$B34,'resultaten immissietoets'!$A$27:$AA$84,26,FALSE) ->  | F34: =IF(ISBLANK($B34)=FALSE,VLOOKUP(+$B34,'resultaten immissietoets'!$A$27:$AI$84,35,FALSE)," ") ->  | G34: =LOG(IF(ISNUMBER(VLOOKUP(+$B34,'resultaten immissietoets'!$A$27:$AE$84,2,FALSE))=TRUE,VLOOKUP(+$B34,'resultaten immissietoets'!$A$27:$AE$84,2,FALSE),1)) -> 0 | H34: =IF(ISBLANK(B34)=FALSE,VLOOKUP(+$B34,'resultaten immissietoets'!$A$27:$AE$84,31,FALSE)," ") ->  | I34: =VLOOKUP(+$B34,'resultaten immissietoets'!$A$27:$AE$84,15,FALSE) ->  | K34: =IF(ISBLANK($B34)=FALSE,VLOOKUP(+$B34,'resultaten immissietoets'!$A$27:$AI$84,29,FALSE)," ") ->  | L34: =IF(AND(ISBLANK(B34)=FALSE,B34<>" "),N34*Y34*'resultaten immissietoets'!H$16*8760*3600/1000000,0) -> 0 | N34: =IF(B34<>" ",IF(N$9="nee",IF(ISBLANK($B34)=FALSE,IF(AND('beschrijving lozing'!I$7="algemene regels",+'beschrijving lozing'!I$19="nee",ISNA(VLOOKUP(+$B34,'beschrijving lozing'!B$27:Q$78,15,FALSE))=FALSE),MAX(VLOOKUP(+B34,'beschrijving lozing'!B$27:Q$78,15,FALSE),VLOOKUP(+$B34,'resultaten immissietoets'!$A$27:$AO$84,41,FALSE)),VLOOKUP(+$B34,'resultaten immissietoets'!$A$27:$AO$84,41,FALSE))," "),+P34)," ") ->  | O34: ja | R34: nee | S34: =IF(Q34="ZZS","ja",IF('ZZS-checker'!B34=1,"ja","nee")) -> nee | T34: 0 | U34: 0 | V34: nee | W34: =IF(ISBLANK($B34)=FALSE,IF(ISNA(VLOOKUP(+$B34,'resultaten immissietoets'!$A$27:$AO$84,14,FALSE))=FALSE,VLOOKUP(+$B34,'resultaten immissietoets'!$A$27:$AO$84,14,FALSE)," ")," ") ->  | Y34: =IF(AND(ISBLANK($B34)=FALSE,$B34<>" "),VLOOKUP(+$B34,'resultaten immissietoets'!$A$27:$BU$84,73,FALSE)," ") ->  | Z34: 0 | AB34: ja | AD34: 0 | AE34: 0 | AH34: 0 | AM34: =IF(AND(ISBLANK(B34)=FALSE,B34<>" "),VLOOKUP(+$B34,'resultaten immissietoets'!$A$27:$BK$84,63,FALSE)," ") ->  | AN34: 4 | AQ34: =IF(N$27>=5,AC34/W34,0) -> 0 | AU34: =IF('pot-ZZS-checker'!B19>0,"ja","nee") -> nee | AV34: 1 | AW34: 0 | AZ34: =IF(AND(ISBLANK(B34)=FALSE,B34<>" "),IF(D34<W34,IF(D34+((1-AA34/100)*Y34-D34)/'resultaten immissietoets'!J$24*IF(U$22="ja",1/(1+U$25*0.000001*10^G34),1)<W34,"nee","ja"),IF(((1-AA34)*Y34-D34)/'resultaten immissietoets'!J$24*IF(U$22="ja",1/(1+U$25*0.000001*10^G34),1)<=I34,"nee","ja"))," ") ->  | BA34: =IF(ISBLANK(B34)=FALSE,IF(BA$25="ja",IF(J34=" ",IF(D34+((1-AA34/100)*Y34-D34)/Q$20*IF(U$22="ja",1/(1+U$25*0.000001*10^G34),1)<=1,"nee","ja"),IF(D34+((1-AA34/100)*Y34-D34)/Q$20*IF(U$22="ja",1/(1+U$25*0.000001*10^G34),1)<='resultaten immissietoets'!AD32,"nee","ja")),"nee")," ") -> nee | BC34: nee | BD34: 0 | BH34: 0 | BK34: =IF(ISNA(VLOOKUP(B34,'resultaten immissietoets'!A$28:AO$84,41,FALSE))=FALSE,VLOOKUP(B34,'resultaten immissietoets'!A$28:AO$84,41,FALSE),0) -> 0 | BY34: 0 | BZ34: =IF(AND(B34<>" ",OR(+'beoordeling maatregel'!Q34="ZZS",S34="ja")),U34*L34,0) -> 0 | CA34: =IF(AND(B34<>" ",OR(B34="PFOS",B34="PFOA",B34="GENX",B34="overige PFAS",B34="6:2 FTS")),+'beoordeling maatregel'!L34*'beoordeling maatregel'!U34,0) -> 0
A35: 6 | B35: =IF(A35<=N$27,VLOOKUP(A34+1,'resultaten immissietoets'!AM$28:AN$84,2,FALSE)," ") ->  | C35: =VLOOKUP(+$B35,'resultaten immissietoets'!$A$27:$AA$84,24,FALSE) ->  | D35: =IF(ISBLANK($B35)=FALSE,VLOOKUP(+$B35,'resultaten immissietoets'!$A$27:$AA$84,10,FALSE)," ") ->  | E35: =VLOOKUP(+$B35,'resultaten immissietoets'!$A$27:$AA$84,26,FALSE) ->  | F35: =IF(ISBLANK($B35)=FALSE,VLOOKUP(+$B35,'resultaten immissietoets'!$A$27:$AI$84,35,FALSE)," ") ->  | G35: =LOG(IF(ISNUMBER(VLOOKUP(+$B35,'resultaten immissietoets'!$A$27:$AE$84,2,FALSE))=TRUE,VLOOKUP(+$B35,'resultaten immissietoets'!$A$27:$AE$84,2,FALSE),1)) -> 0 | H35: =IF(ISBLANK(B35)=FALSE,VLOOKUP(+$B35,'resultaten immissietoets'!$A$27:$AE$84,31,FALSE)," ") ->  | I35: =VLOOKUP(+$B35,'resultaten immissietoets'!$A$27:$AE$84,15,FALSE) ->  | K35: =IF(ISBLANK($B35)=FALSE,VLOOKUP(+$B35,'resultaten immissietoets'!$A$27:$AI$84,29,FALSE)," ") ->  | L35: =IF(AND(ISBLANK(B35)=FALSE,B35<>" "),N35*Y35*'resultaten immissietoets'!H$16*8760*3600/1000000,0) -> 0 | N35: =IF(B35<>" ",IF(N$9="nee",IF(ISBLANK($B35)=FALSE,IF(AND('beschrijving lozing'!I$7="algemene regels",+'beschrijving lozing'!I$19="nee",ISNA(VLOOKUP(+$B35,'beschrijving lozing'!B$27:Q$78,15,FALSE))=FALSE),MAX(VLOOKUP(+B35,'beschrijving lozing'!B$27:Q$78,15,FALSE),VLOOKUP(+$B35,'resultaten immissietoets'!$A$27:$AO$84,41,FALSE)),VLOOKUP(+$B35,'resultaten immissietoets'!$A$27:$AO$84,41,FALSE))," "),+P35)," ") ->  | O35: ja | R35: nee | S35: =IF(Q35="ZZS","ja",IF('ZZS-checker'!B35=1,"ja","nee")) -> nee | T35: 0 | U35: 0 | V35: nee | W35: =IF(ISBLANK($B35)=FALSE,IF(ISNA(VLOOKUP(+$B35,'resultaten immissietoets'!$A$27:$AO$84,14,FALSE))=FALSE,VLOOKUP(+$B35,'resultaten immissietoets'!$A$27:$AO$84,14,FALSE)," ")," ") ->  | Y35: =IF(AND(ISBLANK($B35)=FALSE,$B35<>" "),VLOOKUP(+$B35,'resultaten immissietoets'!$A$27:$BU$84,73,FALSE)," ") ->  | Z35: 0 | AB35: ja | AD35: 0 | AE35: 0 | AH35: 0 | AL35: =IF(AND(ISBLANK(B38)=FALSE,B38<>" "),IF(AE38<U38,"ja","nee")," ") ->  | AM35: =IF(AND(ISBLANK(B35)=FALSE,B35<>" "),VLOOKUP(+$B35,'resultaten immissietoets'!$A$27:$BK$84,63,FALSE)," ") ->  | AN35: 5 | AQ35: =IF(N$27>=6,AC35/W35,0) -> 0 | AU35: =IF('pot-ZZS-checker'!B20>0,"ja","nee") -> nee | AV35: 1 | AW35: 0 | AZ35: =IF(AND(ISBLANK(B35)=FALSE,B35<>" "),IF(D35<W35,IF(D35+((1-AA35/100)*Y35-D35)/'resultaten immissietoets'!J$24*IF(U$22="ja",1/(1+U$25*0.000001*10^G35),1)<W35,"nee","ja"),IF(((1-AA35)*Y35-D35)/'resultaten immissietoets'!J$24*IF(U$22="ja",1/(1+U$25*0.000001*10^G35),1)<=I35,"nee","ja"))," ") ->  | BA35: =IF(ISBLANK(B35)=FALSE,IF(BA$25="ja",IF(J35=" ",IF(D35+((1-AA35/100)*Y35-D35)/Q$20*IF(U$22="ja",1/(1+U$25*0.000001*10^G35),1)<=1,"nee","ja"),IF(D35+((1-AA35/100)*Y35-D35)/Q$20*IF(U$22="ja",1/(1+U$25*0.000001*10^G35),1)<='resultaten immissietoets'!AD33,"nee","ja")),"nee")," ") -> nee | BC35: nee | BD35: 0 | BH35: 0 | BK35: =IF(ISNA(VLOOKUP(B35,'resultaten immissietoets'!A$28:AO$84,41,FALSE))=FALSE,VLOOKUP(B35,'resultaten immissietoets'!A$28:AO$84,41,FALSE),0) -> 0 | BY35: 0 | BZ35: =IF(AND(B35<>" ",OR(+'beoordeling maatregel'!Q35="ZZS",S35="ja")),U35*L35,0) -> 0 | CA35: =IF(AND(B35<>" ",OR(B35="PFOS",B35="PFOA",B35="GENX",B35="overige PFAS",B35="6:2 FTS")),+'beoordeling maatregel'!L35*'beoordeling maatregel'!U35,0) -> 0
A36: 7 | B36: =IF(A36<=N$27,VLOOKUP(A35+1,'resultaten immissietoets'!AM$28:AN$84,2,FALSE)," ") ->  | C36: =VLOOKUP(+$B36,'resultaten immissietoets'!$A$27:$AA$84,24,FALSE) ->  | D36: =IF(ISBLANK($B36)=FALSE,VLOOKUP(+$B36,'resultaten immissietoets'!$A$27:$AA$84,10,FALSE)," ") ->  | E36: =VLOOKUP(+$B36,'resultaten immissietoets'!$A$27:$AA$84,26,FALSE) ->  | F36: =IF(ISBLANK($B36)=FALSE,VLOOKUP(+$B36,'resultaten immissietoets'!$A$27:$AI$84,35,FALSE)," ") ->  | G36: =LOG(IF(ISNUMBER(VLOOKUP(+$B36,'resultaten immissietoets'!$A$27:$AE$84,2,FALSE))=TRUE,VLOOKUP(+$B36,'resultaten immissietoets'!$A$27:$AE$84,2,FALSE),1)) -> 0 | H36: =IF(ISBLANK(B36)=FALSE,VLOOKUP(+$B36,'resultaten immissietoets'!$A$27:$AE$84,31,FALSE)," ") ->  | I36: =VLOOKUP(+$B36,'resultaten immissietoets'!$A$27:$AE$84,15,FALSE) ->  | K36: =IF(ISBLANK($B36)=FALSE,VLOOKUP(+$B36,'resultaten immissietoets'!$A$27:$AI$84,29,FALSE)," ") ->  | L36: =IF(AND(ISBLANK(B36)=FALSE,B36<>" "),N36*Y36*'resultaten immissietoets'!H$16*8760*3600/1000000,0) -> 0 | N36: =IF(B36<>" ",IF(N$9="nee",IF(ISBLANK($B36)=FALSE,IF(AND('beschrijving lozing'!I$7="algemene regels",+'beschrijving lozing'!I$19="nee",ISNA(VLOOKUP(+$B36,'beschrijving lozing'!B$27:Q$78,15,FALSE))=FALSE),MAX(VLOOKUP(+B36,'beschrijving lozing'!B$27:Q$78,15,FALSE),VLOOKUP(+$B36,'resultaten immissietoets'!$A$27:$AO$84,41,FALSE)),VLOOKUP(+$B36,'resultaten immissietoets'!$A$27:$AO$84,41,FALSE))," "),+P36)," ") ->  | O36: ja | R36: nee | S36: =IF(Q36="ZZS","ja",IF('ZZS-checker'!B36=1,"ja","nee")) -> nee | T36: 0 | U36: 0 | V36: nee | W36: =IF(ISBLANK($B36)=FALSE,IF(ISNA(VLOOKUP(+$B36,'resultaten immissietoets'!$A$27:$AO$84,14,FALSE))=FALSE,VLOOKUP(+$B36,'resultaten immissietoets'!$A$27:$AO$84,14,FALSE)," ")," ") ->  | Y36: =IF(AND(ISBLANK($B36)=FALSE,$B36<>" "),VLOOKUP(+$B36,'resultaten immissietoets'!$A$27:$BU$84,73,FALSE)," ") ->  | Z36: 0 | AB36: ja | AD36: 0 | AE36: 0 | AH36: 0 | AM36: =IF(AND(ISBLANK(B36)=FALSE,B36<>" "),VLOOKUP(+$B36,'resultaten immissietoets'!$A$27:$BK$84,63,FALSE)," ") ->  | AN36: 6 | AQ36: =IF(N$27>=7,AC36/W36,0) -> 0 | AU36: =IF('pot-ZZS-checker'!B21>0,"ja","nee") -> nee | AV36: 1 | AW36: 0 | AZ36: =IF(AND(ISBLANK(B36)=FALSE,B36<>" "),IF(D36<W36,IF(D36+((1-AA36/100)*Y36-D36)/'resultaten immissietoets'!J$24*IF(U$22="ja",1/(1+U$25*0.000001*10^G36),1)<W36,"nee","ja"),IF(((1-AA36)*Y36-D36)/'resultaten immissietoets'!J$24*IF(U$22="ja",1/(1+U$25*0.000001*10^G36),1)<=I36,"nee","ja"))," ") ->  | BA36: =IF(ISBLANK(B36)=FALSE,IF(BA$25="ja",IF(J36=" ",IF(D36+((1-AA36/100)*Y36-D36)/Q$20*IF(U$22="ja",1/(1+U$25*0.000001*10^G36),1)<=1,"nee","ja"),IF(D36+((1-AA36/100)*Y36-D36)/Q$20*IF(U$22="ja",1/(1+U$25*0.000001*10^G36),1)<='resultaten immissietoets'!AD34,"nee","ja")),"nee")," ") -> nee | BC36: nee | BD36: 0 | BH36: 0 | BK36: =IF(ISNA(VLOOKUP(B36,'resultaten immissietoets'!A$28:AO$84,41,FALSE))=FALSE,VLOOKUP(B36,'resultaten immissietoets'!A$28:AO$84,41,FALSE),0) -> 0 | BY36: 0 | BZ36: =IF(AND(B36<>" ",OR(+'beoordeling maatregel'!Q36="ZZS",S36="ja")),U36*L36,0) -> 0 | CA36: =IF(AND(B36<>" ",OR(B36="PFOS",B36="PFOA",B36="GENX",B36="overige PFAS",B36="6:2 FTS")),+'beoordeling maatregel'!L36*'beoordeling maatregel'!U36,0) -> 0
A37: 8 | B37: =IF(A37<=N$27,VLOOKUP(A36+1,'resultaten immissietoets'!AM$28:AN$84,2,FALSE)," ") ->  | C37: =VLOOKUP(+$B37,'resultaten immissietoets'!$A$27:$AA$84,24,FALSE) ->  | D37: =IF(ISBLANK($B37)=FALSE,VLOOKUP(+$B37,'resultaten immissietoets'!$A$27:$AA$84,10,FALSE)," ") ->  | E37: =VLOOKUP(+$B37,'resultaten immissietoets'!$A$27:$AA$84,26,FALSE) ->  | F37: =IF(ISBLANK($B37)=FALSE,VLOOKUP(+$B37,'resultaten immissietoets'!$A$27:$AI$84,35,FALSE)," ") ->  | G37: =LOG(IF(ISNUMBER(VLOOKUP(+$B37,'resultaten immissietoets'!$A$27:$AE$84,2,FALSE))=TRUE,VLOOKUP(+$B37,'resultaten immissietoets'!$A$27:$AE$84,2,FALSE),1)) -> 0 | H37: =IF(ISBLANK(B37)=FALSE,VLOOKUP(+$B37,'resultaten immissietoets'!$A$27:$AE$84,31,FALSE)," ") ->  | I37: =VLOOKUP(+$B37,'resultaten immissietoets'!$A$27:$AE$84,15,FALSE) ->  | K37: =IF(ISBLANK($B37)=FALSE,VLOOKUP(+$B37,'resultaten immissietoets'!$A$27:$AI$84,29,FALSE)," ") ->  | L37: =IF(AND(ISBLANK(B37)=FALSE,B37<>" "),N37*Y37*'resultaten immissietoets'!H$16*8760*3600/1000000,0) -> 0 | N37: =IF(B37<>" ",IF(N$9="nee",IF(ISBLANK($B37)=FALSE,IF(AND('beschrijving lozing'!I$7="algemene regels",+'beschrijving lozing'!I$19="nee",ISNA(VLOOKUP(+$B37,'beschrijving lozing'!B$27:Q$78,15,FALSE))=FALSE),MAX(VLOOKUP(+B37,'beschrijving lozing'!B$27:Q$78,15,FALSE),VLOOKUP(+$B37,'resultaten immissietoets'!$A$27:$AO$84,41,FALSE)),VLOOKUP(+$B37,'resultaten immissietoets'!$A$27:$AO$84,41,FALSE))," "),+P37)," ") ->  | O37: ja | R37: nee | S37: =IF(Q37="ZZS","ja",IF('ZZS-checker'!B37=1,"ja","nee")) -> nee | T37: 0 | U37: 0 | V37: nee | W37: =IF(ISBLANK($B37)=FALSE,IF(ISNA(VLOOKUP(+$B37,'resultaten immissietoets'!$A$27:$AO$84,14,FALSE))=FALSE,VLOOKUP(+$B37,'resultaten immissietoets'!$A$27:$AO$84,14,FALSE)," ")," ") ->  | Y37: =IF(AND(ISBLANK($B37)=FALSE,$B37<>" "),VLOOKUP(+$B37,'resultaten immissietoets'!$A$27:$BU$84,73,FALSE)," ") ->  | Z37: 0 | AB37: ja | AD37: 0 | AE37: 0 | AH37: 0 | AM37: =IF(AND(ISBLANK(B37)=FALSE,B37<>" "),VLOOKUP(+$B37,'resultaten immissietoets'!$A$27:$BK$84,63,FALSE)," ") ->  | AN37: 7 | AQ37: =IF(N$27>=8,AC37/W37,0) -> 0 | AU37: =IF('pot-ZZS-checker'!B22>0,"ja","nee") -> nee | AV37: 1 | AW37: 0 | AZ37: =IF(AND(ISBLANK(B37)=FALSE,B37<>" "),IF(D37<W37,IF(D37+((1-AA37/100)*Y37-D37)/'resultaten immissietoets'!J$24*IF(U$22="ja",1/(1+U$25*0.000001*10^G37),1)<W37,"nee","ja"),IF(((1-AA37)*Y37-D37)/'resultaten immissietoets'!J$24*IF(U$22="ja",1/(1+U$25*0.000001*10^G37),1)<=I37,"nee","ja"))," ") ->  | BA37: =IF(ISBLANK(B37)=FALSE,IF(BA$25="ja",IF(J37=" ",IF(D37+((1-AA37/100)*Y37-D37)/Q$20*IF(U$22="ja",1/(1+U$25*0.000001*10^G37),1)<=1,"nee","ja"),IF(D37+((1-AA37/100)*Y37-D37)/Q$20*IF(U$22="ja",1/(1+U$25*0.000001*10^G37),1)<='resultaten immissietoets'!AD35,"nee","ja")),"nee")," ") -> nee | BC37: nee | BD37: 0 | BH37: 0 | BK37: =IF(ISNA(VLOOKUP(B37,'resultaten immissietoets'!A$28:AO$84,41,FALSE))=FALSE,VLOOKUP(B37,'resultaten immissietoets'!A$28:AO$84,41,FALSE),0) -> 0 | BY37: 0 | BZ37: =IF(AND(B37<>" ",OR(+'beoordeling maatregel'!Q37="ZZS",S37="ja")),U37*L37,0) -> 0 | CA37: =IF(AND(B37<>" ",OR(B37="PFOS",B37="PFOA",B37="GENX",B37="overige PFAS",B37="6:2 FTS")),+'beoordeling maatregel'!L37*'beoordeling maatregel'!U37,0) -> 0
A38: 9 | B38: =IF(A38<=N$27,VLOOKUP(A37+1,'resultaten immissietoets'!AM$28:AN$84,2,FALSE)," ") ->  | C38: =VLOOKUP(+$B38,'resultaten immissietoets'!$A$27:$AA$84,24,FALSE) ->  | D38: =IF(ISBLANK($B38)=FALSE,VLOOKUP(+$B38,'resultaten immissietoets'!$A$27:$AA$84,10,FALSE)," ") ->  | E38: =VLOOKUP(+$B38,'resultaten immissietoets'!$A$27:$AA$84,26,FALSE) ->  | F38: =IF(ISBLANK($B38)=FALSE,VLOOKUP(+$B38,'resultaten immissietoets'!$A$27:$AI$84,35,FALSE)," ") ->  | G38: =LOG(IF(ISNUMBER(VLOOKUP(+$B38,'resultaten immissietoets'!$A$27:$AE$84,2,FALSE))=TRUE,VLOOKUP(+$B38,'resultaten immissietoets'!$A$27:$AE$84,2,FALSE),1)) -> 0 | H38: =IF(ISBLANK(B38)=FALSE,VLOOKUP(+$B38,'resultaten immissietoets'!$A$27:$AE$84,31,FALSE)," ") ->  | I38: =VLOOKUP(+$B38,'resultaten immissietoets'!$A$27:$AE$84,15,FALSE) ->  | K38: =IF(ISBLANK($B38)=FALSE,VLOOKUP(+$B38,'resultaten immissietoets'!$A$27:$AI$84,29,FALSE)," ") ->  | L38: =IF(AND(ISBLANK(B38)=FALSE,B38<>" "),N38*Y38*'resultaten immissietoets'!H$16*8760*3600/1000000,0) -> 0 | N38: =IF(B38<>" ",IF(N$9="nee",IF(ISBLANK($B38)=FALSE,IF(AND('beschrijving lozing'!I$7="algemene regels",+'beschrijving lozing'!I$19="nee",ISNA(VLOOKUP(+$B38,'beschrijving lozing'!B$27:Q$78,15,FALSE))=FALSE),MAX(VLOOKUP(+B38,'beschrijving lozing'!B$27:Q$78,15,FALSE),VLOOKUP(+$B38,'resultaten immissietoets'!$A$27:$AO$84,41,FALSE)),VLOOKUP(+$B38,'resultaten immissietoets'!$A$27:$AO$84,41,FALSE))," "),+P38)," ") ->  | O38: ja | R38: nee | S38: =IF(Q38="ZZS","ja",IF('ZZS-checker'!B38=1,"ja","nee")) -> nee | T38: 0 | U38: 0 | V38: nee | W38: =IF(ISBLANK($B38)=FALSE,IF(ISNA(VLOOKUP(+$B38,'resultaten immissietoets'!$A$27:$AO$84,14,FALSE))=FALSE,VLOOKUP(+$B38,'resultaten immissietoets'!$A$27:$AO$84,14,FALSE)," ")," ") ->  | Y38: =IF(AND(ISBLANK($B38)=FALSE,$B38<>" "),VLOOKUP(+$B38,'resultaten immissietoets'!$A$27:$BU$84,73,FALSE)," ") ->  | Z38: 0 | AB38: ja | AD38: 0 | AE38: 0 | AH38: 0 | AM38: =IF(AND(ISBLANK(B38)=FALSE,B38<>" "),VLOOKUP(+$B38,'resultaten immissietoets'!$A$27:$BK$84,63,FALSE)," ") ->  | AN38: 8 | AQ38: =IF(N$27>=9,AC38/W38,0) -> 0 | AU38: =IF('pot-ZZS-checker'!B23>0,"ja","nee") -> nee | AV38: 1 | AW38: 0 | AZ38: =IF(AND(ISBLANK(B38)=FALSE,B38<>" "),IF(D38<W38,IF(D38+((1-AA38/100)*Y38-D38)/'resultaten immissietoets'!J$24*IF(U$22="ja",1/(1+U$25*0.000001*10^G38),1)<W38,"nee","ja"),IF(((1-AA38)*Y38-D38)/'resultaten immissietoets'!J$24*IF(U$22="ja",1/(1+U$25*0.000001*10^G38),1)<=I38,"nee","ja"))," ") ->  | BA38: =IF(ISBLANK(B38)=FALSE,IF(BA$25="ja",IF(J38=" ",IF(D38+((1-AA38/100)*Y38-D38)/Q$20*IF(U$22="ja",1/(1+U$25*0.000001*10^G38),1)<=1,"nee","ja"),IF(D38+((1-AA38/100)*Y38-D38)/Q$20*IF(U$22="ja",1/(1+U$25*0.000001*10^G38),1)<='resultaten immissietoets'!AD36,"nee","ja")),"nee")," ") -> nee | BC38: nee | BD38: 0 | BH38: 0 | BK38: =IF(ISNA(VLOOKUP(B38,'resultaten immissietoets'!A$28:AO$84,41,FALSE))=FALSE,VLOOKUP(B38,'resultaten immissietoets'!A$28:AO$84,41,FALSE),0) -> 0 | BY38: 0 | BZ38: =IF(AND(B38<>" ",OR(+'beoordeling maatregel'!Q38="ZZS",S38="ja")),U38*L38,0) -> 0 | CA38: =IF(AND(B38<>" ",OR(B38="PFOS",B38="PFOA",B38="GENX",B38="overige PFAS",B38="6:2 FTS")),+'beoordeling maatregel'!L38*'beoordeling maatregel'!U38,0) -> 0
A39: 10 | B39: =IF(A39<=N$27,VLOOKUP(A38+1,'resultaten immissietoets'!AM$28:AN$84,2,FALSE)," ") ->  | C39: =VLOOKUP(+$B39,'resultaten immissietoets'!$A$27:$AA$84,24,FALSE) ->  | D39: =IF(ISBLANK($B39)=FALSE,VLOOKUP(+$B39,'resultaten immissietoets'!$A$27:$AA$84,10,FALSE)," ") ->  | E39: =VLOOKUP(+$B39,'resultaten immissietoets'!$A$27:$AA$84,26,FALSE) ->  | F39: =IF(ISBLANK($B39)=FALSE,VLOOKUP(+$B39,'resultaten immissietoets'!$A$27:$AI$84,35,FALSE)," ") ->  | G39: =LOG(IF(ISNUMBER(VLOOKUP(+$B39,'resultaten immissietoets'!$A$27:$AE$84,2,FALSE))=TRUE,VLOOKUP(+$B39,'resultaten immissietoets'!$A$27:$AE$84,2,FALSE),1)) -> 0 | H39: =IF(ISBLANK(B39)=FALSE,VLOOKUP(+$B39,'resultaten immissietoets'!$A$27:$AE$84,31,FALSE)," ") ->  | I39: =VLOOKUP(+$B39,'resultaten immissietoets'!$A$27:$AE$84,15,FALSE) ->  | K39: =IF(ISBLANK($B39)=FALSE,VLOOKUP(+$B39,'resultaten immissietoets'!$A$27:$AI$84,29,FALSE)," ") ->  | L39: =IF(AND(ISBLANK(B39)=FALSE,B39<>" "),N39*Y39*'resultaten immissietoets'!H$16*8760*3600/1000000,0) -> 0 | N39: =IF(B39<>" ",IF(N$9="nee",IF(ISBLANK($B39)=FALSE,IF(AND('beschrijving lozing'!I$7="algemene regels",+'beschrijving lozing'!I$19="nee",ISNA(VLOOKUP(+$B39,'beschrijving lozing'!B$27:Q$78,15,FALSE))=FALSE),MAX(VLOOKUP(+B39,'beschrijving lozing'!B$27:Q$78,15,FALSE),VLOOKUP(+$B39,'resultaten immissietoets'!$A$27:$AO$84,41,FALSE)),VLOOKUP(+$B39,'resultaten immissietoets'!$A$27:$AO$84,41,FALSE))," "),+P39)," ") ->  | O39: ja | R39: nee | S39: =IF(Q39="ZZS","ja",IF('ZZS-checker'!B39=1,"ja","nee")) -> nee | T39: 0 | U39: 0 | V39: nee | W39: =IF(ISBLANK($B39)=FALSE,IF(ISNA(VLOOKUP(+$B39,'resultaten immissietoets'!$A$27:$AO$84,14,FALSE))=FALSE,VLOOKUP(+$B39,'resultaten immissietoets'!$A$27:$AO$84,14,FALSE)," ")," ") ->  | Y39: =IF(AND(ISBLANK($B39)=FALSE,$B39<>" "),VLOOKUP(+$B39,'resultaten immissietoets'!$A$27:$BU$84,73,FALSE)," ") ->  | Z39: 0 | AB39: ja | AD39: 0 | AE39: 0 | AG39: =IF(ISBLANK(B39)=FALSE,IF(S39="ja",CONCATENATE(IF(AND(N$22="nee",AA39<BK39),"Er wordt NIET voldaan aan immissietoets-; "," "),IF(U$18<AE$25,"Het gaat om een ZZS-stof, verken verdergaande maatregelen om invulling te geven aan minimalisatieverplichting!"," ")),CONCATENATE(IF(AU39="ja","het gaat om een potentiële ZZS-stof; "," "),IF(AND(N$22="nee",AA39<BK39),"Er wordt NIET voldaan aan immissietoets; "," "),IF(AND(S39="nee",N$22="ja")," ",IF(N$22="ja",IF(AW39=0," ","verken verdergaande maatregelen om lozing te beperken")," "))))," ") ->  | AH39: 0 | AI39: =IF(AA39<BK39,IF(AND(ISBLANK(B39)=FALSE,B39<>" "),IF(BC39="ja","alleen sign-toets voldoet niet",CONCATENATE(IF(AX39="ja","sign-toets; "," "),IF(AY39="ja","normtoets; "," "),IF(AZ39="ja","KRW-toets; "," "),IF(BA39="ja","drinkwatertoets"," "),IF(AND(AX39="nee",AY39="nee",AZ39="nee",BA39="nee")," ",IF(BD39>1," voldoen niet"," voldoet niet"))))," ")," ") ->  | AM39: =IF(AND(ISBLANK(B39)=FALSE,B39<>" "),VLOOKUP(+$B39,'resultaten immissietoets'!$A$27:$BK$84,63,FALSE)," ") ->  | AN39: 9 | AQ39: =IF(N$27>=10,AC39/W39,0) -> 0 | AU39: =IF('pot-ZZS-checker'!B24>0,"ja","nee") -> nee | AV39: 1 | AW39: 0 | AZ39: =IF(AND(ISBLANK(B39)=FALSE,B39<>" "),IF(D39<W39,IF(D39+((1-AA39/100)*Y39-D39)/'resultaten immissietoets'!J$24*IF(U$22="ja",1/(1+U$25*0.000001*10^G39),1)<W39,"nee","ja"),IF(((1-AA39)*Y39-D39)/'resultaten immissietoets'!J$24*IF(U$22="ja",1/(1+U$25*0.000001*10^G39),1)<=I39,"nee","ja"))," ") ->  | BA39: =IF(ISBLANK(B39)=FALSE,IF(BA$25="ja",IF(J39=" ",IF(D39+((1-AA39/100)*Y39-D39)/Q$20*IF(U$22="ja",1/(1+U$25*0.000001*10^G39),1)<=1,"nee","ja"),IF(D39+((1-AA39/100)*Y39-D39)/Q$20*IF(U$22="ja",1/(1+U$25*0.000001*10^G39),1)<='resultaten immissietoets'!AD37,"nee","ja")),"nee")," ") -> nee | BC39: nee | BD39: 0 | BH39: 0 | BK39: =IF(ISNA(VLOOKUP(B39,'resultaten immissietoets'!A$28:AO$84,41,FALSE))=FALSE,VLOOKUP(B39,'resultaten immissietoets'!A$28:AO$84,41,FALSE),0) -> 0 | BY39: 0 | BZ39: =IF(AND(B39<>" ",OR(+'beoordeling maatregel'!Q39="ZZS",S39="ja")),U39*L39,0) -> 0 | CA39: =IF(AND(B39<>" ",OR(B39="PFOS",B39="PFOA",B39="GENX",B39="overige PFAS",B39="6:2 FTS")),+'beoordeling maatregel'!L39*'beoordeling maatregel'!U39,0) -> 0
A40: 11 | B40: =IF(A40<=N$27,VLOOKUP(A39+1,'resultaten immissietoets'!AM$28:AN$84,2,FALSE)," ") ->  | C40: =VLOOKUP(+$B40,'resultaten immissietoets'!$A$27:$AA$84,24,FALSE) ->  | D40: =IF(ISBLANK($B40)=FALSE,VLOOKUP(+$B40,'resultaten immissietoets'!$A$27:$AA$84,10,FALSE)," ") ->  | E40: =VLOOKUP(+$B40,'resultaten immissietoets'!$A$27:$AA$84,26,FALSE) ->  | F40: =IF(ISBLANK($B40)=FALSE,VLOOKUP(+$B40,'resultaten immissietoets'!$A$27:$AI$84,35,FALSE)," ") ->  | G40: =LOG(IF(ISNUMBER(VLOOKUP(+$B40,'resultaten immissietoets'!$A$27:$AE$84,2,FALSE))=TRUE,VLOOKUP(+$B40,'resultaten immissietoets'!$A$27:$AE$84,2,FALSE),1)) -> 0 | H40: =IF(ISBLANK(B40)=FALSE,VLOOKUP(+$B40,'resultaten immissietoets'!$A$27:$AE$84,31,FALSE)," ") ->  | I40: =VLOOKUP(+$B40,'resultaten immissietoets'!$A$27:$AE$84,15,FALSE) ->  | K40: =IF(ISBLANK($B40)=FALSE,VLOOKUP(+$B40,'resultaten immissietoets'!$A$27:$AI$84,29,FALSE)," ") ->  | L40: =IF(AND(ISBLANK(B40)=FALSE,B40<>" "),N40*Y40*'resultaten immissietoets'!H$16*8760*3600/1000000,0) -> 0 | N40: =IF(B40<>" ",IF(N$9="nee",IF(ISBLANK($B40)=FALSE,IF(AND('beschrijving lozing'!I$7="algemene regels",+'beschrijving lozing'!I$19="nee",ISNA(VLOOKUP(+$B40,'beschrijving lozing'!B$27:Q$78,15,FALSE))=FALSE),MAX(VLOOKUP(+B40,'beschrijving lozing'!B$27:Q$78,15,FALSE),VLOOKUP(+$B40,'resultaten immissietoets'!$A$27:$AO$84,41,FALSE)),VLOOKUP(+$B40,'resultaten immissietoets'!$A$27:$AO$84,41,FALSE))," "),+P40)," ") ->  | O40: ja | R40: nee | S40: =IF(Q40="ZZS","ja",IF('ZZS-checker'!B40=1,"ja","nee")) -> nee | T40: 0 | U40: 0 | V40: nee | W40: =IF(ISBLANK($B40)=FALSE,IF(ISNA(VLOOKUP(+$B40,'resultaten immissietoets'!$A$27:$AO$84,14,FALSE))=FALSE,VLOOKUP(+$B40,'resultaten immissietoets'!$A$27:$AO$84,14,FALSE)," ")," ") ->  | Y40: =IF(AND(ISBLANK($B40)=FALSE,$B40<>" "),VLOOKUP(+$B40,'resultaten immissietoets'!$A$27:$BU$84,73,FALSE)," ") ->  | Z40: 0 | AB40: ja | AD40: 0 | AE40: 0 | AH40: 0 | AM40: =IF(AND(ISBLANK(B40)=FALSE,B40<>" "),VLOOKUP(+$B40,'resultaten immissietoets'!$A$27:$BK$84,63,FALSE)," ") ->  | AN40: 10 | AQ40: =IF(N$27>=11,AC40/W40,0) -> 0 | AU40: =IF('pot-ZZS-checker'!B25>0,"ja","nee") -> nee | AV40: 1 | AW40: 0 | AZ40: =IF(AND(ISBLANK(B40)=FALSE,B40<>" "),IF(D40<W40,IF(D40+((1-AA40/100)*Y40-D40)/'resultaten immissietoets'!J$24*IF(U$22="ja",1/(1+U$25*0.000001*10^G40),1)<W40,"nee","ja"),IF(((1-AA40)*Y40-D40)/'resultaten immissietoets'!J$24*IF(U$22="ja",1/(1+U$25*0.000001*10^G40),1)<=I40,"nee","ja"))," ") ->  | BA40: =IF(ISBLANK(B40)=FALSE,IF(BA$25="ja",IF(J40=" ",IF(D40+((1-AA40/100)*Y40-D40)/Q$20*IF(U$22="ja",1/(1+U$25*0.000001*10^G40),1)<=1,"nee","ja"),IF(D40+((1-AA40/100)*Y40-D40)/Q$20*IF(U$22="ja",1/(1+U$25*0.000001*10^G40),1)<='resultaten immissietoets'!AD38,"nee","ja")),"nee")," ") -> nee | BC40: nee | BD40: 0 | BH40: 0 | BK40: =IF(ISNA(VLOOKUP(B40,'resultaten immissietoets'!A$28:AO$84,41,FALSE))=FALSE,VLOOKUP(B40,'resultaten immissietoets'!A$28:AO$84,41,FALSE),0) -> 0 | BY40: 0 | BZ40: =IF(AND(B40<>" ",OR(+'beoordeling maatregel'!Q40="ZZS",S40="ja")),U40*L40,0) -> 0 | CA40: =IF(AND(B40<>" ",OR(B40="PFOS",B40="PFOA",B40="GENX",B40="overige PFAS",B40="6:2 FTS")),+'beoordeling maatregel'!L40*'beoordeling maatregel'!U40,0) -> 0
A41: 12 | B41: =IF(A41<=N$27,VLOOKUP(A40+1,'resultaten immissietoets'!AM$28:AN$84,2,FALSE)," ") ->  | C41: =VLOOKUP(+$B41,'resultaten immissietoets'!$A$27:$AA$84,24,FALSE) ->  | D41: =IF(ISBLANK($B41)=FALSE,VLOOKUP(+$B41,'resultaten immissietoets'!$A$27:$AA$84,10,FALSE)," ") ->  | E41: =VLOOKUP(+$B41,'resultaten immissietoets'!$A$27:$AA$84,26,FALSE) ->  | F41: =IF(ISBLANK($B41)=FALSE,VLOOKUP(+$B41,'resultaten immissietoets'!$A$27:$AI$84,35,FALSE)," ") ->  | G41: =LOG(IF(ISNUMBER(VLOOKUP(+$B41,'resultaten immissietoets'!$A$27:$AE$84,2,FALSE))=TRUE,VLOOKUP(+$B41,'resultaten immissietoets'!$A$27:$AE$84,2,FALSE),1)) -> 0 | H41: =IF(ISBLANK(B41)=FALSE,VLOOKUP(+$B41,'resultaten immissietoets'!$A$27:$AE$84,31,FALSE)," ") ->  | I41: =VLOOKUP(+$B41,'resultaten immissietoets'!$A$27:$AE$84,15,FALSE) ->  | K41: =IF(ISBLANK($B41)=FALSE,VLOOKUP(+$B41,'resultaten immissietoets'!$A$27:$AI$84,29,FALSE)," ") ->  | L41: =IF(AND(ISBLANK(B41)=FALSE,B41<>" "),N41*Y41*'resultaten immissietoets'!H$16*8760*3600/1000000,0) -> 0 | N41: =IF(B41<>" ",IF(N$9="nee",IF(ISBLANK($B41)=FALSE,IF(AND('beschrijving lozing'!I$7="algemene regels",+'beschrijving lozing'!I$19="nee",ISNA(VLOOKUP(+$B41,'beschrijving lozing'!B$27:Q$78,15,FALSE))=FALSE),MAX(VLOOKUP(+B41,'beschrijving lozing'!B$27:Q$78,15,FALSE),VLOOKUP(+$B41,'resultaten immissietoets'!$A$27:$AO$84,41,FALSE)),VLOOKUP(+$B41,'resultaten immissietoets'!$A$27:$AO$84,41,FALSE))," "),+P41)," ") ->  | O41: ja | R41: nee | S41: =IF(Q41="ZZS","ja",IF('ZZS-checker'!B41=1,"ja","nee")) -> nee | T41: 0 | U41: 0 | V41: nee | W41: =IF(ISBLANK($B41)=FALSE,IF(ISNA(VLOOKUP(+$B41,'resultaten immissietoets'!$A$27:$AO$84,14,FALSE))=FALSE,VLOOKUP(+$B41,'resultaten immissietoets'!$A$27:$AO$84,14,FALSE)," ")," ") ->  | Y41: =IF(AND(ISBLANK($B41)=FALSE,$B41<>" "),VLOOKUP(+$B41,'resultaten immissietoets'!$A$27:$BU$84,73,FALSE)," ") ->  | Z41: 0 | AB41: ja | AD41: 0 | AE41: 0 | AH41: 0 | AM41: =IF(AND(ISBLANK(B41)=FALSE,B41<>" "),VLOOKUP(+$B41,'resultaten immissietoets'!$A$27:$BK$84,63,FALSE)," ") ->  | AN41: 11 | AQ41: =IF(N$27>=12,AC41/W41,0) -> 0 | AU41: =IF('pot-ZZS-checker'!B26>0,"ja","nee") -> nee | AV41: 1 | AW41: 0 | AZ41: =IF(AND(ISBLANK(B41)=FALSE,B41<>" "),IF(D41<W41,IF(D41+((1-AA41/100)*Y41-D41)/'resultaten immissietoets'!J$24*IF(U$22="ja",1/(1+U$25*0.000001*10^G41),1)<W41,"nee","ja"),IF(((1-AA41)*Y41-D41)/'resultaten immissietoets'!J$24*IF(U$22="ja",1/(1+U$25*0.000001*10^G41),1)<=I41,"nee","ja"))," ") ->  | BA41: =IF(ISBLANK(B41)=FALSE,IF(BA$25="ja",IF(J41=" ",IF(D41+((1-AA41/100)*Y41-D41)/Q$20*IF(U$22="ja",1/(1+U$25*0.000001*10^G41),1)<=1,"nee","ja"),IF(D41+((1-AA41/100)*Y41-D41)/Q$20*IF(U$22="ja",1/(1+U$25*0.000001*10^G41),1)<='resultaten immissietoets'!AD39,"nee","ja")),"nee")," ") -> nee | BC41: nee | BD41: 0 | BH41: 0 | BK41: =IF(ISNA(VLOOKUP(B41,'resultaten immissietoets'!A$28:AO$84,41,FALSE))=FALSE,VLOOKUP(B41,'resultaten immissietoets'!A$28:AO$84,41,FALSE),0) -> 0 | BY41: 0 | BZ41: =IF(AND(B41<>" ",OR(+'beoordeling maatregel'!Q41="ZZS",S41="ja")),U41*L41,0) -> 0 | CA41: =IF(AND(B41<>" ",OR(B41="PFOS",B41="PFOA",B41="GENX",B41="overige PFAS",B41="6:2 FTS")),+'beoordeling maatregel'!L41*'beoordeling maatregel'!U41,0) -> 0
A42: 13 | B42: =IF(A42<=N$27,VLOOKUP(A41+1,'resultaten immissietoets'!AM$28:AN$84,2,FALSE)," ") ->  | C42: =VLOOKUP(+$B42,'resultaten immissietoets'!$A$27:$AA$84,24,FALSE) ->  | D42: =IF(ISBLANK($B42)=FALSE,VLOOKUP(+$B42,'resultaten immissietoets'!$A$27:$AA$84,10,FALSE)," ") ->  | E42: =VLOOKUP(+$B42,'resultaten immissietoets'!$A$27:$AA$84,26,FALSE) ->  | F42: =IF(ISBLANK($B42)=FALSE,VLOOKUP(+$B42,'resultaten immissietoets'!$A$27:$AI$84,35,FALSE)," ") ->  | G42: =LOG(IF(ISNUMBER(VLOOKUP(+$B42,'resultaten immissietoets'!$A$27:$AE$84,2,FALSE))=TRUE,VLOOKUP(+$B42,'resultaten immissietoets'!$A$27:$AE$84,2,FALSE),1)) -> 0 | H42: =IF(ISBLANK(B42)=FALSE,VLOOKUP(+$B42,'resultaten immissietoets'!$A$27:$AE$84,31,FALSE)," ") ->  | I42: =VLOOKUP(+$B42,'resultaten immissietoets'!$A$27:$AE$84,15,FALSE) ->  | K42: =IF(ISBLANK($B42)=FALSE,VLOOKUP(+$B42,'resultaten immissietoets'!$A$27:$AI$84,29,FALSE)," ") ->  | L42: =IF(AND(ISBLANK(B42)=FALSE,B42<>" "),N42*Y42*'resultaten immissietoets'!H$16*8760*3600/1000000,0) -> 0 | N42: =IF(B42<>" ",IF(N$9="nee",IF(ISBLANK($B42)=FALSE,IF(AND('beschrijving lozing'!I$7="algemene regels",+'beschrijving lozing'!I$19="nee",ISNA(VLOOKUP(+$B42,'beschrijving lozing'!B$27:Q$78,15,FALSE))=FALSE),MAX(VLOOKUP(+B42,'beschrijving lozing'!B$27:Q$78,15,FALSE),VLOOKUP(+$B42,'resultaten immissietoets'!$A$27:$AO$84,41,FALSE)),VLOOKUP(+$B42,'resultaten immissietoets'!$A$27:$AO$84,41,FALSE))," "),+P42)," ") ->  | O42: ja | R42: nee | S42: =IF(Q42="ZZS","ja",IF('ZZS-checker'!B42=1,"ja","nee")) -> nee | T42: 0 | U42: 0 | V42: nee | W42: =IF(ISBLANK($B42)=FALSE,IF(ISNA(VLOOKUP(+$B42,'resultaten immissietoets'!$A$27:$AO$84,14,FALSE))=FALSE,VLOOKUP(+$B42,'resultaten immissietoets'!$A$27:$AO$84,14,FALSE)," ")," ") ->  | Y42: =IF(AND(ISBLANK($B42)=FALSE,$B42<>" "),VLOOKUP(+$B42,'resultaten immissietoets'!$A$27:$BU$84,73,FALSE)," ") ->  | Z42: 0 | AB42: ja | AD42: 0 | AE42: 0 | AG42: =IF(ISBLANK(B42)=FALSE,IF(S42="ja",CONCATENATE(IF(AND(N$22="nee",AA42<BK42),"Er wordt NIET voldaan aan immissietoets; "," "),IF(U$18<AE$25,"Het gaat om een ZZS-stof, verken verdergaande maatregelen om invulling te geven aan minimalisatieverplichting!"," ")),CONCATENATE(IF(AU42="ja","het gaat om een potentiële ZZS-stof; "," "),IF(AND(N$22="nee",AA42<BK42),"Er wordt NIET voldaan aan immissietoets-; "," "),IF(AND(S42="nee",N$22="ja")," ",IF(N$22="ja",IF(AW42=0," ","verken verdergaande maatregelen om lozing te beperken")," "))))," ") ->  | AH42: 0 | AM42: =IF(AND(ISBLANK(B42)=FALSE,B42<>" "),VLOOKUP(+$B42,'resultaten immissietoets'!$A$27:$BK$84,63,FALSE)," ") ->  | AN42: 12 | AQ42: =IF(N$27>=13,AC42/W42,0) -> 0 | AU42: =IF('pot-ZZS-checker'!B27>0,"ja","nee") -> nee | AV42: 1 | AW42: 0 | AZ42: =IF(AND(ISBLANK(B42)=FALSE,B42<>" "),IF(D42<W42,IF(D42+((1-AA42/100)*Y42-D42)/'resultaten immissietoets'!J$24*IF(U$22="ja",1/(1+U$25*0.000001*10^G42),1)<W42,"nee","ja"),IF(((1-AA42)*Y42-D42)/'resultaten immissietoets'!J$24*IF(U$22="ja",1/(1+U$25*0.000001*10^G42),1)<=I42,"nee","ja"))," ") ->  | BA42: =IF(ISBLANK(B42)=FALSE,IF(BA$25="ja",IF(J42=" ",IF(D42+((1-AA42/100)*Y42-D42)/Q$20*IF(U$22="ja",1/(1+U$25*0.000001*10^G42),1)<=1,"nee","ja"),IF(D42+((1-AA42/100)*Y42-D42)/Q$20*IF(U$22="ja",1/(1+U$25*0.000001*10^G42),1)<='resultaten immissietoets'!AD40,"nee","ja")),"nee")," ") -> nee | BC42: nee | BD42: 0 | BH42: 0 | BK42: =IF(ISNA(VLOOKUP(B42,'resultaten immissietoets'!A$28:AO$84,41,FALSE))=FALSE,VLOOKUP(B42,'resultaten immissietoets'!A$28:AO$84,41,FALSE),0) -> 0 | BY42: 0 | BZ42: =IF(AND(B42<>" ",OR(+'beoordeling maatregel'!Q42="ZZS",S42="ja")),U42*L42,0) -> 0 | CA42: =IF(AND(B42<>" ",OR(B42="PFOS",B42="PFOA",B42="GENX",B42="overige PFAS",B42="6:2 FTS")),+'beoordeling maatregel'!L42*'beoordeling maatregel'!U42,0) -> 0
A43: 14 | B43: =IF(A43<=N$27,VLOOKUP(A42+1,'resultaten immissietoets'!AM$28:AN$84,2,FALSE)," ") ->  | C43: =VLOOKUP(+$B43,'resultaten immissietoets'!$A$27:$AA$84,24,FALSE) ->  | D43: =IF(ISBLANK($B43)=FALSE,VLOOKUP(+$B43,'resultaten immissietoets'!$A$27:$AA$84,10,FALSE)," ") ->  | E43: =VLOOKUP(+$B43,'resultaten immissietoets'!$A$27:$AA$84,26,FALSE) ->  | F43: =IF(ISBLANK($B43)=FALSE,VLOOKUP(+$B43,'resultaten immissietoets'!$A$27:$AI$84,35,FALSE)," ") ->  | G43: =LOG(IF(ISNUMBER(VLOOKUP(+$B43,'resultaten immissietoets'!$A$27:$AE$84,2,FALSE))=TRUE,VLOOKUP(+$B43,'resultaten immissietoets'!$A$27:$AE$84,2,FALSE),1)) -> 0 | H43: =IF(ISBLANK(B43)=FALSE,VLOOKUP(+$B43,'resultaten immissietoets'!$A$27:$AE$84,31,FALSE)," ") ->  | I43: =VLOOKUP(+$B43,'resultaten immissietoets'!$A$27:$AE$84,15,FALSE) ->  | K43: =IF(ISBLANK($B43)=FALSE,VLOOKUP(+$B43,'resultaten immissietoets'!$A$27:$AI$84,29,FALSE)," ") ->  | L43: =IF(AND(ISBLANK(B43)=FALSE,B43<>" "),N43*Y43*'resultaten immissietoets'!H$16*8760*3600/1000000,0) -> 0 | N43: =IF(B43<>" ",IF(N$9="nee",IF(ISBLANK($B43)=FALSE,IF(AND('beschrijving lozing'!I$7="algemene regels",+'beschrijving lozing'!I$19="nee",ISNA(VLOOKUP(+$B43,'beschrijving lozing'!B$27:Q$78,15,FALSE))=FALSE),MAX(VLOOKUP(+B43,'beschrijving lozing'!B$27:Q$78,15,FALSE),VLOOKUP(+$B43,'resultaten immissietoets'!$A$27:$AO$84,41,FALSE)),VLOOKUP(+$B43,'resultaten immissietoets'!$A$27:$AO$84,41,FALSE))," "),+P43)," ") ->  | O43: ja | R43: nee | S43: =IF(Q43="ZZS","ja",IF('ZZS-checker'!B43=1,"ja","nee")) -> nee | T43: 0 | U43: 0 | V43: nee | W43: =IF(ISBLANK($B43)=FALSE,IF(ISNA(VLOOKUP(+$B43,'resultaten immissietoets'!$A$27:$AO$84,14,FALSE))=FALSE,VLOOKUP(+$B43,'resultaten immissietoets'!$A$27:$AO$84,14,FALSE)," ")," ") ->  | Y43: =IF(AND(ISBLANK($B43)=FALSE,$B43<>" "),VLOOKUP(+$B43,'resultaten immissietoets'!$A$27:$BU$84,73,FALSE)," ") ->  | Z43: 0 | AB43: ja | AD43: 0 | AE43: 0 | AG43: =IF(ISBLANK(B43)=FALSE,IF(S43="ja",CONCATENATE(IF(AND(N$22="nee",AA43<BK43),"Er wordt NIET voldaan aan immissietoets-; "," "),IF(U$18<AE$25,"Het gaat om een ZZS-stof, verken verdergaande maatregelen om invulling te geven aan minimalisatieverplichting!"," ")),CONCATENATE(IF(AU43="ja","het gaat om een potentiële ZZS-stof; "," "),IF(AND(N$22="nee",AA43<BK43),"Er wordt NIET voldaan aan immissietoets; "," "),IF(AND(S43="nee",N$22="ja")," ",IF(N$22="ja",IF(AW43=0," ","verken verdergaande maatregelen om lozing te beperken")," "))))," ") ->  | AH43: 0 | AM43: =IF(AND(ISBLANK(B43)=FALSE,B43<>" "),VLOOKUP(+$B43,'resultaten immissietoets'!$A$27:$BK$84,63,FALSE)," ") ->  | AN43: 13 | AQ43: =IF(N$27>=14,AC43/W43,0) -> 0 | AU43: =IF('pot-ZZS-checker'!B28>0,"ja","nee") -> nee | AV43: =IF(AND(ISBLANK(B43)=FALSE,ISBLANK(Q43)=TRUE,B43<>" "),1,0) -> 0 | AW43: =IF(OR(AX43="ja",AY43="ja",AZ43="ja",BA43="ja"),1,0) -> 0 | AZ43: =IF(AND(ISBLANK(B43)=FALSE,B43<>" "),IF(D43<W43,IF(D43+((1-AA43/100)*Y43-D43)/'resultaten immissietoets'!J$24*IF(U$22="ja",1/(1+U$25*0.000001*10^G43),1)<W43,"nee","ja"),IF(((1-AA43)*Y43-D43)/'resultaten immissietoets'!J$24*IF(U$22="ja",1/(1+U$25*0.000001*10^G43),1)<=I43,"nee","ja"))," ") ->  | BA43: =IF(ISBLANK(B43)=FALSE,IF(BA$25="ja",IF(J43=" ",IF(D43+((1-AA43/100)*Y43-D43)/Q$20*IF(U$22="ja",1/(1+U$25*0.000001*10^G43),1)<=1,"nee","ja"),IF(D43+((1-AA43/100)*Y43-D43)/Q$20*IF(U$22="ja",1/(1+U$25*0.000001*10^G43),1)<='resultaten immissietoets'!AD41,"nee","ja")),"nee")," ") -> nee | BC43: nee | BD43: =COUNTIF(AX43:BA43,"ja") -> 0 | BH43: 0 | BK43: =IF(ISNA(VLOOKUP(B43,'resultaten immissietoets'!A$28:AO$84,41,FALSE))=FALSE,VLOOKUP(B43,'resultaten immissietoets'!A$28:AO$84,41,FALSE),0) -> 0 | BY43: 0 | BZ43: =IF(AND(B43<>" ",OR(+'beoordeling maatregel'!Q43="ZZS",S43="ja")),U43*L43,0) -> 0 | CA43: =IF(AND(B43<>" ",OR(B43="PFOS",B43="PFOA",B43="GENX",B43="overige PFAS",B43="6:2 FTS")),+'beoordeling maatregel'!L43*'beoordeling maatregel'!U43,0) -> 0
A44: 15 | B44: =IF(A44<=N$27,VLOOKUP(A43+1,'resultaten immissietoets'!AM$28:AN$84,2,FALSE)," ") ->  | C44: =VLOOKUP(+$B44,'resultaten immissietoets'!$A$27:$AA$84,24,FALSE) ->  | D44: =IF(ISBLANK($B44)=FALSE,VLOOKUP(+$B44,'resultaten immissietoets'!$A$27:$AA$84,10,FALSE)," ") ->  | E44: =VLOOKUP(+$B44,'resultaten immissietoets'!$A$27:$AA$84,26,FALSE) ->  | F44: =IF(ISBLANK($B44)=FALSE,VLOOKUP(+$B44,'resultaten immissietoets'!$A$27:$AI$84,35,FALSE)," ") ->  | G44: =LOG(IF(ISNUMBER(VLOOKUP(+$B44,'resultaten immissietoets'!$A$27:$AE$84,2,FALSE))=TRUE,VLOOKUP(+$B44,'resultaten immissietoets'!$A$27:$AE$84,2,FALSE),1)) -> 0 | H44: =IF(ISBLANK(B44)=FALSE,VLOOKUP(+$B44,'resultaten immissietoets'!$A$27:$AE$84,31,FALSE)," ") ->  | I44: =VLOOKUP(+$B44,'resultaten immissietoets'!$A$27:$AE$84,15,FALSE) ->  | K44: =IF(ISBLANK($B44)=FALSE,VLOOKUP(+$B44,'resultaten immissietoets'!$A$27:$AI$84,29,FALSE)," ") ->  | L44: =IF(AND(ISBLANK(B44)=FALSE,B44<>" "),N44*Y44*'resultaten immissietoets'!H$16*8760*3600/1000000,0) -> 0 | N44: =IF(B44<>" ",IF(N$9="nee",IF(ISBLANK($B44)=FALSE,IF(AND('beschrijving lozing'!I$7="algemene regels",+'beschrijving lozing'!I$19="nee",ISNA(VLOOKUP(+$B44,'beschrijving lozing'!B$27:Q$78,15,FALSE))=FALSE),MAX(VLOOKUP(+B44,'beschrijving lozing'!B$27:Q$78,15,FALSE),VLOOKUP(+$B44,'resultaten immissietoets'!$A$27:$AO$84,41,FALSE)),VLOOKUP(+$B44,'resultaten immissietoets'!$A$27:$AO$84,41,FALSE))," "),+P44)," ") ->  | O44: ja | R44: nee | S44: =IF(Q44="ZZS","ja",IF('ZZS-checker'!B44=1,"ja","nee")) -> nee | T44: 0 | U44: 0 | V44: nee | W44: =IF(ISBLANK($B44)=FALSE,IF(ISNA(VLOOKUP(+$B44,'resultaten immissietoets'!$A$27:$AO$84,14,FALSE))=FALSE,VLOOKUP(+$B44,'resultaten immissietoets'!$A$27:$AO$84,14,FALSE)," ")," ") ->  | Y44: =IF(AND(ISBLANK($B44)=FALSE,$B44<>" "),VLOOKUP(+$B44,'resultaten immissietoets'!$A$27:$BU$84,73,FALSE)," ") ->  | Z44: 0 | AB44: ja | AD44: 0 | AE44: 0 | AH44: 0 | AM44: =IF(AND(ISBLANK(B44)=FALSE,B44<>" "),VLOOKUP(+$B44,'resultaten immissietoets'!$A$27:$BK$84,63,FALSE)," ") ->  | AN44: 14 | AQ44: =IF(N$27>=15,AC44/W44,0) -> 0 | AU44: =IF('pot-ZZS-checker'!B29>0,"ja","nee") -> nee | AV44: 0 | AW44: =IF(OR(AX44="ja",AY44="ja",AZ44="ja",BA44="ja"),1,0) -> 0 | AZ44: =IF(AND(ISBLANK(B44)=FALSE,B44<>" "),IF(D44<W44,IF(D44+((1-AA44/100)*Y44-D44)/'resultaten immissietoets'!J$24*IF(U$22="ja",1/(1+U$25*0.000001*10^G44),1)<W44,"nee","ja"),IF(((1-AA44)*Y44-D44)/'resultaten immissietoets'!J$24*IF(U$22="ja",1/(1+U$25*0.000001*10^G44),1)<=I44,"nee","ja"))," ") ->  | BA44: =IF(ISBLANK(B44)=FALSE,IF(BA$25="ja",IF(J44=" ",IF(D44+((1-AA44/100)*Y44-D44)/Q$20*IF(U$22="ja",1/(1+U$25*0.000001*10^G44),1)<=1,"nee","ja"),IF(D44+((1-AA44/100)*Y44-D44)/Q$20*IF(U$22="ja",1/(1+U$25*0.000001*10^G44),1)<='resultaten immissietoets'!AD42,"nee","ja")),"nee")," ") -> nee | BC44: nee | BD44: =COUNTIF(AX44:BA44,"ja") -> 0 | BH44: 0 | BK44: =IF(ISNA(VLOOKUP(B44,'resultaten immissietoets'!A$28:AO$84,41,FALSE))=FALSE,VLOOKUP(B44,'resultaten immissietoets'!A$28:AO$84,41,FALSE),0) -> 0 | BY44: 0 | BZ44: =IF(AND(B44<>" ",OR(+'beoordeling maatregel'!Q44="ZZS",S44="ja")),U44*L44,0) -> 0 | CA44: =IF(AND(B44<>" ",OR(B44="PFOS",B44="PFOA",B44="GENX",B44="overige PFAS",B44="6:2 FTS")),+'beoordeling maatregel'!L44*'beoordeling maatregel'!U44,0) -> 0
A45: 16 | B45: =IF(A45<=N$27,VLOOKUP(A44+1,'resultaten immissietoets'!AM$28:AN$84,2,FALSE)," ") ->  | C45: =VLOOKUP(+$B45,'resultaten immissietoets'!$A$27:$AA$84,24,FALSE) ->  | D45: =IF(ISBLANK($B45)=FALSE,VLOOKUP(+$B45,'resultaten immissietoets'!$A$27:$AA$84,10,FALSE)," ") ->  | E45: =VLOOKUP(+$B45,'resultaten immissietoets'!$A$27:$AA$84,26,FALSE) ->  | F45: =IF(ISBLANK($B45)=FALSE,VLOOKUP(+$B45,'resultaten immissietoets'!$A$27:$AI$84,35,FALSE)," ") ->  | G45: =LOG(IF(ISNUMBER(VLOOKUP(+$B45,'resultaten immissietoets'!$A$27:$AE$84,2,FALSE))=TRUE,VLOOKUP(+$B45,'resultaten immissietoets'!$A$27:$AE$84,2,FALSE),1)) -> 0 | H45: =IF(ISBLANK(B45)=FALSE,VLOOKUP(+$B45,'resultaten immissietoets'!$A$27:$AE$84,31,FALSE)," ") ->  | I45: =VLOOKUP(+$B45,'resultaten immissietoets'!$A$27:$AE$84,15,FALSE) ->  | K45: =IF(ISBLANK($B45)=FALSE,VLOOKUP(+$B45,'resultaten immissietoets'!$A$27:$AI$84,29,FALSE)," ") ->  | L45: =IF(AND(ISBLANK(B45)=FALSE,B45<>" "),N45*Y45*'resultaten immissietoets'!H$16*8760*3600/1000000,0) -> 0 | N45: =IF(B45<>" ",IF(N$9="nee",IF(ISBLANK($B45)=FALSE,IF(AND('beschrijving lozing'!I$7="algemene regels",+'beschrijving lozing'!I$19="nee",ISNA(VLOOKUP(+$B45,'beschrijving lozing'!B$27:Q$78,15,FALSE))=FALSE),MAX(VLOOKUP(+B45,'beschrijving lozing'!B$27:Q$78,15,FALSE),VLOOKUP(+$B45,'resultaten immissietoets'!$A$27:$AO$84,41,FALSE)),VLOOKUP(+$B45,'resultaten immissietoets'!$A$27:$AO$84,41,FALSE))," "),+P45)," ") ->  | O45: ja | R45: nee | S45: =IF(Q45="ZZS","ja",IF('ZZS-checker'!B45=1,"ja","nee")) -> nee | T45: 0 | U45: 0 | V45: nee | W45: =IF(ISBLANK($B45)=FALSE,IF(ISNA(VLOOKUP(+$B45,'resultaten immissietoets'!$A$27:$AO$84,14,FALSE))=FALSE,VLOOKUP(+$B45,'resultaten immissietoets'!$A$27:$AO$84,14,FALSE)," ")," ") ->  | Y45: =IF(AND(ISBLANK($B45)=FALSE,$B45<>" "),VLOOKUP(+$B45,'resultaten immissietoets'!$A$27:$BU$84,73,FALSE)," ") ->  | Z45: 0 | AB45: ja | AD45: 0 | AE45: 0 | AH45: 0 | AM45: =IF(AND(ISBLANK(B45)=FALSE,B45<>" "),VLOOKUP(+$B45,'resultaten immissietoets'!$A$27:$BK$84,63,FALSE)," ") ->  | AN45: 15 | AQ45: =IF(N$27>=16,AC45/W45,0) -> 0 | AU45: =IF('pot-ZZS-checker'!B30>0,"ja","nee") -> nee | AV45: 0 | AW45: 0 | AZ45: =IF(AND(ISBLANK(B45)=FALSE,B45<>" "),IF(D45<W45,IF(D45+((1-AA45/100)*Y45-D45)/'resultaten immissietoets'!J$24*IF(U$22="ja",1/(1+U$25*0.000001*10^G45),1)<W45,"nee","ja"),IF(((1-AA45)*Y45-D45)/'resultaten immissietoets'!J$24*IF(U$22="ja",1/(1+U$25*0.000001*10^G45),1)<=I45,"nee","ja"))," ") ->  | BA45: =IF(ISBLANK(B45)=FALSE,IF(BA$25="ja",IF(J45=" ",IF(D45+((1-AA45/100)*Y45-D45)/Q$20*IF(U$22="ja",1/(1+U$25*0.000001*10^G45),1)<=1,"nee","ja"),IF(D45+((1-AA45/100)*Y45-D45)/Q$20*IF(U$22="ja",1/(1+U$25*0.000001*10^G45),1)<='resultaten immissietoets'!AD43,"nee","ja")),"nee")," ") -> nee | BC45: nee | BD45: 0 | BH45: 0 | BK45: =IF(ISNA(VLOOKUP(B45,'resultaten immissietoets'!A$28:AO$84,41,FALSE))=FALSE,VLOOKUP(B45,'resultaten immissietoets'!A$28:AO$84,41,FALSE),0) -> 0 | BY45: 0 | BZ45: =IF(AND(B45<>" ",OR(+'beoordeling maatregel'!Q45="ZZS",S45="ja")),U45*L45,0) -> 0 | CA45: =IF(AND(B45<>" ",OR(B45="PFOS",B45="PFOA",B45="GENX",B45="overige PFAS",B45="6:2 FTS")),+'beoordeling maatregel'!L45*'beoordeling maatregel'!U45,0) -> 0
A46: 17 | B46: =IF(A46<=N$27,VLOOKUP(A45+1,'resultaten immissietoets'!AM$28:AN$84,2,FALSE)," ") ->  | C46: =VLOOKUP(+$B46,'resultaten immissietoets'!$A$27:$AA$84,24,FALSE) ->  | D46: =IF(ISBLANK($B46)=FALSE,VLOOKUP(+$B46,'resultaten immissietoets'!$A$27:$AA$84,10,FALSE)," ") ->  | E46: =VLOOKUP(+$B46,'resultaten immissietoets'!$A$27:$AA$84,26,FALSE) ->  | F46: =IF(ISBLANK($B46)=FALSE,VLOOKUP(+$B46,'resultaten immissietoets'!$A$27:$AI$84,35,FALSE)," ") ->  | G46: =LOG(IF(ISNUMBER(VLOOKUP(+$B46,'resultaten immissietoets'!$A$27:$AE$84,2,FALSE))=TRUE,VLOOKUP(+$B46,'resultaten immissietoets'!$A$27:$AE$84,2,FALSE),1)) -> 0 | H46: =IF(ISBLANK(B46)=FALSE,VLOOKUP(+$B46,'resultaten immissietoets'!$A$27:$AE$84,31,FALSE)," ") ->  | I46: =VLOOKUP(+$B46,'resultaten immissietoets'!$A$27:$AE$84,15,FALSE) ->  | K46: =IF(ISBLANK($B46)=FALSE,VLOOKUP(+$B46,'resultaten immissietoets'!$A$27:$AI$84,29,FALSE)," ") ->  | L46: =IF(AND(ISBLANK(B46)=FALSE,B46<>" "),N46*Y46*'resultaten immissietoets'!H$16*8760*3600/1000000,0) -> 0 | N46: =IF(B46<>" ",IF(N$9="nee",IF(ISBLANK($B46)=FALSE,IF(AND('beschrijving lozing'!I$7="algemene regels",+'beschrijving lozing'!I$19="nee",ISNA(VLOOKUP(+$B46,'beschrijving lozing'!B$27:Q$78,15,FALSE))=FALSE),MAX(VLOOKUP(+B46,'beschrijving lozing'!B$27:Q$78,15,FALSE),VLOOKUP(+$B46,'resultaten immissietoets'!$A$27:$AO$84,41,FALSE)),VLOOKUP(+$B46,'resultaten immissietoets'!$A$27:$AO$84,41,FALSE))," "),+P46)," ") ->  | O46: ja | R46: nee | S46: =IF(Q46="ZZS","ja",IF('ZZS-checker'!B46=1,"ja","nee")) -> nee | T46: 0 | U46: 0 | V46: nee | W46: =IF(ISBLANK($B46)=FALSE,IF(ISNA(VLOOKUP(+$B46,'resultaten immissietoets'!$A$27:$AO$84,14,FALSE))=FALSE,VLOOKUP(+$B46,'resultaten immissietoets'!$A$27:$AO$84,14,FALSE)," ")," ") ->  | Y46: =IF(AND(ISBLANK($B46)=FALSE,$B46<>" "),VLOOKUP(+$B46,'resultaten immissietoets'!$A$27:$BU$84,73,FALSE)," ") ->  | Z46: 0 | AB46: ja | AD46: 0 | AE46: 0 | AH46: 0 | AM46: =IF(AND(ISBLANK(B46)=FALSE,B46<>" "),VLOOKUP(+$B46,'resultaten immissietoets'!$A$27:$BK$84,63,FALSE)," ") ->  | AN46: 16 | AQ46: =IF(N$27>=17,AC46/W46,0) -> 0 | AU46: =IF('pot-ZZS-checker'!B31>0,"ja","nee") -> nee | AV46: 0 | AW46: 0 | AZ46: =IF(AND(ISBLANK(B46)=FALSE,B46<>" "),IF(D46<W46,IF(D46+((1-AA46/100)*Y46-D46)/'resultaten immissietoets'!J$24*IF(U$22="ja",1/(1+U$25*0.000001*10^G46),1)<W46,"nee","ja"),IF(((1-AA46)*Y46-D46)/'resultaten immissietoets'!J$24*IF(U$22="ja",1/(1+U$25*0.000001*10^G46),1)<=I46,"nee","ja"))," ") ->  | BA46: =IF(ISBLANK(B46)=FALSE,IF(BA$25="ja",IF(J46=" ",IF(D46+((1-AA46/100)*Y46-D46)/Q$20*IF(U$22="ja",1/(1+U$25*0.000001*10^G46),1)<=1,"nee","ja"),IF(D46+((1-AA46/100)*Y46-D46)/Q$20*IF(U$22="ja",1/(1+U$25*0.000001*10^G46),1)<='resultaten immissietoets'!AD44,"nee","ja")),"nee")," ") -> nee | BC46: nee | BD46: 0 | BH46: 0 | BK46: =IF(ISNA(VLOOKUP(B46,'resultaten immissietoets'!A$28:AO$84,41,FALSE))=FALSE,VLOOKUP(B46,'resultaten immissietoets'!A$28:AO$84,41,FALSE),0) -> 0 | BY46: 0 | BZ46: =IF(AND(B46<>" ",OR(+'beoordeling maatregel'!Q46="ZZS",S46="ja")),U46*L46,0) -> 0 | CA46: =IF(AND(B46<>" ",OR(B46="PFOS",B46="PFOA",B46="GENX",B46="overige PFAS",B46="6:2 FTS")),+'beoordeling maatregel'!L46*'beoordeling maatregel'!U46,0) -> 0
A47: 18 | B47: =IF(A47<=N$27,VLOOKUP(A46+1,'resultaten immissietoets'!AM$28:AN$84,2,FALSE)," ") ->  | C47: =VLOOKUP(+$B47,'resultaten immissietoets'!$A$27:$AA$84,24,FALSE) ->  | D47: =IF(ISBLANK($B47)=FALSE,VLOOKUP(+$B47,'resultaten immissietoets'!$A$27:$AA$84,10,FALSE)," ") ->  | E47: =VLOOKUP(+$B47,'resultaten immissietoets'!$A$27:$AA$84,26,FALSE) ->  | F47: =IF(ISBLANK($B47)=FALSE,VLOOKUP(+$B47,'resultaten immissietoets'!$A$27:$AI$84,35,FALSE)," ") ->  | G47: =LOG(IF(ISNUMBER(VLOOKUP(+$B47,'resultaten immissietoets'!$A$27:$AE$84,2,FALSE))=TRUE,VLOOKUP(+$B47,'resultaten immissietoets'!$A$27:$AE$84,2,FALSE),1)) -> 0 | H47: =IF(ISBLANK(B47)=FALSE,VLOOKUP(+$B47,'resultaten immissietoets'!$A$27:$AE$84,31,FALSE)," ") ->  | I47: =VLOOKUP(+$B47,'resultaten immissietoets'!$A$27:$AE$84,15,FALSE) ->  | K47: =IF(ISBLANK($B47)=FALSE,VLOOKUP(+$B47,'resultaten immissietoets'!$A$27:$AI$84,29,FALSE)," ") ->  | L47: =IF(AND(ISBLANK(B47)=FALSE,B47<>" "),N47*Y47*'resultaten immissietoets'!H$16*8760*3600/1000000,0) -> 0 | N47: =IF(B47<>" ",IF(N$9="nee",IF(ISBLANK($B47)=FALSE,IF(AND('beschrijving lozing'!I$7="algemene regels",+'beschrijving lozing'!I$19="nee",ISNA(VLOOKUP(+$B47,'beschrijving lozing'!B$27:Q$78,15,FALSE))=FALSE),MAX(VLOOKUP(+B47,'beschrijving lozing'!B$27:Q$78,15,FALSE),VLOOKUP(+$B47,'resultaten immissietoets'!$A$27:$AO$84,41,FALSE)),VLOOKUP(+$B47,'resultaten immissietoets'!$A$27:$AO$84,41,FALSE))," "),+P47)," ") ->  | O47: ja | R47: nee | S47: =IF(Q47="ZZS","ja",IF('ZZS-checker'!B47=1,"ja","nee")) -> nee | T47: 0 | U47: 0 | V47: nee | W47: =IF(ISBLANK($B47)=FALSE,IF(ISNA(VLOOKUP(+$B47,'resultaten immissietoets'!$A$27:$AO$84,14,FALSE))=FALSE,VLOOKUP(+$B47,'resultaten immissietoets'!$A$27:$AO$84,14,FALSE)," ")," ") ->  | Y47: =IF(AND(ISBLANK($B47)=FALSE,$B47<>" "),VLOOKUP(+$B47,'resultaten immissietoets'!$A$27:$BU$84,73,FALSE)," ") ->  | Z47: 0 | AB47: ja | AD47: 0 | AE47: 0 | AH47: 0 | AM47: =IF(AND(ISBLANK(B47)=FALSE,B47<>" "),VLOOKUP(+$B47,'resultaten immissietoets'!$A$27:$BK$84,63,FALSE)," ") ->  | AN47: 17 | AQ47: =IF(N$27>=18,AC47/W47,0) -> 0 | AU47: =IF('pot-ZZS-checker'!B32>0,"ja","nee") -> nee | AV47: 0 | AW47: 0 | AZ47: =IF(AND(ISBLANK(B47)=FALSE,B47<>" "),IF(D47<W47,IF(D47+((1-AA47/100)*Y47-D47)/'resultaten immissietoets'!J$24*IF(U$22="ja",1/(1+U$25*0.000001*10^G47),1)<W47,"nee","ja"),IF(((1-AA47)*Y47-D47)/'resultaten immissietoets'!J$24*IF(U$22="ja",1/(1+U$25*0.000001*10^G47),1)<=I47,"nee","ja"))," ") ->  | BA47: =IF(ISBLANK(B47)=FALSE,IF(BA$25="ja",IF(J47=" ",IF(D47+((1-AA47/100)*Y47-D47)/Q$20*IF(U$22="ja",1/(1+U$25*0.000001*10^G47),1)<=1,"nee","ja"),IF(D47+((1-AA47/100)*Y47-D47)/Q$20*IF(U$22="ja",1/(1+U$25*0.000001*10^G47),1)<='resultaten immissietoets'!AD45,"nee","ja")),"nee")," ") -> nee | BC47: nee | BD47: 0 | BH47: 0 | BK47: =IF(ISNA(VLOOKUP(B47,'resultaten immissietoets'!A$28:AO$84,41,FALSE))=FALSE,VLOOKUP(B47,'resultaten immissietoets'!A$28:AO$84,41,FALSE),0) -> 0 | BY47: 0 | BZ47: =IF(AND(B47<>" ",OR(+'beoordeling maatregel'!Q47="ZZS",S47="ja")),U47*L47,0) -> 0 | CA47: =IF(AND(B47<>" ",OR(B47="PFOS",B47="PFOA",B47="GENX",B47="overige PFAS",B47="6:2 FTS")),+'beoordeling maatregel'!L47*'beoordeling maatregel'!U47,0) -> 0
A48: 19 | B48: =IF(A48<=N$27,VLOOKUP(A47+1,'resultaten immissietoets'!AM$28:AN$84,2,FALSE)," ") ->  | C48: =VLOOKUP(+$B48,'resultaten immissietoets'!$A$27:$AA$84,24,FALSE) ->  | D48: =IF(ISBLANK($B48)=FALSE,VLOOKUP(+$B48,'resultaten immissietoets'!$A$27:$AA$84,10,FALSE)," ") ->  | E48: =VLOOKUP(+$B48,'resultaten immissietoets'!$A$27:$AA$84,26,FALSE) ->  | F48: =IF(ISBLANK($B48)=FALSE,VLOOKUP(+$B48,'resultaten immissietoets'!$A$27:$AI$84,35,FALSE)," ") ->  | G48: =LOG(IF(ISNUMBER(VLOOKUP(+$B48,'resultaten immissietoets'!$A$27:$AE$84,2,FALSE))=TRUE,VLOOKUP(+$B48,'resultaten immissietoets'!$A$27:$AE$84,2,FALSE),1)) -> 0 | H48: =IF(ISBLANK(B48)=FALSE,VLOOKUP(+$B48,'resultaten immissietoets'!$A$27:$AE$84,31,FALSE)," ") ->  | I48: =VLOOKUP(+$B48,'resultaten immissietoets'!$A$27:$AE$84,15,FALSE) ->  | K48: =IF(ISBLANK($B48)=FALSE,VLOOKUP(+$B48,'resultaten immissietoets'!$A$27:$AI$84,29,FALSE)," ") ->  | L48: =IF(AND(ISBLANK(B48)=FALSE,B48<>" "),N48*Y48*'resultaten immissietoets'!H$16*8760*3600/1000000,0) -> 0 | N48: =IF(B48<>" ",IF(N$9="nee",IF(ISBLANK($B48)=FALSE,IF(AND('beschrijving lozing'!I$7="algemene regels",+'beschrijving lozing'!I$19="nee",ISNA(VLOOKUP(+$B48,'beschrijving lozing'!B$27:Q$78,15,FALSE))=FALSE),MAX(VLOOKUP(+B48,'beschrijving lozing'!B$27:Q$78,15,FALSE),VLOOKUP(+$B48,'resultaten immissietoets'!$A$27:$AO$84,41,FALSE)),VLOOKUP(+$B48,'resultaten immissietoets'!$A$27:$AO$84,41,FALSE))," "),+P48)," ") ->  | O48: ja | R48: nee | S48: =IF(Q48="ZZS","ja",IF('ZZS-checker'!B48=1,"ja","nee")) -> nee | T48: 0 | U48: 0 | V48: nee | W48: =IF(ISBLANK($B48)=FALSE,IF(ISNA(VLOOKUP(+$B48,'resultaten immissietoets'!$A$27:$AO$84,14,FALSE))=FALSE,VLOOKUP(+$B48,'resultaten immissietoets'!$A$27:$AO$84,14,FALSE)," ")," ") ->  | Y48: =IF(AND(ISBLANK($B48)=FALSE,$B48<>" "),VLOOKUP(+$B48,'resultaten immissietoets'!$A$27:$BU$84,73,FALSE)," ") ->  | Z48: 0 | AB48: ja | AD48: 0 | AE48: 0 | AH48: 0 | AM48: =IF(AND(ISBLANK(B48)=FALSE,B48<>" "),VLOOKUP(+$B48,'resultaten immissietoets'!$A$27:$BK$84,63,FALSE)," ") ->  | AN48: 18 | AQ48: =IF(N$27>=19,AC48/W48,0) -> 0 | AU48: =IF('pot-ZZS-checker'!B33>0,"ja","nee") -> nee | AV48: 0 | AW48: 0 | AZ48: =IF(AND(ISBLANK(B48)=FALSE,B48<>" "),IF(D48<W48,IF(D48+((1-AA48/100)*Y48-D48)/'resultaten immissietoets'!J$24*IF(U$22="ja",1/(1+U$25*0.000001*10^G48),1)<W48,"nee","ja"),IF(((1-AA48)*Y48-D48)/'resultaten immissietoets'!J$24*IF(U$22="ja",1/(1+U$25*0.000001*10^G48),1)<=I48,"nee","ja"))," ") ->  | BA48: =IF(ISBLANK(B48)=FALSE,IF(BA$25="ja",IF(J48=" ",IF(D48+((1-AA48/100)*Y48-D48)/Q$20*IF(U$22="ja",1/(1+U$25*0.000001*10^G48),1)<=1,"nee","ja"),IF(D48+((1-AA48/100)*Y48-D48)/Q$20*IF(U$22="ja",1/(1+U$25*0.000001*10^G48),1)<='resultaten immissietoets'!AD46,"nee","ja")),"nee")," ") -> nee | BC48: nee | BD48: 0 | BH48: 0 | BK48: =IF(ISNA(VLOOKUP(B48,'resultaten immissietoets'!A$28:AO$84,41,FALSE))=FALSE,VLOOKUP(B48,'resultaten immissietoets'!A$28:AO$84,41,FALSE),0) -> 0 | BY48: 0 | BZ48: =IF(AND(B48<>" ",OR(+'beoordeling maatregel'!Q48="ZZS",S48="ja")),U48*L48,0) -> 0 | CA48: =IF(AND(B48<>" ",OR(B48="PFOS",B48="PFOA",B48="GENX",B48="overige PFAS",B48="6:2 FTS")),+'beoordeling maatregel'!L48*'beoordeling maatregel'!U48,0) -> 0
A49: 20 | B49: =IF(A49<=N$27,VLOOKUP(A48+1,'resultaten immissietoets'!AM$28:AN$84,2,FALSE)," ") ->  | C49: =VLOOKUP(+$B49,'resultaten immissietoets'!$A$27:$AA$84,24,FALSE) ->  | D49: =IF(ISBLANK($B49)=FALSE,VLOOKUP(+$B49,'resultaten immissietoets'!$A$27:$AA$84,10,FALSE)," ") ->  | E49: =VLOOKUP(+$B49,'resultaten immissietoets'!$A$27:$AA$84,26,FALSE) ->  | F49: =IF(ISBLANK($B49)=FALSE,VLOOKUP(+$B49,'resultaten immissietoets'!$A$27:$AI$84,35,FALSE)," ") ->  | G49: =LOG(IF(ISNUMBER(VLOOKUP(+$B49,'resultaten immissietoets'!$A$27:$AE$84,2,FALSE))=TRUE,VLOOKUP(+$B49,'resultaten immissietoets'!$A$27:$AE$84,2,FALSE),1)) -> 0 | H49: =IF(ISBLANK(B49)=FALSE,VLOOKUP(+$B49,'resultaten immissietoets'!$A$27:$AE$84,31,FALSE)," ") ->  | I49: =VLOOKUP(+$B49,'resultaten immissietoets'!$A$27:$AE$84,15,FALSE) ->  | K49: =IF(ISBLANK($B49)=FALSE,VLOOKUP(+$B49,'resultaten immissietoets'!$A$27:$AI$84,29,FALSE)," ") ->  | L49: =IF(AND(ISBLANK(B49)=FALSE,B49<>" "),N49*Y49*'resultaten immissietoets'!H$16*8760*3600/1000000,0) -> 0 | N49: =IF(B49<>" ",IF(N$9="nee",IF(ISBLANK($B49)=FALSE,IF(AND('beschrijving lozing'!I$7="algemene regels",+'beschrijving lozing'!I$19="nee",ISNA(VLOOKUP(+$B49,'beschrijving lozing'!B$27:Q$78,15,FALSE))=FALSE),MAX(VLOOKUP(+B49,'beschrijving lozing'!B$27:Q$78,15,FALSE),VLOOKUP(+$B49,'resultaten immissietoets'!$A$27:$AO$84,41,FALSE)),VLOOKUP(+$B49,'resultaten immissietoets'!$A$27:$AO$84,41,FALSE))," "),+P49)," ") ->  | O49: ja | R49: nee | S49: =IF(Q49="ZZS","ja",IF('ZZS-checker'!B49=1,"ja","nee")) -> nee | T49: 0 | U49: 0 | V49: nee | W49: =IF(ISBLANK($B49)=FALSE,IF(ISNA(VLOOKUP(+$B49,'resultaten immissietoets'!$A$27:$AO$84,14,FALSE))=FALSE,VLOOKUP(+$B49,'resultaten immissietoets'!$A$27:$AO$84,14,FALSE)," ")," ") ->  | Y49: =IF(AND(ISBLANK($B49)=FALSE,$B49<>" "),VLOOKUP(+$B49,'resultaten immissietoets'!$A$27:$BU$84,73,FALSE)," ") ->  | Z49: 0 | AB49: ja | AD49: 0 | AE49: 0 | AH49: 0 | AM49: =IF(AND(ISBLANK(B49)=FALSE,B49<>" "),VLOOKUP(+$B49,'resultaten immissietoets'!$A$27:$BK$84,63,FALSE)," ") ->  | AN49: 19 | AQ49: =IF(N$27>=20,AC49/W49,0) -> 0 | AU49: =IF('pot-ZZS-checker'!B34>0,"ja","nee") -> nee | AV49: 0 | AW49: 0 | AZ49: =IF(AND(ISBLANK(B49)=FALSE,B49<>" "),IF(D49<W49,IF(D49+((1-AA49/100)*Y49-D49)/'resultaten immissietoets'!J$24*IF(U$22="ja",1/(1+U$25*0.000001*10^G49),1)<W49,"nee","ja"),IF(((1-AA49)*Y49-D49)/'resultaten immissietoets'!J$24*IF(U$22="ja",1/(1+U$25*0.000001*10^G49),1)<=I49,"nee","ja"))," ") ->  | BA49: =IF(ISBLANK(B49)=FALSE,IF(BA$25="ja",IF(J49=" ",IF(D49+((1-AA49/100)*Y49-D49)/Q$20*IF(U$22="ja",1/(1+U$25*0.000001*10^G49),1)<=1,"nee","ja"),IF(D49+((1-AA49/100)*Y49-D49)/Q$20*IF(U$22="ja",1/(1+U$25*0.000001*10^G49),1)<='resultaten immissietoets'!AD47,"nee","ja")),"nee")," ") -> nee | BC49: nee | BD49: 0 | BH49: 0 | BK49: =IF(ISNA(VLOOKUP(B49,'resultaten immissietoets'!A$28:AO$84,41,FALSE))=FALSE,VLOOKUP(B49,'resultaten immissietoets'!A$28:AO$84,41,FALSE),0) -> 0 | BY49: 0 | BZ49: =IF(AND(B49<>" ",OR(+'beoordeling maatregel'!Q49="ZZS",S49="ja")),U49*L49,0) -> 0 | CA49: =IF(AND(B49<>" ",OR(B49="PFOS",B49="PFOA",B49="GENX",B49="overige PFAS",B49="6:2 FTS")),+'beoordeling maatregel'!L49*'beoordeling maatregel'!U49,0) -> 0
A50: 21 | B50: =IF(A50<=N$27,VLOOKUP(A49+1,'resultaten immissietoets'!AM$28:AN$84,2,FALSE)," ") ->  | C50: =VLOOKUP(+$B50,'resultaten immissietoets'!$A$27:$AA$84,24,FALSE) ->  | D50: =IF(ISBLANK($B50)=FALSE,VLOOKUP(+$B50,'resultaten immissietoets'!$A$27:$AA$84,10,FALSE)," ") ->  | E50: =VLOOKUP(+$B50,'resultaten immissietoets'!$A$27:$AA$84,26,FALSE) ->  | F50: =IF(ISBLANK($B50)=FALSE,VLOOKUP(+$B50,'resultaten immissietoets'!$A$27:$AI$84,35,FALSE)," ") ->  | G50: =LOG(IF(ISNUMBER(VLOOKUP(+$B50,'resultaten immissietoets'!$A$27:$AE$84,2,FALSE))=TRUE,VLOOKUP(+$B50,'resultaten immissietoets'!$A$27:$AE$84,2,FALSE),1)) -> 0 | H50: =IF(ISBLANK(B50)=FALSE,VLOOKUP(+$B50,'resultaten immissietoets'!$A$27:$AE$84,31,FALSE)," ") ->  | I50: =VLOOKUP(+$B50,'resultaten immissietoets'!$A$27:$AE$84,15,FALSE) ->  | K50: =IF(ISBLANK($B50)=FALSE,VLOOKUP(+$B50,'resultaten immissietoets'!$A$27:$AI$84,29,FALSE)," ") ->  | L50: =IF(AND(ISBLANK(B50)=FALSE,B50<>" "),N50*Y50*'resultaten immissietoets'!H$16*8760*3600/1000000,0) -> 0 | N50: =IF(B50<>" ",IF(N$9="nee",IF(ISBLANK($B50)=FALSE,IF(AND('beschrijving lozing'!I$7="algemene regels",+'beschrijving lozing'!I$19="nee",ISNA(VLOOKUP(+$B50,'beschrijving lozing'!B$27:Q$78,15,FALSE))=FALSE),MAX(VLOOKUP(+B50,'beschrijving lozing'!B$27:Q$78,15,FALSE),VLOOKUP(+$B50,'resultaten immissietoets'!$A$27:$AO$84,41,FALSE)),VLOOKUP(+$B50,'resultaten immissietoets'!$A$27:$AO$84,41,FALSE))," "),+P50)," ") ->  | O50: ja | R50: nee | S50: =IF(Q50="ZZS","ja",IF('ZZS-checker'!B50=1,"ja","nee")) -> nee | T50: 0 | U50: 0 | V50: nee | W50: =IF(ISBLANK($B50)=FALSE,IF(ISNA(VLOOKUP(+$B50,'resultaten immissietoets'!$A$27:$AO$84,14,FALSE))=FALSE,VLOOKUP(+$B50,'resultaten immissietoets'!$A$27:$AO$84,14,FALSE)," ")," ") ->  | Y50: =IF(AND(ISBLANK($B50)=FALSE,$B50<>" "),VLOOKUP(+$B50,'resultaten immissietoets'!$A$27:$BU$84,73,FALSE)," ") ->  | Z50: 0 | AB50: ja | AD50: 0 | AE50: 0 | AH50: 0 | AM50: =IF(AND(ISBLANK(B50)=FALSE,B50<>" "),VLOOKUP(+$B50,'resultaten immissietoets'!$A$27:$BK$84,63,FALSE)," ") ->  | AN50: 20 | AQ50: =IF(N$27>=21,AC50/W50,0) -> 0 | AU50: =IF('pot-ZZS-checker'!B35>0,"ja","nee") -> nee | AV50: 0 | AW50: 0 | AZ50: =IF(AND(ISBLANK(B50)=FALSE,B50<>" "),IF(D50<W50,IF(D50+((1-AA50/100)*Y50-D50)/'resultaten immissietoets'!J$24*IF(U$22="ja",1/(1+U$25*0.000001*10^G50),1)<W50,"nee","ja"),IF(((1-AA50)*Y50-D50)/'resultaten immissietoets'!J$24*IF(U$22="ja",1/(1+U$25*0.000001*10^G50),1)<=I50,"nee","ja"))," ") ->  | BA50: =IF(ISBLANK(B50)=FALSE,IF(BA$25="ja",IF(J50=" ",IF(D50+((1-AA50/100)*Y50-D50)/Q$20*IF(U$22="ja",1/(1+U$25*0.000001*10^G50),1)<=1,"nee","ja"),IF(D50+((1-AA50/100)*Y50-D50)/Q$20*IF(U$22="ja",1/(1+U$25*0.000001*10^G50),1)<='resultaten immissietoets'!AD48,"nee","ja")),"nee")," ") -> nee | BC50: nee | BD50: 0 | BH50: 0 | BK50: =IF(ISNA(VLOOKUP(B50,'resultaten immissietoets'!A$28:AO$84,41,FALSE))=FALSE,VLOOKUP(B50,'resultaten immissietoets'!A$28:AO$84,41,FALSE),0) -> 0 | BY50: 0 | BZ50: =IF(AND(B50<>" ",OR(+'beoordeling maatregel'!Q50="ZZS",S50="ja")),U50*L50,0) -> 0 | CA50: =IF(AND(B50<>" ",OR(B50="PFOS",B50="PFOA",B50="GENX",B50="overige PFAS",B50="6:2 FTS")),+'beoordeling maatregel'!L50*'beoordeling maatregel'!U50,0) -> 0
A51: =+A50+1 -> 22 | B51: =IF(A51<=N$27,VLOOKUP(A50+1,'resultaten immissietoets'!AM$28:AN$84,2,FALSE)," ") ->  | C51: =VLOOKUP(+$B51,'resultaten immissietoets'!$A$27:$AA$84,24,FALSE) ->  | D51: =IF(ISBLANK($B51)=FALSE,VLOOKUP(+$B51,'resultaten immissietoets'!$A$27:$AA$84,10,FALSE)," ") ->  | E51: =VLOOKUP(+$B51,'resultaten immissietoets'!$A$27:$AA$84,26,FALSE) ->  | F51: =IF(ISBLANK($B51)=FALSE,VLOOKUP(+$B51,'resultaten immissietoets'!$A$27:$AI$84,35,FALSE)," ") ->  | G51: =LOG(IF(ISNUMBER(VLOOKUP(+$B51,'resultaten immissietoets'!$A$27:$AE$84,2,FALSE))=TRUE,VLOOKUP(+$B51,'resultaten immissietoets'!$A$27:$AE$84,2,FALSE),1)) -> 0 | H51: =IF(ISBLANK(B51)=FALSE,VLOOKUP(+$B51,'resultaten immissietoets'!$A$27:$AE$84,31,FALSE)," ") ->  | I51: =VLOOKUP(+$B51,'resultaten immissietoets'!$A$27:$AE$84,15,FALSE) ->  | K51: =IF(ISBLANK($B51)=FALSE,VLOOKUP(+$B51,'resultaten immissietoets'!$A$27:$AI$84,29,FALSE)," ") ->  | L51: =IF(AND(ISBLANK(B51)=FALSE,B51<>" "),N51*Y51*'resultaten immissietoets'!H$16*8760*3600/1000000,0) -> 0 | N51: =IF(B51<>" ",IF(N$9="nee",IF(ISBLANK($B51)=FALSE,IF(AND('beschrijving lozing'!I$7="algemene regels",+'beschrijving lozing'!I$19="nee",ISNA(VLOOKUP(+$B51,'beschrijving lozing'!B$27:Q$78,15,FALSE))=FALSE),MAX(VLOOKUP(+B51,'beschrijving lozing'!B$27:Q$78,15,FALSE),VLOOKUP(+$B51,'resultaten immissietoets'!$A$27:$AO$84,41,FALSE)),VLOOKUP(+$B51,'resultaten immissietoets'!$A$27:$AO$84,41,FALSE))," "),+P51)," ") ->  | O51: ja | R51: nee | S51: =IF(Q51="ZZS","ja",IF('ZZS-checker'!B51=1,"ja","nee")) -> nee | T51: 0 | U51: 0 | V51: nee | W51: =IF(ISBLANK($B51)=FALSE,IF(ISNA(VLOOKUP(+$B51,'resultaten immissietoets'!$A$27:$AO$84,14,FALSE))=FALSE,VLOOKUP(+$B51,'resultaten immissietoets'!$A$27:$AO$84,14,FALSE)," ")," ") ->  | Y51: =IF(AND(ISBLANK($B51)=FALSE,$B51<>" "),VLOOKUP(+$B51,'resultaten immissietoets'!$A$27:$BU$84,73,FALSE)," ") ->  | Z51: 0 | AB51: ja | AD51: 0 | AE51: 0 | AH51: 0 | AM51: =IF(AND(ISBLANK(B51)=FALSE,B51<>" "),VLOOKUP(+$B51,'resultaten immissietoets'!$A$27:$BK$84,63,FALSE)," ") ->  | AN51: 21 | AQ51: 0 | AU51: =IF('pot-ZZS-checker'!B36>0,"ja","nee") -> nee | AV51: 0 | AW51: 0 | AZ51: =IF(AND(ISBLANK(B51)=FALSE,B51<>" "),IF(D51<W51,IF(D51+((1-AA51/100)*Y51-D51)/'resultaten immissietoets'!J$24*IF(U$22="ja",1/(1+U$25*0.000001*10^G51),1)<W51,"nee","ja"),IF(((1-AA51)*Y51-D51)/'resultaten immissietoets'!J$24*IF(U$22="ja",1/(1+U$25*0.000001*10^G51),1)<=I51,"nee","ja"))," ") ->  | BA51: =IF(ISBLANK(B51)=FALSE,IF(BA$25="ja",IF(J51=" ",IF(D51+((1-AA51/100)*Y51-D51)/Q$20*IF(U$22="ja",1/(1+U$25*0.000001*10^G51),1)<=1,"nee","ja"),IF(D51+((1-AA51/100)*Y51-D51)/Q$20*IF(U$22="ja",1/(1+U$25*0.000001*10^G51),1)<='resultaten immissietoets'!AD49,"nee","ja")),"nee")," ") -> nee | BC51: nee | BD51: 0 | BH51: 0 | BK51: =IF(ISNA(VLOOKUP(B51,'resultaten immissietoets'!A$28:AO$84,41,FALSE))=FALSE,VLOOKUP(B51,'resultaten immissietoets'!A$28:AO$84,41,FALSE),0) -> 0 | BY51: 0 | BZ51: =IF(AND(B51<>" ",OR(+'beoordeling maatregel'!Q51="ZZS",S51="ja")),U51*L51,0) -> 0 | CA51: =IF(AND(B51<>" ",OR(B51="PFOS",B51="PFOA",B51="GENX",B51="overige PFAS",B51="6:2 FTS")),+'beoordeling maatregel'!L51*'beoordeling maatregel'!U51,0) -> 0
A52: =+A51+1 -> 23 | B52: =IF(A52<=N$27,VLOOKUP(A51+1,'resultaten immissietoets'!AM$28:AN$84,2,FALSE)," ") ->  | C52: =VLOOKUP(+$B52,'resultaten immissietoets'!$A$27:$AA$84,24,FALSE) ->  | D52: =IF(ISBLANK($B52)=FALSE,VLOOKUP(+$B52,'resultaten immissietoets'!$A$27:$AA$84,10,FALSE)," ") ->  | E52: =VLOOKUP(+$B52,'resultaten immissietoets'!$A$27:$AA$84,26,FALSE) ->  | F52: =IF(ISBLANK($B52)=FALSE,VLOOKUP(+$B52,'resultaten immissietoets'!$A$27:$AI$84,35,FALSE)," ") ->  | G52: =LOG(IF(ISNUMBER(VLOOKUP(+$B52,'resultaten immissietoets'!$A$27:$AE$84,2,FALSE))=TRUE,VLOOKUP(+$B52,'resultaten immissietoets'!$A$27:$AE$84,2,FALSE),1)) -> 0 | H52: =IF(ISBLANK(B52)=FALSE,VLOOKUP(+$B52,'resultaten immissietoets'!$A$27:$AE$84,31,FALSE)," ") ->  | I52: =VLOOKUP(+$B52,'resultaten immissietoets'!$A$27:$AE$84,15,FALSE) ->  | K52: =IF(ISBLANK($B52)=FALSE,VLOOKUP(+$B52,'resultaten immissietoets'!$A$27:$AI$84,29,FALSE)," ") ->  | L52: =IF(AND(ISBLANK(B52)=FALSE,B52<>" "),N52*Y52*'resultaten immissietoets'!H$16*8760*3600/1000000,0) -> 0 | N52: =IF(B52<>" ",IF(N$9="nee",IF(ISBLANK($B52)=FALSE,IF(AND('beschrijving lozing'!I$7="algemene regels",+'beschrijving lozing'!I$19="nee",ISNA(VLOOKUP(+$B52,'beschrijving lozing'!B$27:Q$78,15,FALSE))=FALSE),MAX(VLOOKUP(+B52,'beschrijving lozing'!B$27:Q$78,15,FALSE),VLOOKUP(+$B52,'resultaten immissietoets'!$A$27:$AO$84,41,FALSE)),VLOOKUP(+$B52,'resultaten immissietoets'!$A$27:$AO$84,41,FALSE))," "),+P52)," ") ->  | O52: ja | R52: nee | S52: =IF(Q52="ZZS","ja",IF('ZZS-checker'!B52=1,"ja","nee")) -> nee | T52: 0 | U52: =IF(AND(ISBLANK(B52)=FALSE,B52<>" "),IF(OR(B52="Zink",B52="Zn",B52="Nikkel",B52="Ni",B52="Koper",B52="Cu"),450,IF(OR(B52="P-tot",B52="Tot-P",B52="totaal-P",B52="P-totaal"),20,IF(OR(B52="N-tot",B52="tot-N",B52="totaal-N",B52="N-totaal",B52="totaal-stikstof",B52="stikstof-totaal"),6,IF(1/W52<0.01,200000*(1/W52)^1.15,660*LN(1/W52)+3950))))*IF(N$9="nee",10,1),0) -> 0 | V52: nee | W52: =IF(ISBLANK($B52)=FALSE,IF(ISNA(VLOOKUP(+$B52,'resultaten immissietoets'!$A$27:$AO$84,14,FALSE))=FALSE,VLOOKUP(+$B52,'resultaten immissietoets'!$A$27:$AO$84,14,FALSE)," ")," ") ->  | Y52: =IF(AND(ISBLANK($B52)=FALSE,$B52<>" "),VLOOKUP(+$B52,'resultaten immissietoets'!$A$27:$BU$84,73,FALSE)," ") ->  | Z52: 0 | AB52: ja | AD52: =IF(AND(ISBLANK(B52)=FALSE,B52<>" "),IF(AE$27="nee",IF(AC52>0,AC52*U52,0),AC52/W52),0) -> 0 | AE52: =IF(AND(ISBLANK(B52)=FALSE,B52<>" "),IF(ISBLANK(N$25)=FALSE,IF(AE$27="ja",+AD52/AD$71*U$18/AC52,U$18*AD52/AD$71/AC52)," "),0) -> 0 | AH52: 0 | AM52: =IF(AND(ISBLANK(B52)=FALSE,B52<>" "),VLOOKUP(+$B52,'resultaten immissietoets'!$A$27:$BK$84,63,FALSE)," ") ->  | AN52: 22 | AQ52: 0 | AU52: =IF('pot-ZZS-checker'!B37>0,"ja","nee") -> nee | AV52: 0 | AW52: 0 | AZ52: =IF(AND(ISBLANK(B52)=FALSE,B52<>" "),IF(D52<W52,IF(D52+((1-AA52/100)*Y52-D52)/'resultaten immissietoets'!J$24*IF(U$22="ja",1/(1+U$25*0.000001*10^G52),1)<W52,"nee","ja"),IF(((1-AA52)*Y52-D52)/'resultaten immissietoets'!J$24*IF(U$22="ja",1/(1+U$25*0.000001*10^G52),1)<=I52,"nee","ja"))," ") ->  | BA52: =IF(ISBLANK(B52)=FALSE,IF(BA$25="ja",IF(J52=" ",IF(D52+((1-AA52/100)*Y52-D52)/Q$20*IF(U$22="ja",1/(1+U$25*0.000001*10^G52),1)<=1,"nee","ja"),IF(D52+((1-AA52/100)*Y52-D52)/Q$20*IF(U$22="ja",1/(1+U$25*0.000001*10^G52),1)<='resultaten immissietoets'!AD50,"nee","ja")),"nee")," ") -> nee | BC52: nee | BD52: 0 | BH52: 0 | BK52: =IF(ISNA(VLOOKUP(B52,'resultaten immissietoets'!A$28:AO$84,41,FALSE))=FALSE,VLOOKUP(B52,'resultaten immissietoets'!A$28:AO$84,41,FALSE),0) -> 0 | BY52: 0 | BZ52: =IF(AND(B52<>" ",OR(+'beoordeling maatregel'!Q52="ZZS",S52="ja")),U52*L52,0) -> 0 | CA52: =IF(AND(B52<>" ",OR(B52="PFOS",B52="PFOA",B52="GENX",B52="overige PFAS",B52="6:2 FTS")),+'beoordeling maatregel'!L52*'beoordeling maatregel'!U52,0) -> 0
A53: 24 | B53: =IF(A53<=N$27,VLOOKUP(A52+1,'resultaten immissietoets'!AM$28:AN$84,2,FALSE)," ") ->  | C53: =VLOOKUP(+$B53,'resultaten immissietoets'!$A$27:$AA$84,24,FALSE) ->  | D53: =IF(ISBLANK($B53)=FALSE,VLOOKUP(+$B53,'resultaten immissietoets'!$A$27:$AA$84,10,FALSE)," ") ->  | E53: =VLOOKUP(+$B53,'resultaten immissietoets'!$A$27:$AA$84,26,FALSE) ->  | F53: =IF(ISBLANK($B53)=FALSE,VLOOKUP(+$B53,'resultaten immissietoets'!$A$27:$AI$84,35,FALSE)," ") ->  | G53: =LOG(IF(ISNUMBER(VLOOKUP(+$B53,'resultaten immissietoets'!$A$27:$AE$84,2,FALSE))=TRUE,VLOOKUP(+$B53,'resultaten immissietoets'!$A$27:$AE$84,2,FALSE),1)) -> 0 | H53: =IF(ISBLANK(B53)=FALSE,VLOOKUP(+$B53,'resultaten immissietoets'!$A$27:$AE$84,31,FALSE)," ") ->  | I53: =VLOOKUP(+$B53,'resultaten immissietoets'!$A$27:$AE$84,15,FALSE) ->  | K53: =IF(ISBLANK($B53)=FALSE,VLOOKUP(+$B53,'resultaten immissietoets'!$A$27:$AI$84,29,FALSE)," ") ->  | L53: =IF(AND(ISBLANK(B53)=FALSE,B53<>" "),N53*Y53*'resultaten immissietoets'!H$16*8760*3600/1000000,0) -> 0 | N53: =IF(B53<>" ",IF(N$9="nee",IF(ISBLANK($B53)=FALSE,IF(AND('beschrijving lozing'!I$7="algemene regels",+'beschrijving lozing'!I$19="nee",ISNA(VLOOKUP(+$B53,'beschrijving lozing'!B$27:Q$78,15,FALSE))=FALSE),MAX(VLOOKUP(+B53,'beschrijving lozing'!B$27:Q$78,15,FALSE),VLOOKUP(+$B53,'resultaten immissietoets'!$A$27:$AO$84,41,FALSE)),VLOOKUP(+$B53,'resultaten immissietoets'!$A$27:$AO$84,41,FALSE))," "),+P53)," ") ->  | O53: ja | R53: nee | S53: =IF(Q53="ZZS","ja",IF('ZZS-checker'!B53=1,"ja","nee")) -> nee | T53: 0 | U53: =IF(AND(ISBLANK(B53)=FALSE,B53<>" "),IF(OR(B53="Zink",B53="Zn",B53="Nikkel",B53="Ni",B53="Koper",B53="Cu"),450,IF(OR(B53="P-tot",B53="Tot-P",B53="totaal-P",B53="P-totaal"),20,IF(OR(B53="N-tot",B53="tot-N",B53="totaal-N",B53="N-totaal",B53="totaal-stikstof",B53="stikstof-totaal"),6,IF(1/W53<0.01,200000*(1/W53)^1.15,660*LN(1/W53)+3950))))*IF(N$9="nee",10,1),0) -> 0 | V53: nee | W53: =IF(ISBLANK($B53)=FALSE,IF(ISNA(VLOOKUP(+$B53,'resultaten immissietoets'!$A$27:$AO$84,14,FALSE))=FALSE,VLOOKUP(+$B53,'resultaten immissietoets'!$A$27:$AO$84,14,FALSE)," ")," ") ->  | Y53: =IF(AND(ISBLANK($B53)=FALSE,$B53<>" "),VLOOKUP(+$B53,'resultaten immissietoets'!$A$27:$BU$84,73,FALSE)," ") ->  | Z53: 0 | AB53: ja | AD53: =IF(AND(ISBLANK(B53)=FALSE,B53<>" "),IF(AE$27="nee",IF(AC53>0,AC53*U53,0),AC53/W53),0) -> 0 | AE53: =IF(AND(ISBLANK(B53)=FALSE,B53<>" "),IF(ISBLANK(N$25)=FALSE,IF(AE$27="ja",+AD53/AD$71*U$18/AC53,U$18*AD53/AD$71/AC53)," "),0) -> 0 | AH53: 0 | AM53: =IF(AND(ISBLANK(B53)=FALSE,B53<>" "),VLOOKUP(+$B53,'resultaten immissietoets'!$A$27:$BK$84,63,FALSE)," ") ->  | AN53: 23 | AQ53: 0 | AU53: =IF('pot-ZZS-checker'!B38>0,"ja","nee") -> nee | AV53: 0 | AW53: 0 | AZ53: =IF(AND(ISBLANK(B53)=FALSE,B53<>" "),IF(D53<W53,IF(D53+((1-AA53/100)*Y53-D53)/'resultaten immissietoets'!J$24*IF(U$22="ja",1/(1+U$25*0.000001*10^G53),1)<W53,"nee","ja"),IF(((1-AA53)*Y53-D53)/'resultaten immissietoets'!J$24*IF(U$22="ja",1/(1+U$25*0.000001*10^G53),1)<=I53,"nee","ja"))," ") ->  | BA53: =IF(ISBLANK(B53)=FALSE,IF(BA$25="ja",IF(J53=" ",IF(D53+((1-AA53/100)*Y53-D53)/Q$20*IF(U$22="ja",1/(1+U$25*0.000001*10^G53),1)<=1,"nee","ja"),IF(D53+((1-AA53/100)*Y53-D53)/Q$20*IF(U$22="ja",1/(1+U$25*0.000001*10^G53),1)<='resultaten immissietoets'!AD51,"nee","ja")),"nee")," ") -> nee | BC53: nee | BD53: 0 | BH53: 0 | BK53: =IF(ISNA(VLOOKUP(B53,'resultaten immissietoets'!A$28:AO$84,41,FALSE))=FALSE,VLOOKUP(B53,'resultaten immissietoets'!A$28:AO$84,41,FALSE),0) -> 0 | BY53: 0 | BZ53: =IF(AND(B53<>" ",OR(+'beoordeling maatregel'!Q53="ZZS",S53="ja")),U53*L53,0) -> 0 | CA53: =IF(AND(B53<>" ",OR(B53="PFOS",B53="PFOA",B53="GENX",B53="overige PFAS",B53="6:2 FTS")),+'beoordeling maatregel'!L53*'beoordeling maatregel'!U53,0) -> 0
A54: 25 | B54: =IF(A54<=N$27,VLOOKUP(A53+1,'resultaten immissietoets'!AM$28:AN$84,2,FALSE)," ") ->  | C54: =VLOOKUP(+$B54,'resultaten immissietoets'!$A$27:$AA$84,24,FALSE) ->  | D54: =IF(ISBLANK($B54)=FALSE,VLOOKUP(+$B54,'resultaten immissietoets'!$A$27:$AA$84,10,FALSE)," ") ->  | E54: =VLOOKUP(+$B54,'resultaten immissietoets'!$A$27:$AA$84,26,FALSE) ->  | F54: =IF(ISBLANK($B54)=FALSE,VLOOKUP(+$B54,'resultaten immissietoets'!$A$27:$AI$84,35,FALSE)," ") ->  | G54: =LOG(IF(ISNUMBER(VLOOKUP(+$B54,'resultaten immissietoets'!$A$27:$AE$84,2,FALSE))=TRUE,VLOOKUP(+$B54,'resultaten immissietoets'!$A$27:$AE$84,2,FALSE),1)) -> 0 | H54: =IF(ISBLANK(B54)=FALSE,VLOOKUP(+$B54,'resultaten immissietoets'!$A$27:$AE$84,31,FALSE)," ") ->  | I54: =VLOOKUP(+$B54,'resultaten immissietoets'!$A$27:$AE$84,15,FALSE) ->  | K54: =IF(ISBLANK($B54)=FALSE,VLOOKUP(+$B54,'resultaten immissietoets'!$A$27:$AI$84,29,FALSE)," ") ->  | L54: =IF(AND(ISBLANK(B54)=FALSE,B54<>" "),N54*Y54*'resultaten immissietoets'!H$16*8760*3600/1000000,0) -> 0 | N54: =IF(B54<>" ",IF(N$9="nee",IF(ISBLANK($B54)=FALSE,IF(AND('beschrijving lozing'!I$7="algemene regels",+'beschrijving lozing'!I$19="nee",ISNA(VLOOKUP(+$B54,'beschrijving lozing'!B$27:Q$78,15,FALSE))=FALSE),MAX(VLOOKUP(+B54,'beschrijving lozing'!B$27:Q$78,15,FALSE),VLOOKUP(+$B54,'resultaten immissietoets'!$A$27:$AO$84,41,FALSE)),VLOOKUP(+$B54,'resultaten immissietoets'!$A$27:$AO$84,41,FALSE))," "),+P54)," ") ->  | O54: ja | R54: nee | S54: =IF(Q54="ZZS","ja",IF('ZZS-checker'!B54=1,"ja","nee")) -> nee | T54: 0 | U54: 0 | V54: nee | W54: =IF(ISBLANK($B54)=FALSE,IF(ISNA(VLOOKUP(+$B54,'resultaten immissietoets'!$A$27:$AO$84,14,FALSE))=FALSE,VLOOKUP(+$B54,'resultaten immissietoets'!$A$27:$AO$84,14,FALSE)," ")," ") ->  | Y54: =IF(AND(ISBLANK($B54)=FALSE,$B54<>" "),VLOOKUP(+$B54,'resultaten immissietoets'!$A$27:$BU$84,73,FALSE)," ") ->  | Z54: 0 | AB54: ja | AD54: 0 | AE54: 0 | AH54: 0 | AM54: =IF(AND(ISBLANK(B54)=FALSE,B54<>" "),VLOOKUP(+$B54,'resultaten immissietoets'!$A$27:$BK$84,63,FALSE)," ") ->  | AN54: 24 | AQ54: 0 | AU54: =IF('pot-ZZS-checker'!B39>0,"ja","nee") -> nee | AV54: 0 | AW54: 0 | AZ54: =IF(AND(ISBLANK(B54)=FALSE,B54<>" "),IF(D54<W54,IF(D54+((1-AA54/100)*Y54-D54)/'resultaten immissietoets'!J$24*IF(U$22="ja",1/(1+U$25*0.000001*10^G54),1)<W54,"nee","ja"),IF(((1-AA54)*Y54-D54)/'resultaten immissietoets'!J$24*IF(U$22="ja",1/(1+U$25*0.000001*10^G54),1)<=I54,"nee","ja"))," ") ->  | BA54: =IF(ISBLANK(B54)=FALSE,IF(BA$25="ja",IF(J54=" ",IF(D54+((1-AA54/100)*Y54-D54)/Q$20*IF(U$22="ja",1/(1+U$25*0.000001*10^G54),1)<=1,"nee","ja"),IF(D54+((1-AA54/100)*Y54-D54)/Q$20*IF(U$22="ja",1/(1+U$25*0.000001*10^G54),1)<='resultaten immissietoets'!AD52,"nee","ja")),"nee")," ") -> nee | BC54: nee | BD54: 0 | BH54: 0 | BK54: =IF(ISNA(VLOOKUP(B54,'resultaten immissietoets'!A$28:AO$84,41,FALSE))=FALSE,VLOOKUP(B54,'resultaten immissietoets'!A$28:AO$84,41,FALSE),0) -> 0 | BY54: 0 | BZ54: =IF(AND(B54<>" ",OR(+'beoordeling maatregel'!Q54="ZZS",S54="ja")),U54*L54,0) -> 0 | CA54: =IF(AND(B54<>" ",OR(B54="PFOS",B54="PFOA",B54="GENX",B54="overige PFAS",B54="6:2 FTS")),+'beoordeling maatregel'!L54*'beoordeling maatregel'!U54,0) -> 0
A55: 26 | B55: =IF(A55<=N$27,VLOOKUP(A54+1,'resultaten immissietoets'!AM$28:AN$84,2,FALSE)," ") ->  | C55: =VLOOKUP(+$B55,'resultaten immissietoets'!$A$27:$AA$84,24,FALSE) ->  | D55: =IF(ISBLANK($B55)=FALSE,VLOOKUP(+$B55,'resultaten immissietoets'!$A$27:$AA$84,10,FALSE)," ") ->  | E55: =VLOOKUP(+$B55,'resultaten immissietoets'!$A$27:$AA$84,26,FALSE) ->  | F55: =IF(ISBLANK($B55)=FALSE,VLOOKUP(+$B55,'resultaten immissietoets'!$A$27:$AI$84,35,FALSE)," ") ->  | G55: =LOG(IF(ISNUMBER(VLOOKUP(+$B55,'resultaten immissietoets'!$A$27:$AE$84,2,FALSE))=TRUE,VLOOKUP(+$B55,'resultaten immissietoets'!$A$27:$AE$84,2,FALSE),1)) -> 0 | H55: =IF(ISBLANK(B55)=FALSE,VLOOKUP(+$B55,'resultaten immissietoets'!$A$27:$AE$84,31,FALSE)," ") ->  | I55: =VLOOKUP(+$B55,'resultaten immissietoets'!$A$27:$AE$84,15,FALSE) ->  | K55: =IF(ISBLANK($B55)=FALSE,VLOOKUP(+$B55,'resultaten immissietoets'!$A$27:$AI$84,29,FALSE)," ") ->  | L55: =IF(AND(ISBLANK(B55)=FALSE,B55<>" "),N55*Y55*'resultaten immissietoets'!H$16*8760*3600/1000000,0) -> 0 | N55: =IF(B55<>" ",IF(N$9="nee",IF(ISBLANK($B55)=FALSE,IF(AND('beschrijving lozing'!I$7="algemene regels",+'beschrijving lozing'!I$19="nee",ISNA(VLOOKUP(+$B55,'beschrijving lozing'!B$27:Q$78,15,FALSE))=FALSE),MAX(VLOOKUP(+B55,'beschrijving lozing'!B$27:Q$78,15,FALSE),VLOOKUP(+$B55,'resultaten immissietoets'!$A$27:$AO$84,41,FALSE)),VLOOKUP(+$B55,'resultaten immissietoets'!$A$27:$AO$84,41,FALSE))," "),+P55)," ") ->  | O55: ja | R55: nee | S55: =IF(Q55="ZZS","ja",IF('ZZS-checker'!B55=1,"ja","nee")) -> nee | T55: 0 | U55: 0 | V55: nee | W55: =IF(ISBLANK($B55)=FALSE,IF(ISNA(VLOOKUP(+$B55,'resultaten immissietoets'!$A$27:$AO$84,14,FALSE))=FALSE,VLOOKUP(+$B55,'resultaten immissietoets'!$A$27:$AO$84,14,FALSE)," ")," ") ->  | Y55: =IF(AND(ISBLANK($B55)=FALSE,$B55<>" "),VLOOKUP(+$B55,'resultaten immissietoets'!$A$27:$BU$84,73,FALSE)," ") ->  | Z55: 0 | AB55: ja | AD55: 0 | AE55: 0 | AH55: 0 | AM55: =IF(AND(ISBLANK(B55)=FALSE,B55<>" "),VLOOKUP(+$B55,'resultaten immissietoets'!$A$27:$BK$84,63,FALSE)," ") ->  | AN55: 25 | AQ55: 0 | AU55: =IF('pot-ZZS-checker'!B40>0,"ja","nee") -> nee | AV55: 0 | AW55: 0 | AZ55: =IF(AND(ISBLANK(B55)=FALSE,B55<>" "),IF(D55<W55,IF(D55+((1-AA55/100)*Y55-D55)/'resultaten immissietoets'!J$24*IF(U$22="ja",1/(1+U$25*0.000001*10^G55),1)<W55,"nee","ja"),IF(((1-AA55)*Y55-D55)/'resultaten immissietoets'!J$24*IF(U$22="ja",1/(1+U$25*0.000001*10^G55),1)<=I55,"nee","ja"))," ") ->  | BA55: =IF(ISBLANK(B55)=FALSE,IF(BA$25="ja",IF(J55=" ",IF(D55+((1-AA55/100)*Y55-D55)/Q$20*IF(U$22="ja",1/(1+U$25*0.000001*10^G55),1)<=1,"nee","ja"),IF(D55+((1-AA55/100)*Y55-D55)/Q$20*IF(U$22="ja",1/(1+U$25*0.000001*10^G55),1)<='resultaten immissietoets'!AD53,"nee","ja")),"nee")," ") -> nee | BC55: nee | BD55: 0 | BH55: 0 | BK55: =IF(ISNA(VLOOKUP(B55,'resultaten immissietoets'!A$28:AO$84,41,FALSE))=FALSE,VLOOKUP(B55,'resultaten immissietoets'!A$28:AO$84,41,FALSE),0) -> 0 | BY55: 0 | BZ55: =IF(AND(B55<>" ",OR(+'beoordeling maatregel'!Q55="ZZS",S55="ja")),U55*L55,0) -> 0 | CA55: =IF(AND(B55<>" ",OR(B55="PFOS",B55="PFOA",B55="GENX",B55="overige PFAS",B55="6:2 FTS")),+'beoordeling maatregel'!L55*'beoordeling maatregel'!U55,0) -> 0
A56: 27 | B56: =IF(A56<=N$27,VLOOKUP(A55+1,'resultaten immissietoets'!AM$28:AN$84,2,FALSE)," ") ->  | C56: =VLOOKUP(+$B56,'resultaten immissietoets'!$A$27:$AA$84,24,FALSE) ->  | D56: =IF(ISBLANK($B56)=FALSE,VLOOKUP(+$B56,'resultaten immissietoets'!$A$27:$AA$84,10,FALSE)," ") ->  | E56: =VLOOKUP(+$B56,'resultaten immissietoets'!$A$27:$AA$84,26,FALSE) ->  | F56: =IF(ISBLANK($B56)=FALSE,VLOOKUP(+$B56,'resultaten immissietoets'!$A$27:$AI$84,35,FALSE)," ") ->  | G56: =LOG(IF(ISNUMBER(VLOOKUP(+$B56,'resultaten immissietoets'!$A$27:$AE$84,2,FALSE))=TRUE,VLOOKUP(+$B56,'resultaten immissietoets'!$A$27:$AE$84,2,FALSE),1)) -> 0 | H56: =IF(ISBLANK(B56)=FALSE,VLOOKUP(+$B56,'resultaten immissietoets'!$A$27:$AE$84,31,FALSE)," ") ->  | I56: =VLOOKUP(+$B56,'resultaten immissietoets'!$A$27:$AE$84,15,FALSE) ->  | K56: =IF(ISBLANK($B56)=FALSE,VLOOKUP(+$B56,'resultaten immissietoets'!$A$27:$AI$84,29,FALSE)," ") ->  | L56: =IF(AND(ISBLANK(B56)=FALSE,B56<>" "),N56*Y56*'resultaten immissietoets'!H$16*8760*3600/1000000,0) -> 0 | N56: =IF(B56<>" ",IF(N$9="nee",IF(ISBLANK($B56)=FALSE,IF(AND('beschrijving lozing'!I$7="algemene regels",+'beschrijving lozing'!I$19="nee",ISNA(VLOOKUP(+$B56,'beschrijving lozing'!B$27:Q$78,15,FALSE))=FALSE),MAX(VLOOKUP(+B56,'beschrijving lozing'!B$27:Q$78,15,FALSE),VLOOKUP(+$B56,'resultaten immissietoets'!$A$27:$AO$84,41,FALSE)),VLOOKUP(+$B56,'resultaten immissietoets'!$A$27:$AO$84,41,FALSE))," "),+P56)," ") ->  | O56: ja | R56: nee | S56: =IF(Q56="ZZS","ja",IF('ZZS-checker'!B56=1,"ja","nee")) -> nee | T56: 0 | U56: 0 | V56: nee | W56: =IF(ISBLANK($B56)=FALSE,IF(ISNA(VLOOKUP(+$B56,'resultaten immissietoets'!$A$27:$AO$84,14,FALSE))=FALSE,VLOOKUP(+$B56,'resultaten immissietoets'!$A$27:$AO$84,14,FALSE)," ")," ") ->  | Y56: =IF(AND(ISBLANK($B56)=FALSE,$B56<>" "),VLOOKUP(+$B56,'resultaten immissietoets'!$A$27:$BU$84,73,FALSE)," ") ->  | Z56: 0 | AB56: ja | AD56: 0 | AE56: 0 | AH56: 0 | AM56: =IF(AND(ISBLANK(B56)=FALSE,B56<>" "),VLOOKUP(+$B56,'resultaten immissietoets'!$A$27:$BK$84,63,FALSE)," ") ->  | AN56: 26 | AQ56: 0 | AU56: =IF('pot-ZZS-checker'!B41>0,"ja","nee") -> nee | AV56: 0 | AW56: 0 | AZ56: =IF(AND(ISBLANK(B56)=FALSE,B56<>" "),IF(D56<W56,IF(D56+((1-AA56/100)*Y56-D56)/'resultaten immissietoets'!J$24*IF(U$22="ja",1/(1+U$25*0.000001*10^G56),1)<W56,"nee","ja"),IF(((1-AA56)*Y56-D56)/'resultaten immissietoets'!J$24*IF(U$22="ja",1/(1+U$25*0.000001*10^G56),1)<=I56,"nee","ja"))," ") ->  | BA56: =IF(ISBLANK(B56)=FALSE,IF(BA$25="ja",IF(J56=" ",IF(D56+((1-AA56/100)*Y56-D56)/Q$20*IF(U$22="ja",1/(1+U$25*0.000001*10^G56),1)<=1,"nee","ja"),IF(D56+((1-AA56/100)*Y56-D56)/Q$20*IF(U$22="ja",1/(1+U$25*0.000001*10^G56),1)<='resultaten immissietoets'!AD54,"nee","ja")),"nee")," ") -> nee | BC56: nee | BD56: 0 | BH56: 0 | BK56: =IF(ISNA(VLOOKUP(B56,'resultaten immissietoets'!A$28:AO$84,41,FALSE))=FALSE,VLOOKUP(B56,'resultaten immissietoets'!A$28:AO$84,41,FALSE),0) -> 0 | BY56: 0 | BZ56: =IF(AND(B56<>" ",OR(+'beoordeling maatregel'!Q56="ZZS",S56="ja")),U56*L56,0) -> 0 | CA56: =IF(AND(B56<>" ",OR(B56="PFOS",B56="PFOA",B56="GENX",B56="overige PFAS",B56="6:2 FTS")),+'beoordeling maatregel'!L56*'beoordeling maatregel'!U56,0) -> 0
A57: 28 | B57: =IF(A57<=N$27,VLOOKUP(A56+1,'resultaten immissietoets'!AM$28:AN$84,2,FALSE)," ") ->  | C57: =VLOOKUP(+$B57,'resultaten immissietoets'!$A$27:$AA$84,24,FALSE) ->  | D57: =IF(ISBLANK($B57)=FALSE,VLOOKUP(+$B57,'resultaten immissietoets'!$A$27:$AA$84,10,FALSE)," ") ->  | E57: =VLOOKUP(+$B57,'resultaten immissietoets'!$A$27:$AA$84,26,FALSE) ->  | F57: =IF(ISBLANK($B57)=FALSE,VLOOKUP(+$B57,'resultaten immissietoets'!$A$27:$AI$84,35,FALSE)," ") ->  | G57: =LOG(IF(ISNUMBER(VLOOKUP(+$B57,'resultaten immissietoets'!$A$27:$AE$84,2,FALSE))=TRUE,VLOOKUP(+$B57,'resultaten immissietoets'!$A$27:$AE$84,2,FALSE),1)) -> 0 | H57: =IF(ISBLANK(B57)=FALSE,VLOOKUP(+$B57,'resultaten immissietoets'!$A$27:$AE$84,31,FALSE)," ") ->  | I57: =VLOOKUP(+$B57,'resultaten immissietoets'!$A$27:$AE$84,15,FALSE) ->  | K57: =IF(ISBLANK($B57)=FALSE,VLOOKUP(+$B57,'resultaten immissietoets'!$A$27:$AI$84,29,FALSE)," ") ->  | L57: =IF(AND(ISBLANK(B57)=FALSE,B57<>" "),N57*Y57*'resultaten immissietoets'!H$16*8760*3600/1000000,0) -> 0 | N57: =IF(B57<>" ",IF(N$9="nee",IF(ISBLANK($B57)=FALSE,IF(AND('beschrijving lozing'!I$7="algemene regels",+'beschrijving lozing'!I$19="nee",ISNA(VLOOKUP(+$B57,'beschrijving lozing'!B$27:Q$78,15,FALSE))=FALSE),MAX(VLOOKUP(+B57,'beschrijving lozing'!B$27:Q$78,15,FALSE),VLOOKUP(+$B57,'resultaten immissietoets'!$A$27:$AO$84,41,FALSE)),VLOOKUP(+$B57,'resultaten immissietoets'!$A$27:$AO$84,41,FALSE))," "),+P57)," ") ->  | O57: ja | R57: nee | S57: =IF(Q57="ZZS","ja",IF('ZZS-checker'!B57=1,"ja","nee")) -> nee | T57: 0 | U57: 0 | V57: nee | W57: =IF(ISBLANK($B57)=FALSE,IF(ISNA(VLOOKUP(+$B57,'resultaten immissietoets'!$A$27:$AO$84,14,FALSE))=FALSE,VLOOKUP(+$B57,'resultaten immissietoets'!$A$27:$AO$84,14,FALSE)," ")," ") ->  | Y57: =IF(AND(ISBLANK($B57)=FALSE,$B57<>" "),VLOOKUP(+$B57,'resultaten immissietoets'!$A$27:$BU$84,73,FALSE)," ") ->  | Z57: 0 | AB57: ja | AD57: 0 | AE57: 0 | AH57: 0 | AM57: =IF(AND(ISBLANK(B57)=FALSE,B57<>" "),VLOOKUP(+$B57,'resultaten immissietoets'!$A$27:$BK$84,63,FALSE)," ") ->  | AN57: 27 | AQ57: 0 | AU57: =IF('pot-ZZS-checker'!B42>0,"ja","nee") -> nee | AV57: 0 | AW57: 0 | AZ57: =IF(AND(ISBLANK(B57)=FALSE,B57<>" "),IF(D57<W57,IF(D57+((1-AA57/100)*Y57-D57)/'resultaten immissietoets'!J$24*IF(U$22="ja",1/(1+U$25*0.000001*10^G57),1)<W57,"nee","ja"),IF(((1-AA57)*Y57-D57)/'resultaten immissietoets'!J$24*IF(U$22="ja",1/(1+U$25*0.000001*10^G57),1)<=I57,"nee","ja"))," ") ->  | BA57: =IF(ISBLANK(B57)=FALSE,IF(BA$25="ja",IF(J57=" ",IF(D57+((1-AA57/100)*Y57-D57)/Q$20*IF(U$22="ja",1/(1+U$25*0.000001*10^G57),1)<=1,"nee","ja"),IF(D57+((1-AA57/100)*Y57-D57)/Q$20*IF(U$22="ja",1/(1+U$25*0.000001*10^G57),1)<='resultaten immissietoets'!AD55,"nee","ja")),"nee")," ") -> nee | BC57: nee | BD57: 0 | BH57: 0 | BK57: =IF(ISNA(VLOOKUP(B57,'resultaten immissietoets'!A$28:AO$84,41,FALSE))=FALSE,VLOOKUP(B57,'resultaten immissietoets'!A$28:AO$84,41,FALSE),0) -> 0 | BY57: 0 | BZ57: =IF(AND(B57<>" ",OR(+'beoordeling maatregel'!Q57="ZZS",S57="ja")),U57*L57,0) -> 0 | CA57: =IF(AND(B57<>" ",OR(B57="PFOS",B57="PFOA",B57="GENX",B57="overige PFAS",B57="6:2 FTS")),+'beoordeling maatregel'!L57*'beoordeling maatregel'!U57,0) -> 0
A58: 29 | B58: =IF(A58<=N$27,VLOOKUP(A57+1,'resultaten immissietoets'!AM$28:AN$84,2,FALSE)," ") ->  | C58: =VLOOKUP(+$B58,'resultaten immissietoets'!$A$27:$AA$84,24,FALSE) ->  | D58: =IF(ISBLANK($B58)=FALSE,VLOOKUP(+$B58,'resultaten immissietoets'!$A$27:$AA$84,10,FALSE)," ") ->  | E58: =VLOOKUP(+$B58,'resultaten immissietoets'!$A$27:$AA$84,26,FALSE) ->  | F58: =IF(ISBLANK($B58)=FALSE,VLOOKUP(+$B58,'resultaten immissietoets'!$A$27:$AI$84,35,FALSE)," ") ->  | G58: =LOG(IF(ISNUMBER(VLOOKUP(+$B58,'resultaten immissietoets'!$A$27:$AE$84,2,FALSE))=TRUE,VLOOKUP(+$B58,'resultaten immissietoets'!$A$27:$AE$84,2,FALSE),1)) -> 0 | H58: =IF(ISBLANK(B58)=FALSE,VLOOKUP(+$B58,'resultaten immissietoets'!$A$27:$AE$84,31,FALSE)," ") ->  | I58: =VLOOKUP(+$B58,'resultaten immissietoets'!$A$27:$AE$84,15,FALSE) ->  | K58: =IF(ISBLANK($B58)=FALSE,VLOOKUP(+$B58,'resultaten immissietoets'!$A$27:$AI$84,29,FALSE)," ") ->  | L58: =IF(AND(ISBLANK(B58)=FALSE,B58<>" "),N58*Y58*'resultaten immissietoets'!H$16*8760*3600/1000000,0) -> 0 | N58: =IF(B58<>" ",IF(N$9="nee",IF(ISBLANK($B58)=FALSE,IF(AND('beschrijving lozing'!I$7="algemene regels",+'beschrijving lozing'!I$19="nee",ISNA(VLOOKUP(+$B58,'beschrijving lozing'!B$27:Q$78,15,FALSE))=FALSE),MAX(VLOOKUP(+B58,'beschrijving lozing'!B$27:Q$78,15,FALSE),VLOOKUP(+$B58,'resultaten immissietoets'!$A$27:$AO$84,41,FALSE)),VLOOKUP(+$B58,'resultaten immissietoets'!$A$27:$AO$84,41,FALSE))," "),+P58)," ") ->  | O58: ja | R58: nee | S58: =IF(Q58="ZZS","ja",IF('ZZS-checker'!B58=1,"ja","nee")) -> nee | T58: 0 | U58: 0 | V58: nee | W58: =IF(ISBLANK($B58)=FALSE,IF(ISNA(VLOOKUP(+$B58,'resultaten immissietoets'!$A$27:$AO$84,14,FALSE))=FALSE,VLOOKUP(+$B58,'resultaten immissietoets'!$A$27:$AO$84,14,FALSE)," ")," ") ->  | Y58: =IF(AND(ISBLANK($B58)=FALSE,$B58<>" "),VLOOKUP(+$B58,'resultaten immissietoets'!$A$27:$BU$84,73,FALSE)," ") ->  | Z58: 0 | AB58: ja | AD58: 0 | AE58: 0 | AH58: 0 | AM58: =IF(AND(ISBLANK(B58)=FALSE,B58<>" "),VLOOKUP(+$B58,'resultaten immissietoets'!$A$27:$BK$84,63,FALSE)," ") ->  | AN58: 28 | AQ58: 0 | AU58: =IF('pot-ZZS-checker'!B43>0,"ja","nee") -> nee | AV58: 0 | AW58: 0 | AZ58: =IF(AND(ISBLANK(B58)=FALSE,B58<>" "),IF(D58<W58,IF(D58+((1-AA58/100)*Y58-D58)/'resultaten immissietoets'!J$24*IF(U$22="ja",1/(1+U$25*0.000001*10^G58),1)<W58,"nee","ja"),IF(((1-AA58)*Y58-D58)/'resultaten immissietoets'!J$24*IF(U$22="ja",1/(1+U$25*0.000001*10^G58),1)<=I58,"nee","ja"))," ") ->  | BA58: =IF(ISBLANK(B58)=FALSE,IF(BA$25="ja",IF(J58=" ",IF(D58+((1-AA58/100)*Y58-D58)/Q$20*IF(U$22="ja",1/(1+U$25*0.000001*10^G58),1)<=1,"nee","ja"),IF(D58+((1-AA58/100)*Y58-D58)/Q$20*IF(U$22="ja",1/(1+U$25*0.000001*10^G58),1)<='resultaten immissietoets'!AD56,"nee","ja")),"nee")," ") -> nee | BC58: nee | BD58: 0 | BH58: 0 | BK58: =IF(ISNA(VLOOKUP(B58,'resultaten immissietoets'!A$28:AO$84,41,FALSE))=FALSE,VLOOKUP(B58,'resultaten immissietoets'!A$28:AO$84,41,FALSE),0) -> 0 | BY58: 0 | BZ58: =IF(AND(B58<>" ",OR(+'beoordeling maatregel'!Q58="ZZS",S58="ja")),U58*L58,0) -> 0 | CA58: =IF(AND(B58<>" ",OR(B58="PFOS",B58="PFOA",B58="GENX",B58="overige PFAS",B58="6:2 FTS")),+'beoordeling maatregel'!L58*'beoordeling maatregel'!U58,0) -> 0
A59: 30 | B59: =IF(A59<=N$27,VLOOKUP(A58+1,'resultaten immissietoets'!AM$28:AN$84,2,FALSE)," ") ->  | C59: =VLOOKUP(+$B59,'resultaten immissietoets'!$A$27:$AA$84,24,FALSE) ->  | D59: =IF(ISBLANK($B59)=FALSE,VLOOKUP(+$B59,'resultaten immissietoets'!$A$27:$AA$84,10,FALSE)," ") ->  | E59: =VLOOKUP(+$B59,'resultaten immissietoets'!$A$27:$AA$84,26,FALSE) ->  | F59: =IF(ISBLANK($B59)=FALSE,VLOOKUP(+$B59,'resultaten immissietoets'!$A$27:$AI$84,35,FALSE)," ") ->  | G59: =LOG(IF(ISNUMBER(VLOOKUP(+$B59,'resultaten immissietoets'!$A$27:$AE$84,2,FALSE))=TRUE,VLOOKUP(+$B59,'resultaten immissietoets'!$A$27:$AE$84,2,FALSE),1)) -> 0 | H59: =IF(ISBLANK(B59)=FALSE,VLOOKUP(+$B59,'resultaten immissietoets'!$A$27:$AE$84,31,FALSE)," ") ->  | I59: =VLOOKUP(+$B59,'resultaten immissietoets'!$A$27:$AE$84,15,FALSE) ->  | K59: =IF(ISBLANK($B59)=FALSE,VLOOKUP(+$B59,'resultaten immissietoets'!$A$27:$AI$84,29,FALSE)," ") ->  | L59: =IF(AND(ISBLANK(B59)=FALSE,B59<>" "),N59*Y59*'resultaten immissietoets'!H$16*8760*3600/1000000,0) -> 0 | N59: =IF(B59<>" ",IF(N$9="nee",IF(ISBLANK($B59)=FALSE,IF(AND('beschrijving lozing'!I$7="algemene regels",+'beschrijving lozing'!I$19="nee",ISNA(VLOOKUP(+$B59,'beschrijving lozing'!B$27:Q$78,15,FALSE))=FALSE),MAX(VLOOKUP(+B59,'beschrijving lozing'!B$27:Q$78,15,FALSE),VLOOKUP(+$B59,'resultaten immissietoets'!$A$27:$AO$84,41,FALSE)),VLOOKUP(+$B59,'resultaten immissietoets'!$A$27:$AO$84,41,FALSE))," "),+P59)," ") ->  | O59: ja | R59: nee | S59: =IF(Q59="ZZS","ja",IF('ZZS-checker'!B59=1,"ja","nee")) -> nee | T59: 0 | U59: 0 | V59: nee | W59: =IF(ISBLANK($B59)=FALSE,IF(ISNA(VLOOKUP(+$B59,'resultaten immissietoets'!$A$27:$AO$84,14,FALSE))=FALSE,VLOOKUP(+$B59,'resultaten immissietoets'!$A$27:$AO$84,14,FALSE)," ")," ") ->  | Y59: =IF(AND(ISBLANK($B59)=FALSE,$B59<>" "),VLOOKUP(+$B59,'resultaten immissietoets'!$A$27:$BU$84,73,FALSE)," ") ->  | Z59: 0 | AB59: ja | AD59: 0 | AE59: 0 | AH59: 0 | AM59: =IF(AND(ISBLANK(B59)=FALSE,B59<>" "),VLOOKUP(+$B59,'resultaten immissietoets'!$A$27:$BK$84,63,FALSE)," ") ->  | AN59: 29 | AQ59: 0 | AU59: =IF('pot-ZZS-checker'!B44>0,"ja","nee") -> nee | AV59: 0 | AW59: 0 | AZ59: =IF(AND(ISBLANK(B59)=FALSE,B59<>" "),IF(D59<W59,IF(D59+((1-AA59/100)*Y59-D59)/'resultaten immissietoets'!J$24*IF(U$22="ja",1/(1+U$25*0.000001*10^G59),1)<W59,"nee","ja"),IF(((1-AA59)*Y59-D59)/'resultaten immissietoets'!J$24*IF(U$22="ja",1/(1+U$25*0.000001*10^G59),1)<=I59,"nee","ja"))," ") ->  | BA59: =IF(ISBLANK(B59)=FALSE,IF(BA$25="ja",IF(J59=" ",IF(D59+((1-AA59/100)*Y59-D59)/Q$20*IF(U$22="ja",1/(1+U$25*0.000001*10^G59),1)<=1,"nee","ja"),IF(D59+((1-AA59/100)*Y59-D59)/Q$20*IF(U$22="ja",1/(1+U$25*0.000001*10^G59),1)<='resultaten immissietoets'!AD57,"nee","ja")),"nee")," ") -> nee | BC59: nee | BD59: 0 | BH59: 0 | BK59: =IF(ISNA(VLOOKUP(B59,'resultaten immissietoets'!A$28:AO$84,41,FALSE))=FALSE,VLOOKUP(B59,'resultaten immissietoets'!A$28:AO$84,41,FALSE),0) -> 0 | BY59: 0 | BZ59: =IF(AND(B59<>" ",OR(+'beoordeling maatregel'!Q59="ZZS",S59="ja")),U59*L59,0) -> 0 | CA59: =IF(AND(B59<>" ",OR(B59="PFOS",B59="PFOA",B59="GENX",B59="overige PFAS",B59="6:2 FTS")),+'beoordeling maatregel'!L59*'beoordeling maatregel'!U59,0) -> 0
A60: 31 | B60: =IF(A60<=N$27,VLOOKUP(A59+1,'resultaten immissietoets'!AM$28:AN$84,2,FALSE)," ") ->  | C60: =VLOOKUP(+$B60,'resultaten immissietoets'!$A$27:$AA$84,24,FALSE) ->  | D60: =IF(ISBLANK($B60)=FALSE,VLOOKUP(+$B60,'resultaten immissietoets'!$A$27:$AA$84,10,FALSE)," ") ->  | E60: =VLOOKUP(+$B60,'resultaten immissietoets'!$A$27:$AA$84,26,FALSE) ->  | F60: =IF(ISBLANK($B60)=FALSE,VLOOKUP(+$B60,'resultaten immissietoets'!$A$27:$AI$84,35,FALSE)," ") ->  | G60: =LOG(IF(ISNUMBER(VLOOKUP(+$B60,'resultaten immissietoets'!$A$27:$AE$84,2,FALSE))=TRUE,VLOOKUP(+$B60,'resultaten immissietoets'!$A$27:$AE$84,2,FALSE),1)) -> 0 | H60: =IF(ISBLANK(B60)=FALSE,VLOOKUP(+$B60,'resultaten immissietoets'!$A$27:$AE$84,31,FALSE)," ") ->  | I60: =VLOOKUP(+$B60,'resultaten immissietoets'!$A$27:$AE$84,15,FALSE) ->  | K60: =IF(ISBLANK($B60)=FALSE,VLOOKUP(+$B60,'resultaten immissietoets'!$A$27:$AI$84,29,FALSE)," ") ->  | L60: =IF(AND(ISBLANK(B60)=FALSE,B60<>" "),N60*Y60*'resultaten immissietoets'!H$16*8760*3600/1000000,0) -> 0 | N60: =IF(B60<>" ",IF(N$9="nee",IF(ISBLANK($B60)=FALSE,IF(AND('beschrijving lozing'!I$7="algemene regels",+'beschrijving lozing'!I$19="nee",ISNA(VLOOKUP(+$B60,'beschrijving lozing'!B$27:Q$78,15,FALSE))=FALSE),MAX(VLOOKUP(+B60,'beschrijving lozing'!B$27:Q$78,15,FALSE),VLOOKUP(+$B60,'resultaten immissietoets'!$A$27:$AO$84,41,FALSE)),VLOOKUP(+$B60,'resultaten immissietoets'!$A$27:$AO$84,41,FALSE))," "),+P60)," ") ->  | O60: ja | R60: nee | S60: =IF(Q60="ZZS","ja",IF('ZZS-checker'!B60=1,"ja","nee")) -> nee | T60: 0 | U60: 0 | V60: nee | W60: =IF(ISBLANK($B60)=FALSE,IF(ISNA(VLOOKUP(+$B60,'resultaten immissietoets'!$A$27:$AO$84,14,FALSE))=FALSE,VLOOKUP(+$B60,'resultaten immissietoets'!$A$27:$AO$84,14,FALSE)," ")," ") ->  | Y60: =IF(AND(ISBLANK($B60)=FALSE,$B60<>" "),VLOOKUP(+$B60,'resultaten immissietoets'!$A$27:$BU$84,73,FALSE)," ") ->  | Z60: 0 | AB60: ja | AD60: 0 | AE60: 0 | AH60: 0 | AM60: =IF(AND(ISBLANK(B60)=FALSE,B60<>" "),VLOOKUP(+$B60,'resultaten immissietoets'!$A$27:$BK$84,63,FALSE)," ") ->  | AN60: 30 | AQ60: 0 | AU60: =IF('pot-ZZS-checker'!B45>0,"ja","nee") -> nee | AV60: 0 | AW60: 0 | AZ60: =IF(AND(ISBLANK(B60)=FALSE,B60<>" "),IF(D60<W60,IF(D60+((1-AA60/100)*Y60-D60)/'resultaten immissietoets'!J$24*IF(U$22="ja",1/(1+U$25*0.000001*10^G60),1)<W60,"nee","ja"),IF(((1-AA60)*Y60-D60)/'resultaten immissietoets'!J$24*IF(U$22="ja",1/(1+U$25*0.000001*10^G60),1)<=I60,"nee","ja"))," ") ->  | BA60: =IF(ISBLANK(B60)=FALSE,IF(BA$25="ja",IF(J60=" ",IF(D60+((1-AA60/100)*Y60-D60)/Q$20*IF(U$22="ja",1/(1+U$25*0.000001*10^G60),1)<=1,"nee","ja"),IF(D60+((1-AA60/100)*Y60-D60)/Q$20*IF(U$22="ja",1/(1+U$25*0.000001*10^G60),1)<='resultaten immissietoets'!AD58,"nee","ja")),"nee")," ") -> nee | BC60: nee | BD60: 0 | BH60: 0 | BK60: =IF(ISNA(VLOOKUP(B60,'resultaten immissietoets'!A$28:AO$84,41,FALSE))=FALSE,VLOOKUP(B60,'resultaten immissietoets'!A$28:AO$84,41,FALSE),0) -> 0 | BY60: 0 | BZ60: =IF(AND(B60<>" ",OR(+'beoordeling maatregel'!Q60="ZZS",S60="ja")),U60*L60,0) -> 0 | CA60: =IF(AND(B60<>" ",OR(B60="PFOS",B60="PFOA",B60="GENX",B60="overige PFAS",B60="6:2 FTS")),+'beoordeling maatregel'!L60*'beoordeling maatregel'!U60,0) -> 0
A61: 32 | B61: =IF(A61<=N$27,VLOOKUP(A60+1,'resultaten immissietoets'!AM$28:AN$84,2,FALSE)," ") ->  | C61: =VLOOKUP(+$B61,'resultaten immissietoets'!$A$27:$AA$84,24,FALSE) ->  | D61: =IF(ISBLANK($B61)=FALSE,VLOOKUP(+$B61,'resultaten immissietoets'!$A$27:$AA$84,10,FALSE)," ") ->  | E61: =VLOOKUP(+$B61,'resultaten immissietoets'!$A$27:$AA$84,26,FALSE) ->  | F61: =IF(ISBLANK($B61)=FALSE,VLOOKUP(+$B61,'resultaten immissietoets'!$A$27:$AI$84,35,FALSE)," ") ->  | G61: =LOG(IF(ISNUMBER(VLOOKUP(+$B61,'resultaten immissietoets'!$A$27:$AE$84,2,FALSE))=TRUE,VLOOKUP(+$B61,'resultaten immissietoets'!$A$27:$AE$84,2,FALSE),1)) -> 0 | H61: =IF(ISBLANK(B61)=FALSE,VLOOKUP(+$B61,'resultaten immissietoets'!$A$27:$AE$84,31,FALSE)," ") ->  | I61: =VLOOKUP(+$B61,'resultaten immissietoets'!$A$27:$AE$84,15,FALSE) ->  | K61: =IF(ISBLANK($B61)=FALSE,VLOOKUP(+$B61,'resultaten immissietoets'!$A$27:$AI$84,29,FALSE)," ") ->  | L61: =IF(AND(ISBLANK(B61)=FALSE,B61<>" "),N61*Y61*'resultaten immissietoets'!H$16*8760*3600/1000000,0) -> 0 | N61: =IF(B61<>" ",IF(N$9="nee",IF(ISBLANK($B61)=FALSE,IF(AND('beschrijving lozing'!I$7="algemene regels",+'beschrijving lozing'!I$19="nee",ISNA(VLOOKUP(+$B61,'beschrijving lozing'!B$27:Q$78,15,FALSE))=FALSE),MAX(VLOOKUP(+B61,'beschrijving lozing'!B$27:Q$78,15,FALSE),VLOOKUP(+$B61,'resultaten immissietoets'!$A$27:$AO$84,41,FALSE)),VLOOKUP(+$B61,'resultaten immissietoets'!$A$27:$AO$84,41,FALSE))," "),+P61)," ") ->  | O61: ja | R61: nee | S61: =IF(Q61="ZZS","ja",IF('ZZS-checker'!B61=1,"ja","nee")) -> nee | T61: 0 | U61: 0 | V61: nee | W61: =IF(ISBLANK($B61)=FALSE,IF(ISNA(VLOOKUP(+$B61,'resultaten immissietoets'!$A$27:$AO$84,14,FALSE))=FALSE,VLOOKUP(+$B61,'resultaten immissietoets'!$A$27:$AO$84,14,FALSE)," ")," ") ->  | Y61: =IF(AND(ISBLANK($B61)=FALSE,$B61<>" "),VLOOKUP(+$B61,'resultaten immissietoets'!$A$27:$BU$84,73,FALSE)," ") ->  | Z61: 0 | AB61: ja | AD61: 0 | AE61: 0 | AH61: 0 | AM61: =IF(AND(ISBLANK(B61)=FALSE,B61<>" "),VLOOKUP(+$B61,'resultaten immissietoets'!$A$27:$BK$84,63,FALSE)," ") ->  | AN61: 31 | AQ61: 0 | AU61: =IF('pot-ZZS-checker'!B46>0,"ja","nee") -> nee | AV61: 0 | AW61: 0 | AZ61: =IF(AND(ISBLANK(B61)=FALSE,B61<>" "),IF(D61<W61,IF(D61+((1-AA61/100)*Y61-D61)/'resultaten immissietoets'!J$24*IF(U$22="ja",1/(1+U$25*0.000001*10^G61),1)<W61,"nee","ja"),IF(((1-AA61)*Y61-D61)/'resultaten immissietoets'!J$24*IF(U$22="ja",1/(1+U$25*0.000001*10^G61),1)<=I61,"nee","ja"))," ") ->  | BA61: =IF(ISBLANK(B61)=FALSE,IF(BA$25="ja",IF(J61=" ",IF(D61+((1-AA61/100)*Y61-D61)/Q$20*IF(U$22="ja",1/(1+U$25*0.000001*10^G61),1)<=1,"nee","ja"),IF(D61+((1-AA61/100)*Y61-D61)/Q$20*IF(U$22="ja",1/(1+U$25*0.000001*10^G61),1)<='resultaten immissietoets'!AD59,"nee","ja")),"nee")," ") -> nee | BC61: nee | BD61: 0 | BH61: 0 | BK61: =IF(ISNA(VLOOKUP(B61,'resultaten immissietoets'!A$28:AO$84,41,FALSE))=FALSE,VLOOKUP(B61,'resultaten immissietoets'!A$28:AO$84,41,FALSE),0) -> 0 | BY61: 0 | BZ61: =IF(AND(B61<>" ",OR(+'beoordeling maatregel'!Q61="ZZS",S61="ja")),U61*L61,0) -> 0 | CA61: =IF(AND(B61<>" ",OR(B61="PFOS",B61="PFOA",B61="GENX",B61="overige PFAS",B61="6:2 FTS")),+'beoordeling maatregel'!L61*'beoordeling maatregel'!U61,0) -> 0
A62: 33 | B62: =IF(A62<=N$27,VLOOKUP(A61+1,'resultaten immissietoets'!AM$28:AN$84,2,FALSE)," ") ->  | C62: =VLOOKUP(+$B62,'resultaten immissietoets'!$A$27:$AA$84,24,FALSE) ->  | D62: =IF(ISBLANK($B62)=FALSE,VLOOKUP(+$B62,'resultaten immissietoets'!$A$27:$AA$84,10,FALSE)," ") ->  | E62: =VLOOKUP(+$B62,'resultaten immissietoets'!$A$27:$AA$84,26,FALSE) ->  | F62: =IF(ISBLANK($B62)=FALSE,VLOOKUP(+$B62,'resultaten immissietoets'!$A$27:$AI$84,35,FALSE)," ") ->  | G62: =LOG(IF(ISNUMBER(VLOOKUP(+$B62,'resultaten immissietoets'!$A$27:$AE$84,2,FALSE))=TRUE,VLOOKUP(+$B62,'resultaten immissietoets'!$A$27:$AE$84,2,FALSE),1)) -> 0 | H62: =IF(ISBLANK(B62)=FALSE,VLOOKUP(+$B62,'resultaten immissietoets'!$A$27:$AE$84,31,FALSE)," ") ->  | I62: =VLOOKUP(+$B62,'resultaten immissietoets'!$A$27:$AE$84,15,FALSE) ->  | K62: =IF(ISBLANK($B62)=FALSE,VLOOKUP(+$B62,'resultaten immissietoets'!$A$27:$AI$84,29,FALSE)," ") ->  | L62: =IF(AND(ISBLANK(B62)=FALSE,B62<>" "),N62*Y62*'resultaten immissietoets'!H$16*8760*3600/1000000,0) -> 0 | N62: =IF(B62<>" ",IF(N$9="nee",IF(ISBLANK($B62)=FALSE,IF(AND('beschrijving lozing'!I$7="algemene regels",+'beschrijving lozing'!I$19="nee",ISNA(VLOOKUP(+$B62,'beschrijving lozing'!B$27:Q$78,15,FALSE))=FALSE),MAX(VLOOKUP(+B62,'beschrijving lozing'!B$27:Q$78,15,FALSE),VLOOKUP(+$B62,'resultaten immissietoets'!$A$27:$AO$84,41,FALSE)),VLOOKUP(+$B62,'resultaten immissietoets'!$A$27:$AO$84,41,FALSE))," "),+P62)," ") ->  | O62: ja | R62: nee | S62: =IF(Q62="ZZS","ja",IF('ZZS-checker'!B62=1,"ja","nee")) -> nee | T62: 0 | U62: 0 | V62: nee | W62: =IF(ISBLANK($B62)=FALSE,IF(ISNA(VLOOKUP(+$B62,'resultaten immissietoets'!$A$27:$AO$84,14,FALSE))=FALSE,VLOOKUP(+$B62,'resultaten immissietoets'!$A$27:$AO$84,14,FALSE)," ")," ") ->  | Y62: =IF(AND(ISBLANK($B62)=FALSE,$B62<>" "),VLOOKUP(+$B62,'resultaten immissietoets'!$A$27:$BU$84,73,FALSE)," ") ->  | Z62: 0 | AB62: ja | AD62: 0 | AE62: 0 | AH62: 0 | AM62: =IF(AND(ISBLANK(B62)=FALSE,B62<>" "),VLOOKUP(+$B62,'resultaten immissietoets'!$A$27:$BK$84,63,FALSE)," ") ->  | AN62: 32 | AQ62: 0 | AU62: =IF('pot-ZZS-checker'!B47>0,"ja","nee") -> nee | AV62: 0 | AW62: 0 | AZ62: =IF(AND(ISBLANK(B62)=FALSE,B62<>" "),IF(D62<W62,IF(D62+((1-AA62/100)*Y62-D62)/'resultaten immissietoets'!J$24*IF(U$22="ja",1/(1+U$25*0.000001*10^G62),1)<W62,"nee","ja"),IF(((1-AA62)*Y62-D62)/'resultaten immissietoets'!J$24*IF(U$22="ja",1/(1+U$25*0.000001*10^G62),1)<=I62,"nee","ja"))," ") ->  | BA62: =IF(ISBLANK(B62)=FALSE,IF(BA$25="ja",IF(J62=" ",IF(D62+((1-AA62/100)*Y62-D62)/Q$20*IF(U$22="ja",1/(1+U$25*0.000001*10^G62),1)<=1,"nee","ja"),IF(D62+((1-AA62/100)*Y62-D62)/Q$20*IF(U$22="ja",1/(1+U$25*0.000001*10^G62),1)<='resultaten immissietoets'!AD60,"nee","ja")),"nee")," ") -> nee | BC62: nee | BD62: 0 | BH62: 0 | BK62: =IF(ISNA(VLOOKUP(B62,'resultaten immissietoets'!A$28:AO$84,41,FALSE))=FALSE,VLOOKUP(B62,'resultaten immissietoets'!A$28:AO$84,41,FALSE),0) -> 0 | BY62: 0 | BZ62: =IF(AND(B62<>" ",OR(+'beoordeling maatregel'!Q62="ZZS",S62="ja")),U62*L62,0) -> 0 | CA62: =IF(AND(B62<>" ",OR(B62="PFOS",B62="PFOA",B62="GENX",B62="overige PFAS",B62="6:2 FTS")),+'beoordeling maatregel'!L62*'beoordeling maatregel'!U62,0) -> 0
A63: 34 | B63: =IF(A63<=N$27,VLOOKUP(A62+1,'resultaten immissietoets'!AM$28:AN$84,2,FALSE)," ") ->  | C63: =VLOOKUP(+$B63,'resultaten immissietoets'!$A$27:$AA$84,24,FALSE) ->  | D63: =IF(ISBLANK($B63)=FALSE,VLOOKUP(+$B63,'resultaten immissietoets'!$A$27:$AA$84,10,FALSE)," ") ->  | E63: =VLOOKUP(+$B63,'resultaten immissietoets'!$A$27:$AA$84,26,FALSE) ->  | F63: =IF(ISBLANK($B63)=FALSE,VLOOKUP(+$B63,'resultaten immissietoets'!$A$27:$AI$84,35,FALSE)," ") ->  | G63: =LOG(IF(ISNUMBER(VLOOKUP(+$B63,'resultaten immissietoets'!$A$27:$AE$84,2,FALSE))=TRUE,VLOOKUP(+$B63,'resultaten immissietoets'!$A$27:$AE$84,2,FALSE),1)) -> 0 | H63: =IF(ISBLANK(B63)=FALSE,VLOOKUP(+$B63,'resultaten immissietoets'!$A$27:$AE$84,31,FALSE)," ") ->  | I63: =VLOOKUP(+$B63,'resultaten immissietoets'!$A$27:$AE$84,15,FALSE) ->  | K63: =IF(ISBLANK($B63)=FALSE,VLOOKUP(+$B63,'resultaten immissietoets'!$A$27:$AI$84,29,FALSE)," ") ->  | L63: =IF(AND(ISBLANK(B63)=FALSE,B63<>" "),N63*Y63*'resultaten immissietoets'!H$16*8760*3600/1000000,0) -> 0 | N63: =IF(B63<>" ",IF(N$9="nee",IF(ISBLANK($B63)=FALSE,IF(AND('beschrijving lozing'!I$7="algemene regels",+'beschrijving lozing'!I$19="nee",ISNA(VLOOKUP(+$B63,'beschrijving lozing'!B$27:Q$78,15,FALSE))=FALSE),MAX(VLOOKUP(+B63,'beschrijving lozing'!B$27:Q$78,15,FALSE),VLOOKUP(+$B63,'resultaten immissietoets'!$A$27:$AO$84,41,FALSE)),VLOOKUP(+$B63,'resultaten immissietoets'!$A$27:$AO$84,41,FALSE))," "),+P63)," ") ->  | O63: ja | R63: nee | S63: =IF(Q63="ZZS","ja",IF('ZZS-checker'!B63=1,"ja","nee")) -> nee | T63: 0 | U63: 0 | V63: nee | W63: =IF(ISBLANK($B63)=FALSE,IF(ISNA(VLOOKUP(+$B63,'resultaten immissietoets'!$A$27:$AO$84,14,FALSE))=FALSE,VLOOKUP(+$B63,'resultaten immissietoets'!$A$27:$AO$84,14,FALSE)," ")," ") ->  | Y63: =IF(AND(ISBLANK($B63)=FALSE,$B63<>" "),VLOOKUP(+$B63,'resultaten immissietoets'!$A$27:$BU$84,73,FALSE)," ") ->  | Z63: 0 | AB63: ja | AD63: 0 | AE63: 0 | AH63: 0 | AM63: =IF(AND(ISBLANK(B63)=FALSE,B63<>" "),VLOOKUP(+$B63,'resultaten immissietoets'!$A$27:$BK$84,63,FALSE)," ") ->  | AN63: 33 | AQ63: 0 | AU63: =IF('pot-ZZS-checker'!B48>0,"ja","nee") -> nee | AV63: 0 | AW63: 0 | AZ63: =IF(AND(ISBLANK(B63)=FALSE,B63<>" "),IF(D63<W63,IF(D63+((1-AA63/100)*Y63-D63)/'resultaten immissietoets'!J$24*IF(U$22="ja",1/(1+U$25*0.000001*10^G63),1)<W63,"nee","ja"),IF(((1-AA63)*Y63-D63)/'resultaten immissietoets'!J$24*IF(U$22="ja",1/(1+U$25*0.000001*10^G63),1)<=I63,"nee","ja"))," ") ->  | BA63: =IF(ISBLANK(B63)=FALSE,IF(BA$25="ja",IF(J63=" ",IF(D63+((1-AA63/100)*Y63-D63)/Q$20*IF(U$22="ja",1/(1+U$25*0.000001*10^G63),1)<=1,"nee","ja"),IF(D63+((1-AA63/100)*Y63-D63)/Q$20*IF(U$22="ja",1/(1+U$25*0.000001*10^G63),1)<='resultaten immissietoets'!AD61,"nee","ja")),"nee")," ") -> nee | BC63: nee | BD63: 0 | BH63: 0 | BK63: =IF(ISNA(VLOOKUP(B63,'resultaten immissietoets'!A$28:AO$84,41,FALSE))=FALSE,VLOOKUP(B63,'resultaten immissietoets'!A$28:AO$84,41,FALSE),0) -> 0 | BY63: 0 | BZ63: =IF(AND(B63<>" ",OR(+'beoordeling maatregel'!Q63="ZZS",S63="ja")),U63*L63,0) -> 0 | CA63: =IF(AND(B63<>" ",OR(B63="PFOS",B63="PFOA",B63="GENX",B63="overige PFAS",B63="6:2 FTS")),+'beoordeling maatregel'!L63*'beoordeling maatregel'!U63,0) -> 0
A64: 35 | B64: =IF(A64<=N$27,VLOOKUP(A63+1,'resultaten immissietoets'!AM$28:AN$84,2,FALSE)," ") ->  | C64: =VLOOKUP(+$B64,'resultaten immissietoets'!$A$27:$AA$84,24,FALSE) ->  | D64: =IF(ISBLANK($B64)=FALSE,VLOOKUP(+$B64,'resultaten immissietoets'!$A$27:$AA$84,10,FALSE)," ") ->  | E64: =VLOOKUP(+$B64,'resultaten immissietoets'!$A$27:$AA$84,26,FALSE) ->  | F64: =IF(ISBLANK($B64)=FALSE,VLOOKUP(+$B64,'resultaten immissietoets'!$A$27:$AI$84,35,FALSE)," ") ->  | G64: =LOG(IF(ISNUMBER(VLOOKUP(+$B64,'resultaten immissietoets'!$A$27:$AE$84,2,FALSE))=TRUE,VLOOKUP(+$B64,'resultaten immissietoets'!$A$27:$AE$84,2,FALSE),1)) -> 0 | H64: =IF(ISBLANK(B64)=FALSE,VLOOKUP(+$B64,'resultaten immissietoets'!$A$27:$AE$84,31,FALSE)," ") ->  | I64: =VLOOKUP(+$B64,'resultaten immissietoets'!$A$27:$AE$84,15,FALSE) ->  | K64: =IF(ISBLANK($B64)=FALSE,VLOOKUP(+$B64,'resultaten immissietoets'!$A$27:$AI$84,29,FALSE)," ") ->  | L64: =IF(AND(ISBLANK(B64)=FALSE,B64<>" "),N64*Y64*'resultaten immissietoets'!H$16*8760*3600/1000000,0) -> 0 | N64: =IF(B64<>" ",IF(N$9="nee",IF(ISBLANK($B64)=FALSE,IF(AND('beschrijving lozing'!I$7="algemene regels",+'beschrijving lozing'!I$19="nee",ISNA(VLOOKUP(+$B64,'beschrijving lozing'!B$27:Q$78,15,FALSE))=FALSE),MAX(VLOOKUP(+B64,'beschrijving lozing'!B$27:Q$78,15,FALSE),VLOOKUP(+$B64,'resultaten immissietoets'!$A$27:$AO$84,41,FALSE)),VLOOKUP(+$B64,'resultaten immissietoets'!$A$27:$AO$84,41,FALSE))," "),+P64)," ") ->  | O64: ja | R64: nee | S64: =IF(Q64="ZZS","ja",IF('ZZS-checker'!B64=1,"ja","nee")) -> nee | T64: 0 | U64: 0 | V64: nee | W64: =IF(ISBLANK($B64)=FALSE,IF(ISNA(VLOOKUP(+$B64,'resultaten immissietoets'!$A$27:$AO$84,14,FALSE))=FALSE,VLOOKUP(+$B64,'resultaten immissietoets'!$A$27:$AO$84,14,FALSE)," ")," ") ->  | Y64: =IF(AND(ISBLANK($B64)=FALSE,$B64<>" "),VLOOKUP(+$B64,'resultaten immissietoets'!$A$27:$BU$84,73,FALSE)," ") ->  | Z64: 0 | AB64: ja | AD64: 0 | AE64: 0 | AH64: 0 | AM64: =IF(AND(ISBLANK(B64)=FALSE,B64<>" "),VLOOKUP(+$B64,'resultaten immissietoets'!$A$27:$BK$84,63,FALSE)," ") ->  | AN64: 34 | AQ64: 0 | AU64: =IF('pot-ZZS-checker'!B49>0,"ja","nee") -> nee | AV64: 0 | AW64: 0 | AZ64: =IF(AND(ISBLANK(B64)=FALSE,B64<>" "),IF(D64<W64,IF(D64+((1-AA64/100)*Y64-D64)/'resultaten immissietoets'!J$24*IF(U$22="ja",1/(1+U$25*0.000001*10^G64),1)<W64,"nee","ja"),IF(((1-AA64)*Y64-D64)/'resultaten immissietoets'!J$24*IF(U$22="ja",1/(1+U$25*0.000001*10^G64),1)<=I64,"nee","ja"))," ") ->  | BA64: =IF(ISBLANK(B64)=FALSE,IF(BA$25="ja",IF(J64=" ",IF(D64+((1-AA64/100)*Y64-D64)/Q$20*IF(U$22="ja",1/(1+U$25*0.000001*10^G64),1)<=1,"nee","ja"),IF(D64+((1-AA64/100)*Y64-D64)/Q$20*IF(U$22="ja",1/(1+U$25*0.000001*10^G64),1)<='resultaten immissietoets'!AD62,"nee","ja")),"nee")," ") -> nee | BC64: nee | BD64: 0 | BH64: 0 | BK64: =IF(ISNA(VLOOKUP(B64,'resultaten immissietoets'!A$28:AO$84,41,FALSE))=FALSE,VLOOKUP(B64,'resultaten immissietoets'!A$28:AO$84,41,FALSE),0) -> 0 | BY64: 0 | BZ64: =IF(AND(B64<>" ",OR(+'beoordeling maatregel'!Q64="ZZS",S64="ja")),U64*L64,0) -> 0 | CA64: =IF(AND(B64<>" ",OR(B64="PFOS",B64="PFOA",B64="GENX",B64="overige PFAS",B64="6:2 FTS")),+'beoordeling maatregel'!L64*'beoordeling maatregel'!U64,0) -> 0
A65: 36 | B65: =IF(A65<=N$27,VLOOKUP(A64+1,'resultaten immissietoets'!AM$28:AN$84,2,FALSE)," ") ->  | C65: =VLOOKUP(+$B65,'resultaten immissietoets'!$A$27:$AA$84,24,FALSE) ->  | D65: =IF(ISBLANK($B65)=FALSE,VLOOKUP(+$B65,'resultaten immissietoets'!$A$27:$AA$84,10,FALSE)," ") ->  | E65: =VLOOKUP(+$B65,'resultaten immissietoets'!$A$27:$AA$84,26,FALSE) ->  | F65: =IF(ISBLANK($B65)=FALSE,VLOOKUP(+$B65,'resultaten immissietoets'!$A$27:$AI$84,35,FALSE)," ") ->  | G65: =LOG(IF(ISNUMBER(VLOOKUP(+$B65,'resultaten immissietoets'!$A$27:$AE$84,2,FALSE))=TRUE,VLOOKUP(+$B65,'resultaten immissietoets'!$A$27:$AE$84,2,FALSE),1)) -> 0 | H65: =IF(ISBLANK(B65)=FALSE,VLOOKUP(+$B65,'resultaten immissietoets'!$A$27:$AE$84,31,FALSE)," ") ->  | I65: =VLOOKUP(+$B65,'resultaten immissietoets'!$A$27:$AE$84,15,FALSE) ->  | K65: =IF(ISBLANK($B65)=FALSE,VLOOKUP(+$B65,'resultaten immissietoets'!$A$27:$AI$84,29,FALSE)," ") ->  | L65: =IF(AND(ISBLANK(B65)=FALSE,B65<>" "),N65*Y65*'resultaten immissietoets'!H$16*8760*3600/1000000,0) -> 0 | N65: =IF(B65<>" ",IF(N$9="nee",IF(ISBLANK($B65)=FALSE,IF(AND('beschrijving lozing'!I$7="algemene regels",+'beschrijving lozing'!I$19="nee",ISNA(VLOOKUP(+$B65,'beschrijving lozing'!B$27:Q$78,15,FALSE))=FALSE),MAX(VLOOKUP(+B65,'beschrijving lozing'!B$27:Q$78,15,FALSE),VLOOKUP(+$B65,'resultaten immissietoets'!$A$27:$AO$84,41,FALSE)),VLOOKUP(+$B65,'resultaten immissietoets'!$A$27:$AO$84,41,FALSE))," "),+P65)," ") ->  | O65: ja | R65: nee | S65: =IF(Q65="ZZS","ja",IF('ZZS-checker'!B65=1,"ja","nee")) -> nee | T65: 0 | U65: 0 | V65: nee | W65: =IF(ISBLANK($B65)=FALSE,IF(ISNA(VLOOKUP(+$B65,'resultaten immissietoets'!$A$27:$AO$84,14,FALSE))=FALSE,VLOOKUP(+$B65,'resultaten immissietoets'!$A$27:$AO$84,14,FALSE)," ")," ") ->  | Y65: =IF(AND(ISBLANK($B65)=FALSE,$B65<>" "),VLOOKUP(+$B65,'resultaten immissietoets'!$A$27:$BU$84,73,FALSE)," ") ->  | Z65: 0 | AB65: ja | AD65: 0 | AE65: 0 | AH65: 0 | AM65: =IF(AND(ISBLANK(B65)=FALSE,B65<>" "),VLOOKUP(+$B65,'resultaten immissietoets'!$A$27:$BK$84,63,FALSE)," ") ->  | AN65: 35 | AQ65: 0 | AU65: =IF('pot-ZZS-checker'!B50>0,"ja","nee") -> nee | AV65: 0 | AW65: 0 | AZ65: =IF(AND(ISBLANK(B65)=FALSE,B65<>" "),IF(D65<W65,IF(D65+((1-AA65/100)*Y65-D65)/'resultaten immissietoets'!J$24*IF(U$22="ja",1/(1+U$25*0.000001*10^G65),1)<W65,"nee","ja"),IF(((1-AA65)*Y65-D65)/'resultaten immissietoets'!J$24*IF(U$22="ja",1/(1+U$25*0.000001*10^G65),1)<=I65,"nee","ja"))," ") ->  | BA65: =IF(ISBLANK(B65)=FALSE,IF(BA$25="ja",IF(J65=" ",IF(D65+((1-AA65/100)*Y65-D65)/Q$20*IF(U$22="ja",1/(1+U$25*0.000001*10^G65),1)<=1,"nee","ja"),IF(D65+((1-AA65/100)*Y65-D65)/Q$20*IF(U$22="ja",1/(1+U$25*0.000001*10^G65),1)<='resultaten immissietoets'!AD63,"nee","ja")),"nee")," ") -> nee | BC65: nee | BD65: 0 | BH65: 0 | BK65: =IF(ISNA(VLOOKUP(B65,'resultaten immissietoets'!A$28:AO$84,41,FALSE))=FALSE,VLOOKUP(B65,'resultaten immissietoets'!A$28:AO$84,41,FALSE),0) -> 0 | BY65: 0 | BZ65: =IF(AND(B65<>" ",OR(+'beoordeling maatregel'!Q65="ZZS",S65="ja")),U65*L65,0) -> 0 | CA65: =IF(AND(B65<>" ",OR(B65="PFOS",B65="PFOA",B65="GENX",B65="overige PFAS",B65="6:2 FTS")),+'beoordeling maatregel'!L65*'beoordeling maatregel'!U65,0) -> 0
A66: 37 | B66: =IF(A66<=N$27,VLOOKUP(A65+1,'resultaten immissietoets'!AM$28:AN$84,2,FALSE)," ") ->  | C66: =VLOOKUP(+$B66,'resultaten immissietoets'!$A$27:$AA$84,24,FALSE) ->  | D66: =IF(ISBLANK($B66)=FALSE,VLOOKUP(+$B66,'resultaten immissietoets'!$A$27:$AA$84,10,FALSE)," ") ->  | E66: =VLOOKUP(+$B66,'resultaten immissietoets'!$A$27:$AA$84,26,FALSE) ->  | F66: =IF(ISBLANK($B66)=FALSE,VLOOKUP(+$B66,'resultaten immissietoets'!$A$27:$AI$84,35,FALSE)," ") ->  | G66: =LOG(IF(ISNUMBER(VLOOKUP(+$B66,'resultaten immissietoets'!$A$27:$AE$84,2,FALSE))=TRUE,VLOOKUP(+$B66,'resultaten immissietoets'!$A$27:$AE$84,2,FALSE),1)) -> 0 | H66: =IF(ISBLANK(B66)=FALSE,VLOOKUP(+$B66,'resultaten immissietoets'!$A$27:$AE$84,31,FALSE)," ") ->  | I66: =VLOOKUP(+$B66,'resultaten immissietoets'!$A$27:$AE$84,15,FALSE) ->  | K66: =IF(ISBLANK($B66)=FALSE,VLOOKUP(+$B66,'resultaten immissietoets'!$A$27:$AI$84,29,FALSE)," ") ->  | L66: =IF(AND(ISBLANK(B66)=FALSE,B66<>" "),N66*Y66*'resultaten immissietoets'!H$16*8760*3600/1000000,0) -> 0 | N66: =IF(B66<>" ",IF(N$9="nee",IF(ISBLANK($B66)=FALSE,IF(AND('beschrijving lozing'!I$7="algemene regels",+'beschrijving lozing'!I$19="nee",ISNA(VLOOKUP(+$B66,'beschrijving lozing'!B$27:Q$78,15,FALSE))=FALSE),MAX(VLOOKUP(+B66,'beschrijving lozing'!B$27:Q$78,15,FALSE),VLOOKUP(+$B66,'resultaten immissietoets'!$A$27:$AO$84,41,FALSE)),VLOOKUP(+$B66,'resultaten immissietoets'!$A$27:$AO$84,41,FALSE))," "),+P66)," ") ->  | O66: ja | R66: nee | S66: =IF(Q66="ZZS","ja",IF('ZZS-checker'!B66=1,"ja","nee")) -> nee | T66: 0 | U66: 0 | V66: nee | W66: =IF(ISBLANK($B66)=FALSE,IF(ISNA(VLOOKUP(+$B66,'resultaten immissietoets'!$A$27:$AO$84,14,FALSE))=FALSE,VLOOKUP(+$B66,'resultaten immissietoets'!$A$27:$AO$84,14,FALSE)," ")," ") ->  | Y66: =IF(AND(ISBLANK($B66)=FALSE,$B66<>" "),VLOOKUP(+$B66,'resultaten immissietoets'!$A$27:$BU$84,73,FALSE)," ") ->  | Z66: 0 | AB66: ja | AD66: 0 | AE66: 0 | AH66: 0 | AM66: =IF(AND(ISBLANK(B66)=FALSE,B66<>" "),VLOOKUP(+$B66,'resultaten immissietoets'!$A$27:$BK$84,63,FALSE)," ") ->  | AN66: 36 | AQ66: 0 | AU66: =IF('pot-ZZS-checker'!B51>0,"ja","nee") -> nee | AV66: 0 | AW66: 0 | AZ66: =IF(AND(ISBLANK(B66)=FALSE,B66<>" "),IF(D66<W66,IF(D66+((1-AA66/100)*Y66-D66)/'resultaten immissietoets'!J$24*IF(U$22="ja",1/(1+U$25*0.000001*10^G66),1)<W66,"nee","ja"),IF(((1-AA66)*Y66-D66)/'resultaten immissietoets'!J$24*IF(U$22="ja",1/(1+U$25*0.000001*10^G66),1)<=I66,"nee","ja"))," ") ->  | BA66: =IF(ISBLANK(B66)=FALSE,IF(BA$25="ja",IF(J66=" ",IF(D66+((1-AA66/100)*Y66-D66)/Q$20*IF(U$22="ja",1/(1+U$25*0.000001*10^G66),1)<=1,"nee","ja"),IF(D66+((1-AA66/100)*Y66-D66)/Q$20*IF(U$22="ja",1/(1+U$25*0.000001*10^G66),1)<='resultaten immissietoets'!AD64,"nee","ja")),"nee")," ") -> nee | BC66: nee | BD66: 0 | BH66: 0 | BK66: =IF(ISNA(VLOOKUP(B66,'resultaten immissietoets'!A$28:AO$84,41,FALSE))=FALSE,VLOOKUP(B66,'resultaten immissietoets'!A$28:AO$84,41,FALSE),0) -> 0 | BY66: 0 | BZ66: =IF(AND(B66<>" ",OR(+'beoordeling maatregel'!Q66="ZZS",S66="ja")),U66*L66,0) -> 0 | CA66: =IF(AND(B66<>" ",OR(B66="PFOS",B66="PFOA",B66="GENX",B66="overige PFAS",B66="6:2 FTS")),+'beoordeling maatregel'!L66*'beoordeling maatregel'!U66,0) -> 0
A67: 38 | B67: =IF(A67<=N$27,VLOOKUP(A66+1,'resultaten immissietoets'!AM$28:AN$84,2,FALSE)," ") ->  | C67: =VLOOKUP(+$B67,'resultaten immissietoets'!$A$27:$AA$84,24,FALSE) ->  | D67: =IF(ISBLANK($B67)=FALSE,VLOOKUP(+$B67,'resultaten immissietoets'!$A$27:$AA$84,10,FALSE)," ") ->  | E67: =VLOOKUP(+$B67,'resultaten immissietoets'!$A$27:$AA$84,26,FALSE) ->  | F67: =IF(ISBLANK($B67)=FALSE,VLOOKUP(+$B67,'resultaten immissietoets'!$A$27:$AI$84,35,FALSE)," ") ->  | G67: =LOG(IF(ISNUMBER(VLOOKUP(+$B67,'resultaten immissietoets'!$A$27:$AE$84,2,FALSE))=TRUE,VLOOKUP(+$B67,'resultaten immissietoets'!$A$27:$AE$84,2,FALSE),1)) -> 0 | H67: =IF(ISBLANK(B67)=FALSE,VLOOKUP(+$B67,'resultaten immissietoets'!$A$27:$AE$84,31,FALSE)," ") ->  | I67: =VLOOKUP(+$B67,'resultaten immissietoets'!$A$27:$AE$84,15,FALSE) ->  | K67: =IF(ISBLANK($B67)=FALSE,VLOOKUP(+$B67,'resultaten immissietoets'!$A$27:$AI$84,29,FALSE)," ") ->  | L67: =IF(AND(ISBLANK(B67)=FALSE,B67<>" "),N67*Y67*'resultaten immissietoets'!H$16*8760*3600/1000000,0) -> 0 | N67: =IF(B67<>" ",IF(N$9="nee",IF(ISBLANK($B67)=FALSE,IF(AND('beschrijving lozing'!I$7="algemene regels",+'beschrijving lozing'!I$19="nee",ISNA(VLOOKUP(+$B67,'beschrijving lozing'!B$27:Q$78,15,FALSE))=FALSE),MAX(VLOOKUP(+B67,'beschrijving lozing'!B$27:Q$78,15,FALSE),VLOOKUP(+$B67,'resultaten immissietoets'!$A$27:$AO$84,41,FALSE)),VLOOKUP(+$B67,'resultaten immissietoets'!$A$27:$AO$84,41,FALSE))," "),+P67)," ") ->  | O67: ja | R67: nee | S67: =IF(Q67="ZZS","ja",IF('ZZS-checker'!B67=1,"ja","nee")) -> nee | T67: 0 | U67: 0 | V67: nee | W67: =IF(ISBLANK($B67)=FALSE,IF(ISNA(VLOOKUP(+$B67,'resultaten immissietoets'!$A$27:$AO$84,14,FALSE))=FALSE,VLOOKUP(+$B67,'resultaten immissietoets'!$A$27:$AO$84,14,FALSE)," ")," ") ->  | Y67: =IF(AND(ISBLANK($B67)=FALSE,$B67<>" "),VLOOKUP(+$B67,'resultaten immissietoets'!$A$27:$BU$84,73,FALSE)," ") ->  | Z67: 0 | AB67: ja | AD67: 0 | AE67: 0 | AH67: 0 | AM67: =IF(AND(ISBLANK(B67)=FALSE,B67<>" "),VLOOKUP(+$B67,'resultaten immissietoets'!$A$27:$BK$84,63,FALSE)," ") ->  | AN67: 37 | AQ67: 0 | AU67: =IF('pot-ZZS-checker'!B52>0,"ja","nee") -> nee | AV67: 0 | AW67: 0 | AZ67: =IF(AND(ISBLANK(B67)=FALSE,B67<>" "),IF(D67<W67,IF(D67+((1-AA67/100)*Y67-D67)/'resultaten immissietoets'!J$24*IF(U$22="ja",1/(1+U$25*0.000001*10^G67),1)<W67,"nee","ja"),IF(((1-AA67)*Y67-D67)/'resultaten immissietoets'!J$24*IF(U$22="ja",1/(1+U$25*0.000001*10^G67),1)<=I67,"nee","ja"))," ") ->  | BA67: =IF(ISBLANK(B67)=FALSE,IF(BA$25="ja",IF(J67=" ",IF(D67+((1-AA67/100)*Y67-D67)/Q$20*IF(U$22="ja",1/(1+U$25*0.000001*10^G67),1)<=1,"nee","ja"),IF(D67+((1-AA67/100)*Y67-D67)/Q$20*IF(U$22="ja",1/(1+U$25*0.000001*10^G67),1)<='resultaten immissietoets'!AD65,"nee","ja")),"nee")," ") -> nee | BC67: nee | BD67: 0 | BH67: 0 | BK67: =IF(ISNA(VLOOKUP(B67,'resultaten immissietoets'!A$28:AO$84,41,FALSE))=FALSE,VLOOKUP(B67,'resultaten immissietoets'!A$28:AO$84,41,FALSE),0) -> 0 | BY67: 0 | BZ67: =IF(AND(B67<>" ",OR(+'beoordeling maatregel'!Q67="ZZS",S67="ja")),U67*L67,0) -> 0 | CA67: =IF(AND(B67<>" ",OR(B67="PFOS",B67="PFOA",B67="GENX",B67="overige PFAS",B67="6:2 FTS")),+'beoordeling maatregel'!L67*'beoordeling maatregel'!U67,0) -> 0
A68: 39 | B68: =IF(A68<=N$27,VLOOKUP(A67+1,'resultaten immissietoets'!AM$28:AN$84,2,FALSE)," ") ->  | C68: =VLOOKUP(+$B68,'resultaten immissietoets'!$A$27:$AA$84,24,FALSE) ->  | D68: =IF(ISBLANK($B68)=FALSE,VLOOKUP(+$B68,'resultaten immissietoets'!$A$27:$AA$84,10,FALSE)," ") ->  | E68: =VLOOKUP(+$B68,'resultaten immissietoets'!$A$27:$AA$84,26,FALSE) ->  | F68: =IF(ISBLANK($B68)=FALSE,VLOOKUP(+$B68,'resultaten immissietoets'!$A$27:$AI$84,35,FALSE)," ") ->  | G68: =LOG(IF(ISNUMBER(VLOOKUP(+$B68,'resultaten immissietoets'!$A$27:$AE$84,2,FALSE))=TRUE,VLOOKUP(+$B68,'resultaten immissietoets'!$A$27:$AE$84,2,FALSE),1)) -> 0 | H68: =IF(ISBLANK(B68)=FALSE,VLOOKUP(+$B68,'resultaten immissietoets'!$A$27:$AE$84,31,FALSE)," ") ->  | I68: =VLOOKUP(+$B68,'resultaten immissietoets'!$A$27:$AE$84,15,FALSE) ->  | K68: =IF(ISBLANK($B68)=FALSE,VLOOKUP(+$B68,'resultaten immissietoets'!$A$27:$AI$84,29,FALSE)," ") ->  | L68: =IF(AND(ISBLANK(B68)=FALSE,B68<>" "),N68*Y68*'resultaten immissietoets'!H$16*8760*3600/1000000,0) -> 0 | N68: =IF(B68<>" ",IF(N$9="nee",IF(ISBLANK($B68)=FALSE,IF(AND('beschrijving lozing'!I$7="algemene regels",+'beschrijving lozing'!I$19="nee",ISNA(VLOOKUP(+$B68,'beschrijving lozing'!B$27:Q$78,15,FALSE))=FALSE),MAX(VLOOKUP(+B68,'beschrijving lozing'!B$27:Q$78,15,FALSE),VLOOKUP(+$B68,'resultaten immissietoets'!$A$27:$AO$84,41,FALSE)),VLOOKUP(+$B68,'resultaten immissietoets'!$A$27:$AO$84,41,FALSE))," "),+P68)," ") ->  | O68: ja | R68: nee | S68: =IF(Q68="ZZS","ja",IF('ZZS-checker'!B68=1,"ja","nee")) -> nee | T68: 0 | U68: 0 | V68: nee | W68: =IF(ISBLANK($B68)=FALSE,IF(ISNA(VLOOKUP(+$B68,'resultaten immissietoets'!$A$27:$AO$84,14,FALSE))=FALSE,VLOOKUP(+$B68,'resultaten immissietoets'!$A$27:$AO$84,14,FALSE)," ")," ") ->  | Y68: =IF(AND(ISBLANK($B68)=FALSE,$B68<>" "),VLOOKUP(+$B68,'resultaten immissietoets'!$A$27:$BU$84,73,FALSE)," ") ->  | Z68: 0 | AB68: ja | AD68: 0 | AE68: 0 | AH68: 0 | AM68: =IF(AND(ISBLANK(B68)=FALSE,B68<>" "),VLOOKUP(+$B68,'resultaten immissietoets'!$A$27:$BK$84,63,FALSE)," ") ->  | AN68: 38 | AQ68: 0 | AU68: =IF('pot-ZZS-checker'!B53>0,"ja","nee") -> nee | AV68: 0 | AW68: 0 | AZ68: =IF(AND(ISBLANK(B68)=FALSE,B68<>" "),IF(D68<W68,IF(D68+((1-AA68/100)*Y68-D68)/'resultaten immissietoets'!J$24*IF(U$22="ja",1/(1+U$25*0.000001*10^G68),1)<W68,"nee","ja"),IF(((1-AA68)*Y68-D68)/'resultaten immissietoets'!J$24*IF(U$22="ja",1/(1+U$25*0.000001*10^G68),1)<=I68,"nee","ja"))," ") ->  | BA68: =IF(ISBLANK(B68)=FALSE,IF(BA$25="ja",IF(J68=" ",IF(D68+((1-AA68/100)*Y68-D68)/Q$20*IF(U$22="ja",1/(1+U$25*0.000001*10^G68),1)<=1,"nee","ja"),IF(D68+((1-AA68/100)*Y68-D68)/Q$20*IF(U$22="ja",1/(1+U$25*0.000001*10^G68),1)<='resultaten immissietoets'!AD66,"nee","ja")),"nee")," ") -> nee | BC68: nee | BD68: 0 | BH68: 0 | BK68: =IF(ISNA(VLOOKUP(B68,'resultaten immissietoets'!A$28:AO$84,41,FALSE))=FALSE,VLOOKUP(B68,'resultaten immissietoets'!A$28:AO$84,41,FALSE),0) -> 0 | BY68: 0 | BZ68: =IF(AND(B68<>" ",OR(+'beoordeling maatregel'!Q68="ZZS",S68="ja")),U68*L68,0) -> 0 | CA68: =IF(AND(B68<>" ",OR(B68="PFOS",B68="PFOA",B68="GENX",B68="overige PFAS",B68="6:2 FTS")),+'beoordeling maatregel'!L68*'beoordeling maatregel'!U68,0) -> 0
